Workbook

Sheet Roller blank thermal
C1: Time | D1: Channel 1 | E1: Channel 2 | G1: Ratio | H1: Injection time | I1: Thermal start time
C2: Minutes | D2: ( ｰC ) | E2: ( ｰC ) | G2: =G11/J2 -> 0.89 | H2: 2016-11-22T10:40:44 | I2: 2016-11-22T10:35:03 | J2: 00:03:00 | K2: 24-Nov-16, 14:40:39
A3: =$I$2+(C3/1440) -> 2016-11-22T10:32:03 | C3: -3 | D3: 23.94 | E3: 23.89 | G3: =H11/J2 -> 0.74 | H3: 2nd Injection time | I3: 2nd Thermal time
A4: 2016-11-22T10:35:03 | B4: =C4+(11-3) -> 8 | C4: 0 | D4: 23.94 | E4: 23.89 | H4: 2016-11-23T00:28:16 | I4: 2016-11-23T00:26:03
A5: 2016-11-22T10:38:03 | B5: =C5+(11-3) -> 11 | C5: 3 | D5: 23.92 | E5: 23.87
A6: 2016-11-22T10:41:03 | B6: =C6+(11-3) -> 14 | C6: 6 | D6: 23.96 | E6: 23.91
A7: 2016-11-22T10:44:03 | B7: 17 | C7: 9 | D7: 24.69 | E7: 24.49
A8: 2016-11-22T10:47:03 | B8: 20 | C8: 12 | D8: 26.67 | E8: 26.1
A9: 2016-11-22T10:50:03 | B9: 23 | C9: 15 | D9: 28.81 | E9: 28
A10: 2016-11-22T10:53:03 | B10: 26 | C10: 18 | D10: 30.8 | E10: 29.94
A11: 2016-11-22T10:56:03 | B11: 29 | C11: 21 | D11: 32.7 | E11: 31.82 | G11: =H2-A5 -> 00:02:41 | H11: =H4-I4 -> 00:02:13
A12: 2016-11-22T10:59:03 | B12: 32 | C12: 24 | D12: 34.42 | E12: 33.57 | G12: min | H12: Temperature /°C
A13: 2016-11-22T11:02:03 | B13: 35 | C13: 27 | D13: 36.04 | E13: 35.22 | G13: =((A5-$A$5)*1440)+11 -> 11 | H13: =E5+($G$2*(E6-E5)) -> 23.9 | I13: =((A4-$A$4)*1440)+11 -> 11 | J13: =D5+($G$2*(D6-D4)) -> 23.9 | K13: =H13-J13 -> -0.0
A14: 2016-11-22T11:05:03 | B14: 38 | C14: 30 | D14: 37.61 | E14: 36.82 | G14: =((A5-$A$4)*1440)+11 -> 14 | H14: =E6+($G$2*(E7-E6)) -> 24.4 | I14: 14 | J14: =D6+($G$2*(D7-D5)) -> 24.6 | K14: -0.2
A15: 2016-11-22T11:08:03 | B15: 41 | C15: 33 | D15: 39.09 | E15: 38.31 | G15: 17 | H15: 25.9 | I15: 17 | J15: 27.1 | K15: -1.2
A16: 2016-11-22T11:11:03 | B16: 44 | C16: 36 | D16: 40.48 | E16: 39.74 | G16: 20 | H16: 27.8 | I16: 20 | J16: 30.4 | K16: -2.6
A17: 2016-11-22T11:14:03 | B17: 47 | C17: 39 | D17: 41.89 | E17: 41.14 | G17: 23 | H17: 29.7 | I17: 23 | J17: 32.5 | K17: -2.8
A18: 2016-11-22T11:17:03 | B18: 50 | C18: 42 | D18: 43.24 | E18: 42.5 | G18: 26 | H18: 31.6 | I18: 26 | J18: 34.3 | K18: -2.7
A19: 2016-11-22T11:20:03 | B19: 53 | C19: 45 | D19: 44.57 | E19: 43.84 | G19: 29 | H19: 33.4 | I19: 29 | J19: 35.9 | K19: -2.6
A20: 2016-11-22T11:23:03 | B20: 56 | C20: 48 | D20: 45.93 | E20: 45.19 | G20: 32 | H20: 35.0 | I20: 32 | J20: 37.4 | K20: -2.4
A21: 2016-11-22T11:26:03 | B21: 59 | C21: 51 | D21: 47.23 | E21: 46.5 | G21: 35 | H21: 36.7 | I21: 35 | J21: 38.9 | K21: -2.2
A22: 2016-11-22T11:29:03 | B22: 62 | C22: 54 | D22: 48.56 | E22: 47.82 | G22: 38 | H22: 38.2 | I22: 38 | J22: 40.3 | K22: -2.2
A23: 2016-11-22T11:32:03 | B23: 65 | C23: 57 | D23: 49.89 | E23: 49.14 | G23: 41 | H23: 39.6 | I23: 41 | J23: 41.7 | K23: -2.1
A24: 2016-11-22T11:35:03 | B24: 68 | C24: 60 | D24: 51.19 | E24: 50.44 | G24: 44 | H24: 41.0 | I24: 44 | J24: 43.0 | K24: -2.0
A25: 2016-11-22T11:38:03 | B25: 71 | C25: 63 | D25: 52.49 | E25: 51.74 | G25: 47 | H25: 42.4 | I25: 47 | J25: 44.4 | K25: -2.0
A26: 2016-11-22T11:41:03 | B26: 74 | C26: 66 | D26: 53.79 | E26: 53.03 | G26: 50 | H26: 43.7 | I26: 50 | J26: 45.6 | K26: -1.9
A27: 2016-11-22T11:44:03 | B27: 77 | C27: 69 | D27: 55.1 | E27: 54.34 | G27: 53 | H27: 45.0 | I27: 53 | J27: 47.0 | K27: -1.9
A28: 2016-11-22T11:47:03 | B28: 80 | C28: 72 | D28: 56.39 | E28: 55.63 | G28: 56 | H28: 46.4 | I28: 56 | J28: 48.3 | K28: -1.9
A29: 2016-11-22T11:50:03 | B29: 83 | C29: 75 | D29: 57.72 | E29: 56.96 | G29: 59 | H29: 47.7 | I29: 59 | J29: 49.6 | K29: -1.9
A30: 2016-11-22T11:53:03 | B30: 86 | C30: 78 | D30: 59 | E30: 58.24 | G30: 62 | H30: 49.0 | I30: 62 | J30: 50.9 | K30: -1.9
A31: 2016-11-22T11:56:03 | B31: 89 | C31: 81 | D31: 60.31 | E31: 59.54 | G31: 65 | H31: 50.3 | I31: 65 | J31: 52.2 | K31: -1.9
A32: 2016-11-22T11:59:03 | B32: 92 | C32: 84 | D32: 61.63 | E32: 60.85 | G32: 68 | H32: 51.6 | I32: 68 | J32: 53.5 | K32: -1.9
A33: 2016-11-22T12:02:03 | B33: 95 | C33: 87 | D33: 62.9 | E33: 62.12 | G33: 71 | H33: 52.9 | I33: 71 | J33: 54.8 | K33: -1.9
A34: 2016-11-22T12:05:03 | B34: 98 | C34: 90 | D34: 64.19 | E34: 63.41 | G34: 74 | H34: 54.2 | I34: 74 | J34: 56.1 | K34: -1.9
A35: 2016-11-22T12:08:03 | B35: 101 | C35: 93 | D35: 65.49 | E35: 64.7 | G35: 77 | H35: 55.5 | I35: 77 | J35: 57.4 | K35: -1.9
A36: 2016-11-22T12:11:03 | B36: 104 | C36: 96 | D36: 66.77 | E36: 65.98 | G36: 80 | H36: 56.8 | I36: 80 | J36: 58.7 | K36: -1.9
A37: 2016-11-22T12:14:03 | B37: 107 | C37: 99 | D37: 68.03 | E37: 67.24 | G37: 83 | H37: 58.1 | I37: 83 | J37: 60.1 | K37: -1.9
A38: 2016-11-22T12:17:03 | B38: 110 | C38: 102 | D38: 69.33 | E38: 68.53 | G38: 86 | H38: 59.4 | I38: 86 | J38: 61.3 | K38: -1.9
A39: 2016-11-22T12:20:03 | B39: 113 | C39: 105 | D39: 70.63 | E39: 69.82 | G39: 89 | H39: 60.7 | I39: 89 | J39: 62.7 | K39: -2.0
A40: 2016-11-22T12:23:03 | B40: 116 | C40: 108 | D40: 71.9 | E40: 71.1 | G40: 92 | H40: 62.0 | I40: 92 | J40: 63.9 | K40: -2.0
A41: 2016-11-22T12:26:03 | B41: 119 | C41: 111 | D41: 73.22 | E41: 72.41 | G41: 95 | H41: 63.3 | I41: 95 | J41: 65.2 | K41: -1.9
A42: 2016-11-22T12:29:03 | B42: 122 | C42: 114 | D42: 74.49 | E42: 73.68 | G42: 98 | H42: 64.6 | I42: 98 | J42: 66.5 | K42: -1.9
A43: 2016-11-22T12:32:03 | B43: 125 | C43: 117 | D43: 75.78 | E43: 74.97 | G43: 101 | H43: 65.8 | I43: 101 | J43: 67.8 | K43: -2.0
A44: 2016-11-22T12:35:03 | B44: 128 | C44: 120 | D44: 77.1 | E44: 76.28 | G44: 104 | H44: 67.1 | I44: 104 | J44: 69.0 | K44: -1.9
A45: 2016-11-22T12:38:03 | B45: 131 | C45: 123 | D45: 78.38 | E45: 77.56 | G45: 107 | H45: 68.4 | I45: 107 | J45: 70.3 | K45: -1.9
A46: 2016-11-22T12:41:03 | B46: 134 | C46: 126 | D46: 79.66 | E46: 78.83 | G46: 110 | H46: 69.7 | I46: 110 | J46: 71.7 | K46: -2.0
A47: 2016-11-22T12:44:03 | B47: 137 | C47: 129 | D47: 80.91 | E47: 80.08 | G47: 113 | H47: 71.0 | I47: 113 | J47: 72.9 | K47: -2.0
A48: 2016-11-22T12:47:03 | B48: 140 | C48: 132 | D48: 82.15 | E48: 81.33 | G48: 116 | H48: 72.3 | I48: 116 | J48: 74.2 | K48: -1.9
A49: 2016-11-22T12:50:03 | B49: 143 | C49: 135 | D49: 83.46 | E49: 82.62 | G49: 119 | H49: 73.5 | I49: 119 | J49: 75.5 | K49: -2.0
A50: 2016-11-22T12:53:03 | B50: 146 | C50: 138 | D50: 84.73 | E50: 83.89 | G50: 122 | H50: 74.8 | I50: 122 | J50: 76.8 | K50: -1.9
A51: 2016-11-22T12:56:03 | B51: 149 | C51: 141 | D51: 86.06 | E51: 85.21 | G51: 125 | H51: 76.1 | I51: 125 | J51: 78.1 | K51: -2.0
A52: 2016-11-22T12:59:03 | B52: 152 | C52: 144 | D52: 87.38 | E52: 86.53 | G52: 128 | H52: 77.4 | I52: 128 | J52: 79.4 | K52: -2.0
A53: 2016-11-22T13:02:03 | B53: 155 | C53: 147 | D53: 88.64 | E53: 87.79 | G53: 131 | H53: 78.7 | I53: 131 | J53: 80.7 | K53: -2.0
A54: 2016-11-22T13:05:03 | B54: 158 | C54: 150 | D54: 89.94 | E54: 89.09 | G54: 134 | H54: 79.9 | I54: 134 | J54: 81.9 | K54: -2.0
A55: 2016-11-22T13:08:03 | B55: 161 | C55: 153 | D55: 91.23 | E55: 90.37 | G55: 137 | H55: 81.2 | I55: 137 | J55: 83.1 | K55: -1.9
A56: 2016-11-22T13:11:03 | B56: 164 | C56: 156 | D56: 92.49 | E56: 91.64 | G56: 140 | H56: 82.5 | I56: 140 | J56: 84.4 | K56: -1.9
A57: 2016-11-22T13:14:03 | B57: 167 | C57: 159 | D57: 93.77 | E57: 92.91 | G57: 143 | H57: 83.8 | I57: 143 | J57: 85.8 | K57: -2.0
A58: 2016-11-22T13:17:03 | B58: 170 | C58: 162 | D58: 95.05 | E58: 94.19 | G58: 146 | H58: 85.1 | I58: 146 | J58: 87.1 | K58: -2.0
A59: 2016-11-22T13:20:03 | B59: 173 | C59: 165 | D59: 96.36 | E59: 95.5 | G59: 149 | H59: 86.4 | I59: 149 | J59: 88.4 | K59: -2.0
A60: 2016-11-22T13:23:03 | B60: 176 | C60: 168 | D60: 97.65 | E60: 96.79 | G60: 152 | H60: 87.7 | I60: 152 | J60: 89.7 | K60: -2.0
A61: 2016-11-22T13:26:03 | B61: 179 | C61: 171 | D61: 98.95 | E61: 98.08 | G61: 155 | H61: 89.0 | I61: 155 | J61: 90.9 | K61: -2.0
A62: 2016-11-22T13:29:03 | B62: 182 | C62: 174 | D62: 100.21 | E62: 99.35 | G62: 158 | H62: 90.2 | I62: 158 | J62: 92.3 | K62: -2.0
A63: 2016-11-22T13:32:03 | B63: 185 | C63: 177 | D63: 101.5 | E63: 100.63 | G63: 161 | H63: 91.5 | I63: 161 | J63: 93.5 | K63: -2.0
A64: 2016-11-22T13:35:03 | B64: 188 | C64: 180 | D64: 102.8 | E64: 101.93 | G64: 164 | H64: 92.8 | I64: 164 | J64: 94.8 | K64: -2.0
A65: 2016-11-22T13:38:03 | B65: 191 | C65: 183 | D65: 104.06 | E65: 103.2 | G65: 167 | H65: 94.1 | I65: 167 | J65: 96.1 | K65: -2.0
A66: 2016-11-22T13:41:03 | B66: 194 | C66: 186 | D66: 105.36 | E66: 104.49 | G66: 170 | H66: 95.4 | I66: 170 | J66: 97.4 | K66: -2.0
A67: =$I$2+(C67/1440) -> 2016-11-22T13:44:03 | B67: 197 | C67: 189 | D67: 106.63 | E67: 105.77 | G67: 173 | H67: 96.7 | I67: 173 | J67: 98.7 | K67: -2.0
A68: 2016-11-22T13:47:03 | B68: 200 | C68: 192 | D68: 107.96 | E68: 107.09 | G68: 176 | H68: 97.9 | I68: 176 | J68: 100.0 | K68: -2.0
A69: 2016-11-22T13:50:03 | B69: 203 | C69: 195 | D69: 109.23 | E69: 108.37 | G69: 179 | H69: 99.2 | I69: 179 | J69: 101.2 | K69: -2.0
A70: 2016-11-22T13:53:03 | B70: =C70+(11-3) -> 206 | C70: 198 | D70: 110.55 | E70: 109.68 | G70: 182 | H70: 100.5 | I70: 182 | J70: 102.5 | K70: -2.0
A71: 2016-11-22T13:56:03 | B71: 209 | C71: 201 | D71: 111.9 | E71: 111.03 | G71: 185 | H71: 101.8 | I71: 185 | J71: 103.8 | K71: -2.0
A72: 2016-11-22T13:59:03 | B72: 212 | C72: 204 | D72: 113.18 | E72: 112.31 | G72: 188 | H72: 103.1 | I72: 188 | J72: 105.1 | K72: -2.0
A73: 2016-11-22T14:02:03 | B73: 215 | C73: 207 | D73: 114.4 | E73: 113.55 | G73: 191 | H73: 104.4 | I73: 191 | J73: 106.3 | K73: -2.0
A74: 2016-11-22T14:05:03 | B74: 218 | C74: 210 | D74: 115.72 | E74: 114.86 | G74: 194 | H74: 105.6 | I74: 194 | J74: 107.7 | K74: -2.0
A75: 2016-11-22T14:08:03 | B75: 221 | C75: 213 | D75: 116.98 | E75: 116.13 | G75: 197 | H75: 107.0 | I75: 197 | J75: 109.0 | K75: -2.0
A76: 2016-11-22T14:11:03 | B76: 224 | C76: 216 | D76: 118.26 | E76: 117.41 | G76: 200 | H76: 108.2 | I76: 200 | J76: 110.3 | K76: -2.1
A77: 2016-11-22T14:14:03 | B77: 227 | C77: 219 | D77: 119.46 | E77: 118.62 | G77: 203 | H77: 109.5 | I77: =((A68-$A$4)*1440)+11 -> 203 | J77: 111.5 | K77: =H77-J77 -> -2.0
A78: 2016-11-22T14:17:03 | B78: 230 | C78: 222 | D78: 120.71 | E78: 119.87 | G78: =((A69-$A$4)*1440)+11 -> 206 | H78: =E70+($G$2*(E71-E70)) -> 110.9 | I78: 206 | J78: =D70+($G$2*(D71-D69)) -> 112.9 | K78: -2.1
A79: 2016-11-22T14:20:03 | B79: 233 | C79: 225 | D79: 122.07 | E79: 121.21 | G79: 209 | H79: 112.2 | I79: 209 | J79: 114.3 | K79: -2.1
A80: 2016-11-22T14:23:03 | B80: 236 | C80: 228 | D80: 123.38 | E80: 122.53 | G80: 212 | H80: 113.4 | I80: 212 | J80: 115.4 | K80: -2.0
A81: 2016-11-22T14:26:03 | B81: 239 | C81: 231 | D81: 124.67 | E81: 123.82 | G81: 215 | H81: 114.7 | I81: 215 | J81: 116.7 | K81: -2.0
A82: 2016-11-22T14:29:03 | B82: 242 | C82: 234 | D82: 125.99 | E82: 125.14 | G82: 218 | H82: 116.0 | I82: 218 | J82: 118.0 | K82: -2.0
A83: 2016-11-22T14:32:03 | B83: 245 | C83: 237 | D83: 127.28 | E83: 126.44 | G83: 221 | H83: 117.3 | I83: 221 | J83: 119.3 | K83: -2.0
A84: 2016-11-22T14:35:03 | B84: 248 | C84: 240 | D84: 128.55 | E84: 127.72 | G84: 224 | H84: 118.5 | I84: 224 | J84: 120.5 | K84: -2.0
A85: 2016-11-22T14:38:03 | B85: 251 | C85: 243 | D85: 129.85 | E85: 129.03 | G85: 227 | H85: 119.7 | I85: 227 | J85: 121.7 | K85: -1.9
A86: 2016-11-22T14:41:03 | B86: 254 | C86: 246 | D86: 131.17 | E86: 130.34 | G86: 230 | H86: 121.1 | I86: 230 | J86: 123.0 | K86: -2.0
A87: 2016-11-22T14:44:03 | B87: 257 | C87: 249 | D87: 132.46 | E87: 131.64 | G87: 233 | H87: 122.4 | I87: 233 | J87: 124.5 | K87: -2.1
A88: 2016-11-22T14:47:03 | B88: 260 | C88: 252 | D88: 133.74 | E88: 132.93 | G88: 236 | H88: 123.7 | I88: 236 | J88: 125.7 | K88: -2.0
A89: 2016-11-22T14:50:03 | B89: 263 | C89: 255 | D89: 135.05 | E89: 134.24 | G89: 239 | H89: 125.0 | I89: 239 | J89: 127.0 | K89: -2.0
A90: 2016-11-22T14:53:03 | B90: 266 | C90: 258 | D90: 136.35 | E90: 135.54 | G90: 242 | H90: 126.3 | I90: 242 | J90: 128.3 | K90: -2.0
A91: 2016-11-22T14:56:03 | B91: 269 | C91: 261 | D91: 137.66 | E91: 136.85 | G91: 245 | H91: 127.6 | I91: 245 | J91: 129.6 | K91: -2.0
A92: 2016-11-22T14:59:03 | B92: 272 | C92: 264 | D92: 138.93 | E92: 138.14 | G92: 248 | H92: 128.9 | I92: 248 | J92: 130.8 | K92: -2.0
A93: 2016-11-22T15:02:03 | B93: 275 | C93: 267 | D93: 140.21 | E93: 139.42 | G93: 251 | H93: 130.2 | I93: 251 | J93: 132.2 | K93: -2.0
A94: 2016-11-22T15:05:03 | B94: 278 | C94: 270 | D94: 141.48 | E94: 140.7 | G94: 254 | H94: 131.5 | I94: 254 | J94: 133.5 | K94: -2.0
A95: 2016-11-22T15:08:03 | B95: 281 | C95: 273 | D95: 142.78 | E95: 142 | G95: 257 | H95: 132.8 | I95: 257 | J95: 134.8 | K95: -2.0
A96: 2016-11-22T15:11:03 | B96: 284 | C96: 276 | D96: 144.07 | E96: 143.29 | G96: 260 | H96: 134.1 | I96: 260 | J96: 136.1 | K96: -2.0
A97: 2016-11-22T15:14:03 | B97: 287 | C97: 279 | D97: 145.35 | E97: 144.58 | G97: 263 | H97: 135.4 | I97: 263 | J97: 137.4 | K97: -2.0
A98: 2016-11-22T15:17:03 | B98: 290 | C98: 282 | D98: 146.67 | E98: 145.91 | G98: 266 | H98: 136.7 | I98: 266 | J98: 138.7 | K98: -2.0
A99: 2016-11-22T15:20:03 | B99: 293 | C99: 285 | D99: 147.97 | E99: 147.22 | G99: 269 | H99: 138.0 | I99: 269 | J99: 140.0 | K99: -2.0
A100: 2016-11-22T15:23:03 | B100: 296 | C100: 288 | D100: 149.27 | E100: 148.52 | G100: 272 | H100: 139.3 | I100: 272 | J100: 141.2 | K100: -1.9
A101: 2016-11-22T15:26:03 | B101: 299 | C101: 291 | D101: 150.55 | E101: 149.81 | G101: 275 | H101: 140.6 | I101: 275 | J101: 142.5 | K101: -1.9
A102: 2016-11-22T15:29:03 | B102: 302 | C102: 294 | D102: 151.82 | E102: 151.09 | G102: 278 | H102: 141.9 | I102: 278 | J102: 143.8 | K102: -1.9
A103: 2016-11-22T15:32:03 | B103: 305 | C103: 297 | D103: 153.07 | E103: 152.35 | G103: 281 | H103: 143.2 | I103: 281 | J103: 145.1 | K103: -1.9
A104: 2016-11-22T15:35:03 | B104: 308 | C104: 300 | D104: 154.35 | E104: 153.64 | G104: 284 | H104: 144.4 | I104: 284 | J104: 146.4 | K104: -1.9
A105: 2016-11-22T15:38:03 | B105: 311 | C105: 303 | D105: 155.64 | E105: 154.94 | G105: 287 | H105: 145.8 | I105: 287 | J105: 147.7 | K105: -1.9
A106: 2016-11-22T15:41:03 | B106: 314 | C106: 306 | D106: 156.99 | E106: 156.29 | G106: 290 | H106: 147.1 | I106: 290 | J106: 149.0 | K106: -1.9
A107: 2016-11-22T15:44:03 | B107: 317 | C107: 309 | D107: 158.26 | E107: 157.58 | G107: 293 | H107: 148.4 | I107: 293 | J107: 150.3 | K107: -1.9
A108: 2016-11-22T15:47:03 | B108: 320 | C108: 312 | D108: 159.52 | E108: 158.86 | G108: 296 | H108: 149.7 | I108: 296 | J108: 151.6 | K108: -1.9
A109: 2016-11-22T15:50:03 | B109: 323 | C109: 315 | D109: 160.82 | E109: 160.16 | G109: 299 | H109: 151.0 | I109: 299 | J109: 152.8 | K109: -1.9
A110: 2016-11-22T15:53:03 | B110: 326 | C110: 318 | D110: 162.08 | E110: 161.43 | G110: 302 | H110: 152.2 | I110: 302 | J110: 154.1 | K110: -1.9
A111: 2016-11-22T15:56:03 | B111: 329 | C111: 321 | D111: 163.35 | E111: 162.71 | G111: 305 | H111: 153.5 | I111: 305 | J111: 155.3 | K111: -1.8
A112: 2016-11-22T15:59:03 | B112: 332 | C112: 324 | D112: 164.63 | E112: 164.01 | G112: 308 | H112: 154.8 | I112: 308 | J112: 156.6 | K112: -1.8
A113: 2016-11-22T16:02:03 | B113: 335 | C113: 327 | D113: 165.89 | E113: 165.28 | G113: 311 | H113: 156.1 | I113: 311 | J113: 158.0 | K113: -1.9
A114: 2016-11-22T16:05:03 | B114: 338 | C114: 330 | D114: 167.14 | E114: 166.54 | G114: 314 | H114: 157.4 | I114: 314 | J114: 159.3 | K114: -1.9
A115: 2016-11-22T16:08:03 | B115: 341 | C115: 333 | D115: 168.43 | E115: 167.85 | G115: 317 | H115: 158.7 | I115: 317 | J115: 160.5 | K115: -1.8
A116: 2016-11-22T16:11:03 | B116: 344 | C116: 336 | D116: 169.71 | E116: 169.13 | G116: 320 | H116: 160.0 | I116: 320 | J116: 161.8 | K116: -1.8
A117: 2016-11-22T16:14:03 | B117: 347 | C117: 339 | D117: 170.92 | E117: 170.35 | G117: 323 | H117: 161.3 | I117: 323 | J117: 163.1 | K117: -1.8
A118: 2016-11-22T16:17:03 | B118: 350 | C118: 342 | D118: 172.23 | E118: 171.67 | G118: 326 | H118: 162.6 | I118: 326 | J118: 164.3 | K118: -1.8
A119: 2016-11-22T16:20:03 | B119: 353 | C119: 345 | D119: 173.48 | E119: 172.94 | G119: 329 | H119: 163.9 | I119: 329 | J119: 165.6 | K119: -1.8
A120: 2016-11-22T16:23:03 | B120: 356 | C120: 348 | D120: 174.73 | E120: 174.21 | G120: 332 | H120: 165.1 | I120: 332 | J120: 166.9 | K120: -1.8
A121: 2016-11-22T16:26:03 | B121: 359 | C121: 351 | D121: 176 | E121: 175.49 | G121: 335 | H121: 166.4 | I121: 335 | J121: 168.1 | K121: -1.7
A122: 2016-11-22T16:29:03 | B122: 362 | C122: 354 | D122: 177.27 | E122: 176.78 | G122: 338 | H122: 167.7 | I122: 338 | J122: 169.4 | K122: -1.7
A123: 2016-11-22T16:32:03 | B123: 365 | C123: 357 | D123: 178.56 | E123: 178.08 | G123: 341 | H123: 169.0 | I123: 341 | J123: 170.7 | K123: -1.7
A124: 2016-11-22T16:35:03 | B124: 368 | C124: 360 | D124: 179.82 | E124: 179.36 | G124: 344 | H124: 170.2 | I124: 344 | J124: 171.9 | K124: -1.7
A125: 2016-11-22T16:38:03 | B125: 371 | C125: 363 | D125: 181.04 | E125: 180.6 | G125: 347 | H125: 171.5 | I125: 347 | J125: 173.2 | K125: -1.6
A126: 2016-11-22T16:41:03 | B126: 374 | C126: 366 | D126: 182.29 | E126: 181.87 | G126: 350 | H126: 172.8 | I126: 350 | J126: 174.5 | K126: -1.7
A127: 2016-11-22T16:44:03 | B127: 377 | C127: 369 | D127: 183.55 | E127: 183.14 | G127: 353 | H127: 174.1 | I127: 353 | J127: 175.7 | K127: -1.6
A128: 2016-11-22T16:47:03 | B128: 380 | C128: 372 | D128: 184.78 | E128: 184.38 | G128: 356 | H128: 175.4 | I128: 356 | J128: 177.0 | K128: -1.6
A129: 2016-11-22T16:50:03 | B129: 383 | C129: 375 | D129: 186.06 | E129: 185.68 | G129: 359 | H129: 176.6 | I129: 359 | J129: 178.3 | K129: -1.6
A130: 2016-11-22T16:53:03 | B130: 386 | C130: 378 | D130: 187.36 | E130: 186.97 | G130: 362 | H130: 177.9 | I130: 362 | J130: 179.6 | K130: -1.6
A131: =$I$2+(C131/1440) -> 2016-11-22T16:56:03 | B131: 389 | C131: 381 | D131: 188.61 | E131: 188.24 | G131: 365 | H131: 179.2 | I131: 365 | J131: 180.8 | K131: -1.6
A132: 2016-11-22T16:59:03 | B132: 392 | C132: 384 | D132: 189.85 | E132: 189.5 | G132: 368 | H132: 180.5 | I132: 368 | J132: 182.0 | K132: -1.6
A133: 2016-11-22T17:02:03 | B133: 395 | C133: 387 | D133: 191.14 | E133: 190.79 | G133: 371 | H133: 181.7 | I133: 371 | J133: 183.2 | K133: -1.5
A134: 2016-11-22T17:05:03 | B134: =C134+(11-3) -> 398 | C134: 390 | D134: 192.33 | E134: 192 | G134: 374 | H134: 183.0 | I134: 374 | J134: 184.5 | K134: -1.5
A135: 2016-11-22T17:08:03 | B135: 401 | C135: 393 | D135: 193.54 | E135: 193.23 | G135: 377 | H135: 184.2 | I135: 377 | J135: 185.8 | K135: -1.5
A136: 2016-11-22T17:11:03 | B136: 404 | C136: 396 | D136: 194.81 | E136: 194.5 | G136: 380 | H136: 185.5 | I136: 380 | J136: 187.0 | K136: -1.5
A137: 2016-11-22T17:14:03 | B137: 407 | C137: 399 | D137: 196.07 | E137: 195.77 | G137: 383 | H137: 186.8 | I137: 383 | J137: 188.4 | K137: -1.5
A138: 2016-11-22T17:17:03 | B138: 410 | C138: 402 | D138: 197.33 | E138: 197.04 | G138: 386 | H138: 188.1 | I138: 386 | J138: 189.6 | K138: -1.5
A139: 2016-11-22T17:20:03 | B139: 413 | C139: 405 | D139: 198.59 | E139: 198.3 | G139: 389 | H139: 189.4 | I139: 389 | J139: 190.8 | K139: -1.5
A140: 2016-11-22T17:23:03 | B140: 416 | C140: 408 | D140: 199.82 | E140: 199.54 | G140: 392 | H140: 190.7 | I140: 392 | J140: 192.1 | K140: -1.5
A141: 2016-11-22T17:26:03 | B141: 419 | C141: 411 | D141: 201.02 | E141: 200.76 | G141: 395 | H141: 191.9 | I141: =((A132-$A$4)*1440)+11 -> 395 | J141: 193.4 | K141: =H141-J141 -> -1.5
A142: 2016-11-22T17:29:03 | B142: 422 | C142: 414 | D142: 202.33 | E142: 202.07 | G142: =((A133-$A$4)*1440)+11 -> 398 | H142: =E134+($G$2*(E135-E134)) -> 193.1 | I142: 398 | J142: =D134+($G$2*(D135-D133)) -> 194.5 | K142: -1.4
A143: 2016-11-22T17:32:03 | B143: 425 | C143: 417 | D143: 203.63 | E143: 203.38 | G143: 401 | H143: 194.4 | I143: 401 | J143: 195.8 | K143: -1.4
A144: 2016-11-22T17:35:03 | B144: 428 | C144: 420 | D144: 204.87 | E144: 204.62 | G144: 404 | H144: 195.6 | I144: 404 | J144: 197.1 | K144: -1.4
A145: 2016-11-22T17:38:03 | B145: 431 | C145: 423 | D145: 206.06 | E145: 205.83 | G145: 407 | H145: 196.9 | I145: 407 | J145: 198.3 | K145: -1.4
A146: 2016-11-22T17:41:03 | B146: 434 | C146: 426 | D146: 207.29 | E146: 207.07 | G146: 410 | H146: 198.2 | I146: 410 | J146: 199.6 | K146: -1.4
A147: 2016-11-22T17:44:03 | B147: 437 | C147: 429 | D147: 208.53 | E147: 208.31 | G147: 413 | H147: 199.4 | I147: 413 | J147: 200.8 | K147: -1.4
A148: 2016-11-22T17:47:03 | B148: 440 | C148: 432 | D148: 209.76 | E148: 209.55 | G148: 416 | H148: 200.6 | I148: 416 | J148: 202.0 | K148: -1.4
A149: 2016-11-22T17:50:03 | B149: 443 | C149: 435 | D149: 211 | E149: 210.8 | G149: 419 | H149: 201.9 | I149: 419 | J149: 203.3 | K149: -1.3
A150: 2016-11-22T17:53:03 | B150: 446 | C150: 438 | D150: 212.18 | E150: 211.99 | G150: 422 | H150: 203.2 | I150: 422 | J150: 204.7 | K150: -1.4
A151: 2016-11-22T17:56:03 | B151: 449 | C151: 441 | D151: 213.42 | E151: 213.23 | G151: 425 | H151: 204.5 | I151: 425 | J151: 205.9 | K151: -1.4
A152: 2016-11-22T17:59:03 | B152: 452 | C152: 444 | D152: 214.53 | E152: 214.36 | G152: 428 | H152: 205.7 | I152: 428 | J152: 207.0 | K152: -1.3
A153: 2016-11-22T18:02:03 | B153: 455 | C153: 447 | D153: 215.64 | E153: 215.49 | G153: 431 | H153: 206.9 | I153: 431 | J153: 208.2 | K153: -1.3
A154: 2016-11-22T18:05:03 | B154: 458 | C154: 450 | D154: 216.97 | E154: 216.8 | G154: 434 | H154: 208.2 | I154: 434 | J154: 209.5 | K154: -1.3
A155: 2016-11-22T18:08:03 | B155: 461 | C155: 453 | D155: 218.33 | E155: 218.16 | G155: 437 | H155: 209.4 | I155: 437 | J155: 210.7 | K155: -1.3
A156: 2016-11-22T18:11:03 | B156: 464 | C156: 456 | D156: 219.62 | E156: 219.46 | G156: 440 | H156: 210.7 | I156: 440 | J156: 212.0 | K156: -1.3
A157: 2016-11-22T18:14:03 | B157: 467 | C157: 459 | D157: 220.89 | E157: 220.74 | G157: 443 | H157: 211.9 | I157: 443 | J157: 213.2 | K157: -1.3
A158: 2016-11-22T18:17:03 | B158: 470 | C158: 462 | D158: 222.02 | E158: 221.89 | G158: 446 | H158: 213.1 | I158: 446 | J158: 214.3 | K158: -1.2
A159: 2016-11-22T18:20:03 | B159: 473 | C159: 465 | D159: 223.28 | E159: 223.15 | G159: 449 | H159: 214.2 | I159: 449 | J159: 215.5 | K159: -1.3
A160: 2016-11-22T18:23:03 | B160: 476 | C160: 468 | D160: 224.54 | E160: 224.42 | G160: 452 | H160: 215.4 | I160: 452 | J160: 216.5 | K160: -1.1
A161: 2016-11-22T18:26:03 | B161: 479 | C161: 471 | D161: 225.83 | E161: 225.7 | G161: 455 | H161: 216.7 | I161: 455 | J161: 217.8 | K161: -1.2
A162: 2016-11-22T18:29:03 | B162: 482 | C162: 474 | D162: 226.99 | E162: 226.89 | G162: 458 | H162: 218.0 | I162: 458 | J162: 219.4 | K162: -1.4
A163: 2016-11-22T18:32:03 | B163: 485 | C163: 477 | D163: 228.24 | E163: 228.14 | G163: 461 | H163: 219.3 | I163: 461 | J163: 220.7 | K163: -1.4
A164: 2016-11-22T18:35:03 | B164: 488 | C164: 480 | D164: 229.51 | E164: 229.41 | G164: 464 | H164: 220.6 | I164: 464 | J164: 221.9 | K164: -1.3
A165: 2016-11-22T18:38:03 | B165: 491 | C165: 483 | D165: 230.78 | E165: 230.69 | G165: 467 | H165: 221.8 | I165: 467 | J165: 223.0 | K165: -1.3
A166: 2016-11-22T18:41:03 | B166: 494 | C166: 486 | D166: 232.02 | E166: 231.94 | G166: 470 | H166: 223.0 | I166: 470 | J166: 224.2 | K166: -1.1
A167: 2016-11-22T18:44:03 | B167: 497 | C167: 489 | D167: 233.25 | E167: 233.18 | G167: 473 | H167: 224.3 | I167: 473 | J167: 225.5 | K167: -1.2
A168: 2016-11-22T18:47:03 | B168: 500 | C168: 492 | D168: 234.49 | E168: 234.43 | G168: 476 | H168: 225.6 | I168: 476 | J168: 226.8 | K168: -1.3
A169: 2016-11-22T18:50:03 | B169: 503 | C169: 495 | D169: 235.68 | E169: 235.62 | G169: 479 | H169: 226.8 | I169: 479 | J169: 228.0 | K169: -1.3
A170: 2016-11-22T18:53:03 | B170: 506 | C170: 498 | D170: 236.87 | E170: 236.82 | G170: 482 | H170: 228.0 | I170: 482 | J170: 229.1 | K170: -1.1
A171: 2016-11-22T18:56:03 | B171: 509 | C171: 501 | D171: 238.13 | E171: 238.08 | G171: 485 | H171: 229.3 | I171: 485 | J171: 230.5 | K171: -1.2
A172: 2016-11-22T18:59:03 | B172: 512 | C172: 504 | D172: 239.36 | E172: 239.32 | G172: 488 | H172: 230.6 | I172: 488 | J172: 231.8 | K172: -1.2
A173: 2016-11-22T19:02:03 | B173: 515 | C173: 507 | D173: 240.59 | E173: 240.56 | G173: 491 | H173: 231.8 | I173: 491 | J173: 233.0 | K173: -1.2
A174: 2016-11-22T19:05:03 | B174: 518 | C174: 510 | D174: 241.85 | E174: 241.82 | G174: 494 | H174: 233.0 | I174: 494 | J174: 234.2 | K174: -1.2
A175: 2016-11-22T19:08:03 | B175: 521 | C175: 513 | D175: 243.1 | E175: 243.09 | G175: 497 | H175: 234.3 | I175: 497 | J175: 235.5 | K175: -1.2
A176: 2016-11-22T19:11:03 | B176: 524 | C176: 516 | D176: 244.28 | E176: 244.27 | G176: 500 | H176: 235.5 | I176: 500 | J176: 236.7 | K176: -1.2
A177: 2016-11-22T19:14:03 | B177: 527 | C177: 519 | D177: 245.5 | E177: 245.51 | G177: 503 | H177: 236.7 | I177: 503 | J177: 237.8 | K177: -1.1
A178: 2016-11-22T19:17:03 | B178: 530 | C178: 522 | D178: 246.71 | E178: 246.72 | G178: 506 | H178: 237.9 | I178: 506 | J178: 239.1 | K178: -1.1
A179: 2016-11-22T19:20:03 | B179: 533 | C179: 525 | D179: 247.95 | E179: 247.97 | G179: 509 | H179: 239.2 | I179: 509 | J179: 240.4 | K179: -1.2
A180: 2016-11-22T19:23:03 | B180: 536 | C180: 528 | D180: 249.15 | E180: 249.18 | G180: 512 | H180: 240.4 | I180: 512 | J180: 241.6 | K180: -1.1
A181: 2016-11-22T19:26:03 | B181: 539 | C181: 531 | D181: 250.43 | E181: 250.47 | G181: 515 | H181: 241.7 | I181: 515 | J181: 242.8 | K181: -1.1
A182: 2016-11-22T19:29:03 | B182: 542 | C182: 534 | D182: 251.76 | E182: 251.79 | G182: 518 | H182: 243.0 | I182: 518 | J182: 244.1 | K182: -1.1
A183: 2016-11-22T19:32:03 | B183: 545 | C183: 537 | D183: 252.95 | E183: 253 | G183: 521 | H183: 244.1 | I183: 521 | J183: 245.3 | K183: -1.1
A184: 2016-11-22T19:35:03 | B184: 548 | C184: 540 | D184: 254.14 | E184: 254.19 | G184: 524 | H184: 245.4 | I184: 524 | J184: 246.4 | K184: -1.0
A185: 2016-11-22T19:38:03 | B185: 551 | C185: 543 | D185: 255.26 | E185: 255.34 | G185: 527 | H185: 246.6 | I185: 527 | J185: 247.7 | K185: -1.1
A186: 2016-11-22T19:41:03 | B186: 554 | C186: 546 | D186: 256.69 | E186: 256.74 | G186: 530 | H186: 247.8 | I186: 530 | J186: 248.9 | K186: -1.1
A187: 2016-11-22T19:44:03 | B187: 557 | C187: 549 | D187: 257.91 | E187: 257.97 | G187: 533 | H187: 249.1 | I187: 533 | J187: 250.1 | K187: -1.1
A188: 2016-11-22T19:47:03 | B188: 560 | C188: 552 | D188: 259.05 | E188: 259.13 | G188: 536 | H188: 250.3 | I188: 536 | J188: 251.4 | K188: -1.0
A189: 2016-11-22T19:50:03 | B189: 563 | C189: 555 | D189: 260.25 | E189: 260.34 | G189: 539 | H189: 251.7 | I189: 539 | J189: 252.8 | K189: -1.1
A190: 2016-11-22T19:53:03 | B190: 566 | C190: 558 | D190: 261.4 | E190: 261.5 | G190: 542 | H190: 252.9 | I190: 542 | J190: 254.0 | K190: -1.1
A191: 2016-11-22T19:56:03 | B191: 569 | C191: 561 | D191: 262.58 | E191: 262.69 | G191: 545 | H191: 254.1 | I191: 545 | J191: 255.1 | K191: -1.0
A192: 2016-11-22T19:59:03 | B192: 572 | C192: 564 | D192: 263.99 | E192: 264.09 | G192: 548 | H192: 255.2 | I192: 548 | J192: 256.2 | K192: -1.0
A193: 2016-11-22T20:02:03 | B193: 575 | C193: 567 | D193: 265.24 | E193: 265.34 | G193: 551 | H193: 256.6 | I193: 551 | J193: 257.5 | K193: -0.9
A194: 2016-11-22T20:05:03 | B194: 578 | C194: 570 | D194: 266.38 | E194: 266.51 | G194: 554 | H194: 257.8 | I194: 554 | J194: 259.1 | K194: -1.2
A195: =$I$2+(C195/1440) -> 2016-11-22T20:08:03 | B195: 581 | C195: 573 | D195: 267.53 | E195: 267.66 | G195: 557 | H195: 259.0 | I195: 557 | J195: 260.0 | K195: -1.0
A196: 2016-11-22T20:11:03 | B196: 584 | C196: 576 | D196: 268.73 | E196: 268.86 | G196: 560 | H196: 260.2 | I196: 560 | J196: 261.1 | K196: -0.9
A197: 2016-11-22T20:14:03 | B197: 587 | C197: 579 | D197: 270.07 | E197: 270.19 | G197: 563 | H197: 261.4 | I197: 563 | J197: 262.4 | K197: -1.0
A198: 2016-11-22T20:17:03 | B198: =C198+(11-3) -> 590 | C198: 582 | D198: 271.32 | E198: 271.45 | G198: 566 | H198: 262.6 | I198: 566 | J198: 263.5 | K198: -0.9
A199: 2016-11-22T20:20:03 | B199: 593 | C199: 585 | D199: 272.61 | E199: 272.75 | G199: 569 | H199: 263.9 | I199: 569 | J199: 264.9 | K199: -1.0
A200: 2016-11-22T20:23:03 | B200: 596 | C200: 588 | D200: 273.86 | E200: 274 | G200: 572 | H200: 265.2 | I200: 572 | J200: 266.4 | K200: -1.2
... 410 more rows

Sheet Roller blank
A1: STD H | B1: STD area | C1: sample weight | E1: Sum | F1: injection time
A2: 60.7 | B2: 6285 | C2: 8.056 | D2: =SUM(J7:J328) -> 0.7113 | E2: =SUM(J7:J328) -> 0.711 | F2: 2016-11-22T10:40:44
D3: =SUM(J50:J123) -> 0.10 | F3: 2016-11-23T00:28:16
A4: row number of max temperature | D4: 209
A6: Actual Time/min | B6: Calibrated Temp °C | C6: Time/min | F6: Area | I6: ppm/min | J6: ppm
A7: 2 | B7: 29.73522223 | C7: 23.00634575 | D7: BB | E7: 0.0673597455 | F7: 86.44338989 | G7: 18.21731949 | H7: 0.0409513154 | I7: =$A$2*10^(-6)*F7/$B$2*7.45*10^(-6)*10^6/$C$2*2*60 -> 9.264769988e-05 | J7: =I7*3 -> 0.0002779430997
A8: 3 | B8: 33.38527778 | C8: 28.91837692 | D8: BB | E8: 0.07403548807 | F8: 93.75180817 | G8: 18.84659195 | H8: 0.04441357367 | I8: 0.000100480666 | J8: 0.000301441998 | U8: =25/60 -> 0.4166666667 | V8: =U8*350 -> 145.8333333
A9: 4 | B9: 39.58905556 | C9: 40.90546799 | D9: BB | E9: 0.07123086601 | F9: 90.00923157 | G9: 17.72906113 | H9: 0.04264058172 | I9: 9.646947307e-05 | J9: 0.0002894084192
A10: 5 | B10: 42.35644445 | C10: 46.94709396 | D10: BBA | E10: 0.1058848277 | F10: 119.1126556 | G10: 17.84234047 | H10: 0.05642791121 | I10: 0.0001276617401 | J10: 0.0003829852202
A11: 6 | B11: 43.69855556 | C11: 49.93669891 | D11: BB | E11: 0.08685551584 | F11: 140.3344116 | G11: 20.76246452 | H11: 0.06648141354 | I11: 0.0001504066473 | J11: 0.0004512199418
A12: 7 | B12: 47.68066667 | C12: 58.9322052 | D12: BB | E12: 0.06833940744 | F12: 82.87004852 | G12: 17.1605854 | H12: 0.03925849621 | I12: 8.881788873e-05 | J12: 0.0002664536662
A13: 8 | B13: 49.00066667 | C13: 61.88471222 | D13: BB | E13: 0.06949835271 | F13: 170.4839783 | G13: 32.34199905 | H13: 0.08076433806 | I13: 0.0001827201417 | J13: 0.0005481604252
A14: 9 | B14: 50.30277778 | C14: 64.92983246 | D14: BB | E14: 0.09954410046 | F14: 142.8710175 | G14: 19.95148087 | H14: 0.06768309416 | I14: 0.0001531253132 | J14: 0.0004593759395
A15: 10 | B15: 51.60277778 | C15: 67.95979309 | D15: BB | E15: 0.0803771019 | F15: 83.87643433 | G15: 17.35737228 | H15: 0.03973525704 | I15: 8.989650596e-05 | J15: 0.0002696895179
A16: 11 | B16: 52.89383334 | C16: 70.9402771 | D16: BB | E16: 0.07227715105 | F16: 94.15163422 | G16: 18.22308731 | H16: 0.04460298553 | I16: 0.0001009091888 | J16: 0.0003027275664
A17: 12 | B17: 54.20172223 | C17: 73.9254303 | D17: BBA | E17: 0.09158292413 | F17: 115.7894821 | G17: 18.87150192 | H17: 0.05485360544 | I17: 0.0001241000521 | J17: 0.0003723001563
A18: 13 | B18: 55.49383334 | C18: 76.9519577 | D18: BB | E18: 0.06796654314 | F18: 111.6528091 | G18: 23.27490616 | H18: 0.05289391598 | I18: 0.0001196664773 | J18: 0.0003589994318
A19: 14 | B19: 56.81961112 | C19: 79.90824127 | D19: BB | E19: 0.09461766481 | F19: 155.9157562 | G19: 27.30532646 | H19: 0.07386285194 | I19: 0.0001671063133 | J19: 0.0005013189398
A20: 15 | B20: 58.10488889 | C20: 82.90072632 | D20: BB | E20: 0.09130427986 | F20: 138.1846771 | G20: 19.35260201 | H20: 0.06546300768 | I20: 0.0001481026197 | J20: 0.000444307859
A21: 16 | B21: 59.40277778 | C21: 85.92716217 | D21: BB | E21: 0.08922646195 | F21: 142.776062 | G21: 22.74752426 | H21: 0.06763811038 | I21: 0.0001530235425 | J21: 0.0004590706274
A22: 17 | B22: 60.71172223 | C22: 88.92801666 | D22: BV | E22: 0.079485856 | F22: 95.55270386 | G22: 18.74027824 | H22: 0.04526672216 | I22: 0.0001024108175 | J22: 0.0003072324526
A23: 18 | B23: 61.98594445 | C23: 91.94208527 | D23: BB | E23: 0.08116564155 | F23: 168.0505524 | G23: 32.05377579 | H23: 0.07961153746 | I23: 0.0001801120613 | J23: 0.000540336184
A24: 19 | B24: 63.27383334 | C24: 94.93729401 | D24: BB | E24: 0.08591607958 | F24: 184.4386139 | G24: 30.77666664 | H24: 0.08737514642 | I24: 0.0001976763448 | J24: 0.0005930290344
A25: 20 | B25: 64.56383334 | C25: 97.93773651 | D25: BB | E25: 0.08788407594 | F25: 167.1447754 | G25: 27.12732315 | H25: 0.07918243862 | I25: 0.0001791412739 | J25: 0.0005374238218
A26: 21 | B26: 65.84488889 | C26: 100.9288101 | D26: BB | E26: 0.07177229226 | F26: 175.7849884 | G26: 34.3106308 | H26: 0.08327561554 | I26: 0.0001884016218 | J26: 0.0005652048654
A27: 22 | B27: 67.107 | C27: 103.941925 | D27: BB | E27: 0.08045364171 | F27: 139.2999725 | G27: 23.7411232 | H27: 0.06599136287 | I27: 0.0001492979633 | J27: 0.0004478938898
A28: 23 | B28: 68.39383334 | C28: 106.9414597 | D28: BB | E28: 0.07825457305 | F28: 159.7930756 | G28: 28.1377182 | H28: 0.07569967633 | I28: 0.0001712619198 | J28: 0.0005137857594
A29: 24 | B29: 69.68383334 | C29: 109.9442978 | D29: BB | E29: 0.09352814406 | F29: 209.1199646 | G29: 31.46899796 | H29: 0.09906758212 | I29: 0.0002241291525 | J29: 0.0006723874576
A30: 25 | B30: 70.96488889 | C30: 112.92379 | D30: BB | E30: 0.07593356818 | F30: 173.2293549 | G30: 31.61108017 | H30: 0.08206492082 | I30: 0.0001856625625 | J30: 0.0005569876875
A31: 26 | B31: 72.27172223 | C31: 115.9202499 | D31: BB | E31: 0.09568213671 | F31: 223.6692505 | G31: 31.18317413 | H31: 0.1059600975 | I31: 0.0002397226858 | J31: 0.0007191680573
A32: 27 | B32: 73.54594445 | C32: 118.9388351 | D32: BB | E32: 0.1126628742 | F32: 245.6446381 | G32: 33.85018921 | H32: 0.116370622 | I32: 0.000263275315 | J32: 0.0007898259451
A33: 28 | B33: 74.83383334 | C33: 121.9323578 | D33: BB | E33: 0.07456574589 | F33: 135.1705017 | G33: 28.90071678 | H33: 0.06403508533 | I33: 0.0001448721075 | J33: 0.0004346163226
A34: 29 | B34: 76.14172223 | C34: 124.9395905 | D34: BB | E34: 0.09798187017 | F34: 212.5365448 | G34: 33.51622391 | H34: 0.100686138 | I34: 0.0002277909513 | J34: 0.0006833728539
A35: 30 | B35: 77.42488889 | C35: 127.9406281 | D35: BB | E35: 0.08171329647 | F35: 244.2089844 | G35: 40.86888504 | H35: 0.1156905017 | I35: 0.00026173662 | J35: 0.0007852098601
A36: 31 | B36: 78.69594445 | C36: 130.9420471 | D36: BB | E36: 0.08912734687 | F36: 158.6855774 | G36: 30.28647232 | H36: 0.07517501497 | I36: 0.0001700749331 | J36: 0.0005102247992
A37: 32 | B37: 79.94805556 | C37: 133.9280243 | D37: BB | E37: 0.07191582769 | F37: 170.7632751 | G37: 33.25061798 | H37: 0.08089665095 | I37: 0.0001830194846 | J37: 0.0005490584539
A38: 33 | B38: 81.19805556 | C38: 136.9349518 | D38: BB | E38: 0.09003126621 | F38: 179.2278442 | G38: 31.66668701 | H38: 0.08490661908 | I38: 0.0001920915821 | J38: 0.0005762747462
A39: 34 | B39: 82.48383334 | C39: 139.9313812 | D39: BB | E39: 0.08632039279 | F39: 160.9192352 | G39: 32.19098663 | H39: 0.07623317831 | I39: 0.0001724689075 | J39: 0.0005174067224
A40: 35 | B40: 83.75594445 | C40: 142.9221191 | D40: BB | E40: 0.103191942 | F40: 203.2476044 | G40: 29.94271851 | H40: 0.09628563573 | I40: 0.0002178353148 | J40: 0.0006535059445
A41: 36 | B41: 85.07066667 | C41: 145.9358673 | D41: BB | E41: 0.08582574874 | F41: 180.8673096 | G41: 32.05612946 | H41: 0.08568329225 | I41: 0.0001938487169 | J41: 0.0005815461507
A42: 37 | B42: 86.39066667 | C42: 148.9292297 | D42: BB | E42: 0.08715111762 | F42: 259.1820068 | G42: 42.49814224 | H42: 0.1227837562 | I42: 0.0002777843027 | J42: 0.0008333529081
A43: 38 | B43: 87.657 | C43: 151.9273682 | D43: BB | E43: 0.1041700393 | F43: 235.0302124 | G43: 34.20254135 | H43: 0.1113421902 | I43: 0.0002518990591 | J43: 0.0007556971774
A44: 39 | B44: 88.95277778 | C44: 154.9309387 | D44: BB | E44: 0.1013185009 | F44: 222.5488281 | G44: 33.580616 | H44: 0.1054293135 | I44: 0.0002385218472 | J44: 0.0007155655417
A45: 40 | B45: 90.23488889 | C45: 157.9308929 | D45: BB | E45: 0.09184400737 | F45: 226.1582031 | G45: 38.89086914 | H45: 0.1071392031 | I45: 0.0002423902783 | J45: 0.0007271708348
A46: 41 | B46: 91.50594445 | C46: 160.9369049 | D46: BB | E46: 0.08206665516 | F46: 221.7207031 | G46: 39.15351105 | H46: 0.1050370012 | I46: 0.0002376342851 | J46: 0.0007129028554
A47: 42 | B47: 92.77594445 | C47: 163.9282532 | D47: BB | E47: 0.07379523665 | F47: 244.8526917 | G47: 46.22710037 | H47: 0.1159954488 | I47: 0.0002624265282 | J47: 0.0007872795845
A48: 43 | B48: 94.05488889 | C48: 166.9275513 | D48: BB | E48: 0.1031329185 | F48: 250.4805298 | G48: 41.0818634 | H48: 0.1186615563 | I48: 0.0002684582937 | J48: 0.000805374881
A49: 44 | B49: 95.36172223 | C49: 169.9307098 | D49: BB | E49: 0.1031773165 | F49: 310.2765503 | G49: 43.52019882 | H49: 0.1469890629 | I49: 0.0003325460599 | J49: 0.0009976381797
A50: 45 | B50: 96.65383334 | C50: 172.9381256 | D50: BB | E50: 0.07524171472 | F50: 191.8875732 | G50: 40.52532578 | H50: 0.09090398402 | I50: 0.0002056599391 | J50: 0.0006169798172
A51: 46 | B51: 97.94383334 | C51: 175.935257 | D51: BB | E51: 0.09251090884 | F51: 223.7812042 | G51: 36.00534821 | H51: 0.106013134 | I51: 0.0002398426748 | J51: 0.0007195280243
A52: 47 | B52: 99.21594445 | C52: 178.9296417 | D52: BB | E52: 0.06855415553 | F52: 198.1772156 | G52: 43.99399948 | H52: 0.09388361181 | I52: 0.0002124010085 | J52: 0.0006372030255
A53: 48 | B53: 100.4948889 | C53: 181.9297028 | D53: BB | E53: 0.08608554304 | F53: 293.5133362 | G53: 48.85918045 | H53: 0.1390477308 | I53: 0.000314579698 | J53: 0.0009437390939
A54: 49 | B54: 101.7927778 | C54: 184.9293671 | D54: BB | E54: 0.1078767702 | F54: 282.8886108 | G54: 39.34780884 | H54: 0.1340144196 | I54: 0.0003031924031 | J54: 0.0009095772094
A55: 50 | B55: 103.0659444 | C55: 187.9498749 | D55: BB | E55: 0.09696354717 | F55: 211.1144104 | G55: 33.75660324 | H55: 0.1000124222 | I55: 0.0002262667459 | J55: 0.0006788002377
A56: 51 | B56: 104.3538333 | C56: 190.9297943 | D56: BB | E56: 0.07973522693 | F56: 233.8369141 | G56: 45.66982269 | H56: 0.1107768822 | I56: 0.0002506201141 | J56: 0.0007518603422
A57: 52 | B57: 105.6348889 | C57: 193.9372101 | D57: BB | E57: 0.09201465547 | F57: 258.713562 | G57: 44.37756729 | H57: 0.1225618372 | I57: 0.0002772822361 | J57: 0.0008318467084
A58: 53 | B58: 106.9506667 | C58: 196.9358063 | D58: BB | E58: 0.07763502002 | F58: 246.9022827 | G58: 49.97875214 | H58: 0.1169664131 | I58: 0.0002646232247 | J58: 0.0007938696742
A59: 54 | B59: 108.2348889 | C59: 199.9279022 | D59: BB | E59: 0.08439326286 | F59: 269.6315918 | G59: 48.85141373 | H59: 0.1277340971 | I59: 0.0002889838868 | J59: 0.0008669516603
A60: 55 | B60: 109.5417222 | C60: 202.9235077 | D60: BB | E60: 0.06465467811 | F60: 246.7526093 | G60: 59.16759491 | H60: 0.1168955074 | I60: 0.0002644628087 | J60: 0.0007933884262
A61: 56 | B61: 110.8875 | C61: 205.9273529 | D61: BB | E61: 0.07671713829 | F61: 240.0423889 | G61: 46.12362671 | H61: 0.1137166369 | I61: 0.0002572709751 | J61: 0.0007718129253
A62: 57 | B62: 112.1748889 | C62: 208.9323425 | D62: BB | E62: 0.09339395165 | F62: 228.0665436 | G62: 40.68841553 | H62: 0.108043252 | I62: 0.0002444355862 | J62: 0.0007333067587
A63: 58 | B63: 113.4191111 | C63: 211.9289703 | D63: BBA | E63: 0.1095443442 | F63: 288.1245117 | G63: 41.22238541 | H63: 0.1364948525 | I63: 0.0003088041009 | J63: 0.0009264123026
A64: 59 | B64: 114.7217222 | C64: 214.9297485 | D64: BB | E64: 0.09626474977 | F64: 292.3302002 | G64: 44.71946335 | H64: 0.1384872371 | I64: 0.0003133116446 | J64: 0.0009399349339
A65: 60 | B65: 115.9959444 | C65: 217.9347229 | D65: BB | E65: 0.09738139063 | F65: 290.7243347 | G65: 48.88607788 | H65: 0.1377264813 | I65: 0.0003115905212 | J65: 0.0009347715636
A66: 61 | B66: 117.2748889 | C66: 220.9260712 | D66: BB | E66: 0.09025999159 | F66: 290.1674194 | G66: 48.18228149 | H66: 0.1374626507 | I66: 0.0003109936344 | J66: 0.0009329809032
A67: 62 | B67: 118.4922778 | C67: 223.9304657 | D67: BB | E67: 0.08459798992 | F67: 236.6899109 | G67: 45.56887817 | H67: 0.1121284485 | I67: 0.0002536778793 | J67: 0.000761033638
A68: 63 | B68: 119.7380556 | C68: 226.9265442 | D68: BB | E68: 0.08609650284 | F68: 257.469574 | G68: 48.37328339 | H68: 0.1219725157 | I68: 0.0002759489632 | J68: 0.0008278468897
A69: 64 | B69: 121.0685556 | C69: 229.9261169 | D69: BB | E69: 0.08747083694 | F69: 315.4514771 | G69: 54.5460434 | H69: 0.1494406102 | I69: 0.0003380924072 | J69: 0.001014277222
A70: 65 | B70: 122.3906667 | C70: 232.9277802 | D70: BB | E70: 0.07616303861 | F70: 294.9862976 | G70: 57.20300293 | H70: 0.1397455251 | I70: 0.0003161583784 | J70: 0.0009484751352
A71: 66 | B71: 123.6838333 | C71: 235.9329224 | D71: BB | E71: 0.08510321379 | F71: 299.8582764 | G71: 53.73539352 | H71: 0.1420535551 | I71: =$A$2*10^(-6)*F71/$B$2*7.45*10^(-6)*10^6/$C$2*2*60 -> 0.0003213800342 | J71: =I71*3 -> 0.0009641401025
A72: 67 | B72: 125.0006667 | C72: 238.9387207 | D72: BB | E72: 0.1099589095 | F72: 368.5367737 | G72: 52.46038437 | H72: 0.1745890076 | I72: 0.0003949878001 | J72: 0.0011849634
A73: 68 | B73: 126.3027778 | C73: 241.9423218 | D73: BB | E73: 0.1031516567 | F73: 322.8770752 | G73: 52.94183731 | H73: 0.1529583807 | I73: 0.0003460509635 | J73: 0.001038152891
A74: 69 | B74: 127.5848889 | C74: 244.9365082 | D74: BB | E74: 0.07709252089 | F74: 291.9259338 | G74: 59.65409088 | H74: 0.1382957217 | I74: 0.0003128783628 | J74: 0.0009386350885
A75: 70 | B75: 128.8917222 | C75: 247.9269714 | D75: BB | E75: 0.08581624925 | F75: 300.4822998 | G75: 56.71044159 | H75: 0.1423491773 | I75: 0.0003220488457 | J75: 0.0009661465371
A76: 71 | B76: 130.2017222 | C76: 250.9296875 | D76: BB | E76: 0.09266281873 | F76: 328.504303 | G76: 55.81696701 | H76: 0.1556241991 | I76: 0.0003520820749 | J76: 0.001056246225
A77: 72 | B77: 131.5027778 | C77: 253.9289246 | D77: BB | E77: 0.09161806852 | F77: 349.2129211 | G77: 64.04077911 | H77: 0.1654346098 | I77: 0.0003742770147 | J77: 0.001122831044
A78: 73 | B78: 132.7938333 | C78: 256.9384155 | D78: BBA | E78: 0.08096104115 | F78: 366.4621887 | G78: 70.13319397 | H78: 0.1736062028 | I78: 0.0003927643157 | J78: 0.001178292947
A79: 74 | B79: 134.1017222 | C79: 259.9320374 | D79: BB | E79: 0.08332971483 | F79: 319.4906006 | G79: 58.85689163 | H79: 0.151354087 | I79: 0.0003424214311 | J79: 0.001027264293
A80: 75 | B80: 135.4027778 | C80: 262.9393311 | D80: BB | E80: 0.08420822024 | F80: 331.6399536 | G80: 64.2625351 | H80: 0.1571096686 | I80: 0.0003554427809 | J80: 0.001066328343
A81: 76 | B81: 136.7117222 | C81: 265.9332886 | D81: BB | E81: 0.08611512929 | F81: 300.5151978 | G81: 56.44374847 | H81: 0.1423647622 | I81: 0.0003220841048 | J81: 0.0009662523145
A82: 77 | B82: 138.0038333 | C82: 268.9340515 | D82: BB | E82: 0.09922488779 | F82: 443.1742249 | G82: 72.59212494 | H82: 0.209947429 | I82: 0.0004749822124 | J82: 0.001424946637
A83: 78 | B83: 139.2848889 | C83: 271.9359436 | D83: BBA | E83: 0.07962479442 | F83: 341.5766907 | G83: 62.63378143 | H83: 0.1618170552 | I83: 0.0003660927084 | J83: 0.001098278125
A84: 79 | B84: 140.5648889 | C84: 274.9329834 | D84: BB | E84: 0.08607363701 | F84: 390.5088806 | G84: 68.95241547 | H84: 0.1849979779 | I84: 0.0004185369132 | J84: 0.00125561074
A85: 80 | B85: 141.8627778 | C85: 277.930542 | D85: BB | E85: 0.08727114648 | F85: 413.4410095 | G85: 71.70204163 | H85: 0.1958617449 | I85: 0.0004431149521 | J85: 0.001329344856
A86: 81 | B86: 143.1538333 | C86: 280.9339905 | D86: BB | E86: 0.0923415944 | F86: 358.9438782 | G86: 65.08509064 | H86: 0.170044511 | I86: 0.0003847063927 | J86: 0.001154119178
A87: 82 | B87: 144.4438333 | C87: 283.9313049 | D87: BB | E87: 0.09256260097 | F87: 453.5685425 | G87: 77.17958069 | H87: 0.2148715878 | I87: 0.0004861225624 | J87: 0.001458367687
A88: 83 | B88: 145.7696111 | C88: 286.9289551 | D88: BB | E88: 0.07923900336 | F88: 392.2046814 | G88: 72.35600281 | H88: 0.1858013392 | I88: 0.0004203544269 | J88: 0.001261063281
A89: 84 | B89: 147.0817222 | C89: 289.9356689 | D89: BB | E89: 0.09648796916 | F89: 400.233551 | G89: 72.40716553 | H89: 0.189604901 | I89: 0.0004289595534 | J89: 0.00128687866
A90: 85 | B90: 148.3827778 | C90: 292.9318542 | D90: BB | E90: 0.09083607048 | F90: 393.6243286 | G90: 68.70966339 | H90: 0.1864738767 | I90: 0.0004218759666 | J90: 0.0012656279
A91: 86 | B91: 149.6738333 | C91: 295.9297485 | D91: BB | E91: 0.09580117464 | F91: 434.1861267 | G91: 70.54904938 | H91: 0.2056894465 | I91: 0.0004653490106 | J91: 0.001396047032
A92: 87 | B92: 150.9548889 | C92: 298.9277649 | D92: BB | E92: 0.07946094871 | F92: 375.6089783 | G92: 73.69718933 | H92: 0.177939363 | I92: 0.0004025675987 | J92: 0.001207702796
A93: 88 | B93: 152.217 | C93: 301.9291077 | D93: BB | E93: 0.09508688003 | F93: 455.9057922 | G93: 79.28377533 | H93: 0.2159788263 | I93: 0.0004886275639 | J93: 0.001465882692
A94: 89 | B94: 153.5038333 | C94: 304.9362183 | D94: BB | E94: 0.08406437188 | F94: 421.4294128 | G94: 81.85678864 | H94: 0.1996461363 | I94: 0.0004516767079 | J94: 0.001355030124
A95: 90 | B95: 154.8027778 | C95: 307.9332581 | D95: BBA | E95: 0.09001024812 | F95: 447.4353333 | G95: 84.1809082 | H95: 0.2119660679 | I95: 0.0004795491538 | J95: 0.001438647461
A96: 91 | B96: 156.1475 | C96: 310.9309387 | D96: BB | E96: 0.08272845298 | F96: 460.7718811 | G96: 85.69750214 | H96: 0.2182840661 | I96: 0.000493842907 | J96: 0.001481528721
A97: 92 | B97: 157.4438333 | C97: 313.9295044 | D97: BB | E97: 0.08330154419 | F97: 472.52771 | G97: 87.08828735 | H97: 0.2238532213 | I97: 0.0005064424881 | J97: 0.001519327464
A98: 93 | B98: 158.7248889 | C98: 316.9206848 | D98: BB | E98: 0.1022370607 | F98: 616.4643555 | G98: 91.92681885 | H98: 0.2920411414 | I98: 0.0006607099128 | J98: 0.001982129738
A99: 94 | B99: 160.0227778 | C99: 319.930542 | D99: BB | E99: 0.09421275556 | F99: 531.2468262 | G99: 88.27284241 | H99: 0.2516705599 | I99: 0.0005693760573 | J99: 0.001708128172
A100: 95 | B100: 161.2959444 | C100: 322.9302979 | D100: BB | E100: 0.08151707798 | F100: 468.5854797 | G100: 95.04708862 | H100: 0.2219856463 | I100: 0.0005022173118 | J100: 0.001506651935
A101: 96 | B101: 162.5748889 | C101: 325.9297791 | D101: BBA | E101: 0.09593130648 | F101: 700.0264893 | G101: 113.5385437 | H101: 0.3316275031 | I101: 0.0007502695599 | J101: 0.00225080868
A102: 97 | B102: 163.8727778 | C102: 328.9337463 | D102: BB | E102: 0.08107799292 | F102: 553.5846558 | G102: 113.1519775 | H102: 0.2622527861 | I102: 0.0005933171421 | J102: 0.001779951426
A103: 98 | B103: 165.1459444 | C103: 331.9251709 | D103: BB | E103: 0.0969165042 | F103: 559.2327881 | G103: 94.6708374 | H103: 0.2649285077 | I103: 0.0005993706584 | J103: 0.001798111975
A104: 99 | B104: 166.407 | C104: 334.9294434 | D104: BB | E104: 0.08366572112 | F104: 607.586731 | G104: 111.3395462 | H104: 0.2878354942 | I104: 0.0006511951136 | J104: 0.001953585341
A105: 100 | B105: 167.7117222 | C105: 337.9319458 | D105: BB | E105: 0.07612332702 | F105: 553.288269 | G105: 107.3631592 | H105: 0.2621123771 | I105: 0.0005929994828 | J105: 0.001778998448
A106: 101 | B106: 168.9948889 | C106: 340.9323425 | D106: BB | E106: 0.09027505666 | F106: 546.8825073 | G106: 102.4534683 | H106: 0.2590777394 | I106: 0.0005861339597 | J106: 0.001758401879
A107: 102 | B107: 170.2212222 | C107: 343.9331665 | D107: BB | E107: 0.07857888192 | F107: 637.8720703 | G107: 127.0396423 | H107: 0.3021827391 | I107: 0.0006836541256 | J107: 0.002050962377
A108: 103 | B108: 171.5306667 | C108: 346.9298401 | D108: BB | E108: 0.07882383466 | F108: 602.3009644 | G108: 119.4557419 | H108: 0.2853314381 | I108: 0.0006455299712 | J108: 0.001936589914
A109: 104 | B109: 172.8059444 | C109: 349.9334717 | D109: BB | E109: 0.07845187932 | F109: 577.0396118 | G109: 115.1738739 | H109: 0.2733642349 | I109: 0.0006184555331 | J109: 0.001855366599
A110: 105 | B110: 174.0759444 | C110: 352.9296265 | D110: BB | E110: 0.08527956903 | F110: 632.1182251 | G110: 120.3453598 | H110: 0.2994569375 | I110: 0.0006774873091 | J110: 0.002032461927
A111: 106 | B111: 175.3548889 | C111: 355.9322815 | D111: BBA | E111: 0.08751742542 | F111: 657.8207397 | G111: 120.8263016 | H111: 0.311633135 | I111: 0.0007050345729 | J111: 0.002115103719
A112: 107 | B112: 176.6438333 | C112: 358.9306335 | D112: BB | E112: 0.08070650697 | F112: 645.1871338 | G112: 123.9930267 | H112: 0.3056481455 | I112: 0.0006914942139 | J112: 0.002074482642
A113: 108 | B113: 177.9427778 | C113: 361.9300842 | D113: BB | E113: 0.08099235594 | F113: 629.2978516 | G113: 120.3726044 | H113: 0.298120826 | I113: 0.0006744645086 | J113: 0.002023393526
A114: 109 | B114: 179.2248889 | C114: 364.9309082 | D114: BB | E114: 0.09120706469 | F114: 693.868103 | G114: 128.0731506 | H114: 0.328710056 | I114: 0.0007436691672 | J114: 0.002231007502
A115: 110 | B115: 180.4691111 | C115: 367.9327087 | D115: BB | E115: 0.08020702004 | F115: 708.8565063 | G115: 137.3592834 | H115: 0.335810597 | I115: 0.0007597333346 | J115: 0.002279200004
A116: 111 | B116: 181.7359444 | C116: 370.9362793 | D116: BB | E116: 0.08152894676 | F116: 691.3895874 | G116: 131.0962219 | H116: 0.3275358948 | I116: 0.0007410127608 | J116: 0.002223038282
A117: 112 | B117: 183.0059444 | C117: 373.9320068 | D117: BB | E117: 0.08760235459 | F117: 711.9494629 | G117: 130.5938721 | H117: 0.3372758407 | I117: 0.0007630482823 | J117: 0.002289144847
A118: 113 | B118: 184.2491111 | C118: 376.9345703 | D118: BB | E118: 0.08022924513 | F118: 720.8929443 | G118: 139.6400909 | H118: 0.3415126867 | I118: 0.0007726336651 | J118: 0.002317900995
A119: 114 | B119: 185.5427778 | C119: 379.9312439 | D119: BB | E119: 0.08508223295 | F119: 695.9612427 | G119: 132.9281464 | H119: 0.3297016509 | I119: 0.0007459125379 | J119: 0.002237737614
A120: 115 | B120: 186.8338333 | C120: 382.9334717 | D120: BB | E120: 0.07955557853 | F120: 759.6647949 | G120: 148.8148804 | H120: 0.3598802945 | I120: 0.0008141882916 | J120: 0.002442564875
A121: 116 | B121: 188.1059444 | C121: 385.9325256 | D121: BB | E121: 0.09105818719 | F121: 859.0116577 | G121: 149.4493561 | H121: 0.406944445 | I121: 0.0009206655866 | J121: 0.00276199676
A122: 117 | B122: 189.367 | C122: 388.9318848 | D122: BB | E122: 0.07886264473 | F122: 793.7800903 | G122: 157.3284302 | H122: 0.3760419261 | I122: 0.0008507521474 | J122: 0.002552256442
A123: 118 | B123: 190.6538333 | C123: 391.9298401 | D123: BB | E123: 0.08839504421 | F123: 870.600647 | G123: 157.7296448 | H123: 0.4124345624 | I123: 0.0009330863535 | J123: 0.002799259061
A124: 119 | B124: 191.8722778 | C124: 394.9339905 | D124: BB | E124: 0.09235820919 | F124: 940.2952271 | G124: 160.4797974 | H124: 0.4454513695 | I124: 0.00100778313 | J124: 0.003023349389
A125: 120 | B125: 193.1001667 | C125: 397.9295654 | D125: BB | E125: 0.08132756501 | F125: 859.2950439 | G125: 163.4682312 | H125: 0.4070786952 | I125: 0.0009209693123 | J125: 0.002762907937
A126: 121 | B126: 194.3659444 | C126: 400.9327393 | D126: BB | E126: 0.08214459568 | F126: 862.1446533 | G126: 161.8540497 | H126: 0.4084286567 | I126: 0.000924023447 | J126: 0.002772070341
A127: 122 | B127: 195.6359444 | C127: 403.9333191 | D127: BBA | E127: 0.09097190946 | F127: 966.4916992 | G127: 168.3651581 | H127: 0.4578615722 | I127: 0.001035859804 | J127: 0.003107579411
A128: 123 | B128: 196.9059444 | C128: 406.9316406 | D128: BB | E128: 0.08534051478 | F128: 866.0789185 | G128: 164.7239685 | H128: 0.4102924584 | I128: 0.0009282400865 | J128: 0.00278472026
A129: 124 | B129: 198.167 | C129: 409.931366 | D129: BB | E129: 0.08630169183 | F129: 890.5075073 | G129: 166.7571716 | H129: 0.4218651518 | I129: 0.0009544219909 | J129: 0.002863265973
A130: 125 | B130: 199.4091111 | C130: 412.9333191 | D130: BB | E130: 0.08106458187 | F130: 896.5913086 | G130: 171.2978516 | H130: 0.4247472653 | I130: 0.0009609424455 | J130: 0.002882827336
A131: 126 | B131: 200.6312222 | C131: 415.9328918 | D131: BB | E131: 0.08191602677 | F131: 959.5123901 | G131: 180.7982635 | H131: 0.4545552247 | I131: 0.001028379568 | J131: 0.003085138704
A132: 127 | B132: 201.9317222 | C132: 418.9322815 | D132: BB | E132: 0.08534211665 | F132: 939.1501465 | G132: 178.6171112 | H132: 0.444908904 | I132: 0.001006555863 | J132: 0.003019667589
A133: 128 | B133: 203.2417222 | C133: 421.9332581 | D133: BB | E133: 0.08123548329 | F133: 982.2012329 | G133: 187.1302948 | H133: 0.4653037384 | I133: 0.001052696859 | J133: 0.003158090578
A134: 129 | B134: 204.4891111 | C134: 424.9294128 | D134: BB | E134: 0.08400396258 | F134: 902.3383179 | G134: 175.4430695 | H134: 0.4274698285 | I134: 0.0009671019354 | J134: 0.002901305806
A135: 130 | B135: 205.7022778 | C135: 427.9318848 | D135: BB | E135: 0.0878174752 | F135: 1049.812622 | G135: 191.9194336 | H135: 0.4973336637 | I135: =$A$2*10^(-6)*F135/$B$2*7.45*10^(-6)*10^6/$C$2*2*60 -> 0.001125160927 | J135: =I135*3 -> 0.003375482782
A136: 131 | B136: 206.9391111 | C136: 430.9305115 | D136: BB | E136: 0.08543732017 | F136: 1003.861694 | G136: 190.6287537 | H136: 0.4755650711 | I136: 0.001075911959 | J136: 0.003227735878
A137: 132 | B137: 208.1791111 | C137: 433.9318237 | D137: BB | E137: 0.084897466 | F137: 1002.145203 | G137: 191.9898376 | H137: 0.4747519078 | I137: 0.00107407227 | J137: 0.003222216809
A138: 133 | B138: 209.4191111 | C138: 436.9320679 | D138: BB | E138: 0.08971582353 | F138: 1146.586792 | G138: 203.5559235 | H138: 0.5431790379 | I138: 0.001228880879 | J138: 0.003686642638
A139: 134 | B139: 210.6680556 | C139: 439.9315186 | D139: BB | E139: 0.08496723324 | F139: 1185.754761 | G139: 212.9351044 | H139: 0.561734301 | I139: 0.001270860055 | J139: 0.003812580164
A140: 135 | B140: 211.8643889 | C140: 442.9313965 | D140: BB | E140: 0.08475907892 | F140: 1025.725464 | G140: 196.9548645 | H140: 0.4859227182 | I140: 0.001099344959 | J140: 0.003298034878
A141: 136 | B141: 213.0991111 | C141: 445.9346008 | D141: BB | E141: 0.08698570728 | F141: 1100.30896 | G141: 203.8071594 | H141: 0.5212555791 | I141: 0.001179281544 | J141: 0.003537844632
A142: 137 | B142: 214.2407222 | C142: 448.9330444 | D142: BBA | E142: 0.08375243843 | F142: 1223.165405 | G142: 223.8386993 | H142: 0.5794570569 | I142: 0.001310955777 | J142: 0.003932867331
A143: 138 | B143: 215.3707222 | C143: 451.9324951 | D143: BB | E143: 0.08709914982 | F143: 1208.641724 | G143: 223.470871 | H143: 0.5725766712 | I143: 0.001295389686 | J143: 0.003886169058
A144: 139 | B144: 216.6617222 | C144: 454.9312744 | D144: BB | E144: 0.08261296153 | F144: 1179.936401 | G144: 219.8574219 | H144: 0.5589779367 | I144: 0.001264624094 | J144: 0.003793872281
A145: 140 | B145: 218.0164444 | C145: 457.9321289 | D145: BB | E145: 0.0843885392 | F145: 1181.939575 | G145: 228.3429108 | H145: 0.5599269115 | I145: 0.001266771041 | J145: 0.003800313124
A146: 141 | B146: 219.3227778 | C146: 460.9312744 | D146: BBA | E146: 0.08049977571 | F146: 1192.041992 | G146: 229.8712158 | H146: 0.5647127866 | I146: 0.00127759854 | J146: 0.003832795621
A147: 142 | B147: 220.6048889 | C147: 463.9304199 | D147: BB | E147: 0.0865592137 | F147: 1225.117432 | G147: 228.4721222 | H147: 0.5803818014 | I147: 0.001313047907 | J147: 0.00393914372
A148: 143 | B148: 221.7686111 | C148: 466.9312439 | D148: BBA | E148: 0.08569298685 | F148: 1216.928223 | G148: 230.1314545 | H148: 0.5765022812 | I148: 0.001304270933 | J148: 0.003912812798
A149: 144 | B149: 223.017 | C149: 469.9328308 | D149: BB | E149: 0.08977545053 | F149: 1353.603516 | G149: 240.0901947 | H149: 0.6412502398 | I149: 0.001450755835 | J149: 0.004352267505
A150: 145 | B150: 224.2859444 | C150: 472.9302368 | D150: BBA | E150: 0.08398780972 | F150: 1284.955322 | G150: 249.903183 | H150: 0.6087291433 | I150: 0.001377180548 | J150: 0.004131541644
A151: 146 | B151: 225.5648889 | C151: 475.9316711 | D151: BB | E151: 0.08922729641 | F151: 1319.105713 | G151: 251.3513947 | H151: 0.6249074008 | I151: 0.001413782018 | J151: 0.004241346054
A152: 147 | B152: 226.7643889 | C152: 478.9319458 | D152: BB | E152: 0.08391599357 | F152: 1348.213135 | G152: 262.5200806 | H152: 0.6386966242 | I152: 0.00144497857 | J152: 0.004334935709
A153: 148 | B153: 228.0080556 | C153: 481.9355469 | D153: BB | E153: 0.08674982935 | F153: 1422.35376 | G153: 264.4489746 | H153: 0.6738196813 | I153: 0.001524440497 | J153: 0.004573321491
A154: 149 | B154: 229.2759444 | C154: 484.9317017 | D154: BB | E154: 0.0816077441 | F154: 1396.448486 | G154: 264.4456482 | H154: 0.6615474297 | I154: 0.001496675922 | J154: 0.004490027766
A155: 150 | B155: 230.5548889 | C155: 487.9321289 | D155: BB | E155: 0.08258674294 | F155: 1377.840576 | G155: 274.3761902 | H155: 0.6527321994 | I155: 0.001476732464 | J155: 0.004430197393
A156: 151 | B156: 231.8080556 | C156: 490.932251 | D156: BB | E156: 0.08063242584 | F156: 1443.250732 | G156: 277.7049561 | H156: 0.6837193222 | I156: 0.00154683731 | J156: 0.004640511931
A157: 152 | B157: 233.0491111 | C157: 493.9327087 | D157: BB | E157: 0.07987523824 | F157: 1443.254395 | G157: 281.2175293 | H157: 0.683721057 | I157: 0.001546841235 | J157: 0.004640523706
A158: 153 | B158: 234.2980556 | C158: 496.9326172 | D158: BB | E158: 0.08033844829 | F158: 1458.254761 | G158: 281.9590454 | H158: 0.6908272653 | I158: 0.001562918224 | J158: 0.004688754673
A159: 154 | B159: 235.4943889 | C159: 499.9322815 | D159: BBA | E159: 0.08785578609 | F159: 1558.292114 | G159: 284.7052002 | H159: 0.7382185258 | I159: 0.001670135569 | J159: 0.005010406706
A160: 155 | B160: 236.6933333 | C160: 502.9338074 | D160: BB | E160: 0.08454809338 | F160: 1524.493286 | G160: 293.7459106 | H160: 0.7222068161 | I160: 0.001633910894 | J160: 0.004901732682
A161: 156 | B161: 237.947 | C161: 505.9320068 | D161: BB | E161: 0.08685545623 | F161: 1606.969849 | G161: 298.2713623 | H161: 0.7612789039 | I161: 0.001722307055 | J161: 0.005166921165
A162: 157 | B162: 239.1891111 | C162: 508.9321594 | D162: BB | E162: 0.08679272234 | F162: 1598.524536 | G162: 297.0002136 | H162: 0.7572780583 | I162: 0.001713255596 | J162: 0.005139766788
A163: 158 | B163: 240.4291111 | C163: 511.9317017 | D163: BB | E163: 0.08353681862 | F163: 1574.41626 | G163: 308.5181885 | H163: 0.7458571084 | I163: 0.001687416994 | J163: 0.005062250982
A164: 159 | B164: 241.687 | C164: 514.9315796 | D164: BB | E164: 0.08567456901 | F164: 1683.92981 | G164: 318.5404968 | H164: 0.7977375809 | I164: 0.001804790671 | J164: 0.005414372012
A165: 160 | B165: 242.9559444 | C165: 517.9312744 | D165: BBA | E165: 0.08589089662 | F165: 1676.794189 | G165: 316.0820007 | H165: 0.7943571833 | I165: 0.001797142905 | J165: 0.005391428715
A166: 161 | B166: 244.1454444 | C166: 520.9328003 | D166: BB | E166: 0.08338467777 | F166: 1606.255371 | G166: 315.5636292 | H166: 0.7609404304 | I166: 0.001721541297 | J166: 0.005164623891
A167: 162 | B167: 245.3791111 | C167: 523.932251 | D167: BBA | E167: 0.08485243469 | F167: 1734.49353 | G167: 332.5381775 | H167: 0.821691418 | I167: 0.001858983506 | J167: 0.005576950519
A168: 163 | B168: 246.5922778 | C168: 526.9328003 | D168: BBA | E168: 0.0816616267 | F168: 1741.49585 | G168: 329.499115 | H168: 0.8250086663 | I168: 0.001866488404 | J168: 0.005599465212
A169: 164 | B169: 247.8380556 | C169: 529.9317627 | D169: BB | E169: 0.0852638483 | F169: 1805.879761 | G169: 343.899353 | H169: 0.8555096202 | I169: 0.001935493348 | J169: 0.005806480043
A170: 165 | B170: 249.0522778 | C170: 532.9314575 | D170: BB | E170: 0.0788891837 | F170: 1755.49353 | G170: 347.7846985 | H170: 0.8316398666 | I170: 0.001881490741 | J170: 0.005644472224
A171: 166 | B171: 250.3338333 | C171: 535.9315796 | D171: BB | E171: 0.08557984233 | F171: 1828.928467 | G171: 346.5013733 | H171: 0.8664286139 | I171: 0.001960196331 | J171: 0.005880588993
A172: 167 | B172: 251.6506667 | C172: 538.9315796 | D172: BB | E172: 0.0796014443 | F172: 1794.487793 | G172: 351.2614441 | H172: 0.8501128389 | I172: 0.001923283743 | J172: 0.00576985123
A173: 168 | B173: 252.8722778 | C173: 541.934021 | D173: BB | E173: 0.08326007426 | F173: 1774.213135 | G173: 349.2933655 | H173: 0.8405080106 | I173: 0.00190155391 | J173: 0.00570466173
A174: 169 | B174: 254.0643889 | C174: 544.9310303 | D174: BB | E174: 0.08675804734 | F174: 1915.400757 | G174: 356.0713501 | H174: 0.9073936203 | I174: 0.002052875005 | J174: 0.006158625016
A175: 170 | B175: 255.2186111 | C175: 547.9327393 | D175: BB | E175: 0.08444835991 | F175: 1871.14978 | G175: 361.1360474 | H175: 0.8864303552 | I175: 0.002005447999 | J175: 0.006016343997
A176: 171 | B176: 256.5922222 | C176: 550.9316406 | D176: BB | E176: 0.08628465235 | F176: 1871.402954 | G176: 350.5363159 | H176: 0.8865502927 | I176: 0.002005719344 | J176: 0.006017158031
A177: 172 | B177: 257.8401667 | C177: 553.9317627 | D177: BB | E177: 0.08256641775 | F177: 1949.32605 | G177: 363.487915 | H177: 0.923465241 | I177: 0.002089235222 | J177: 0.006267705665
A178: 173 | B178: 259.0075556 | C178: 556.9320068 | D178: BB | E178: 0.08481030911 | F178: 1880.585693 | G178: 360.796814 | H178: 0.8909004837 | I178: 0.002015561157 | J178: 0.00604668347
A179: 174 | B179: 260.2122778 | C179: 559.9312744 | D179: BB | E179: 0.08479380608 | F179: 1875.591187 | G179: 359.9362793 | H179: 0.8885344077 | I179: 0.002010208179 | J179: 0.006030624536
A180: 175 | B180: 261.3775556 | C180: 562.932373 | D180: BB | E180: 0.08005660772 | F180: 1907.528564 | G180: 370.5587463 | H180: 0.9036642822 | I180: 0.002044437801 | J180: 0.006133313404
A181: 176 | B181: 262.5643889 | C181: 565.9324951 | D181: BB | E181: 0.08136824518 | F181: 1978.312134 | G181: 376.0952759 | H181: 0.9371969823 | I181: 0.002120301727 | J181: 0.00636090518
A182: 177 | B182: 263.9422222 | C182: 568.930603 | D182: BBA | E182: 0.08474170417 | F182: 1908.687622 | G182: 366.6018677 | H182: 0.9042133691 | I182: 0.002045680048 | J182: 0.006137040144
A183: 178 | B183: 265.2080556 | C183: 571.9325562 | D183: BB | E183: 0.08092851192 | F183: 1903.908569 | G183: 364.5627747 | H183: 0.9019493614 | I183: 0.002040557988 | J183: 0.006121673963
A184: 179 | B184: 266.3865 | C184: 574.9310913 | D184: BB | E184: 0.08056423068 | F184: 1960.956665 | G184: 377.744873 | H184: 0.9289750781 | I184: 0.002101700602 | J184: 0.006305101806
A185: 180 | B185: 267.5386111 | C185: 577.9333496 | D185: BB | E185: 0.08383061737 | F185: 1895.174805 | G185: 369.549469 | H185: 0.8978118658 | I185: 0.002031197374 | J185: 0.006093592121
A186: 181 | B186: 268.7333333 | C186: 580.9329834 | D186: BB | E186: 0.08095119148 | F186: 1928.523315 | G186: 369.1386108 | H186: 0.9136102441 | I186: 0.002066939411 | J186: 0.006200818232
A187: 182 | B187: 270.0496111 | C187: 583.9325562 | D187: BB | E187: 0.08635357767 | F187: 1977.046875 | G187: 369.9154053 | H187: 0.9365975841 | I187: 0.002118945656 | J187: 0.006356836969
A188: 183 | B188: 271.317 | C188: 586.9326172 | D188: BB | E188: 0.08430243284 | F188: 1938.4646 | G188: 375.0332947 | H188: 0.9183197849 | I188: 0.002077594211 | J188: 0.006232782634
A189: 184 | B189: 272.6127778 | C189: 589.932312 | D189: BB | E189: 0.08174269646 | F189: 1904.869141 | G189: 384.8707275 | H189: 0.9024044183 | I189: 0.002041587502 | J189: 0.006124762507
A190: 185 | B190: 273.8680556 | C190: 592.9308472 | D190: BBA | E190: 0.08748745173 | F190: 2009.024536 | G190: 369.1850891 | H190: 0.9517465422 | I190: 0.002153218453 | J190: 0.00645965536
A191: 186 | B191: 275.0822778 | C191: 595.9326782 | D191: BB | E191: 0.08507494628 | F191: 1974.070801 | G191: 377.091217 | H191: 0.9351877117 | I191: 0.00211575598 | J191: 0.00634726794
A192: 187 | B192: 276.2296667 | C192: 598.932312 | D192: BBA | E192: 0.08431740105 | F192: 1895.395386 | G192: 366.6097412 | H192: 0.8979163629 | I192: 0.002031433787 | J192: 0.00609430136
A193: 188 | B193: 277.4143889 | C193: 601.9333496 | D193: BB | E193: 0.09161992371 | F193: 2105.401367 | G193: 363.2511292 | H193: 0.9974036828 | I193: 0.002256512548 | J193: 0.006769537645
A194: 189 | B194: 278.6580556 | C194: 604.934082 | D194: BB | E194: 0.08356110752 | F194: 1907.442749 | G194: 373.6246643 | H194: 0.9036236283 | I194: 0.002044345827 | J194: 0.00613303748
A195: 190 | B195: 279.8812222 | C195: 607.9319458 | D195: BBA | E195: 0.08955044299 | F195: 2064.414062 | G195: 367.4243774 | H195: 0.9779865354 | I195: 0.002212583458 | J195: 0.006637750373
A196: 191 | B196: 280.9938889 | C196: 610.9310303 | D196: BBA | E196: 0.07901986688 | F196: 1948.812988 | G196: 385.2287903 | H196: 0.9232221855 | I196: 0.002088685336 | J196: 0.006266056008
A197: 192 | B197: 282.2906667 | C197: 613.932312 | D197: BB | E197: 0.07834453136 | F197: 1872.459961 | G197: 374.420105 | H197: 0.8870510345 | I197: 0.002006852215 | J197: 0.006020556646
A198: 193 | B198: 283.557 | C198: 616.9315796 | D198: BBA | E198: 0.08522550762 | F198: 1902.701172 | G198: 362.5642395 | H198: 0.9013773742 | I198: 0.002039263932 | J198: 0.006117791795
A199: 194 | B199: 284.8527778 | C199: 619.9307861 | D199: BB | E199: 0.08469577879 | F199: 2029.264893 | G199: 365.9397583 | H199: 0.9613351206 | I199: =$A$2*10^(-6)*F199/$B$2*7.45*10^(-6)*10^6/$C$2*2*60 -> 0.002174911523 | J199: =I199*3 -> 0.006524734569
A200: 195 | B200: 286.0722778 | C200: 622.932373 | D200: BB | E200: 0.08478705585 | F200: 1889.588379 | G200: 362.6626892 | H200: 0.8951653767 | I200: 0.002025209993 | J200: 0.006075629979
A201: 196 | B201: 287.3448889 | C201: 625.9324341 | D201: BB | E201: 0.07910768688 | F201: 1787.45874 | G201: 352.8083801 | H201: 0.8467829261 | I201: 0.001915750194 | J201: 0.005747250581
... 127 more rows

Sheet Raceway 6 thermal
C1: Time | D1: Channel 1 | E1: Channel 2 | G1: Ratio | H1: Injection time | I1: Thermal start time
C2: Minutes | D2: ( °C ) | E2: ( °C ) | G2: =G11/J2 -> 0.27 | H2: 2016-11-23T16:21:19 | I2: 2016-11-23T16:23:30 | J2: 00:03:00
A3: =$I$2+(C3/1440) -> 2016-11-23T16:20:30 | B3: =C3+11 -> 8 | C3: =-3 -> -3 | D3: 21.75 | E3: 21.71 | G3: =H11/J2 -> 527.39 | H3: 2nd Injection time | I3: 2nd Thermal time
A4: =$I$2+(C4/1440) -> 2016-11-23T16:23:30 | B4: =C4+11 -> 11 | C4: 0 | D4: 21.75 | E4: 21.71 | H4: 2016-09-15T04:21:06 | I4: 2016-09-14T01:58:56
A5: =$I$2+(C5/1440) -> 2016-11-23T16:26:30 | B5: =C5+11 -> 14 | C5: 3 | D5: 21.74 | E5: 21.7
A6: 2016-11-23T16:29:30 | B6: 17 | C6: 6 | D6: 21.75 | E6: 21.71 | H6: 23-Nov-16, 16:21:19
A7: 2016-11-23T16:32:30 | B7: 20 | C7: 9 | D7: 21.84 | E7: 21.81
A8: 2016-11-23T16:35:30 | B8: 23 | C8: 12 | D8: 22.86 | E8: 22.71
A9: 2016-11-23T16:38:30 | B9: 26 | C9: 15 | D9: 24.97 | E9: 24.62
A10: 2016-11-23T16:41:30 | B10: 29 | C10: 18 | D10: 27.19 | E10: 26.72
A11: 2016-11-23T16:44:30 | B11: 32 | C11: 21 | D11: 29.2 | E11: 28.69 | G11: =H2-A3 -> 00:00:49 | H11: =H4-I4 -> 1.098726852
A12: 2016-11-23T16:47:30 | B12: 35 | C12: 24 | D12: 31.06 | E12: 30.54 | G12: min | H12: Temperature /°C
A13: 2016-11-23T16:50:30 | B13: 38 | C13: 27 | D13: 32.78 | E13: 32.27 | G13: =((A3-$A$3)*1440)+11 -> 11 | H13: =E3+($G$2*(E4-E3)) -> 21.7 | I13: =((A4-$A$4)*1440)+11 -> 11 | J13: =D3+($G$2*(D4-D3)) -> 21.8 | K13: =H13-J13 -> -0.0
A14: 2016-11-23T16:53:30 | B14: 41 | C14: 30 | D14: 34.37 | E14: 33.88 | G14: =((A4-$A$3)*1440)+11 -> 14 | H14: =E4+($G$2*(E5-E4)) -> 21.7 | I14: 14 | J14: =D4+($G$2*(D5-D4)) -> 21.7 | K14: -0.0
A15: 2016-11-23T16:56:30 | B15: 44 | C15: 33 | D15: 35.86 | E15: 35.37 | G15: 17 | H15: 21.7 | I15: 17 | J15: 21.7 | K15: -0.0
A16: 2016-11-23T16:59:30 | B16: 47 | C16: 36 | D16: 37.31 | E16: 36.81 | G16: 20 | H16: 21.7 | I16: 20 | J16: 21.8 | K16: -0.0
A17: 2016-11-23T17:02:30 | B17: 50 | C17: 39 | D17: 38.74 | E17: 38.24 | G17: 23 | H17: 22.1 | I17: 23 | J17: 22.1 | K17: -0.1
A18: 2016-11-23T17:05:30 | B18: 53 | C18: 42 | D18: 40.09 | E18: 39.59 | G18: 26 | H18: 23.2 | I18: 26 | J18: 23.4 | K18: -0.2
A19: 2016-11-23T17:08:30 | B19: 56 | C19: 45 | D19: 41.44 | E19: 40.94 | G19: 29 | H19: 25.2 | I19: 29 | J19: 25.6 | K19: -0.4
A20: 2016-11-23T17:11:30 | B20: 59 | C20: 48 | D20: 42.81 | E20: 42.3 | G20: 32 | H20: 27.3 | I20: 32 | J20: 27.7 | K20: -0.5
A21: 2016-11-23T17:14:30 | B21: 62 | C21: 51 | D21: 44.12 | E21: 43.6 | G21: 35 | H21: 29.2 | I21: 35 | J21: 29.7 | K21: -0.5
A22: 2016-11-23T17:17:30 | B22: 65 | C22: 54 | D22: 45.4 | E22: 44.89 | G22: 38 | H22: 31.0 | I22: 38 | J22: 31.5 | K22: -0.5
A23: 2016-11-23T17:20:30 | B23: 68 | C23: 57 | D23: 46.73 | E23: 46.2 | G23: 41 | H23: 32.7 | I23: 41 | J23: 33.2 | K23: -0.5
A24: 2016-11-23T17:23:30 | B24: 71 | C24: 60 | D24: 48.06 | E24: 47.52 | G24: 44 | H24: 34.3 | I24: 44 | J24: 34.8 | K24: -0.5
A25: 2016-11-23T17:26:30 | B25: 74 | C25: 63 | D25: 49.35 | E25: 48.81 | G25: 47 | H25: 35.8 | I25: 47 | J25: 36.3 | K25: -0.5
A26: 2016-11-23T17:29:30 | B26: 77 | C26: 66 | D26: 50.64 | E26: 50.1 | G26: 50 | H26: 37.2 | I26: 50 | J26: 37.7 | K26: -0.5
A27: 2016-11-23T17:32:30 | B27: 80 | C27: 69 | D27: 51.95 | E27: 51.4 | G27: 53 | H27: 38.6 | I27: 53 | J27: 39.1 | K27: -0.5
A28: 2016-11-23T17:35:30 | B28: 83 | C28: 72 | D28: 53.26 | E28: 52.7 | G28: 56 | H28: 40.0 | I28: 56 | J28: 40.5 | K28: -0.5
A29: 2016-11-23T17:38:30 | B29: 86 | C29: 75 | D29: 54.57 | E29: 54.01 | G29: 59 | H29: 41.3 | I29: 59 | J29: 41.8 | K29: -0.5
A30: 2016-11-23T17:41:30 | B30: 89 | C30: 78 | D30: 55.9 | E30: 55.33 | G30: 62 | H30: 42.7 | I30: 62 | J30: 43.2 | K30: -0.5
A31: 2016-11-23T17:44:30 | B31: 92 | C31: 81 | D31: 57.21 | E31: 56.62 | G31: 65 | H31: 44.0 | I31: 65 | J31: 44.5 | K31: -0.5
A32: 2016-11-23T17:47:30 | B32: 95 | C32: 84 | D32: 58.49 | E32: 57.9 | G32: 68 | H32: 45.2 | I32: 68 | J32: 45.8 | K32: -0.5
A33: 2016-11-23T17:50:30 | B33: 98 | C33: 87 | D33: 59.75 | E33: 59.16 | G33: 71 | H33: 46.6 | I33: 71 | J33: 47.1 | K33: -0.5
A34: 2016-11-23T17:53:30 | B34: 101 | C34: 90 | D34: 61.01 | E34: 60.43 | G34: 74 | H34: 47.9 | I34: 74 | J34: 48.4 | K34: -0.5
A35: 2016-11-23T17:56:30 | B35: 104 | C35: 93 | D35: 62.3 | E35: 61.71 | G35: 77 | H35: 49.2 | I35: 77 | J35: 49.7 | K35: -0.5
A36: 2016-11-23T17:59:30 | B36: 107 | C36: 96 | D36: 63.61 | E36: 63.01 | G36: 80 | H36: 50.5 | I36: 80 | J36: 51.0 | K36: -0.5
A37: 2016-11-23T18:02:30 | B37: 110 | C37: 99 | D37: 64.88 | E37: 64.27 | G37: 83 | H37: 51.8 | I37: 83 | J37: 52.3 | K37: -0.6
A38: 2016-11-23T18:05:30 | B38: 113 | C38: 102 | D38: 66.18 | E38: 65.57 | G38: 86 | H38: 53.1 | I38: 86 | J38: 53.6 | K38: -0.6
A39: 2016-11-23T18:08:30 | B39: 116 | C39: 105 | D39: 67.54 | E39: 66.91 | G39: 89 | H39: 54.4 | I39: 89 | J39: 54.9 | K39: -0.6
A40: 2016-11-23T18:11:30 | B40: 119 | C40: 108 | D40: 68.86 | E40: 68.22 | G40: 92 | H40: 55.7 | I40: 92 | J40: 56.3 | K40: -0.6
A41: 2016-11-23T18:14:30 | B41: 122 | C41: 111 | D41: 70.13 | E41: 69.48 | G41: 95 | H41: 57.0 | I41: 95 | J41: 57.6 | K41: -0.6
A42: 2016-11-23T18:17:30 | B42: 125 | C42: 114 | D42: 71.37 | E42: 70.72 | G42: 98 | H42: 58.2 | I42: 98 | J42: 58.8 | K42: -0.6
A43: 2016-11-23T18:20:30 | B43: 128 | C43: 117 | D43: 72.62 | E43: 71.98 | G43: 101 | H43: 59.5 | I43: 101 | J43: 60.1 | K43: -0.6
A44: 2016-11-23T18:23:30 | B44: 131 | C44: 120 | D44: 73.89 | E44: 73.25 | G44: 104 | H44: 60.8 | I44: 104 | J44: 61.4 | K44: -0.6
A45: 2016-11-23T18:26:30 | B45: 134 | C45: 123 | D45: 75.2 | E45: 74.55 | G45: 107 | H45: 62.1 | I45: 107 | J45: 62.7 | K45: -0.6
A46: 2016-11-23T18:29:30 | B46: 137 | C46: 126 | D46: 76.47 | E46: 75.82 | G46: 110 | H46: 63.4 | I46: 110 | J46: 64.0 | K46: -0.6
A47: 2016-11-23T18:32:30 | B47: 140 | C47: 129 | D47: 77.76 | E47: 77.11 | G47: 113 | H47: 64.6 | I47: 113 | J47: 65.2 | K47: -0.6
A48: 2016-11-23T18:35:30 | B48: 143 | C48: 132 | D48: 79.08 | E48: 78.42 | G48: 116 | H48: 65.9 | I48: 116 | J48: 66.6 | K48: -0.6
A49: 2016-11-23T18:38:30 | B49: 146 | C49: 135 | D49: 80.42 | E49: 79.75 | G49: 119 | H49: 67.3 | I49: 119 | J49: 67.9 | K49: -0.6
A50: 2016-11-23T18:41:30 | B50: 149 | C50: 138 | D50: 81.69 | E50: 81.02 | G50: 122 | H50: 68.6 | I50: 122 | J50: 69.2 | K50: -0.6
A51: 2016-11-23T18:44:30 | B51: 152 | C51: 141 | D51: 82.95 | E51: 82.28 | G51: 125 | H51: 69.8 | I51: 125 | J51: 70.5 | K51: -0.6
A52: 2016-11-23T18:47:30 | B52: 155 | C52: 144 | D52: 84.24 | E52: 83.56 | G52: 128 | H52: 71.1 | I52: 128 | J52: 71.7 | K52: -0.6
A53: 2016-11-23T18:50:30 | B53: 158 | C53: 147 | D53: 85.47 | E53: 84.79 | G53: 131 | H53: 72.3 | I53: 131 | J53: 73.0 | K53: -0.6
A54: 2016-11-23T18:53:30 | B54: 161 | C54: 150 | D54: 86.75 | E54: 86.07 | G54: 134 | H54: 73.6 | I54: 134 | J54: 74.2 | K54: -0.6
A55: 2016-11-23T18:56:30 | B55: 164 | C55: 153 | D55: 88.02 | E55: 87.33 | G55: 137 | H55: 74.9 | I55: 137 | J55: 75.5 | K55: -0.7
A56: 2016-11-23T18:59:30 | B56: 167 | C56: 156 | D56: 89.25 | E56: 88.56 | G56: 140 | H56: 76.2 | I56: 140 | J56: 76.8 | K56: -0.7
A57: 2016-11-23T19:02:30 | B57: 170 | C57: 159 | D57: 90.61 | E57: 89.91 | G57: 143 | H57: 77.5 | I57: 143 | J57: 78.1 | K57: -0.7
A58: 2016-11-23T19:05:30 | B58: 173 | C58: 162 | D58: 91.95 | E58: 91.25 | G58: 146 | H58: 78.8 | I58: 146 | J58: 79.4 | K58: -0.7
A59: 2016-11-23T19:08:30 | B59: 176 | C59: 165 | D59: 93.23 | E59: 92.52 | G59: 149 | H59: 80.1 | I59: 149 | J59: 80.8 | K59: -0.7
A60: 2016-11-23T19:11:30 | B60: 179 | C60: 168 | D60: 94.46 | E60: 93.76 | G60: 152 | H60: 81.4 | I60: 152 | J60: 82.0 | K60: -0.7
A61: 2016-11-23T19:14:30 | B61: 182 | C61: 171 | D61: 95.74 | E61: 95.04 | G61: 155 | H61: 82.6 | I61: 155 | J61: 83.3 | K61: -0.7
A62: 2016-11-23T19:17:30 | B62: 185 | C62: 174 | D62: 97.08 | E62: 96.37 | G62: 158 | H62: 83.9 | I62: 158 | J62: 84.6 | K62: -0.7
A63: 2016-11-23T19:20:30 | B63: 188 | C63: 177 | D63: 98.31 | E63: 97.61 | G63: 161 | H63: 85.1 | I63: 161 | J63: 85.8 | K63: -0.7
A64: 2016-11-23T19:23:30 | B64: 191 | C64: 180 | D64: 99.58 | E64: 98.87 | G64: 164 | H64: 86.4 | I64: 164 | J64: 87.1 | K64: -0.7
A65: 2016-11-23T19:26:30 | B65: 194 | C65: 183 | D65: 100.93 | E65: 100.21 | G65: 167 | H65: 87.7 | I65: 167 | J65: 88.4 | K65: -0.7
A66: 2016-11-23T19:29:30 | B66: 197 | C66: 186 | D66: 102.24 | E66: 101.52 | G66: 170 | H66: 88.9 | I66: 170 | J66: 89.6 | K66: -0.7
A67: 2016-11-23T19:32:30 | B67: 200 | C67: 189 | D67: 103.54 | E67: 102.83 | G67: 173 | H67: 90.3 | I67: 173 | J67: 91.0 | K67: -0.7
A68: =$I$2+(C68/1440) -> 2016-11-23T19:35:30 | B68: 203 | C68: 192 | D68: 104.87 | E68: 104.15 | G68: 176 | H68: 91.6 | I68: 176 | J68: 92.3 | K68: -0.7
A69: 2016-11-23T19:38:30 | B69: =C69+11 -> 206 | C69: 195 | D69: 106.09 | E69: 105.37 | G69: 179 | H69: 92.9 | I69: 179 | J69: 93.6 | K69: -0.7
A70: 2016-11-23T19:41:30 | B70: 209 | C70: 198 | D70: 107.37 | E70: 106.65 | G70: 182 | H70: 94.1 | I70: 182 | J70: 94.8 | K70: -0.7
A71: 2016-11-23T19:44:30 | B71: 212 | C71: 201 | D71: 108.59 | E71: 107.87 | G71: 185 | H71: 95.4 | I71: 185 | J71: 96.1 | K71: -0.7
A72: 2016-11-23T19:47:30 | B72: 215 | C72: 204 | D72: 109.83 | E72: 109.11 | G72: 188 | H72: 96.7 | I72: 188 | J72: 97.4 | K72: -0.7
A73: 2016-11-23T19:50:30 | B73: 218 | C73: 207 | D73: 111.1 | E73: 110.38 | G73: 191 | H73: 98.0 | I73: 191 | J73: 98.7 | K73: -0.7
A74: 2016-11-23T19:53:30 | B74: 221 | C74: 210 | D74: 112.44 | E74: 111.71 | G74: 194 | H74: 99.2 | I74: 194 | J74: 99.9 | K74: -0.7
A75: 2016-11-23T19:56:30 | B75: 224 | C75: 213 | D75: 113.82 | E75: 113.1 | G75: 197 | H75: 100.6 | I75: 197 | J75: 101.3 | K75: -0.7
A76: 2016-11-23T19:59:30 | B76: 227 | C76: 216 | D76: 115.16 | E76: 114.43 | G76: 200 | H76: 101.9 | I76: 200 | J76: 102.6 | K76: -0.7
A77: 2016-11-23T20:02:30 | B77: 230 | C77: 219 | D77: 116.4 | E77: 115.69 | G77: 203 | H77: 103.2 | I77: =((A68-$A$4)*1440)+11 -> 203 | J77: 103.9 | K77: =H77-J77 -> -0.7
A78: 2016-11-23T20:05:30 | B78: 233 | C78: 222 | D78: 117.74 | E78: 117.01 | G78: =((A68-$A$3)*1440)+11 -> 206 | H78: =E68+($G$2*(E69-E68)) -> 104.5 | I78: 206 | J78: =D68+($G$2*(D69-D68)) -> 105.2 | K78: -0.7
A79: 2016-11-23T20:08:30 | B79: 236 | C79: 225 | D79: 118.93 | E79: 118.21 | G79: 209 | H79: 105.7 | I79: 209 | J79: 106.4 | K79: -0.7
A80: 2016-11-23T20:11:30 | B80: 239 | C80: 228 | D80: 120.13 | E80: 119.42 | G80: 212 | H80: 107.0 | I80: 212 | J80: 107.7 | K80: -0.7
A81: 2016-11-23T20:14:30 | B81: 242 | C81: 231 | D81: 121.42 | E81: 120.71 | G81: 215 | H81: 108.2 | I81: 215 | J81: 108.9 | K81: -0.7
A82: 2016-11-23T20:17:30 | B82: 245 | C82: 234 | D82: 122.74 | E82: 122.03 | G82: 218 | H82: 109.5 | I82: 218 | J82: 110.2 | K82: -0.7
A83: 2016-11-23T20:20:30 | B83: 248 | C83: 237 | D83: 124.09 | E83: 123.37 | G83: 221 | H83: 110.7 | I83: 221 | J83: 111.5 | K83: -0.7
A84: 2016-11-23T20:23:30 | B84: 251 | C84: 240 | D84: 125.36 | E84: 124.65 | G84: 224 | H84: 112.1 | I84: 224 | J84: 112.8 | K84: -0.7
A85: 2016-11-23T20:26:30 | B85: 254 | C85: 243 | D85: 126.67 | E85: 125.97 | G85: 227 | H85: 113.5 | I85: 227 | J85: 114.2 | K85: -0.7
A86: 2016-11-23T20:29:30 | B86: 257 | C86: 246 | D86: 127.98 | E86: 127.27 | G86: 230 | H86: 114.8 | I86: 230 | J86: 115.5 | K86: -0.7
A87: 2016-11-23T20:32:30 | B87: 260 | C87: 249 | D87: 129.25 | E87: 128.55 | G87: 233 | H87: 116.0 | I87: 233 | J87: 116.8 | K87: -0.7
A88: 2016-11-23T20:35:30 | B88: 263 | C88: 252 | D88: 130.51 | E88: 129.81 | G88: 236 | H88: 117.3 | I88: 236 | J88: 118.1 | K88: -0.7
A89: 2016-11-23T20:38:30 | B89: 266 | C89: 255 | D89: 131.78 | E89: 131.08 | G89: 239 | H89: 118.5 | I89: 239 | J89: 119.3 | K89: -0.7
A90: 2016-11-23T20:41:30 | B90: 269 | C90: 258 | D90: 133.13 | E90: 132.44 | G90: 242 | H90: 119.8 | I90: 242 | J90: 120.5 | K90: -0.7
A91: 2016-11-23T20:44:30 | B91: 272 | C91: 261 | D91: 134.47 | E91: 133.78 | G91: 245 | H91: 121.1 | I91: 245 | J91: 121.8 | K91: -0.7
A92: 2016-11-23T20:47:30 | B92: 275 | C92: 264 | D92: 135.73 | E92: 135.04 | G92: 248 | H92: 122.4 | I92: 248 | J92: 123.1 | K92: -0.7
A93: 2016-11-23T20:50:30 | B93: 278 | C93: 267 | D93: 136.98 | E93: 136.3 | G93: 251 | H93: 123.7 | I93: 251 | J93: 124.4 | K93: -0.7
A94: 2016-11-23T20:53:30 | B94: 281 | C94: 270 | D94: 138.22 | E94: 137.55 | G94: 254 | H94: 125.0 | I94: 254 | J94: 125.7 | K94: -0.7
A95: 2016-11-23T20:56:30 | B95: 284 | C95: 273 | D95: 139.47 | E95: 138.82 | G95: 257 | H95: 126.3 | I95: 257 | J95: 127.0 | K95: -0.7
A96: 2016-11-23T20:59:30 | B96: 287 | C96: 276 | D96: 140.86 | E96: 140.2 | G96: 260 | H96: 127.6 | I96: 260 | J96: 128.3 | K96: -0.7
A97: 2016-11-23T21:02:30 | B97: 290 | C97: 279 | D97: 142.21 | E97: 141.55 | G97: 263 | H97: 128.9 | I97: 263 | J97: 129.6 | K97: -0.7
A98: 2016-11-23T21:05:30 | B98: 293 | C98: 282 | D98: 143.5 | E98: 142.85 | G98: 266 | H98: 130.2 | I98: 266 | J98: 130.9 | K98: -0.7
A99: 2016-11-23T21:08:30 | B99: 296 | C99: 285 | D99: 144.72 | E99: 144.07 | G99: 269 | H99: 131.5 | I99: 269 | J99: 132.1 | K99: -0.7
A100: 2016-11-23T21:11:30 | B100: 299 | C100: 288 | D100: 145.99 | E100: 145.36 | G100: 272 | H100: 132.8 | I100: 272 | J100: 133.5 | K100: -0.7
A101: 2016-11-23T21:14:30 | B101: 302 | C101: 291 | D101: 147.23 | E101: 146.61 | G101: 275 | H101: 134.1 | I101: 275 | J101: 134.8 | K101: -0.7
A102: 2016-11-23T21:17:30 | B102: 305 | C102: 294 | D102: 148.54 | E102: 147.92 | G102: 278 | H102: 135.4 | I102: 278 | J102: 136.1 | K102: -0.7
A103: 2016-11-23T21:20:30 | B103: 308 | C103: 297 | D103: 149.94 | E103: 149.32 | G103: 281 | H103: 136.6 | I103: 281 | J103: 137.3 | K103: -0.7
A104: 2016-11-23T21:23:30 | B104: 311 | C104: 300 | D104: 151.22 | E104: 150.61 | G104: 284 | H104: 137.9 | I104: 284 | J104: 138.6 | K104: -0.7
A105: 2016-11-23T21:26:30 | B105: 314 | C105: 303 | D105: 152.5 | E105: 151.89 | G105: 287 | H105: 139.2 | I105: 287 | J105: 139.8 | K105: -0.7
A106: 2016-11-23T21:29:30 | B106: 317 | C106: 306 | D106: 153.79 | E106: 153.2 | G106: 290 | H106: 140.6 | I106: 290 | J106: 141.2 | K106: -0.7
A107: 2016-11-23T21:32:30 | B107: 320 | C107: 309 | D107: 155.05 | E107: 154.47 | G107: 293 | H107: 141.9 | I107: 293 | J107: 142.6 | K107: -0.7
A108: 2016-11-23T21:35:30 | B108: 323 | C108: 312 | D108: 156.28 | E108: 155.71 | G108: 296 | H108: 143.2 | I108: 296 | J108: 143.8 | K108: -0.7
A109: 2016-11-23T21:38:30 | B109: 326 | C109: 315 | D109: 157.61 | E109: 157.05 | G109: 299 | H109: 144.4 | I109: 299 | J109: 145.1 | K109: -0.6
A110: 2016-11-23T21:41:30 | B110: 329 | C110: 318 | D110: 158.91 | E110: 158.36 | G110: 302 | H110: 145.7 | I110: 302 | J110: 146.3 | K110: -0.6
A111: 2016-11-23T21:44:30 | B111: 332 | C111: 321 | D111: 160.18 | E111: 159.64 | G111: 305 | H111: 147.0 | I111: 305 | J111: 147.6 | K111: -0.6
A112: 2016-11-23T21:47:30 | B112: 335 | C112: 324 | D112: 161.49 | E112: 160.96 | G112: 308 | H112: 148.3 | I112: 308 | J112: 148.9 | K112: -0.6
A113: 2016-11-23T21:50:30 | B113: 338 | C113: 327 | D113: 162.73 | E113: 162.21 | G113: 311 | H113: 149.7 | I113: 311 | J113: 150.3 | K113: -0.6
A114: 2016-11-23T21:53:30 | B114: 341 | C114: 330 | D114: 163.97 | E114: 163.46 | G114: 314 | H114: 151.0 | I114: 314 | J114: 151.6 | K114: -0.6
A115: 2016-11-23T21:56:30 | B115: 344 | C115: 333 | D115: 165.29 | E115: 164.8 | G115: 317 | H115: 152.2 | I115: 317 | J115: 152.9 | K115: -0.6
A116: 2016-11-23T21:59:30 | B116: 347 | C116: 336 | D116: 166.54 | E116: 166.06 | G116: 320 | H116: 153.5 | I116: 320 | J116: 154.1 | K116: -0.6
A117: 2016-11-23T22:02:30 | B117: 350 | C117: 339 | D117: 167.79 | E117: 167.32 | G117: 323 | H117: 154.8 | I117: 323 | J117: 155.4 | K117: -0.6
A118: 2016-11-23T22:05:30 | B118: 353 | C118: 342 | D118: 169.01 | E118: 168.55 | G118: 326 | H118: 156.1 | I118: 326 | J118: 156.6 | K118: -0.6
A119: 2016-11-23T22:08:30 | B119: 356 | C119: 345 | D119: 170.3 | E119: 169.85 | G119: 329 | H119: 157.4 | I119: 329 | J119: 158.0 | K119: -0.6
A120: 2016-11-23T22:11:30 | B120: 359 | C120: 348 | D120: 171.63 | E120: 171.2 | G120: 332 | H120: 158.7 | I120: 332 | J120: 159.3 | K120: -0.5
A121: 2016-11-23T22:14:30 | B121: 362 | C121: 351 | D121: 172.93 | E121: 172.51 | G121: 335 | H121: 160.0 | I121: 335 | J121: 160.5 | K121: -0.5
A122: 2016-11-23T22:17:30 | B122: 365 | C122: 354 | D122: 174.2 | E122: 173.79 | G122: 338 | H122: 161.3 | I122: 338 | J122: 161.8 | K122: -0.5
A123: 2016-11-23T22:20:30 | B123: 368 | C123: 357 | D123: 175.45 | E123: 175.07 | G123: 341 | H123: 162.6 | I123: 341 | J123: 163.1 | K123: -0.5
A124: 2016-11-23T22:23:30 | B124: 371 | C124: 360 | D124: 176.68 | E124: 176.31 | G124: 344 | H124: 163.8 | I124: 344 | J124: 164.3 | K124: -0.5
A125: 2016-11-23T22:26:30 | B125: 374 | C125: 363 | D125: 177.95 | E125: 177.6 | G125: 347 | H125: 165.1 | I125: 347 | J125: 165.6 | K125: -0.5
A126: 2016-11-23T22:29:30 | B126: 377 | C126: 366 | D126: 179.23 | E126: 178.9 | G126: 350 | H126: 166.4 | I126: 350 | J126: 166.9 | K126: -0.5
A127: 2016-11-23T22:32:30 | B127: 380 | C127: 369 | D127: 180.47 | E127: 180.15 | G127: 353 | H127: 167.7 | I127: 353 | J127: 168.1 | K127: -0.5
A128: 2016-11-23T22:35:30 | B128: 383 | C128: 372 | D128: 181.75 | E128: 181.45 | G128: 356 | H128: 168.9 | I128: 356 | J128: 169.4 | K128: -0.5
A129: 2016-11-23T22:38:30 | B129: 386 | C129: 375 | D129: 183.03 | E129: 182.74 | G129: 359 | H129: 170.2 | I129: 359 | J129: 170.7 | K129: -0.4
A130: 2016-11-23T22:41:30 | B130: 389 | C130: 378 | D130: 184.24 | E130: 183.95 | G130: 362 | H130: 171.6 | I130: 362 | J130: 172.0 | K130: -0.4
A131: 2016-11-23T22:44:30 | B131: 392 | C131: 381 | D131: 185.43 | E131: 185.17 | G131: 365 | H131: 172.9 | I131: 365 | J131: 173.3 | K131: -0.4
A132: =$I$2+(C132/1440) -> 2016-11-23T22:47:30 | B132: 395 | C132: 384 | D132: 186.74 | E132: 186.48 | G132: 368 | H132: 174.1 | I132: 368 | J132: 174.5 | K132: -0.4
A133: 2016-11-23T22:50:30 | B133: =C133+11 -> 398 | C133: 387 | D133: 187.97 | E133: 187.73 | G133: 371 | H133: 175.4 | I133: 371 | J133: 175.8 | K133: -0.4
A134: 2016-11-23T22:53:30 | B134: 401 | C134: 390 | D134: 189.22 | E134: 188.99 | G134: 374 | H134: 176.7 | I134: 374 | J134: 177.0 | K134: -0.4
A135: 2016-11-23T22:56:30 | B135: 404 | C135: 393 | D135: 190.45 | E135: 190.23 | G135: 377 | H135: 178.0 | I135: 377 | J135: 178.3 | K135: -0.3
A136: 2016-11-23T22:59:30 | B136: 407 | C136: 396 | D136: 191.69 | E136: 191.49 | G136: 380 | H136: 179.2 | I136: 380 | J136: 179.6 | K136: -0.3
A137: 2016-11-23T23:02:30 | B137: 410 | C137: 399 | D137: 192.98 | E137: 192.78 | G137: 383 | H137: 180.5 | I137: 383 | J137: 180.8 | K137: -0.3
A138: 2016-11-23T23:05:30 | B138: 413 | C138: 402 | D138: 194.15 | E138: 193.98 | G138: 386 | H138: 181.8 | I138: 386 | J138: 182.1 | K138: -0.3
A139: 2016-11-23T23:08:30 | B139: 416 | C139: 405 | D139: 195.41 | E139: 195.25 | G139: 389 | H139: 183.1 | I139: 389 | J139: 183.4 | K139: -0.3
A140: 2016-11-23T23:11:30 | B140: 419 | C140: 408 | D140: 196.62 | E140: 196.46 | G140: 392 | H140: 184.3 | I140: 392 | J140: 184.6 | K140: -0.3
A141: 2016-11-23T23:14:30 | B141: 422 | C141: 411 | D141: 197.92 | E141: 197.78 | G141: 395 | H141: 185.5 | I141: =((A132-$A$4)*1440)+11 -> 395 | J141: 185.8 | K141: =H141-J141 -> -0.3
A142: 2016-11-23T23:17:30 | B142: 425 | C142: 414 | D142: 199.19 | E142: 199.04 | G142: =((A132-$A$3)*1440)+11 -> 398 | H142: =E132+($G$2*(E133-E132)) -> 186.8 | I142: 398 | J142: =D132+($G$2*(D133-D132)) -> 187.1 | K142: -0.3
A143: 2016-11-23T23:20:30 | B143: 428 | C143: 417 | D143: 200.35 | E143: 200.22 | G143: 401 | H143: 188.1 | I143: 401 | J143: 188.3 | K143: -0.2
A144: 2016-11-23T23:23:30 | B144: 431 | C144: 420 | D144: 201.61 | E144: 201.5 | G144: 404 | H144: 189.3 | I144: 404 | J144: 189.6 | K144: -0.2
A145: 2016-11-23T23:26:30 | B145: 434 | C145: 423 | D145: 202.9 | E145: 202.79 | G145: 407 | H145: 190.6 | I145: 407 | J145: 190.8 | K145: -0.2
A146: 2016-11-23T23:29:30 | B146: 437 | C146: 426 | D146: 204.13 | E146: 204.03 | G146: 410 | H146: 191.8 | I146: 410 | J146: 192.0 | K146: -0.2
A147: 2016-11-23T23:32:30 | B147: 440 | C147: 429 | D147: 205.35 | E147: 205.26 | G147: 413 | H147: 193.1 | I147: 413 | J147: 193.3 | K147: -0.2
A148: 2016-11-23T23:35:30 | B148: 443 | C148: 432 | D148: 206.63 | E148: 206.55 | G148: 416 | H148: 194.3 | I148: 416 | J148: 194.5 | K148: -0.2
A149: 2016-11-23T23:38:30 | B149: 446 | C149: 435 | D149: 207.87 | E149: 207.8 | G149: 419 | H149: 195.6 | I149: 419 | J149: 195.7 | K149: -0.2
A150: 2016-11-23T23:41:30 | B150: 449 | C150: 438 | D150: 209.11 | E150: 209.05 | G150: 422 | H150: 196.8 | I150: 422 | J150: 197.0 | K150: -0.2
A151: 2016-11-23T23:44:30 | B151: 452 | C151: 441 | D151: 210.41 | E151: 210.35 | G151: 425 | H151: 198.1 | I151: 425 | J151: 198.3 | K151: -0.1
A152: 2016-11-23T23:47:30 | B152: 455 | C152: 444 | D152: 211.57 | E152: 211.52 | G152: 428 | H152: 199.4 | I152: 428 | J152: 199.5 | K152: -0.1
A153: 2016-11-23T23:50:30 | B153: 458 | C153: 447 | D153: 212.61 | E153: 212.57 | G153: 431 | H153: 200.6 | I153: 431 | J153: 200.7 | K153: -0.1
A154: 2016-11-23T23:53:30 | B154: 461 | C154: 450 | D154: 213.77 | E154: 213.75 | G154: 434 | H154: 201.9 | I154: 434 | J154: 202.0 | K154: -0.1
A155: 2016-11-23T23:56:30 | B155: 464 | C155: 453 | D155: 215.05 | E155: 215.04 | G155: 437 | H155: 203.1 | I155: 437 | J155: 203.2 | K155: -0.1
A156: 2016-11-23T23:59:30 | B156: 467 | C156: 456 | D156: 216.41 | E156: 216.4 | G156: 440 | H156: 204.4 | I156: 440 | J156: 204.5 | K156: -0.1
A157: 2016-11-24T00:02:30 | B157: 470 | C157: 459 | D157: 217.72 | E157: 217.72 | G157: 443 | H157: 205.6 | I157: 443 | J157: 205.7 | K157: -0.1
A158: 2016-11-24T00:05:30 | B158: 473 | C158: 462 | D158: 218.96 | E158: 218.97 | G158: 446 | H158: 206.9 | I158: 446 | J158: 207.0 | K158: -0.1
A159: 2016-11-24T00:08:30 | B159: 476 | C159: 465 | D159: 220.21 | E159: 220.24 | G159: 449 | H159: 208.1 | I159: 449 | J159: 208.2 | K159: -0.1
A160: 2016-11-24T00:11:30 | B160: 479 | C160: 468 | D160: 221.49 | E160: 221.51 | G160: 452 | H160: 209.4 | I160: 452 | J160: 209.5 | K160: -0.1
A161: 2016-11-24T00:14:30 | B161: 482 | C161: 471 | D161: 222.75 | E161: 222.78 | G161: 455 | H161: 210.7 | I161: 455 | J161: 210.7 | K161: -0.1
A162: 2016-11-24T00:17:30 | B162: 485 | C162: 474 | D162: 223.92 | E162: 223.96 | G162: 458 | H162: 211.8 | I162: 458 | J162: 211.9 | K162: -0.0
A163: 2016-11-24T00:20:30 | B163: 488 | C163: 477 | D163: 225.16 | E163: 225.22 | G163: 461 | H163: 212.9 | I163: 461 | J163: 212.9 | K163: -0.0
A164: 2016-11-24T00:23:30 | B164: 491 | C164: 480 | D164: 226.5 | E164: 226.56 | G164: 464 | H164: 214.1 | I164: 464 | J164: 214.1 | K164: -0.0
A165: 2016-11-24T00:26:30 | B165: 494 | C165: 483 | D165: 227.72 | E165: 227.78 | G165: 467 | H165: 215.4 | I165: 467 | J165: 215.4 | K165: -0.0
A166: 2016-11-24T00:29:30 | B166: 497 | C166: 486 | D166: 228.95 | E166: 229.02 | G166: 470 | H166: 216.8 | I166: 470 | J166: 216.8 | K166: -0.0
A167: 2016-11-24T00:32:30 | B167: 500 | C167: 489 | D167: 230.25 | E167: 230.34 | G167: 473 | H167: 218.1 | I167: 473 | J167: 218.1 | K167: 0.0
A168: 2016-11-24T00:35:30 | B168: 503 | C168: 492 | D168: 231.48 | E168: 231.56 | G168: 476 | H168: 219.3 | I168: 476 | J168: 219.3 | K168: 0.0
A169: 2016-11-24T00:38:30 | B169: 506 | C169: 495 | D169: 232.61 | E169: 232.72 | G169: 479 | H169: 220.6 | I169: 479 | J169: 220.6 | K169: 0.0
A170: 2016-11-24T00:41:30 | B170: 509 | C170: 498 | D170: 233.85 | E170: 233.96 | G170: 482 | H170: 221.9 | I170: 482 | J170: 221.8 | K170: 0.0
A171: 2016-11-24T00:44:30 | B171: 512 | C171: 501 | D171: 235.03 | E171: 235.15 | G171: 485 | H171: 223.1 | I171: 485 | J171: 223.1 | K171: 0.0
A172: 2016-11-24T00:47:30 | B172: 515 | C172: 504 | D172: 236.21 | E172: 236.35 | G172: 488 | H172: 224.3 | I172: 488 | J172: 224.3 | K172: 0.0
A173: 2016-11-24T00:50:30 | B173: 518 | C173: 507 | D173: 237.54 | E173: 237.68 | G173: 491 | H173: 225.6 | I173: 491 | J173: 225.5 | K173: 0.1
A174: 2016-11-24T00:53:30 | B174: 521 | C174: 510 | D174: 238.79 | E174: 238.95 | G174: 494 | H174: 226.9 | I174: 494 | J174: 226.8 | K174: 0.1
A175: 2016-11-24T00:56:30 | B175: 524 | C175: 513 | D175: 240.16 | E175: 240.31 | G175: 497 | H175: 228.1 | I175: 497 | J175: 228.1 | K175: 0.1
A176: 2016-11-24T00:59:30 | B176: 527 | C176: 516 | D176: 241.31 | E176: 241.47 | G176: 500 | H176: 229.4 | I176: 500 | J176: 229.3 | K176: 0.1
A177: 2016-11-24T01:02:30 | B177: 530 | C177: 519 | D177: 242.49 | E177: 242.67 | G177: 503 | H177: 230.7 | I177: 503 | J177: 230.6 | K177: 0.1
A178: 2016-11-24T01:05:30 | B178: 533 | C178: 522 | D178: 243.72 | E178: 243.9 | G178: 506 | H178: 231.9 | I178: 506 | J178: 231.8 | K178: 0.1
A179: 2016-11-24T01:08:30 | B179: 536 | C179: 525 | D179: 244.97 | E179: 245.17 | G179: 509 | H179: 233.1 | I179: 509 | J179: 232.9 | K179: 0.1
A180: 2016-11-24T01:11:30 | B180: 539 | C180: 528 | D180: 246.24 | E180: 246.43 | G180: 512 | H180: 234.3 | I180: 512 | J180: 234.2 | K180: 0.1
A181: 2016-11-24T01:14:30 | B181: 542 | C181: 531 | D181: 247.38 | E181: 247.59 | G181: 515 | H181: 235.5 | I181: 515 | J181: 235.4 | K181: 0.1
A182: 2016-11-24T01:17:30 | B182: 545 | C182: 534 | D182: 248.58 | E182: 248.8 | G182: 518 | H182: 236.7 | I182: 518 | J182: 236.6 | K182: 0.1
A183: 2016-11-24T01:20:30 | B183: 548 | C183: 537 | D183: 249.84 | E183: 250.06 | G183: 521 | H183: 238.0 | I183: 521 | J183: 237.9 | K183: 0.1
A184: 2016-11-24T01:23:30 | B184: 551 | C184: 540 | D184: 251.1 | E184: 251.32 | G184: 524 | H184: 239.3 | I184: 524 | J184: 239.2 | K184: 0.2
A185: 2016-11-24T01:26:30 | B185: 554 | C185: 543 | D185: 252.31 | E185: 252.54 | G185: 527 | H185: 240.6 | I185: 527 | J185: 240.5 | K185: 0.2
A186: 2016-11-24T01:29:30 | B186: 557 | C186: 546 | D186: 253.53 | E186: 253.76 | G186: 530 | H186: 241.8 | I186: 530 | J186: 241.6 | K186: 0.2
A187: 2016-11-24T01:32:30 | B187: 560 | C187: 549 | D187: 254.75 | E187: 254.98 | G187: 533 | H187: 243.0 | I187: 533 | J187: 242.8 | K187: 0.2
A188: 2016-11-24T01:35:30 | B188: 563 | C188: 552 | D188: 255.95 | E188: 256.2 | G188: 536 | H188: 244.2 | I188: 536 | J188: 244.1 | K188: 0.2
A189: 2016-11-24T01:38:30 | B189: 566 | C189: 555 | D189: 257.28 | E189: 257.54 | G189: 539 | H189: 245.5 | I189: 539 | J189: 245.3 | K189: 0.2
A190: 2016-11-24T01:41:30 | B190: 569 | C190: 558 | D190: 258.6 | E190: 258.85 | G190: 542 | H190: 246.7 | I190: 542 | J190: 246.6 | K190: 0.2
A191: 2016-11-24T01:44:30 | B191: 572 | C191: 561 | D191: 259.74 | E191: 260.01 | G191: 545 | H191: 247.9 | I191: 545 | J191: 247.7 | K191: 0.2
A192: 2016-11-24T01:47:30 | B192: 575 | C192: 564 | D192: 260.86 | E192: 261.13 | G192: 548 | H192: 249.1 | I192: 548 | J192: 248.9 | K192: 0.2
A193: 2016-11-24T01:50:30 | B193: 578 | C193: 567 | D193: 262.04 | E193: 262.32 | G193: 551 | H193: 250.4 | I193: 551 | J193: 250.2 | K193: 0.2
A194: 2016-11-24T01:53:30 | B194: 581 | C194: 570 | D194: 263.23 | E194: 263.52 | G194: 554 | H194: 251.7 | I194: 554 | J194: 251.4 | K194: 0.2
A195: 2016-11-24T01:56:30 | B195: 584 | C195: 573 | D195: 264.57 | E195: 264.86 | G195: 557 | H195: 252.9 | I195: 557 | J195: 252.6 | K195: 0.2
A196: =$I$2+(C196/1440) -> 2016-11-24T01:59:30 | B196: 587 | C196: 576 | D196: 265.77 | E196: 266.07 | G196: 560 | H196: 254.1 | I196: 560 | J196: 253.9 | K196: 0.2
A197: 2016-11-24T02:02:30 | B197: =C197+11 -> 590 | C197: 579 | D197: 267.06 | E197: 267.37 | G197: 563 | H197: 255.3 | I197: 563 | J197: 255.1 | K197: 0.2
A198: 2016-11-24T02:05:30 | B198: 593 | C198: 582 | D198: 268.27 | E198: 268.56 | G198: 566 | H198: 256.6 | I198: 566 | J198: 256.3 | K198: 0.3
A199: 2016-11-24T02:08:30 | B199: 596 | C199: 585 | D199: 269.14 | E199: 269.46 | G199: 569 | H199: 257.9 | I199: 569 | J199: 257.6 | K199: 0.3
A200: 2016-11-24T02:11:30 | B200: 599 | C200: 588 | D200: 270.31 | E200: 270.63 | G200: 572 | H200: 259.2 | I200: 572 | J200: 258.9 | K200: 0.3
... 410 more rows

Sheet Raceway 6
A1: STD H | B1: STD area | C1: sample weight | E1: Sum | F1: injection time
A2: 60.7 | B2: 6285 | C2: 18.552 | D2: =SUM(J7:J85) -> 0.0838 | E2: =SUM(J7:J171) -> 0.211 | F2: 2016-09-14T14:33:51
D3: =SUM(J33:J106) -> 0.13 | F3: 2016-09-15T04:21:06
A4: row number of max temperature | D4: 209
A6: Actual Time/min | B6: Calibrated Temp °C | C6: Time/min | F6: Area | I6: ppm/min | J6: ppm
A7: 1 | B7: 148.3011111 | C7: 307.932373 | D7: BB | E7: 0.09587509185 | F7: 131.2127533 | G7: 17.42035675 | H7: 0.08586020011 | I7: =$A$2*10^(-6)*F7/$B$2*7.45*10^(-6)*10^6/$C$2*2*60 -> 6.10671459e-05 | J7: =I7*3 -> 0.0001832014377
A8: 2 | B8: 152.2466111 | C8: 316.9644165 | D8: BB | E8: 0.06543517858 | F8: 76.55899811 | G8: 16.71536064 | H8: 0.05009704265 | I8: 3.563098395e-05 | J8: 0.0001068929519 | U8: =25/60 -> 0.4166666667 | V8: =U8*350 -> 145.8333333
A9: 3 | B9: 161.3002778 | C9: 337.9470825 | D9: BB | E9: 0.07507531345 | F9: 92.899086 | G9: 18.34645462 | H9: 0.0607893205 | I9: 4.323575183e-05 | J9: 0.0001297072555
A10: 4 | B10: 162.5502778 | C10: 340.9594421 | D10: BB | E10: 0.0916538313 | F10: 164.1755371 | G10: 30.09058762 | H10: 0.1074296828 | I10: 7.6408209e-05 | J10: 0.000229224627
A11: 5 | B11: 163.8247778 | C11: 343.930481 | D11: BB | E11: 0.08255586773 | F11: 114.10495 | G11: 21.28056717 | H11: 0.07466556101 | I11: 5.310507898e-05 | J11: 0.0001593152369
A12: 6 | B12: 165.143 | C12: 346.9455872 | D12: BB | E12: 0.07978453487 | F12: 97.11721039 | G12: 18.95195961 | H12: 0.06354948669 | I12: 4.519889041e-05 | J12: 0.0001355966712
A13: 7 | B13: 167.6548333 | C13: 352.9701538 | D13: BB | E13: 0.09819453955 | F13: 148.6510468 | G13: 21.09947968 | H13: 0.09727109828 | I13: 6.918302476e-05 | J13: 0.0002075490743
A14: 8 | B14: 168.9038889 | C14: 355.9177856 | D14: BV | E14: 0.068946518 | F14: 133.0709229 | G14: 31.71817398 | H14: 0.08707610944 | I14: 6.193194836e-05 | J14: 0.0001857958451
A15: 9 | B15: 168.9038889 | C15: 356.0243835 | D15: VB | E15: 0.05485424772 | F15: 71.88459778 | G15: 21.58460617 | H15: 0.04703830836 | I15: 3.345549202e-05 | J15: 0.0001003664761
A16: 10 | B16: 170.2175 | C16: 358.9289246 | D16: BB | E16: 0.08737704903 | F16: 97.65232086 | G16: 16.90897942 | H16: 0.06389964085 | I16: 4.54479338e-05 | J16: 0.0001363438014
A17: 11 | B17: 171.5566111 | C17: 361.9355164 | D17: BB | E17: 0.08555185795 | F17: 131.0981293 | G17: 21.99047279 | H17: 0.08578519489 | I17: 6.101379924e-05 | J17: 0.0001830413977
A18: 12 | B18: 172.8584444 | C18: 364.91745 | D18: BB | E18: 0.09269891679 | F18: 154.9234772 | G18: 23.56540108 | H18: 0.1013755174 | I18: 7.21022488e-05 | J18: 0.0002163067464
A19: 13 | B19: 174.1384444 | C19: 367.9215698 | D19: BB | E19: 0.06571677327 | F19: 110.4124451 | G19: 22.31838417 | H19: 0.0722493385 | I19: 5.138656665e-05 | J19: 0.0001541596999
A20: 14 | B20: 175.4075556 | C20: 370.9252319 | D20: BB | E20: 0.0835756734 | F20: 150.7083893 | G20: 24.56511307 | H20: 0.09861733816 | I20: 7.014052343e-05 | J20: 0.0002104215703
A21: 15 | B21: 176.6611667 | C21: 373.9424438 | D21: BB | E21: 0.08007237315 | F21: 189.0805511 | G21: 34.42887497 | H21: 0.1237264942 | I21: 8.799914119e-05 | J21: 0.0002639974236
A22: 16 | B22: 177.9538889 | C22: 376.9242249 | D22: BB | E22: 0.0720410198 | F22: 167.2934723 | G22: 30.47667122 | H22: 0.1094699307 | I22: 7.785931339e-05 | J22: 0.0002335779402
A23: 17 | B23: 179.2402778 | C23: 379.9298096 | D23: BB | E23: 0.1060217321 | F23: 277.7009583 | G23: 41.52489853 | H23: 0.1817160242 | I23: 0.000129243572 | J23: 0.0003877307161
A24: 18 | B24: 180.5038889 | C24: 382.9444885 | D24: BB | E24: 0.09637630731 | F24: 199.8877563 | G24: 32.22081757 | H24: 0.1307982824 | I24: 9.302887466e-05 | J24: 0.000279086624
A25: 19 | B25: 181.8011667 | C25: 385.9372559 | D25: BB | E25: 0.09143603593 | F25: 214.1412964 | G25: 37.04718399 | H25: 0.1401252096 | I25: 9.966255155e-05 | J25: 0.0002989876547
A26: 20 | B26: 183.0693889 | C26: 388.9276123 | D26: BB | E26: 0.07148271799 | F26: 196.028595 | G26: 41.220047 | H26: 0.1282730068 | I26: 9.123279947e-05 | J26: 0.0002736983984
A27: 21 | B27: 184.2821111 | C27: 391.9320374 | D27: BB | E27: 0.07466346025 | F27: 184.4035034 | G27: 39.35671616 | H27: 0.1206660276 | I27: 8.582241714e-05 | J27: 0.0002574672514
A28: 22 | B28: 185.5266111 | C28: 394.9320679 | D28: BB | E28: 0.08951932192 | F28: 272.1045532 | G28: 45.66432953 | H28: 0.1780539681 | I28: 0.000126638974 | J28: 0.000379916922
A29: 23 | B29: 186.8202778 | C29: 397.9396057 | D29: BB | E29: 0.1049732491 | F29: 320.8804626 | G29: 46.23262024 | H29: 0.2099709064 | I29: 0.0001493395538 | J29: 0.0004480186614
A30: 24 | B30: 188.073 | C30: 400.9399414 | D30: BB | E30: 0.1026359126 | F30: 325.045105 | G30: 50.80922699 | H30: 0.2126960761 | I30: 0.0001512778015 | J30: 0.0004538334046
A31: 25 | B31: 189.3275556 | C31: 403.9358215 | D31: BB | E31: 0.09924070537 | F31: 405.5507507 | G31: 62.8838501 | H31: 0.2653756418 | I31: 0.0001887455773 | J31: 0.0005662367318
A32: 26 | B32: 190.573 | C32: 406.9315491 | D32: BB | E32: 0.08218185604 | F32: 337.3960266 | G32: 63.3028183 | H32: 0.2207780085 | I32: 0.0001570259892 | J32: 0.0004710779676
A33: 27 | B33: 191.8411667 | C33: 409.9298401 | D33: BB | E33: 0.08694697917 | F33: 303.1056824 | G33: 56.17795944 | H33: 0.1983398251 | I33: 0.0001410670721 | J33: 0.0004232012163
A34: 28 | B34: 193.1066667 | C34: 412.9317627 | D34: BB | E34: 0.07530420274 | F34: 357.4335938 | G34: 70.31640625 | H34: 0.2338897639 | I34: 0.0001663515845 | J34: 0.0004990547535
A35: 29 | B35: 194.3257222 | C35: 415.9342346 | D35: BB | E35: 0.08779219538 | F35: 381.5906982 | G35: 69.78739929 | H35: 0.2496971742 | I35: 0.0001775944354 | J35: 0.0005327833063
A36: 30 | B36: 195.5793889 | C36: 418.9352112 | D36: BB | E36: 0.08670323342 | F36: 518.6241455 | G36: 85.57762146 | H36: 0.3393661957 | I36: 0.0002413705647 | J36: 0.0007241116941
A37: 31 | B37: 196.8193333 | C37: 421.9363403 | D37: BB | E37: 0.09099565446 | F37: 438.3290405 | G37: 81.17764282 | H37: 0.2868243992 | I37: 0.0002040007758 | J37: 0.0006120023275
A38: 32 | B38: 198.123 | C38: 424.9401855 | D38: BB | E38: 0.08721932024 | F38: 479.2315063 | G38: 88.43869019 | H38: 0.3135892816 | I38: 0.0002230370111 | J38: 0.0006691110334
A39: 33 | B39: 199.3612222 | C39: 427.9309082 | D39: BB | E39: 0.0857565254 | F39: 563.5001221 | G39: 99.97742462 | H39: 0.3687311792 | I39: 0.000262256094 | J39: 0.0007867682821
A40: 34 | B40: 200.5684444 | C40: 430.9358215 | D40: BB | E40: 0.08528416604 | F40: 526.3401489 | G40: 100.1993713 | H40: 0.3444152293 | I40: 0.0002449616357 | J40: 0.000734884907
A41: 35 | B41: 201.8511667 | C41: 433.9294128 | D41: BB | E41: 0.08580943942 | F41: 557.8529663 | G41: 105.2959595 | H41: 0.365035914 | I41: 0.0002596278763 | J41: 0.0007788836289
A42: 36 | B42: 203.1275556 | C42: 436.9327393 | D42: BB | E42: 0.08863464743 | F42: 624.821167 | G42: 112.781311 | H42: 0.4088571353 | I42: 0.0002907952498 | J42: 0.0008723857493
A43: 37 | B43: 204.3648333 | C43: 439.9347229 | D43: BB | E43: 0.08804341406 | F43: 599.2462158 | G43: 109.1635437 | H43: 0.3921219448 | I43: 0.0002788925251 | J43: 0.0008366775753
A44: 38 | B44: 205.6111667 | C44: 442.9337463 | D44: BB | E44: 0.07704682648 | F44: 573.774231 | G44: 117.3427658 | H44: 0.3754541312 | I44: 0.0002670377215 | J44: 0.0008011131646
A45: 39 | B45: 206.8902778 | C45: 445.9353943 | D45: BB | E45: 0.08747431636 | F45: 730.1186523 | G45: 134.1968231 | H45: 0.4777594557 | I45: 0.0003398012857 | J45: 0.001019403857
A46: 40 | B46: 208.1402778 | C46: 448.9338684 | D46: BB | E46: 0.08623691648 | F46: 698.0313721 | G46: 130.8499908 | H46: 0.4567628663 | I46: 0.0003248676868 | J46: 0.0009746030604
A47: 41 | B47: 209.4038889 | C47: 451.9344788 | D47: BB | E47: 0.08797434717 | F47: 732.1307373 | G47: 133.5148621 | H47: 0.4790760809 | I47: 0.0003407377212 | J47: 0.001022213164
A48: 42 | B48: 210.6685 | C48: 454.9346619 | D48: BB | E48: 0.08832108974 | F48: 839.2715454 | G48: 152.2284851 | H48: 0.5491845955 | I48: 0.0003906016498 | J48: 0.001171804949
A49: 43 | B49: 211.8058333 | C49: 457.9313965 | D49: BB | E49: 0.09046099335 | F49: 871.8374023 | G49: 153.0437164 | H49: 0.5704943457 | I49: 0.0004057579809 | J49: 0.001217273943
A50: 44 | B50: 212.8912222 | C50: 460.9363098 | D50: BB | E50: 0.08837151527 | F50: 823.1273193 | G50: 149.1832581 | H50: 0.5386204815 | I50: 0.0003830880371 | J50: 0.001149264111
A51: 45 | B51: 214.1011667 | C51: 463.93573 | D51: BB | E51: 0.08432815224 | F51: 907.3153076 | G51: 164.5522919 | H51: 0.5937096199 | I51: 0.0004222695956 | J51: 0.001266808787
A52: 46 | B52: 215.4102222 | C52: 466.9339294 | D52: BB | E52: 0.08651317656 | F52: 869.9926758 | G52: 162.3643951 | H52: 0.5692872329 | I52: 0.0004048994349 | J52: 0.001214698305
A53: 47 | B53: 216.7593333 | C53: 469.9347229 | D53: BB | E53: 0.08267915994 | F53: 938.9401245 | G53: 186.6813049 | H53: 0.6144035923 | I53: =$A$2*10^(-6)*F53/$B$2*7.45*10^(-6)*10^6/$C$2*2*60 -> 0.0004369879614 | J53: =I53*3 -> 0.001310963884
A54: 48 | B54: 218.0602778 | C54: 472.9341431 | D54: BB | E54: 0.07993386686 | F54: 933.3586426 | G54: 181.6866455 | H54: 0.6107513014 | I54: 0.0004343903086 | J54: 0.001303170926
A55: 49 | B55: 219.3157222 | C55: 475.9339294 | D55: BB | E55: 0.09020575136 | F55: 1074.939575 | G55: 189.4240417 | H55: 0.7033960093 | I55: 0.0005002828629 | J55: 0.001500848589
A56: 50 | B56: 220.5857222 | C56: 478.9346619 | D56: BB | E56: 0.08703039587 | F56: 1058.023804 | G56: 195.8358307 | H56: 0.6923270279 | I56: 0.0004924101687 | J56: 0.001477230506
A57: 51 | B57: 221.8557222 | C57: 481.9341125 | D57: BB | E57: 0.08603193611 | F57: 1006.366821 | G57: 189.2725983 | H57: 0.6585248346 | I57: 0.0004683687215 | J57: 0.001405106164
A58: 52 | B58: 223.1012222 | C58: 484.9344788 | D58: BB | E58: 0.08812122792 | F58: 1076.91394 | G58: 195.9412842 | H58: 0.7046879523 | I58: 0.0005012017435 | J58: 0.00150360523
A59: 53 | B59: 224.303 | C59: 487.934021 | D59: BB | E59: 0.08763952553 | F59: 1118.827881 | G59: 205.1082458 | H59: 0.7321147017 | I59: 0.0005207087247 | J59: 0.001562126174
A60: 54 | B60: 225.5847778 | C60: 490.9352722 | D60: BB | E60: 0.0882775709 | F60: 1206.490479 | G60: 218.983429 | H60: 0.7894774808 | I60: 0.0005615073857 | J60: 0.001684522157
A61: 55 | B61: 226.8921111 | C61: 493.9329834 | D61: BB | E61: 0.08463154733 | F61: 1124.110352 | G61: 216.3002777 | H61: 0.7355713321 | I61: 0.000523167216 | J61: 0.001569501648
A62: 56 | B62: 228.1175556 | C62: 496.9353333 | D62: BB | E62: 0.08531592041 | F62: 1119.815063 | G62: 213.0688019 | H62: 0.7327606732 | I62: 0.000521168165 | J62: 0.001563504495
A63: 57 | B63: 229.3793333 | C63: 499.9326477 | D63: BB | E63: 0.0849160105 | F63: 1134.186157 | G63: 217.2199249 | H63: 0.7421645227 | I63: 0.0005278565521 | J63: 0.001583569656
A64: 58 | B64: 230.6721111 | C64: 502.9329529 | D64: BB | E64: 0.08415103704 | F64: 1176.647217 | G64: 228.2180176 | H64: 0.7699492844 | I64: 0.0005476181656 | J64: 0.001642854497
A65: 59 | B65: 231.8757778 | C65: 505.9351807 | D65: BB | E65: 0.0843661949 | F65: 1166.848755 | G65: 225.5108948 | H65: 0.763537576 | I65: 0.0005430579068 | J65: 0.001629173721
A66: 60 | B66: 233.0575556 | C66: 508.9323425 | D66: BB | E66: 0.08520626277 | F66: 1220.58374 | G66: 232.6582947 | H66: 0.7986995285 | I66: 0.0005680664682 | J66: 0.001704199405
A67: 61 | B67: 234.2839444 | C67: 511.9355164 | D67: BB | E67: 0.08714624494 | F67: 1263.081787 | G67: 233.3623199 | H67: 0.8265084931 | I67: 0.0005878452958 | J67: 0.001763535887
A68: 62 | B68: 235.4766667 | C68: 514.9336548 | D68: BB | E68: 0.08662676811 | F68: 1255.587158 | G68: 233.9018555 | H68: 0.8216043179 | I68: 0.0005843572538 | J68: 0.001753071761
A69: 63 | B69: 236.7120556 | C69: 517.932251 | D69: BB | E69: 0.08666535467 | F69: 1308.765137 | G69: 243.6582031 | H69: 0.8564017881 | I69: 0.0006091065811 | J69: 0.001827319743
A70: 64 | B70: 238.0257222 | C70: 520.9337769 | D70: BB | E70: 0.08451836556 | F70: 1288.200562 | G70: 248.3379517 | H70: 0.8429451804 | I70: 0.0005995357133 | J70: 0.00179860714
A71: 65 | B71: 239.3202222 | C71: 523.9326782 | D71: BB | E71: 0.09014244378 | F71: 1442.79248 | G71: 254.4898224 | H71: 0.9441037398 | I71: 0.000671483653 | J71: 0.002014450959
A72: 66 | B72: 240.6257778 | C72: 526.9325562 | D72: BB | E72: 0.08541776985 | F72: 1332.927124 | G72: 253.1973419 | H72: 0.8722123935 | I72: 0.0006203517045 | J72: 0.001861055113
A73: 67 | B73: 241.7966667 | C73: 529.934021 | D73: BB | E73: 0.08496762067 | F73: 1368.89563 | G73: 261.9496765 | H73: 0.8957486964 | I73: 0.0006370916473 | J73: 0.001911274942
A74: 68 | B74: 243.0048333 | C74: 532.9318848 | D74: BB | E74: 0.08629507571 | F74: 1371.940552 | G74: 256.9380188 | H74: 0.8977411674 | I74: 0.0006385087709 | J74: 0.001915526313
A75: 69 | B75: 244.2457222 | C75: 535.934082 | D75: BB | E75: 0.07955372334 | F75: 1365.61853 | G75: 267.5267944 | H75: 0.8936042979 | I75: 0.0006355664669 | J75: 0.001906699401
A76: 70 | B76: 245.513 | C76: 538.9331665 | D76: BB | E76: 0.08407376707 | F76: 1404.417725 | G76: 272.7459106 | H76: 0.9189928864 | I76: 0.000653623828 | J76: 0.001960871484
A77: 71 | B77: 246.7457778 | C77: 541.9336548 | D77: BB | E77: 0.08665233105 | F77: 1486.529907 | G77: 276.8108826 | H77: 0.9727237033 | I77: 0.0006918392949 | J77: 0.002075517885
A78: 72 | B78: 247.9193889 | C78: 544.9332886 | D78: BB | E78: 0.08556229621 | F78: 1483.874634 | G78: 281.2089844 | H78: 0.9709862022 | I78: 0.0006906035159 | J78: 0.002071810548
A79: 73 | B79: 249.143 | C79: 547.9333496 | D79: BB | E79: 0.08555165678 | F79: 1533.59082 | G79: 290.6809387 | H79: 1.003518419 | I79: 0.0007137417059 | J79: 0.002141225118
A80: 74 | B80: 250.403 | C80: 550.9333496 | D80: BB | E80: 0.08615008742 | F80: 1594.604736 | G80: 299.3354187 | H80: 1.043443403 | I80: 0.0007421379221 | J80: 0.002226413766
A81: 75 | B81: 251.6521111 | C81: 553.9337769 | D81: BB | E81: 0.08548494428 | F81: 1566.539062 | G81: 297.2481995 | H81: 1.025078386 | I81: 0.0007290760013 | J81: 0.002187228004
A82: 76 | B82: 252.8721111 | C82: 556.9342041 | D82: BB | E82: 0.08422911912 | F82: 1498.236572 | G82: 290.2155457 | H82: 0.9803840609 | I82: 0.000697287642 | J82: 0.002091862926
A83: 77 | B83: 254.0921111 | C83: 559.9348755 | D83: BB | E83: 0.08567675203 | F83: 1630.587524 | G83: 308.4390869 | H83: 1.066989051 | I83: 0.000758884512 | J83: 0.002276653536
A84: 78 | B84: 255.3121111 | C84: 562.9343872 | D84: BB | E84: 0.0867844969 | F84: 1710.540894 | G84: 317.854126 | H84: 1.11930723 | I84: 0.0007960952551 | J84: 0.002388285765
A85: 79 | B85: 256.5647778 | C85: 565.9337158 | D85: BB | E85: 0.08459547162 | F85: 1592.232422 | G85: 306.5582886 | H85: 1.041891058 | I85: 0.0007410338337 | J85: 0.002223101501
A86: 80 | B86: 257.8966111 | C86: 568.9331665 | D86: BB | E86: 0.08531458676 | F86: 1643.434814 | G86: 312.7054443 | H86: 1.075395787 | I86: 0.0007648637123 | J86: 0.002294591137
A87: 81 | B87: 259.1657778 | C87: 571.9336548 | D87: BB | E87: 0.08540191501 | F87: 1675.981201 | G87: 318.4447327 | H87: 1.096692796 | I87: 0.0007800109819 | J87: 0.002340032946
A88: 82 | B88: 260.3148889 | C88: 574.9341431 | D88: BB | E88: 0.08377776295 | F88: 1629.382568 | G88: 318.0022583 | H88: 1.066200578 | I88: 0.0007583237188 | J88: 0.002274971156
A89: 83 | B89: 261.4539444 | C89: 577.9326782 | D89: BB | E89: 0.08383025229 | F89: 1680.789062 | G89: 327.7473145 | H89: 1.099838862 | I89: 0.0007822485873 | J89: 0.002346745762
A90: 84 | B90: 262.6466667 | C90: 580.9327393 | D90: BB | E90: 0.08577868342 | F90: 1764.365601 | G90: 333.1936646 | H90: 1.154527893 | I90: 0.0008211455735 | J90: 0.00246343672
A91: 85 | B91: 263.8847778 | C91: 583.9328613 | D91: BB | E91: 0.08548869193 | F91: 1759.851318 | G91: 333.9085388 | H91: 1.151573933 | I91: 0.0008190446014 | J91: 0.002457133804
A92: 86 | B92: 265.1893889 | C92: 586.9327393 | D92: BB | E92: 0.08313897997 | F92: 1654.372681 | G92: 326.3670349 | H92: 1.082553074 | I92: 0.0007699542562 | J92: 0.002309862768
A93: 87 | B93: 266.4238889 | C93: 589.934021 | D93: BB | E93: 0.08430636674 | F93: 1771.310913 | G93: 342.6718445 | H93: 1.159072618 | I93: 0.0008243779606 | J93: 0.002473133882
A94: 88 | B94: 267.6939444 | C94: 592.9334106 | D94: BB | E94: 0.08581835032 | F94: 1795.491455 | G94: 338.8540955 | H94: 1.174895365 | I94: 0.0008356317194 | J94: 0.002506895158
A95: 89 | B95: 268.805 | C95: 595.9349365 | D95: BB | E95: 0.08406344801 | F95: 1757.781372 | G95: 341.4297791 | H95: 1.150219446 | I95: 0.0008180812368 | J95: 0.002454243711
A96: 90 | B96: 269.7785 | C96: 598.9338379 | D96: BB | E96: 0.08633495122 | F96: 1802.009888 | G96: 337.2658386 | H96: 1.179160757 | I96: 0.0008386654343 | J96: 0.002515996303
A97: 91 | B97: 270.9593889 | C97: 601.9335938 | D97: BB | E97: 0.08481109887 | F97: 1781.606323 | G97: 341.8028259 | H97: 1.165809509 | I97: 0.0008291695018 | J97: 0.002487508505
A98: 92 | B98: 272.2211111 | C98: 604.9351807 | D98: BB | E98: 0.08528356254 | F98: 1816.615112 | G98: 345.832428 | H98: 1.188717813 | I98: 0.0008454627871 | J98: 0.002536388361
A99: 93 | B99: 273.5993333 | C99: 607.9334106 | D99: BB | E99: 0.08542827517 | F99: 1812.03064 | G99: 344.1470032 | H99: 1.185717923 | I99: 0.000843329148 | J99: 0.002529987444
A100: 94 | B100: 274.903 | C100: 610.9342041 | D100: BB | E100: 0.08632776886 | F100: 1808.617188 | G100: 338.5414734 | H100: 1.183484301 | I100: 0.0008417405084 | J100: 0.002525221525
A101: 95 | B101: 276.1548333 | C101: 613.9329834 | D101: BB | E101: 0.0856128335 | F101: 1782.149902 | G101: 337.4580688 | H101: 1.166165204 | I101: 0.0008294224865 | J101: 0.00248826746
A102: 96 | B102: 277.3875556 | C102: 616.9329224 | D102: BB | E102: 0.08626957983 | F102: 1856.607422 | G102: 347.8491211 | H102: 1.214887126 | I102: 0.0008640754306 | J102: 0.002592226292
A103: 97 | B103: 278.6302778 | C103: 619.93396 | D103: BB | E103: 0.08701404929 | F103: 1849.428833 | G103: 342.4104614 | H103: 1.210189755 | I103: 0.0008607344754 | J103: 0.002582203426
A104: 98 | B104: 279.8884444 | C104: 622.9349976 | D104: BB | E104: 0.08592256904 | F104: 1801.10437 | G104: 339.3413086 | H104: 1.178568224 | I104: 0.0008382440013 | J104: 0.002514732004
A105: 99 | B105: 281.1466667 | C105: 625.9334106 | D105: BB | E105: 0.08602947742 | F105: 1770.063354 | G105: 332.9181824 | H105: 1.158256267 | I105: 0.0008237973398 | J105: 0.00247139202
A106: 100 | B106: 282.3412222 | C106: 628.9331055 | D106: BB | E106: 0.08544711769 | F106: 1805.322876 | G106: 342.7678833 | H106: 1.18132864 | I106: 0.0008402073174 | J106: 0.002520621952
A107: 101 | B107: 283.5593333 | C107: 631.9343262 | D107: BB | E107: 0.08441193402 | F107: 1750.952881 | G107: 338.14151 | H107: 1.145751163 | I107: 0.000814903219 | J107: 0.002444709657
A108: 102 | B108: 284.8521111 | C108: 634.9334717 | D108: BB | E108: 0.08590569347 | F108: 1748.723999 | G108: 329.5622559 | H108: 1.144292675 | I108: 0.000813865885 | J108: 0.002441597655
A109: 103 | B109: 286.0612222 | C109: 637.9328613 | D109: BB | E109: 0.08358056843 | F109: 1650.429932 | G109: 323.1760864 | H109: 1.079973102 | I109: 0.0007681192788 | J109: 0.002304357836
A110: 104 | B110: 287.2385 | C110: 640.9332886 | D110: BB | E110: 0.08845363557 | F110: 1774.37561 | G110: 321.1773682 | H110: 1.161078029 | I110: 0.0008258042877 | J110: 0.002477412863
A111: 105 | B111: 288.4302778 | C111: 643.9332275 | D111: BB | E111: 0.0843295306 | F111: 1681.675537 | G111: 325.2063904 | H111: 1.100418934 | I111: 0.0007826611575 | J111: 0.002347983473
A112: 106 | B112: 289.6802778 | C112: 646.9346313 | D112: BB | E112: 0.08451469988 | F112: 1634.218628 | G112: 315.0620117 | H112: 1.069365095 | I112: 0.0007605744478 | J112: 0.002281723343
A113: 107 | B113: 290.8105 | C113: 649.9348145 | D113: BB | E113: 0.08483618498 | F113: 1589.73938 | G113: 304.8672485 | H113: 1.040259715 | I113: 0.0007398735581 | J113: 0.002219620674
A114: 108 | B114: 291.3101667 | C114: 652.9347534 | D114: BB | E114: 0.08434665948 | F114: 1508.511353 | G114: 291.6366577 | H114: 0.9871074522 | I114: 0.000702069582 | J114: 0.002106208746
A115: 109 | B115: 290.9638333 | C115: 655.9354248 | D115: BB | E115: 0.08414705098 | F115: 1482.765991 | G115: 287.6107178 | H115: 0.9702607523 | I115: 0.0006900875475 | J115: 0.002070262642
A116: 110 | B116: 290.5874444 | C116: 658.9335938 | D116: BB | E116: 0.08651433885 | F116: 1457.390381 | G116: 271.9837952 | H116: 0.9536560022 | I116: 0.0006782775971 | J116: 0.002034832791
A117: 111 | B117: 290.2746667 | C117: 661.9346313 | D117: BB | E117: 0.08554854244 | F117: 1398.670532 | G117: 265.1211853 | H117: 0.9152321613 | I117: =$A$2*10^(-6)*F117/$B$2*7.45*10^(-6)*10^6/$C$2*2*60 -> 0.0006509490527 | J117: =I117*3 -> 0.001952847158
A118: 112 | B118: 290.0482778 | C118: 664.9335938 | D118: BB | E118: 0.08523210138 | F118: 1361.99292 | G118: 259.5030518 | H118: 0.8912318484 | I118: 0.0006338790877 | J118: 0.001901637263
A119: 113 | B119: 289.8691667 | C119: 667.9349976 | D119: BB | E119: 0.08449660242 | F119: 1288.50647 | G119: 248.4862823 | H119: 0.8431453541 | I119: 0.0005996780847 | J119: 0.001799034254
A120: 114 | B120: 289.7327778 | C120: 670.9337769 | D120: BB | E120: 0.08583176136 | F120: 1219.105347 | G120: 230.0257111 | H120: 0.7977321289 | I120: 0.0005673784156 | J120: 0.001702135247
A121: 115 | B121: 289.6518333 | C121: 673.93396 | D121: BB | E121: 0.08658377081 | F121: 1219.172729 | G121: 227.2742767 | H121: 0.7977762214 | I121: 0.0005674097759 | J121: 0.001702229328
A122: 116 | B122: 289.6354444 | C122: 676.9349365 | D122: BB | E122: 0.08533470333 | F122: 1146.059448 | G122: 217.995575 | H122: 0.7499339134 | I122: 0.0005333824478 | J122: 0.001600147343
A123: 117 | B123: 289.6309444 | C123: 679.9351807 | D123: BB | E123: 0.08798868954 | F123: 1146.493652 | G123: 209.0331879 | H123: 0.7502180386 | I123: 0.0005335845288 | J123: 0.001600753586
A124: 118 | B124: 289.58 | C124: 682.9346313 | D124: BB | E124: 0.08589670062 | F124: 1042.406738 | G124: 196.4791565 | H124: 0.6821078661 | I124: 0.0004851418995 | J124: 0.001455425699
A125: 119 | B125: 289.5691111 | C125: 685.9346313 | D125: BB | E125: 0.08675286174 | F125: 1001.418091 | G125: 186.1781464 | H125: 0.65528659 | I125: 0.0004660655548 | J125: 0.001398196664
A126: 120 | B126: 289.5345556 | C126: 688.9333496 | D126: BB | E126: 0.08647016436 | F126: 955.0372314 | G126: 178.3587646 | H126: 0.6249368735 | I126: 0.0004444796446 | J126: 0.001333438934
A127: 121 | B127: 289.52 | C127: 691.9351807 | D127: BB | E127: 0.08580337465 | F127: 975.0726318 | G127: 184.065155 | H127: 0.6380472111 | I127: 0.0004538042315 | J127: 0.001361412694
A128: 122 | B128: 289.5118333 | C128: 694.9353638 | D128: BB | E128: 0.08560463041 | F128: 923.2874756 | G128: 174.8519135 | H128: 0.6041611461 | I128: 0.0004297031315 | J128: 0.001289109394
A129: 123 | B129: 289.4736667 | C129: 697.9317017 | D129: BB | E129: 0.08892283589 | F129: 882.840271 | G129: 158.6468506 | H129: 0.5776941679 | I129: 0.0004108787773 | J129: 0.001232636332
A130: 124 | B130: 289.4436111 | C130: 700.9349976 | D130: BBA | E130: 0.08599384129 | F130: 806.1523438 | G130: 151.7104034 | H130: 0.5275127594 | I130: 0.000375187789 | J130: 0.001125563367
A131: 125 | B131: 289.4663889 | C131: 703.9336548 | D131: BB | E131: 0.08620699495 | F131: 788.131958 | G131: 147.8109131 | H131: 0.5157209641 | I131: 0.0003668010011 | J131: 0.001100403003
A132: 126 | B132: 289.4136667 | C132: 706.9363403 | D132: BB | E132: 0.08686754853 | F132: 809.6415405 | G132: 150.2495117 | H132: 0.5297959455 | I132: 0.0003768116806 | J132: 0.001130435042
A133: 127 | B133: 289.37 | C133: 709.9338379 | D133: BB | E133: 0.0796629265 | F133: 738.8359985 | G133: 144.4741974 | H133: 0.4834637266 | I133: 0.0003438583871 | J133: 0.001031575161
A134: 128 | B134: 289.3727222 | C134: 712.9344482 | D134: BB | E134: 0.08718875051 | F134: 734.8638916 | G134: 135.6793976 | H134: 0.4808645441 | I134: 0.0003420097464 | J134: 0.001026029239
A135: 129 | B135: 289.3990556 | C135: 715.9330444 | D135: BB | E135: 0.08024124056 | F135: 706.15448 | G135: 136.7579651 | H135: 0.4620782922 | I135: 0.0003286482264 | J135: 0.0009859446793
A136: 130 | B136: 289.4309444 | C136: 718.9343872 | D136: BB | E136: 0.08853876591 | F136: 749.574707 | G136: 135.5005493 | H136: 0.4904906934 | I136: 0.0003488562418 | J136: 0.001046568726
A137: 131 | B137: 289.3718333 | C137: 721.9346313 | D137: BB | E137: 0.09105086327 | F137: 706.3289185 | G137: 122.899292 | H137: 0.4621924376 | I137: 0.0003287294111 | J137: 0.0009861882332
A138: 132 | B138: 289.3690556 | C138: 724.9354858 | D138: BB | E138: 0.08667965233 | F138: 659.7011108 | G138: 122.7912521 | H138: 0.4316811283 | I138: 0.0003070285698 | J138: 0.0009210857094
A139: 133 | B139: 289.4308889 | C139: 727.9348145 | D139: BB | E139: 0.08853970468 | F139: 649.9801025 | G139: 117.4951324 | H139: 0.4253201025 | I139: 0.0003025043584 | J139: 0.0009075130753
A140: 134 | B140: 289.4545556 | C140: 730.932312 | D140: BB | E140: 0.09006330371 | F140: 644.8825684 | G140: 113.8851624 | H140: 0.4219844869 | I140: 0.0003001319376 | J140: 0.0009003958129
A141: 135 | B141: 289.4155 | C141: 733.934021 | D141: BB | E141: 0.08364660293 | F141: 672.9790039 | G141: 123.359642 | H141: 0.4403696325 | I141: 0.0003132081752 | J141: 0.0009396245255
A142: 136 | B142: 289.3363889 | C142: 736.9300537 | D142: BB | E142: 0.08370995522 | F142: 631.6438599 | G142: 115.6676102 | H142: 0.4133216234 | I142: 0.000293970569 | J142: 0.000881911707
A143: 137 | B143: 289.2972778 | C143: 739.9328613 | D143: BB | E143: 0.09236771613 | F143: 645.6367188 | G143: 110.1752243 | H143: 0.4224779717 | I143: 0.0003004829234 | J143: 0.0009014487703
A144: 138 | B144: 289.2954444 | C144: 742.9330444 | D144: BB | E144: 0.09079799801 | F144: 504.2417603 | G144: 93.67847443 | H144: 0.3299549575 | I144: 0.0002346769225 | J144: 0.0007040307676
A145: 139 | B145: 289.3208889 | C145: 745.930603 | D145: BB | E145: 0.08902583271 | F145: 582.5366821 | G145: 104.5163345 | H145: 0.3811879169 | I145: 0.0002711158151 | J145: 0.0008133474452
A146: 140 | B146: 289.3663333 | C146: 748.9331055 | D146: BB | E146: 0.08244672418 | F146: 568.3822632 | G146: 106.18853 | H146: 0.3719258504 | I146: 0.0002645282697 | J146: 0.0007935848091
A147: 141 | B147: 289.4127222 | C147: 751.9362793 | D147: BB | E147: 0.08480815589 | F147: 540.6693115 | G147: 103.732933 | H147: 0.3537916408 | I147: 0.0002516305077 | J147: 0.0007548915231
A148: 142 | B148: 289.4118333 | C148: 754.9331055 | D148: BB | E148: 0.0880247578 | F148: 542.1549683 | G148: 98.79212189 | H148: 0.3547637931 | I148: 0.0002523219406 | J148: 0.0007569658219
A149: 143 | B149: 289.3709444 | C149: 757.9330444 | D149: BB | E149: 0.09265470505 | F149: 632.5234985 | G149: 101.5686646 | H149: 0.4138972226 | I149: 0.0002943799577 | J149: 0.0008831398732
A150: 144 | B150: 289.32 | C150: 760.9317017 | D150: BV | E150: 0.07629626989 | F150: 509.8869629 | G150: 105.6674118 | H150: 0.3336489447 | I150: 0.0002373042313 | J150: 0.0007119126938
A151: 145 | B151: 289.3499444 | C151: 763.9298706 | D151: BB | E151: 0.08510017395 | F151: 478.5867004 | G151: 91.38291168 | H151: 0.3131673472 | I151: 0.0002227369149 | J151: 0.0006682107446
A152: 146 | B152: 289.4027778 | C152: 766.9290771 | D152: BB | E152: 0.09487261623 | F152: 586.5547485 | G152: 96.55547333 | H152: 0.3838171734 | I152: 0.0002729858456 | J152: 0.0008189575367
A153: 147 | B153: 289.3136667 | C153: 769.9371948 | D153: BB | E153: 0.09581397474 | F153: 534.4653931 | G153: 86.82752228 | H153: 0.3497320531 | I153: 0.0002487431695 | J153: 0.0007462295086
A154: 148 | B154: 289.2781667 | C154: 772.9326172 | D154: BB | E154: 0.08031971753 | F154: 488.4923096 | G154: 88.60544586 | H154: 0.3196491682 | I154: 0.0002273470405 | J154: 0.0006820411215
A155: 149 | B155: 289.3027222 | C155: 775.9358521 | D155: BB | E155: 0.0863918364 | F155: 447.1807556 | G155: 83.61846161 | H155: 0.2926165956 | I155: 0.0002081204133 | J155: 0.0006243612399
A156: 150 | B156: 289.31 | C156: 778.9304199 | D156: BB | E156: 0.09222634882 | F156: 432.1159973 | G156: 73.8915863 | H156: 0.2827588407 | I156: 0.0002011091909 | J156: 0.0006033275727
A157: 151 | B157: 289.3072778 | C157: 781.9293213 | D157: BB | E157: 0.08456587791 | F157: 438.739624 | G157: 84.51341248 | H157: 0.2870930681 | I157: 0.0002041918637 | J157: 0.000612575591
A158: 152 | B158: 289.3081667 | C158: 784.9328003 | D158: BB | E158: 0.08885291964 | F158: 464.581604 | G158: 78.72024536 | H158: 0.3040029912 | I158: 0.000216218865 | J158: 0.0006486565951
A159: 153 | B159: 289.3327222 | C159: 787.937561 | D159: BB | E159: 0.08721844107 | F159: 383.1763611 | G159: 70.71339417 | H159: 0.2507347664 | I159: 0.0001783324117 | J159: 0.0005349972352
A160: 154 | B160: 289.3427222 | C160: 790.9376831 | D160: BB | E160: 0.09517917037 | F160: 464.2808838 | G160: 80.62931061 | H160: 0.3038062124 | I160: 0.0002160789082 | J160: 0.0006482367245
A161: 155 | B161: 289.3282222 | C161: 793.9299316 | D161: BB | E161: 0.09196794778 | F161: 385.5705872 | G161: 66.18301392 | H161: 0.2523014489 | I161: 0.0001794466979 | J161: 0.0005383400937
A162: 156 | B162: 289.3053889 | C162: 796.9371338 | D162: BB | E162: 0.0885437727 | F162: 378.1383057 | G162: 68.35072327 | H162: 0.2474380712 | I162: 0.0001759876727 | J162: 0.0005279630181
A163: 157 | B163: 289.4081667 | C163: 799.9369507 | D163: BB | E163: 0.0747724399 | F163: 362.4256287 | G163: 71.94356537 | H163: 0.2371563451 | I163: 0.0001686749054 | J163: 0.0005060247161
A164: 158 | B164: 289.4163889 | C164: 802.9376831 | D164: BB | E164: 0.08906324208 | F164: 429.611145 | G164: 72.57304382 | H164: 0.2811197689 | I164: 0.0001999434187 | J164: 0.0005998302561
A165: 159 | B165: 289.3718333 | C165: 805.9475098 | D165: BB | E165: 0.08828984946 | F165: 373.8552246 | G165: 63.86958694 | H165: 0.2446354001 | I165: 0.0001739943029 | J165: 0.0005219829088
A166: 160 | B166: 289.3336667 | C166: 808.9348755 | D166: BB | E166: 0.09571201354 | F166: 419.568634 | G166: 68.25868225 | H166: 0.274548365 | I166: 0.0001952695782 | J166: 0.0005858087346
A167: 161 | B167: 289.2872778 | C167: 811.9321289 | D167: BB | E167: 0.08737009019 | F167: 406.4422607 | G167: 70.38474274 | H167: 0.2659590091 | I167: 0.000189160491 | J167: 0.0005674814729
A168: 162 | B168: 289.2854444 | C168: 814.9360962 | D168: BB | E168: 0.09260575473 | F168: 390.1826172 | G168: 66.35202026 | H168: 0.2553193707 | I168: 0.0001815931623 | J168: 0.000544779487
A169: 164 | B169: 289.2891111 | C169: 817.9300537 | D169: BB | E169: 0.09230747074 | F169: 478.7442017 | G169: 77.24442291 | H169: 0.3132704095 | I169: 0.0002228102168 | J169: 0.0006684306505
A170: 165 | B170: 289.2681667 | C170: 820.9313965 | D170: BB | E170: 0.08323723823 | F170: 333.4221497 | G170: 65.66688538 | H170: 0.2181776677 | I170: 0.0001551765247 | J170: 0.0004655295742
A171: 166 | B171: 289.2927222 | C171: 823.9482422 | D171: BB | E171: 0.0965500474 | F171: 418.936554 | G171: 67.36857605 | H171: 0.2741347579 | I171: 0.0001949754046 | J171: 0.0005849262138
A172: 167
A173: 168
A174: 169
A175: 170
A176: 171
A177: 172
A178: 173
A179: 174
A180: 175
A181: 176
A182: 177
A183: 178
A184: 179
A185: 180
A186: 181
A187: 182
A188: 183
A189: 184

Sheet Washer control thermal
C1: Time | D1: Channel 1 | E1: Channel 2 | G1: Ratio | H1: Injection time | I1: Thermal start time
C2: Minutes | D2: ( °C ) | E2: ( °C ) | G2: =G11/J2 -> 0.03 | H2: 2016-09-14T14:33:51 | I2: 2016-09-14T14:33:46 | J2: 00:03:00
A3: =$I$2+(C3/1440) -> 2016-09-14T14:33:46 | B3: =C3+11 -> 11 | C3: 0 | D3: 21.75 | E3: 21.71 | G3: =H11/J2 -> 527.39 | H3: 2nd Injection time | I3: 2nd Thermal time
A4: 2016-09-14T14:36:46 | B4: =C4+11 -> 14 | C4: 3 | D4: 21.74 | E4: 21.7 | H4: 2016-09-15T04:21:06 | I4: 2016-09-14T01:58:56
A5: 2016-09-14T14:39:46 | B5: 17 | C5: 6 | D5: 21.75 | E5: 21.71
A6: 2016-09-14T14:42:46 | B6: 20 | C6: 9 | D6: 21.84 | E6: 21.81
A7: 2016-09-14T14:45:46 | B7: 23 | C7: 12 | D7: 22.86 | E7: 22.71
A8: 2016-09-14T14:48:46 | B8: 26 | C8: 15 | D8: 24.97 | E8: 24.62
A9: 2016-09-14T14:51:46 | B9: 29 | C9: 18 | D9: 27.19 | E9: 26.72
A10: 2016-09-14T14:54:46 | B10: 32 | C10: 21 | D10: 29.2 | E10: 28.69
A11: 2016-09-14T14:57:46 | B11: 35 | C11: 24 | D11: 31.06 | E11: 30.54 | G11: =H2-I2 -> 00:00:05 | H11: =H4-I4 -> 1.098726852
A12: 2016-09-14T15:00:46 | B12: 38 | C12: 27 | D12: 32.78 | E12: 32.27 | G12: min | H12: Temperature /°C
A13: 2016-09-14T15:03:46 | B13: 41 | C13: 30 | D13: 34.37 | E13: 33.88 | G13: =((A3-$A$3)*1440)+11 -> 11 | H13: =E3+($G$2*(E4-E3)) -> 21.7 | I13: =((A3-$A$3)*1440)+11 -> 11 | J13: =D3+($G$2*(D4-D3)) -> 21.7 | K13: =H13-J13 -> -0.0
A14: 2016-09-14T15:06:46 | B14: 44 | C14: 33 | D14: 35.86 | E14: 35.37 | G14: =((A4-$A$3)*1440)+11 -> 14 | H14: 21.7 | I14: =((A4-$A$3)*1440)+11 -> 14 | J14: 21.7 | K14: -0.0
A15: 2016-09-14T15:09:46 | B15: 47 | C15: 36 | D15: 37.31 | E15: 36.81 | G15: 17 | H15: 21.7 | I15: 17 | J15: 21.8 | K15: -0.0
A16: 2016-09-14T15:12:46 | B16: 50 | C16: 39 | D16: 38.74 | E16: 38.24 | G16: 20 | H16: 21.8 | I16: 20 | J16: 21.9 | K16: -0.0
A17: 2016-09-14T15:15:46 | B17: 53 | C17: 42 | D17: 40.09 | E17: 39.59 | G17: 23 | H17: 22.8 | I17: 23 | J17: 22.9 | K17: -0.2
A18: 2016-09-14T15:18:46 | B18: 56 | C18: 45 | D18: 41.44 | E18: 40.94 | G18: 26 | H18: 24.7 | I18: 26 | J18: 25.0 | K18: -0.4
A19: 2016-09-14T15:21:46 | B19: 59 | C19: 48 | D19: 42.81 | E19: 42.3 | G19: 29 | H19: 26.8 | I19: 29 | J19: 27.2 | K19: -0.5
A20: 2016-09-14T15:24:46 | B20: 62 | C20: 51 | D20: 44.12 | E20: 43.6 | G20: 32 | H20: 28.7 | I20: 32 | J20: 29.3 | K20: -0.5
A21: 2016-09-14T15:27:46 | B21: 65 | C21: 54 | D21: 45.4 | E21: 44.89 | G21: 35 | H21: 30.6 | I21: 35 | J21: 31.1 | K21: -0.5
A22: 2016-09-14T15:30:46 | B22: 68 | C22: 57 | D22: 46.73 | E22: 46.2 | G22: 38 | H22: 32.3 | I22: 38 | J22: 32.8 | K22: -0.5
A23: 2016-09-14T15:33:46 | B23: 71 | C23: 60 | D23: 48.06 | E23: 47.52 | G23: 41 | H23: 33.9 | I23: 41 | J23: 34.4 | K23: -0.5
A24: 2016-09-14T15:36:46 | B24: 74 | C24: 63 | D24: 49.35 | E24: 48.81 | G24: 44 | H24: 35.4 | I24: 44 | J24: 35.9 | K24: -0.5
A25: 2016-09-14T15:39:46 | B25: 77 | C25: 66 | D25: 50.64 | E25: 50.1 | G25: 47 | H25: 36.8 | I25: 47 | J25: 37.3 | K25: -0.5
A26: 2016-09-14T15:42:46 | B26: 80 | C26: 69 | D26: 51.95 | E26: 51.4 | G26: 50 | H26: 38.3 | I26: 50 | J26: 38.8 | K26: -0.5
A27: 2016-09-14T15:45:46 | B27: 83 | C27: 72 | D27: 53.26 | E27: 52.7 | G27: 53 | H27: 39.6 | I27: 53 | J27: 40.1 | K27: -0.5
A28: 2016-09-14T15:48:46 | B28: 86 | C28: 75 | D28: 54.57 | E28: 54.01 | G28: 56 | H28: 41.0 | I28: 56 | J28: 41.5 | K28: -0.5
A29: 2016-09-14T15:51:46 | B29: 89 | C29: 78 | D29: 55.9 | E29: 55.33 | G29: 59 | H29: 42.3 | I29: 59 | J29: 42.8 | K29: -0.5
A30: 2016-09-14T15:54:46 | B30: 92 | C30: 81 | D30: 57.21 | E30: 56.62 | G30: 62 | H30: 43.6 | I30: 62 | J30: 44.2 | K30: -0.5
A31: 2016-09-14T15:57:46 | B31: 95 | C31: 84 | D31: 58.49 | E31: 57.9 | G31: 65 | H31: 44.9 | I31: 65 | J31: 45.4 | K31: -0.5
A32: 2016-09-14T16:00:46 | B32: 98 | C32: 87 | D32: 59.75 | E32: 59.16 | G32: 68 | H32: 46.2 | I32: 68 | J32: 46.8 | K32: -0.5
A33: 2016-09-14T16:03:46 | B33: 101 | C33: 90 | D33: 61.01 | E33: 60.43 | G33: 71 | H33: 47.6 | I33: 71 | J33: 48.1 | K33: -0.5
A34: 2016-09-14T16:06:46 | B34: 104 | C34: 93 | D34: 62.3 | E34: 61.71 | G34: 74 | H34: 48.8 | I34: 74 | J34: 49.4 | K34: -0.5
A35: 2016-09-14T16:09:46 | B35: 107 | C35: 96 | D35: 63.61 | E35: 63.01 | G35: 77 | H35: 50.1 | I35: 77 | J35: 50.7 | K35: -0.5
A36: 2016-09-14T16:12:46 | B36: 110 | C36: 99 | D36: 64.88 | E36: 64.27 | G36: 80 | H36: 51.4 | I36: 80 | J36: 52.0 | K36: -0.6
A37: 2016-09-14T16:15:46 | B37: 113 | C37: 102 | D37: 66.18 | E37: 65.57 | G37: 83 | H37: 52.7 | I37: 83 | J37: 53.3 | K37: -0.6
A38: 2016-09-14T16:18:46 | B38: 116 | C38: 105 | D38: 67.54 | E38: 66.91 | G38: 86 | H38: 54.0 | I38: 86 | J38: 54.6 | K38: -0.6
A39: 2016-09-14T16:21:46 | B39: 119 | C39: 108 | D39: 68.86 | E39: 68.22 | G39: 89 | H39: 55.4 | I39: 89 | J39: 55.9 | K39: -0.6
A40: 2016-09-14T16:24:46 | B40: 122 | C40: 111 | D40: 70.13 | E40: 69.48 | G40: 92 | H40: 56.7 | I40: 92 | J40: 57.2 | K40: -0.6
A41: 2016-09-14T16:27:46 | B41: 125 | C41: 114 | D41: 71.37 | E41: 70.72 | G41: 95 | H41: 57.9 | I41: 95 | J41: 58.5 | K41: -0.6
A42: 2016-09-14T16:30:46 | B42: 128 | C42: 117 | D42: 72.62 | E42: 71.98 | G42: 98 | H42: 59.2 | I42: 98 | J42: 59.8 | K42: -0.6
A43: 2016-09-14T16:33:46 | B43: 131 | C43: 120 | D43: 73.89 | E43: 73.25 | G43: 101 | H43: 60.5 | I43: 101 | J43: 61.0 | K43: -0.6
A44: 2016-09-14T16:36:46 | B44: 134 | C44: 123 | D44: 75.2 | E44: 74.55 | G44: 104 | H44: 61.7 | I44: 104 | J44: 62.3 | K44: -0.6
A45: 2016-09-14T16:39:46 | B45: 137 | C45: 126 | D45: 76.47 | E45: 75.82 | G45: 107 | H45: 63.0 | I45: 107 | J45: 63.6 | K45: -0.6
A46: 2016-09-14T16:42:46 | B46: 140 | C46: 129 | D46: 77.76 | E46: 77.11 | G46: 110 | H46: 64.3 | I46: 110 | J46: 64.9 | K46: -0.6
A47: 2016-09-14T16:45:46 | B47: 143 | C47: 132 | D47: 79.08 | E47: 78.42 | G47: 113 | H47: 65.6 | I47: 113 | J47: 66.2 | K47: -0.6
A48: 2016-09-14T16:48:46 | B48: 146 | C48: 135 | D48: 80.42 | E48: 79.75 | G48: 116 | H48: 66.9 | I48: 116 | J48: 67.6 | K48: -0.6
A49: 2016-09-14T16:51:46 | B49: 149 | C49: 138 | D49: 81.69 | E49: 81.02 | G49: 119 | H49: 68.3 | I49: 119 | J49: 68.9 | K49: -0.6
A50: 2016-09-14T16:54:46 | B50: 152 | C50: 141 | D50: 82.95 | E50: 82.28 | G50: 122 | H50: 69.5 | I50: 122 | J50: 70.2 | K50: -0.6
A51: 2016-09-14T16:57:46 | B51: 155 | C51: 144 | D51: 84.24 | E51: 83.56 | G51: 125 | H51: 70.8 | I51: 125 | J51: 71.4 | K51: -0.6
A52: 2016-09-14T17:00:46 | B52: 158 | C52: 147 | D52: 85.47 | E52: 84.79 | G52: 128 | H52: 72.0 | I52: 128 | J52: 72.7 | K52: -0.6
A53: 2016-09-14T17:03:46 | B53: 161 | C53: 150 | D53: 86.75 | E53: 86.07 | G53: 131 | H53: 73.3 | I53: 131 | J53: 73.9 | K53: -0.6
A54: 2016-09-14T17:06:46 | B54: 164 | C54: 153 | D54: 88.02 | E54: 87.33 | G54: 134 | H54: 74.6 | I54: 134 | J54: 75.2 | K54: -0.7
A55: 2016-09-14T17:09:46 | B55: 167 | C55: 156 | D55: 89.25 | E55: 88.56 | G55: 137 | H55: 75.9 | I55: 137 | J55: 76.5 | K55: -0.7
A56: 2016-09-14T17:12:46 | B56: 170 | C56: 159 | D56: 90.61 | E56: 89.91 | G56: 140 | H56: 77.1 | I56: 140 | J56: 77.8 | K56: -0.7
A57: 2016-09-14T17:15:46 | B57: 173 | C57: 162 | D57: 91.95 | E57: 91.25 | G57: 143 | H57: 78.5 | I57: 143 | J57: 79.1 | K57: -0.7
A58: 2016-09-14T17:18:46 | B58: 176 | C58: 165 | D58: 93.23 | E58: 92.52 | G58: 146 | H58: 79.8 | I58: 146 | J58: 80.5 | K58: -0.7
A59: 2016-09-14T17:21:46 | B59: 179 | C59: 168 | D59: 94.46 | E59: 93.76 | G59: 149 | H59: 81.1 | I59: 149 | J59: 81.7 | K59: -0.7
A60: 2016-09-14T17:24:46 | B60: 182 | C60: 171 | D60: 95.74 | E60: 95.04 | G60: 152 | H60: 82.3 | I60: 152 | J60: 83.0 | K60: -0.7
A61: 2016-09-14T17:27:46 | B61: 185 | C61: 174 | D61: 97.08 | E61: 96.37 | G61: 155 | H61: 83.6 | I61: 155 | J61: 84.3 | K61: -0.7
A62: 2016-09-14T17:30:46 | B62: 188 | C62: 177 | D62: 98.31 | E62: 97.61 | G62: 158 | H62: 84.8 | I62: 158 | J62: 85.5 | K62: -0.7
A63: 2016-09-14T17:33:46 | B63: 191 | C63: 180 | D63: 99.58 | E63: 98.87 | G63: 161 | H63: 86.1 | I63: 161 | J63: 86.8 | K63: -0.7
A64: 2016-09-14T17:36:46 | B64: 194 | C64: 183 | D64: 100.93 | E64: 100.21 | G64: 164 | H64: 87.4 | I64: 164 | J64: 88.1 | K64: -0.7
A65: 2016-09-14T17:39:46 | B65: 197 | C65: 186 | D65: 102.24 | E65: 101.52 | G65: 167 | H65: 88.6 | I65: 167 | J65: 89.3 | K65: -0.7
A66: 2016-09-14T17:42:46 | B66: 200 | C66: 189 | D66: 103.54 | E66: 102.83 | G66: 170 | H66: 89.9 | I66: 170 | J66: 90.6 | K66: -0.7
A67: =$I$2+(C67/1440) -> 2016-09-14T17:45:46 | B67: 203 | C67: 192 | D67: 104.87 | E67: 104.15 | G67: 173 | H67: 91.3 | I67: 173 | J67: 92.0 | K67: -0.7
A68: 2016-09-14T17:48:46 | B68: =C68+11 -> 206 | C68: 195 | D68: 106.09 | E68: 105.37 | G68: 176 | H68: 92.6 | I68: 176 | J68: 93.3 | K68: -0.7
A69: 2016-09-14T17:51:46 | B69: 209 | C69: 198 | D69: 107.37 | E69: 106.65 | G69: 179 | H69: 93.8 | I69: 179 | J69: 94.5 | K69: -0.7
A70: 2016-09-14T17:54:46 | B70: 212 | C70: 201 | D70: 108.59 | E70: 107.87 | G70: 182 | H70: 95.1 | I70: 182 | J70: 95.8 | K70: -0.7
A71: 2016-09-14T17:57:46 | B71: 215 | C71: 204 | D71: 109.83 | E71: 109.11 | G71: 185 | H71: 96.4 | I71: 185 | J71: 97.1 | K71: -0.7
A72: 2016-09-14T18:00:46 | B72: 218 | C72: 207 | D72: 111.1 | E72: 110.38 | G72: 188 | H72: 97.6 | I72: 188 | J72: 98.3 | K72: -0.7
A73: 2016-09-14T18:03:46 | B73: 221 | C73: 210 | D73: 112.44 | E73: 111.71 | G73: 191 | H73: 98.9 | I73: 191 | J73: 99.6 | K73: -0.7
A74: 2016-09-14T18:06:46 | B74: 224 | C74: 213 | D74: 113.82 | E74: 113.1 | G74: 194 | H74: 100.2 | I74: 194 | J74: 101.0 | K74: -0.7
A75: 2016-09-14T18:09:46 | B75: 227 | C75: 216 | D75: 115.16 | E75: 114.43 | G75: 197 | H75: 101.6 | I75: 197 | J75: 102.3 | K75: -0.7
A76: 2016-09-14T18:12:46 | B76: 230 | C76: 219 | D76: 116.4 | E76: 115.69 | G76: 200 | H76: 102.9 | I76: 200 | J76: 103.6 | K76: -0.7
A77: 2016-09-14T18:15:46 | B77: 233 | C77: 222 | D77: 117.74 | E77: 117.01 | G77: 203 | H77: =E67+($G$2*(E68-E67)) -> 104.2 | I77: 203 | J77: =D67+($G$2*(D68-D67)) -> 104.9 | K77: =H77-J77 -> -0.7
A78: 2016-09-14T18:18:46 | B78: 236 | C78: 225 | D78: 118.93 | E78: 118.21 | G78: =((A68-$A$3)*1440)+11 -> 206 | H78: 105.4 | I78: =((A68-$A$3)*1440)+11 -> 206 | J78: 106.1 | K78: -0.7
A79: 2016-09-14T18:21:46 | B79: 239 | C79: 228 | D79: 120.13 | E79: 119.42 | G79: 209 | H79: 106.7 | I79: 209 | J79: 107.4 | K79: -0.7
A80: 2016-09-14T18:24:46 | B80: 242 | C80: 231 | D80: 121.42 | E80: 120.71 | G80: 212 | H80: 107.9 | I80: 212 | J80: 108.6 | K80: -0.7
A81: 2016-09-14T18:27:46 | B81: 245 | C81: 234 | D81: 122.74 | E81: 122.03 | G81: 215 | H81: 109.1 | I81: 215 | J81: 109.9 | K81: -0.7
A82: 2016-09-14T18:30:46 | B82: 248 | C82: 237 | D82: 124.09 | E82: 123.37 | G82: 218 | H82: 110.4 | I82: 218 | J82: 111.1 | K82: -0.7
A83: 2016-09-14T18:33:46 | B83: 251 | C83: 240 | D83: 125.36 | E83: 124.65 | G83: 221 | H83: 111.7 | I83: 221 | J83: 112.5 | K83: -0.7
A84: 2016-09-14T18:36:46 | B84: 254 | C84: 243 | D84: 126.67 | E84: 125.97 | G84: 224 | H84: 113.1 | I84: 224 | J84: 113.9 | K84: -0.7
A85: 2016-09-14T18:39:46 | B85: 257 | C85: 246 | D85: 127.98 | E85: 127.27 | G85: 227 | H85: 114.5 | I85: 227 | J85: 115.2 | K85: -0.7
A86: 2016-09-14T18:42:46 | B86: 260 | C86: 249 | D86: 129.25 | E86: 128.55 | G86: 230 | H86: 115.7 | I86: 230 | J86: 116.4 | K86: -0.7
A87: 2016-09-14T18:45:46 | B87: 263 | C87: 252 | D87: 130.51 | E87: 129.81 | G87: 233 | H87: 117.0 | I87: 233 | J87: 117.8 | K87: -0.7
A88: 2016-09-14T18:48:46 | B88: 266 | C88: 255 | D88: 131.78 | E88: 131.08 | G88: 236 | H88: 118.2 | I88: 236 | J88: 119.0 | K88: -0.7
A89: 2016-09-14T18:51:46 | B89: 269 | C89: 258 | D89: 133.13 | E89: 132.44 | G89: 239 | H89: 119.5 | I89: 239 | J89: 120.2 | K89: -0.7
A90: 2016-09-14T18:54:46 | B90: 272 | C90: 261 | D90: 134.47 | E90: 133.78 | G90: 242 | H90: 120.7 | I90: 242 | J90: 121.5 | K90: -0.7
A91: 2016-09-14T18:57:46 | B91: 275 | C91: 264 | D91: 135.73 | E91: 135.04 | G91: 245 | H91: 122.1 | I91: 245 | J91: 122.8 | K91: -0.7
A92: 2016-09-14T19:00:46 | B92: 278 | C92: 267 | D92: 136.98 | E92: 136.3 | G92: 248 | H92: 123.4 | I92: 248 | J92: 124.1 | K92: -0.7
A93: 2016-09-14T19:03:46 | B93: 281 | C93: 270 | D93: 138.22 | E93: 137.55 | G93: 251 | H93: 124.7 | I93: 251 | J93: 125.4 | K93: -0.7
A94: 2016-09-14T19:06:46 | B94: 284 | C94: 273 | D94: 139.47 | E94: 138.82 | G94: 254 | H94: 126.0 | I94: 254 | J94: 126.7 | K94: -0.7
A95: 2016-09-14T19:09:46 | B95: 287 | C95: 276 | D95: 140.86 | E95: 140.2 | G95: 257 | H95: 127.3 | I95: 257 | J95: 128.0 | K95: -0.7
A96: 2016-09-14T19:12:46 | B96: 290 | C96: 279 | D96: 142.21 | E96: 141.55 | G96: 260 | H96: 128.6 | I96: 260 | J96: 129.3 | K96: -0.7
A97: 2016-09-14T19:15:46 | B97: 293 | C97: 282 | D97: 143.5 | E97: 142.85 | G97: 263 | H97: 129.8 | I97: 263 | J97: 130.5 | K97: -0.7
A98: 2016-09-14T19:18:46 | B98: 296 | C98: 285 | D98: 144.72 | E98: 144.07 | G98: 266 | H98: 131.1 | I98: 266 | J98: 131.8 | K98: -0.7
A99: 2016-09-14T19:21:46 | B99: 299 | C99: 288 | D99: 145.99 | E99: 145.36 | G99: 269 | H99: 132.5 | I99: 269 | J99: 133.2 | K99: -0.7
A100: 2016-09-14T19:24:46 | B100: 302 | C100: 291 | D100: 147.23 | E100: 146.61 | G100: 272 | H100: 133.8 | I100: 272 | J100: 134.5 | K100: -0.7
A101: 2016-09-14T19:27:46 | B101: 305 | C101: 294 | D101: 148.54 | E101: 147.92 | G101: 275 | H101: 135.1 | I101: 275 | J101: 135.8 | K101: -0.7
A102: 2016-09-14T19:30:46 | B102: 308 | C102: 297 | D102: 149.94 | E102: 149.32 | G102: 278 | H102: 136.3 | I102: 278 | J102: 137.0 | K102: -0.7
A103: 2016-09-14T19:33:46 | B103: 311 | C103: 300 | D103: 151.22 | E103: 150.61 | G103: 281 | H103: 137.6 | I103: 281 | J103: 138.3 | K103: -0.7
A104: 2016-09-14T19:36:46 | B104: 314 | C104: 303 | D104: 152.5 | E104: 151.89 | G104: 284 | H104: 138.9 | I104: 284 | J104: 139.5 | K104: -0.7
A105: 2016-09-14T19:39:46 | B105: 317 | C105: 306 | D105: 153.79 | E105: 153.2 | G105: 287 | H105: 140.2 | I105: 287 | J105: 140.9 | K105: -0.7
A106: 2016-09-14T19:42:46 | B106: 320 | C106: 309 | D106: 155.05 | E106: 154.47 | G106: 290 | H106: 141.6 | I106: 290 | J106: 142.2 | K106: -0.7
A107: 2016-09-14T19:45:46 | B107: 323 | C107: 312 | D107: 156.28 | E107: 155.71 | G107: 293 | H107: 142.9 | I107: 293 | J107: 143.5 | K107: -0.7
A108: 2016-09-14T19:48:46 | B108: 326 | C108: 315 | D108: 157.61 | E108: 157.05 | G108: 296 | H108: 144.1 | I108: 296 | J108: 144.8 | K108: -0.6
A109: 2016-09-14T19:51:46 | B109: 329 | C109: 318 | D109: 158.91 | E109: 158.36 | G109: 299 | H109: 145.4 | I109: 299 | J109: 146.0 | K109: -0.6
A110: 2016-09-14T19:54:46 | B110: 332 | C110: 321 | D110: 160.18 | E110: 159.64 | G110: 302 | H110: 146.6 | I110: 302 | J110: 147.3 | K110: -0.6
A111: 2016-09-14T19:57:46 | B111: 335 | C111: 324 | D111: 161.49 | E111: 160.96 | G111: 305 | H111: 148.0 | I111: 305 | J111: 148.6 | K111: -0.6
A112: 2016-09-14T20:00:46 | B112: 338 | C112: 327 | D112: 162.73 | E112: 162.21 | G112: 308 | H112: 149.4 | I112: 308 | J112: 150.0 | K112: -0.6
A113: 2016-09-14T20:03:46 | B113: 341 | C113: 330 | D113: 163.97 | E113: 163.46 | G113: 311 | H113: 150.6 | I113: 311 | J113: 151.3 | K113: -0.6
A114: 2016-09-14T20:06:46 | B114: 344 | C114: 333 | D114: 165.29 | E114: 164.8 | G114: 314 | H114: 151.9 | I114: 314 | J114: 152.5 | K114: -0.6
A115: 2016-09-14T20:09:46 | B115: 347 | C115: 336 | D115: 166.54 | E115: 166.06 | G115: 317 | H115: 153.2 | I115: 317 | J115: 153.8 | K115: -0.6
A116: 2016-09-14T20:12:46 | B116: 350 | C116: 339 | D116: 167.79 | E116: 167.32 | G116: 320 | H116: 154.5 | I116: 320 | J116: 155.1 | K116: -0.6
A117: 2016-09-14T20:15:46 | B117: 353 | C117: 342 | D117: 169.01 | E117: 168.55 | G117: 323 | H117: 155.7 | I117: 323 | J117: 156.3 | K117: -0.6
A118: 2016-09-14T20:18:46 | B118: 356 | C118: 345 | D118: 170.3 | E118: 169.85 | G118: 326 | H118: 157.1 | I118: 326 | J118: 157.6 | K118: -0.6
A119: 2016-09-14T20:21:46 | B119: 359 | C119: 348 | D119: 171.63 | E119: 171.2 | G119: 329 | H119: 158.4 | I119: 329 | J119: 158.9 | K119: -0.5
A120: 2016-09-14T20:24:46 | B120: 362 | C120: 351 | D120: 172.93 | E120: 172.51 | G120: 332 | H120: 159.7 | I120: 332 | J120: 160.2 | K120: -0.5
A121: 2016-09-14T20:27:46 | B121: 365 | C121: 354 | D121: 174.2 | E121: 173.79 | G121: 335 | H121: 161.0 | I121: 335 | J121: 161.5 | K121: -0.5
A122: 2016-09-14T20:30:46 | B122: 368 | C122: 357 | D122: 175.45 | E122: 175.07 | G122: 338 | H122: 162.2 | I122: 338 | J122: 162.8 | K122: -0.5
A123: 2016-09-14T20:33:46 | B123: 371 | C123: 360 | D123: 176.68 | E123: 176.31 | G123: 341 | H123: 163.5 | I123: 341 | J123: 164.0 | K123: -0.5
A124: 2016-09-14T20:36:46 | B124: 374 | C124: 363 | D124: 177.95 | E124: 177.6 | G124: 344 | H124: 164.8 | I124: 344 | J124: 165.3 | K124: -0.5
A125: 2016-09-14T20:39:46 | B125: 377 | C125: 366 | D125: 179.23 | E125: 178.9 | G125: 347 | H125: 166.1 | I125: 347 | J125: 166.6 | K125: -0.5
A126: 2016-09-14T20:42:46 | B126: 380 | C126: 369 | D126: 180.47 | E126: 180.15 | G126: 350 | H126: 167.4 | I126: 350 | J126: 167.8 | K126: -0.5
A127: 2016-09-14T20:45:46 | B127: 383 | C127: 372 | D127: 181.75 | E127: 181.45 | G127: 353 | H127: 168.6 | I127: 353 | J127: 169.0 | K127: -0.5
A128: 2016-09-14T20:48:46 | B128: 386 | C128: 375 | D128: 183.03 | E128: 182.74 | G128: 356 | H128: 169.9 | I128: 356 | J128: 170.3 | K128: -0.4
A129: 2016-09-14T20:51:46 | B129: 389 | C129: 378 | D129: 184.24 | E129: 183.95 | G129: 359 | H129: 171.2 | I129: 359 | J129: 171.7 | K129: -0.4
A130: 2016-09-14T20:54:46 | B130: 392 | C130: 381 | D130: 185.43 | E130: 185.17 | G130: 362 | H130: 172.5 | I130: 362 | J130: 173.0 | K130: -0.4
A131: =$I$2+(C131/1440) -> 2016-09-14T20:57:46 | B131: 395 | C131: 384 | D131: 186.74 | E131: 186.48 | G131: 365 | H131: 173.8 | I131: 365 | J131: 174.2 | K131: -0.4
A132: 2016-09-14T21:00:46 | B132: =C132+11 -> 398 | C132: 387 | D132: 187.97 | E132: 187.73 | G132: 368 | H132: 175.1 | I132: 368 | J132: 175.5 | K132: -0.4
A133: 2016-09-14T21:03:46 | B133: 401 | C133: 390 | D133: 189.22 | E133: 188.99 | G133: 371 | H133: 176.3 | I133: 371 | J133: 176.7 | K133: -0.4
A134: 2016-09-14T21:06:46 | B134: 404 | C134: 393 | D134: 190.45 | E134: 190.23 | G134: 374 | H134: 177.6 | I134: 374 | J134: 178.0 | K134: -0.3
A135: 2016-09-14T21:09:46 | B135: 407 | C135: 396 | D135: 191.69 | E135: 191.49 | G135: 377 | H135: 178.9 | I135: 377 | J135: 179.3 | K135: -0.3
A136: 2016-09-14T21:12:46 | B136: 410 | C136: 399 | D136: 192.98 | E136: 192.78 | G136: 380 | H136: 180.2 | I136: 380 | J136: 180.5 | K136: -0.3
A137: 2016-09-14T21:15:46 | B137: 413 | C137: 402 | D137: 194.15 | E137: 193.98 | G137: 383 | H137: 181.5 | I137: 383 | J137: 181.8 | K137: -0.3
A138: 2016-09-14T21:18:46 | B138: 416 | C138: 405 | D138: 195.41 | E138: 195.25 | G138: 386 | H138: 182.8 | I138: 386 | J138: 183.1 | K138: -0.3
A139: 2016-09-14T21:21:46 | B139: 419 | C139: 408 | D139: 196.62 | E139: 196.46 | G139: 389 | H139: 184.0 | I139: 389 | J139: 184.3 | K139: -0.3
A140: 2016-09-14T21:24:46 | B140: 422 | C140: 411 | D140: 197.92 | E140: 197.78 | G140: 392 | H140: 185.2 | I140: 392 | J140: 185.5 | K140: -0.3
A141: 2016-09-14T21:27:46 | B141: 425 | C141: 414 | D141: 199.19 | E141: 199.04 | G141: 395 | H141: =E131+($G$2*(E132-E131)) -> 186.5 | I141: 395 | J141: =D131+($G$2*(D132-D131)) -> 186.8 | K141: =H141-J141 -> -0.3
A142: 2016-09-14T21:30:46 | B142: 428 | C142: 417 | D142: 200.35 | E142: 200.22 | G142: =((A132-$A$3)*1440)+11 -> 398 | H142: 187.8 | I142: =((A132-$A$3)*1440)+11 -> 398 | J142: 188.0 | K142: -0.2
A143: 2016-09-14T21:33:46 | B143: 431 | C143: 420 | D143: 201.61 | E143: 201.5 | G143: 401 | H143: 189.0 | I143: 401 | J143: 189.3 | K143: -0.2
A144: 2016-09-14T21:36:46 | B144: 434 | C144: 423 | D144: 202.9 | E144: 202.79 | G144: 404 | H144: 190.3 | I144: 404 | J144: 190.5 | K144: -0.2
A145: 2016-09-14T21:39:46 | B145: 437 | C145: 426 | D145: 204.13 | E145: 204.03 | G145: 407 | H145: 191.5 | I145: 407 | J145: 191.7 | K145: -0.2
A146: 2016-09-14T21:42:46 | B146: 440 | C146: 429 | D146: 205.35 | E146: 205.26 | G146: 410 | H146: 192.8 | I146: 410 | J146: 193.0 | K146: -0.2
A147: 2016-09-14T21:45:46 | B147: 443 | C147: 432 | D147: 206.63 | E147: 206.55 | G147: 413 | H147: 194.0 | I147: 413 | J147: 194.2 | K147: -0.2
A148: 2016-09-14T21:48:46 | B148: 446 | C148: 435 | D148: 207.87 | E148: 207.8 | G148: 416 | H148: 195.3 | I148: 416 | J148: 195.4 | K148: -0.2
A149: 2016-09-14T21:51:46 | B149: 449 | C149: 438 | D149: 209.11 | E149: 209.05 | G149: 419 | H149: 196.5 | I149: 419 | J149: 196.7 | K149: -0.2
A150: 2016-09-14T21:54:46 | B150: 452 | C150: 441 | D150: 210.41 | E150: 210.35 | G150: 422 | H150: 197.8 | I150: 422 | J150: 198.0 | K150: -0.1
A151: 2016-09-14T21:57:46 | B151: 455 | C151: 444 | D151: 211.57 | E151: 211.52 | G151: 425 | H151: 199.1 | I151: 425 | J151: 199.2 | K151: -0.1
A152: 2016-09-14T22:00:46 | B152: 458 | C152: 447 | D152: 212.61 | E152: 212.57 | G152: 428 | H152: 200.3 | I152: 428 | J152: 200.4 | K152: -0.1
A153: 2016-09-14T22:03:46 | B153: 461 | C153: 450 | D153: 213.77 | E153: 213.75 | G153: 431 | H153: 201.5 | I153: 431 | J153: 201.6 | K153: -0.1
A154: 2016-09-14T22:06:46 | B154: 464 | C154: 453 | D154: 215.05 | E154: 215.04 | G154: 434 | H154: 202.8 | I154: 434 | J154: 202.9 | K154: -0.1
A155: 2016-09-14T22:09:46 | B155: 467 | C155: 456 | D155: 216.41 | E155: 216.4 | G155: 437 | H155: 204.1 | I155: 437 | J155: 204.2 | K155: -0.1
A156: 2016-09-14T22:12:46 | B156: 470 | C156: 459 | D156: 217.72 | E156: 217.72 | G156: 440 | H156: 205.3 | I156: 440 | J156: 205.4 | K156: -0.1
A157: 2016-09-14T22:15:46 | B157: 473 | C157: 462 | D157: 218.96 | E157: 218.97 | G157: 443 | H157: 206.6 | I157: 443 | J157: 206.7 | K157: -0.1
A158: 2016-09-14T22:18:46 | B158: 476 | C158: 465 | D158: 220.21 | E158: 220.24 | G158: 446 | H158: 207.8 | I158: 446 | J158: 207.9 | K158: -0.1
A159: 2016-09-14T22:21:46 | B159: 479 | C159: 468 | D159: 221.49 | E159: 221.51 | G159: 449 | H159: 209.1 | I159: 449 | J159: 209.1 | K159: -0.1
A160: 2016-09-14T22:24:46 | B160: 482 | C160: 471 | D160: 222.75 | E160: 222.78 | G160: 452 | H160: 210.4 | I160: 452 | J160: 210.4 | K160: -0.1
A161: 2016-09-14T22:27:46 | B161: 485 | C161: 474 | D161: 223.92 | E161: 223.96 | G161: 455 | H161: 211.5 | I161: 455 | J161: 211.6 | K161: -0.0
A162: 2016-09-14T22:30:46 | B162: 488 | C162: 477 | D162: 225.16 | E162: 225.22 | G162: 458 | H162: 212.6 | I162: 458 | J162: 212.6 | K162: -0.0
A163: 2016-09-14T22:33:46 | B163: 491 | C163: 480 | D163: 226.5 | E163: 226.56 | G163: 461 | H163: 213.8 | I163: 461 | J163: 213.8 | K163: -0.0
A164: 2016-09-14T22:36:46 | B164: 494 | C164: 483 | D164: 227.72 | E164: 227.78 | G164: 464 | H164: 215.1 | I164: 464 | J164: 215.1 | K164: -0.0
A165: 2016-09-14T22:39:46 | B165: 497 | C165: 486 | D165: 228.95 | E165: 229.02 | G165: 467 | H165: 216.4 | I165: 467 | J165: 216.4 | K165: -0.0
A166: 2016-09-14T22:42:46 | B166: 500 | C166: 489 | D166: 230.25 | E166: 230.34 | G166: 470 | H166: 217.8 | I166: 470 | J166: 217.8 | K166: 0.0
A167: 2016-09-14T22:45:46 | B167: 503 | C167: 492 | D167: 231.48 | E167: 231.56 | G167: 473 | H167: 219.0 | I167: 473 | J167: 219.0 | K167: 0.0
A168: 2016-09-14T22:48:46 | B168: 506 | C168: 495 | D168: 232.61 | E168: 232.72 | G168: 476 | H168: 220.3 | I168: 476 | J168: 220.2 | K168: 0.0
A169: 2016-09-14T22:51:46 | B169: 509 | C169: 498 | D169: 233.85 | E169: 233.96 | G169: 479 | H169: 221.5 | I169: 479 | J169: 221.5 | K169: 0.0
A170: 2016-09-14T22:54:46 | B170: 512 | C170: 501 | D170: 235.03 | E170: 235.15 | G170: 482 | H170: 222.8 | I170: 482 | J170: 222.8 | K170: 0.0
A171: 2016-09-14T22:57:46 | B171: 515 | C171: 504 | D171: 236.21 | E171: 236.35 | G171: 485 | H171: 224.0 | I171: 485 | J171: 224.0 | K171: 0.0
A172: 2016-09-14T23:00:46 | B172: 518 | C172: 507 | D172: 237.54 | E172: 237.68 | G172: 488 | H172: 225.3 | I172: 488 | J172: 225.2 | K172: 0.1
A173: 2016-09-14T23:03:46 | B173: 521 | C173: 510 | D173: 238.79 | E173: 238.95 | G173: 491 | H173: 226.6 | I173: 491 | J173: 226.5 | K173: 0.1
A174: 2016-09-14T23:06:46 | B174: 524 | C174: 513 | D174: 240.16 | E174: 240.31 | G174: 494 | H174: 227.8 | I174: 494 | J174: 227.8 | K174: 0.1
A175: 2016-09-14T23:09:46 | B175: 527 | C175: 516 | D175: 241.31 | E175: 241.47 | G175: 497 | H175: 229.1 | I175: 497 | J175: 229.0 | K175: 0.1
A176: 2016-09-14T23:12:46 | B176: 530 | C176: 519 | D176: 242.49 | E176: 242.67 | G176: 500 | H176: 230.4 | I176: 500 | J176: 230.3 | K176: 0.1
A177: 2016-09-14T23:15:46 | B177: 533 | C177: 522 | D177: 243.72 | E177: 243.9 | G177: 503 | H177: 231.6 | I177: 503 | J177: 231.5 | K177: 0.1
A178: 2016-09-14T23:18:46 | B178: 536 | C178: 525 | D178: 244.97 | E178: 245.17 | G178: 506 | H178: 232.8 | I178: 506 | J178: 232.6 | K178: 0.1
A179: 2016-09-14T23:21:46 | B179: 539 | C179: 528 | D179: 246.24 | E179: 246.43 | G179: 509 | H179: 234.0 | I179: 509 | J179: 233.9 | K179: 0.1
A180: 2016-09-14T23:24:46 | B180: 542 | C180: 531 | D180: 247.38 | E180: 247.59 | G180: 512 | H180: 235.2 | I180: 512 | J180: 235.1 | K180: 0.1
A181: 2016-09-14T23:27:46 | B181: 545 | C181: 534 | D181: 248.58 | E181: 248.8 | G181: 515 | H181: 236.4 | I181: 515 | J181: 236.2 | K181: 0.1
A182: 2016-09-14T23:30:46 | B182: 548 | C182: 537 | D182: 249.84 | E182: 250.06 | G182: 518 | H182: 237.7 | I182: 518 | J182: 237.6 | K182: 0.1
A183: 2016-09-14T23:33:46 | B183: 551 | C183: 540 | D183: 251.1 | E183: 251.32 | G183: 521 | H183: 239.0 | I183: 521 | J183: 238.8 | K183: 0.2
A184: 2016-09-14T23:36:46 | B184: 554 | C184: 543 | D184: 252.31 | E184: 252.54 | G184: 524 | H184: 240.3 | I184: 524 | J184: 240.2 | K184: 0.2
A185: 2016-09-14T23:39:46 | B185: 557 | C185: 546 | D185: 253.53 | E185: 253.76 | G185: 527 | H185: 241.5 | I185: 527 | J185: 241.3 | K185: 0.2
A186: 2016-09-14T23:42:46 | B186: 560 | C186: 549 | D186: 254.75 | E186: 254.98 | G186: 530 | H186: 242.7 | I186: 530 | J186: 242.5 | K186: 0.2
A187: 2016-09-14T23:45:46 | B187: 563 | C187: 552 | D187: 255.95 | E187: 256.2 | G187: 533 | H187: 243.9 | I187: 533 | J187: 243.8 | K187: 0.2
A188: 2016-09-14T23:48:46 | B188: 566 | C188: 555 | D188: 257.28 | E188: 257.54 | G188: 536 | H188: 245.2 | I188: 536 | J188: 245.0 | K188: 0.2
A189: 2016-09-14T23:51:46 | B189: 569 | C189: 558 | D189: 258.6 | E189: 258.85 | G189: 539 | H189: 246.5 | I189: 539 | J189: 246.3 | K189: 0.2
A190: 2016-09-14T23:54:46 | B190: 572 | C190: 561 | D190: 259.74 | E190: 260.01 | G190: 542 | H190: 247.6 | I190: 542 | J190: 247.4 | K190: 0.2
A191: 2016-09-14T23:57:46 | B191: 575 | C191: 564 | D191: 260.86 | E191: 261.13 | G191: 545 | H191: 248.8 | I191: 545 | J191: 248.6 | K191: 0.2
A192: 2016-09-15T00:00:46 | B192: 578 | C192: 567 | D192: 262.04 | E192: 262.32 | G192: 548 | H192: 250.1 | I192: 548 | J192: 249.9 | K192: 0.2
A193: 2016-09-15T00:03:46 | B193: 581 | C193: 570 | D193: 263.23 | E193: 263.52 | G193: 551 | H193: 251.4 | I193: 551 | J193: 251.1 | K193: 0.2
A194: 2016-09-15T00:06:46 | B194: 584 | C194: 573 | D194: 264.57 | E194: 264.86 | G194: 554 | H194: 252.6 | I194: 554 | J194: 252.3 | K194: 0.2
A195: =$I$2+(C195/1440) -> 2016-09-15T00:09:46 | B195: 587 | C195: 576 | D195: 265.77 | E195: 266.07 | G195: 557 | H195: 253.8 | I195: 557 | J195: 253.6 | K195: 0.2
A196: 2016-09-15T00:12:46 | B196: =C196+11 -> 590 | C196: 579 | D196: 267.06 | E196: 267.37 | G196: 560 | H196: 255.0 | I196: 560 | J196: 254.8 | K196: 0.2
A197: 2016-09-15T00:15:46 | B197: 593 | C197: 582 | D197: 268.27 | E197: 268.56 | G197: 563 | H197: 256.2 | I197: 563 | J197: 256.0 | K197: 0.3
A198: 2016-09-15T00:18:46 | B198: 596 | C198: 585 | D198: 269.14 | E198: 269.46 | G198: 566 | H198: 257.6 | I198: 566 | J198: 257.3 | K198: 0.3
A199: 2016-09-15T00:21:46 | B199: 599 | C199: 588 | D199: 270.31 | E199: 270.63 | G199: 569 | H199: 258.9 | I199: 569 | J199: 258.6 | K199: 0.3
A200: 2016-09-15T00:24:46 | B200: 602 | C200: 591 | D200: 271.51 | E200: 271.84 | G200: 572 | H200: 260.0 | I200: 572 | J200: 259.8 | K200: 0.3
... 409 more rows

Sheet Washer control
A1: STD H | B1: STD area | C1: sample weight | E1: Sum | F1: injection time
A2: 60.7 | B2: 6285 | C2: 12.900 | D2: =SUM(J7:J103) -> 0.1703 | E2: =SUM(J7:J268)+SUM('Raceway 2 blank (2)'!K7:K159) -> 0.324 | F2: 2016-09-14T14:33:51
D3: =SUM(J51:J124) -> 0.17 | F3: 2016-09-15T04:21:06
A4: row number of max temperature | D4: 209
A6: Actual Time/min | B6: Calibrated Temp °C | C6: Time/min | F6: Area | I6: ppm/min | J6: ppm
A7: 1 | B7: 36.84972222 | C7: 46.98706055 | D7: BB | E7: 0.09440566599 | F7: 140.5523224 | G7: 24.69332886 | H7: 0.1256471424 | I7: =$A$2*10^(-6)*F7/$B$2*7.45*10^(-6)*10^6/$C$2*2*60 -> 9.407421987e-05 | J7: =I7*3 -> 0.0002822226596
A8: 2 | B8: 48.84583333 | C8: 73.90891266 | D8: BV | E8: 0.08255117387 | F8: 79.73130798 | G8: 15.88693237 | H8: 0.07127602617 | I8: 5.336561126e-05 | J8: 0.0001600968338 | U8: =25/60 -> 0.4166666667 | V8: =U8*350 -> 145.8333333
A9: 3 | B9: 81.055 | C9: 148.9849091 | D9: BB | E9: 0.07869347185 | F9: 114.4562378 | G9: 24.41466331 | H9: 0.1023184745 | I9: 7.660763691e-05 | J9: 0.0002298229107
A10: 4 | B10: 119.4558333 | C10: 238.9099884 | D10: BB | E10: 0.072378546 | F10: 73.67788696 | G10: 16.965868 | H10: 0.06586455349 | I10: 4.931394672e-05 | J10: 0.0001479418402
A11: 5 | B11: 140.2375 | C11: 286.933075 | D11: BB | E11: 0.08337023854 | F11: 106.0559692 | G11: 18.3659668 | H11: 0.09480903086 | I11: 7.098518473e-05 | J11: 0.0002129555542
A12: 6 | B12: 154.5044444 | C12: 319.8777466 | D12: BV | E12: 0.06086381897 | F12: 87.84312439 | G12: 20.9733181 | H12: 0.07852760718 | I12: 5.879499718e-05 | J12: 0.0001763849915
A13: 7 | B13: 154.5044444 | C13: 319.9998474 | D13: VB | E13: 0.06065541133 | F13: 82.52523041 | G13: 18.28481293 | H13: 0.07377366095 | I13: 5.523563423e-05 | J13: 0.0001657069027
A14: 8 | B14: 173.8255556 | C14: 364.9473877 | D14: BB | E14: 0.09476067871 | F14: 124.6226807 | G14: 18.46011734 | H14: 0.1114067946 | I14: 8.34122216e-05 | J14: 0.0002502366648
A15: 9 | B15: 176.3458333 | C15: 370.9212341 | D15: BB | E15: 0.1056972668 | F15: 121.5138702 | G15: 16.54267311 | H15: 0.1086276648 | I15: 8.133143837e-05 | J15: 0.0002439943151
A16: 10 | B16: 177.6361111 | C16: 373.9332275 | D16: BB | E16: 0.06752184033 | F16: 80.40506744 | G16: 16.89531708 | H16: 0.07187833533 | I16: 5.381657069e-05 | J16: 0.0001614497121
A17: 11 | B17: 183.9838889 | C17: 388.9231873 | D17: BB | E17: 0.07213171571 | F17: 136.7820435 | G17: 24.88301659 | H17: 0.122276691 | I17: 9.155070377e-05 | J17: 0.0002746521113
A18: 12 | B18: 185.2063889 | C18: 391.9344788 | D18: BB | E18: 0.06538059562 | F18: 81.49578094 | G18: 17.81141853 | H18: 0.07285338172 | I18: 5.454660503e-05 | J18: 0.0001636398151
A19: 13 | B19: 186.5147222 | C19: 394.9416809 | D19: BB | E19: 0.09351614863 | F19: 107.5253143 | G19: 15.38912201 | H19: 0.09612255602 | I19: 7.196864406e-05 | J19: 0.0002159059322
A20: 14 | B20: 187.765 | C20: 397.9128723 | D20: BB | E20: 0.08454009891 | F20: 134.5846558 | G20: 20.51414108 | H20: 0.1203123301 | I20: 9.007995231e-05 | J20: 0.0002702398569
A21: 15 | B21: 189.0244444 | C21: 400.9380493 | D21: BB | E21: 0.08904651552 | F21: 187.7965393 | G21: 33.68296814 | H21: 0.1678812425 | I21: 0.0001256956316 | J21: 0.0003770868947
A22: 16 | B22: 190.265 | C22: 403.9031067 | D22: BB | E22: 0.07795608044 | F22: 129.2785797 | G22: 22.86749077 | H22: 0.1155689486 | I22: 8.652849932e-05 | J22: 0.000259585498
A23: 17 | B23: 191.5258333 | C23: 406.9440002 | D23: BB | E23: 0.08303437382 | F23: 135.8349304 | G23: 23.64072037 | H23: 0.1214300166 | I23: 9.091678382e-05 | J23: 0.0002727503515
A24: 18 | B24: 192.8133333 | C24: 409.9370728 | D24: BB | E24: 0.08194049448 | F24: 181.3977051 | G24: 34.16676712 | H24: 0.1621609867 | I24: 0.0001214127757 | J24: 0.0003642383271
A25: 19 | B25: 194.0152778 | C25: 412.9299316 | D25: BB | E25: 0.08103146404 | F25: 193.3128662 | G25: 34.68039322 | H25: 0.1728125784 | I25: 0.0001293878093 | J25: 0.0003881634278
A26: 20 | B26: 195.2836111 | C26: 415.9241333 | D26: BB | E26: 0.07798559964 | F26: 217.7225037 | G26: 36.29454803 | H26: 0.1946336422 | I26: 0.0001457256225 | J26: 0.0004371768676
A27: 21 | B27: 196.4966667 | C27: 418.935791 | D27: BB | E27: 0.08887533098 | F27: 282.798584 | G27: 47.90273666 | H27: 0.2528085865 | I27: 0.000189282224 | J27: 0.000567846672
A28: 22 | B28: 197.815 | C28: 421.9274292 | D28: BB | E28: 0.08181255311 | F28: 224.6373444 | G28: 42.39865494 | H28: 0.2008151834 | I28: 0.0001503538509 | J28: 0.0004510615527
A29: 23 | B29: 199.0727778 | C29: 424.9341736 | D29: BB | E29: 0.07706876844 | F29: 239.9120026 | G29: 45.83313751 | H29: 0.2144700069 | I29: 0.0001605774568 | J29: 0.0004817323705
A30: 24 | B30: 200.2555556 | C30: 427.9356079 | D30: BB | E30: 0.08769888431 | F30: 307.0579834 | G30: 56.23871231 | H30: 0.2744953446 | I30: 0.0002055194802 | J30: 0.0006165584407
A31: 25 | B31: 201.5358333 | C31: 430.9301147 | D31: BB | E31: 0.08623874187 | F31: 345.5254822 | G31: 60.85759354 | H31: 0.3088834729 | I31: 0.0002312664752 | J31: 0.0006937994256
A32: 26 | B32: 202.8244444 | C32: 433.9306946 | D32: BB | E32: 0.08513718098 | F32: 326.3741455 | G32: 62.2812233 | H32: 0.2917630818 | I32: 0.0002184481381 | J32: 0.0006553444142
A33: 27 | B33: 204.0641667 | C33: 436.9339905 | D33: BB | E33: 0.0921529755 | F33: 367.8916016 | G33: 62.97698212 | H33: 0.328877728 | I33: 0.0002462365248 | J33: 0.0007387095743
A34: 28 | B34: 205.2958333 | C34: 439.9344177 | D34: BB | E34: 0.08576019108 | F34: 459.1671448 | G34: 81.4618988 | H34: 0.4104737556 | I34: 0.0003073289022 | J34: 0.0009219867065
A35: 29 | B35: 206.5847222 | C35: 442.9297791 | D35: BB | E35: 0.09005289525 | F35: 411.8118286 | G35: 77.42542267 | H35: 0.368140338 | I35: 0.0002756331297 | J35: 0.0008268993892
A36: 30 | B36: 207.8347222 | C36: 445.9356384 | D36: BB | E36: 0.07684185356 | F36: 460.9268188 | G36: 88.38454437 | H36: 0.4120468212 | I36: 0.0003085066839 | J36: 0.0009255200518
A37: 31 | B37: 209.0861111 | C37: 448.93573 | D37: BB | E37: 0.08808436245 | F37: 533.0114136 | G37: 91.33473206 | H37: 0.4764870466 | I37: 0.0003567542113 | J37: 0.001070262634
A38: 32 | B38: 210.3825 | C38: 451.9350281 | D38: BB | E38: 0.08090346307 | F38: 496.505127 | G38: 95.11051178 | H38: 0.4438521494 | I38: 0.0003323198912 | J38: 0.0009969596735
A39: 33 | B39: 211.5491667 | C39: 454.9343872 | D39: BB | E39: 0.08998331428 | F39: 576.882019 | G39: 101.9998779 | H39: 0.5157052973 | I39: =$A$2*10^(-6)*F39/$B$2*7.45*10^(-6)*10^6/$C$2*2*60 -> 0.0003861176036 | J39: 0.001158352811
A40: 34 | B40: 212.6027778 | C40: 457.9331055 | D40: BB | E40: 0.0811452046 | F40: 622.9464111 | G40: 111.561676 | H40: 0.5568846897 | I40: 0.0004169493371 | J40: 0.001250848011
A41: 35 | B41: 213.7858333 | C41: 460.9353333 | D41: BB | E41: 0.08461724222 | F41: 639.6798706 | G41: 115.4944305 | H41: 0.5718436126 | I41: 0.0004281493452 | J41: 0.001284448036
A42: 36 | B42: 215.0777778 | C42: 463.9344482 | D42: BB | E42: 0.09178699553 | F42: 741.0534668 | G42: 127.5410385 | H42: 0.662466823 | I42: 0.0004960005327 | J42: 0.001488001598
A43: 37 | B43: 216.4366667 | C43: 466.9346619 | D43: BB | E43: 0.08708141744 | F43: 681.2138062 | G43: 125.9878845 | H43: 0.6089729907 | I43: 0.0004559487619 | J43: 0.001367846286
A44: 38 | B44: 217.7547222 | C44: 469.935791 | D44: BB | E44: 0.07867978513 | F44: 660.8604126 | G44: 131.3917236 | H44: 0.5907780175 | I44: 0.0004423258663 | J44: 0.001326977599
A45: 39 | B45: 219.0052778 | C45: 472.9333801 | D45: BB | E45: 0.07959124446 | F45: 716.5324097 | G45: 140.2814331 | H45: 0.6405461553 | I45: 0.0004795881442 | J45: 0.001438764432
A46: 40 | B46: 220.2752778 | C46: 475.9333496 | D46: BB | E46: 0.08413515985 | F46: 761.7736206 | G46: 147.7897339 | H46: 0.6809896625 | I46: 0.0005098689076 | J46: 0.001529606723
A47: 41 | B47: 221.5452778 | C47: 478.9313049 | D47: BB | E47: 0.08078192919 | F47: 802.277832 | G47: 153.9916229 | H47: 0.7171985158 | I47: 0.0005369791113 | J47: 0.001610937334
A48: 42 | B48: 222.8127778 | C48: 481.9320679 | D48: BB | E48: 0.091957286 | F48: 898.8221436 | G48: 154.3066101 | H48: 0.8035045736 | I48: 0.0006015979709 | J48: 0.001804793913
A49: 43 | B49: 223.995 | C49: 484.9322205 | D49: BB | E49: 0.09062173218 | F49: 943.1090088 | G49: 165.1554108 | H49: 0.8430949409 | I49: 0.0006312399735 | J49: 0.00189371992
A50: 44 | B50: 225.2572222 | C50: 487.9317017 | D50: BB | E50: 0.08914284408 | F50: 969.6768799 | G50: 173.6629333 | H50: 0.8668453637 | I50: 0.0006490223317 | J50: 0.001947066995
A51: 45 | B51: 226.5938889 | C51: 490.9341431 | D51: BB | E51: 0.08728437871 | F51: 994.1705322 | G51: 183.2783508 | H51: 0.8887415328 | I51: 0.0006654163777 | J51: 0.001996249133
A52: 46 | B52: 227.8144444 | C52: 493.934021 | D52: BB | E52: 0.08888286352 | F52: 1014.070923 | G52: 182.3413239 | H52: 0.9065315428 | I52: 0.0006787360702 | J52: 0.002036208211
A53: 47 | B53: 229.0566667 | C53: 496.9328003 | D53: BB | E53: 0.08488694578 | F53: 981.4680176 | G53: 188.0610046 | H53: 0.8773860843 | I53: 0.0006569143541 | J53: 0.001970743062
A54: 48 | B54: 230.3738889 | C54: 499.9326172 | D54: BB | E54: 0.08537097275 | F54: 1010.450928 | G54: 192.0874634 | H54: 0.903295438 | I54: 0.0006763131418 | J54: 0.002028939425
A55: 49 | B55: 231.5922222 | C55: 502.9332581 | D55: BB | E55: 0.08542270958 | F55: 1043.699097 | G55: 198.2408447 | H55: 0.9330177318 | I55: 0.0006985667446 | J55: 0.002095700234
A56: 50 | B56: 232.7544444 | C56: 505.9336243 | D56: BB | E56: 0.08550880849 | F56: 1073.080566 | G56: 203.5362854 | H56: 0.959283379 | I56: 0.0007182322955 | J56: 0.002154696886
A57: 51 | B57: 233.9930556 | C57: 508.9346008 | D57: BB | E57: 0.08376972377 | F57: 1080.457397 | G57: 210.8983459 | H57: 0.9658779178 | I57: 0.0007231697424 | J57: 0.002169509227
A58: 52 | B58: 235.1833333 | C58: 511.9324341 | D58: BB | E58: 0.08763191104 | F58: 1127.03772 | G58: 206.6380463 | H58: 1.007518527 | I58: 0.0007543467973 | J58: 0.002263040392
A59: 53 | B59: 236.3869444 | C59: 514.9338989 | D59: BB | E59: 0.08754044771 | F59: 1193.941895 | G59: 219.2197723 | H59: 1.067327702 | I59: 0.0007991269756 | J59: 0.002397380927
A60: 54 | B60: 237.7152778 | C60: 517.9343262 | D60: BB | E60: 0.08394079655 | F60: 1169.074463 | G60: 227.5445709 | H60: 1.045097392 | I60: 0.0007824827523 | J60: 0.002347448257
A61: 55 | B61: 238.9877778 | C61: 520.9329834 | D61: BB | E61: 0.08762891591 | F61: 1259.654297 | G61: 230.9636536 | H61: 1.126071488 | I61: 0.0008431094789 | J61: 0.002529328437
A62: 56 | B62: 240.3422222 | C62: 523.9342651 | D62: BB | E62: 0.08284435421 | F62: 1144.001953 | G62: 226.8134308 | H62: 1.022683751 | I62: 0.0007657012666 | J62: 0.0022971038
A63: 57 | B63: 241.5033333 | C63: 526.9335938 | D63: BB | E63: 0.08659841865 | F63: 1277.755005 | G63: 238.1392822 | H63: 1.142252667 | I63: 0.0008552246112 | J63: 0.002565673834
A64: 58 | B64: 242.7041667 | C64: 529.9328613 | D64: BB | E64: 0.08514342457 | F64: 1268.496826 | G64: 242.0396118 | H64: 1.133976292 | I64: 0.0008490279442 | J64: 0.002547083833
A65: 59 | B65: 243.9352778 | C65: 532.9329224 | D65: BB | E65: 0.08429963887 | F65: 1251.4021 | G65: 242.1190491 | H65: 1.118694413 | I65: 0.0008375861335 | J65: 0.002512758401
A66: 60 | B66: 245.205 | C66: 535.9349976 | D66: BB | E66: 0.08578044176 | F66: 1311.270142 | G66: 247.6212769 | H66: 1.172213617 | I66: 0.0008776569004 | J66: 0.002632970701
A67: 61 | B67: 246.4622222 | C67: 538.9337769 | D67: BB | E67: 0.0825573504 | F67: 1375.855347 | G67: 256.5908813 | H67: 1.229949742 | I67: 0.0009208849501 | J67: 0.00276265485
A68: 62 | B68: 247.6236111 | C68: 541.934082 | D68: BB | E68: 0.08628238738 | F68: 1372.147827 | G68: 257.0291748 | H68: 1.226635395 | I68: 0.00091840344 | J68: 0.00275521032
A69: 63 | B69: 248.835 | C69: 544.9334106 | D69: BB | E69: 0.08665867895 | F69: 1402.669434 | G69: 261.1685486 | H69: 1.25392027 | I69: 0.0009388321051 | J69: 0.002816496315
A70: 64 | B70: 250.095 | C70: 547.9335938 | D70: BB | E70: 0.08432988822 | F70: 1334.117432 | G70: 257.9932251 | H70: 1.192638016 | I70: 0.0008929490062 | J70: 0.002678847019
A71: 65 | B71: 251.3538889 | C71: 550.9329224 | D71: BB | E71: 0.08703191578 | F71: 1433.35437 | G71: 265.3016052 | H71: 1.281351155 | I71: =$A$2*10^(-6)*F71/$B$2*7.45*10^(-6)*10^6/$C$2*2*60 -> 0.0009593700899 | J71: =I71*3 -> 0.00287811027
A72: 66 | B72: 252.5738889 | C72: 553.9327393 | D72: BB | E72: 0.08674217761 | F72: 1463.258423 | G72: 272.0872803 | H72: 1.308083967 | I72: 0.0009793854151 | J72: 0.002938156245
A73: 67 | B73: 253.7938889 | C73: 556.93396 | D73: BB | E73: 0.08677501976 | F73: 1421.227417 | G73: 264.1335144 | H73: 1.270510232 | I73: 0.0009512533001 | J73: 0.0028537599
A74: 68 | B74: 255.0138889 | C74: 559.9329834 | D74: BB | E74: 0.08372908086 | F74: 1378.894165 | G74: 269.3344421 | H74: 1.232666302 | I74: 0.0009229188864 | J74: 0.002768756659
A75: 69 | B75: 256.2372222 | C75: 562.9334717 | D75: BB | E75: 0.08483545482 | F75: 1390.015747 | G75: 266.5690613 | H75: 1.242608472 | I75: 0.0009303627631 | J75: 0.002791088289
A76: 70 | B76: 257.5763889 | C76: 565.9347534 | D76: BB | E76: 0.08702781051 | F76: 1480.132568 | G76: 273.9776917 | H76: 1.323168657 | I76: 0.0009906795869 | J76: 0.002972038761
A77: 71 | B77: 258.8822222 | C77: 568.9328613 | D77: BB | E77: 0.08607730269 | F77: 1449.467285 | G77: 272.4095764 | H77: 1.295755341 | I77: 0.0009701547563 | J77: 0.002910464269
A78: 72 | B78: 260.0411111 | C78: 571.9345703 | D78: BB | E78: 0.08642227948 | F78: 1503.142578 | G78: 280.9359741 | H78: 1.343738519 | I78: 0.001006080604 | J78: 0.003018241812
A79: 73 | B79: 261.1630556 | C79: 574.9338989 | D79: BB | E79: 0.08561512083 | F79: 1493.32251 | G79: 282.7568359 | H79: 1.334959842 | I79: 0.000999507854 | J79: 0.002998523562
A80: 74 | B80: 262.3533333 | C80: 577.9342651 | D80: BB | E80: 0.08514170349 | F80: 1465.004761 | G80: 279.5427856 | H80: 1.309645111 | I80: 0.0009805542707 | J80: 0.002941662812
A81: 75 | B81: 263.5572222 | C81: 580.9338989 | D81: BB | E81: 0.08074954152 | F81: 1486.822754 | G81: 285.537384 | H81: 1.329149367 | I81: 0.0009951574494 | J81: 0.002985472348
A82: 76 | B82: 264.8936111 | C82: 583.9330444 | D82: BB | E82: 0.08393847197 | F82: 1443.808105 | G82: 281.028656 | H82: 1.290696301 | I82: 0.0009663669647 | J82: 0.002899100894
A83: 77 | B83: 266.1061111 | C83: 586.9331055 | D83: BB | E83: 0.08439095318 | F83: 1433.57312 | G83: 276.9457703 | H83: 1.281546707 | I83: 0.0009595165033 | J83: 0.00287854951
A84: 78 | B84: 267.4030556 | C84: 589.9333496 | D84: BB | E84: 0.08360721171 | F84: 1367.860107 | G84: 267.7254639 | H84: 1.222802376 | I84: 0.0009155335914 | J84: 0.002746600774
A85: 79 | B85: 268.585 | C85: 592.9337769 | D85: BB | E85: 0.0853266418 | F85: 1416.950073 | G85: 269.5579834 | H85: 1.266686488 | I85: 0.0009483903963 | J85: 0.002845171189
A86: 80 | B86: 269.4925 | C86: 595.9336548 | D86: BB | E86: 0.08606100827 | F86: 1521.738159 | G86: 286.0670776 | H86: 1.360362091 | I86: 0.001018526964 | J86: 0.003055580891
A87: 81 | B87: 270.6636111 | C87: 598.9332886 | D87: BB | E87: 0.08541999012 | F87: 1459.860352 | G87: 277.2990417 | H87: 1.305046252 | I87: 0.0009771110243 | J87: 0.002931333073
A88: 82 | B88: 271.8788889 | C88: 601.9347534 | D88: BB | E88: 0.08627656102 | F88: 1455.713135 | G88: 272.7080383 | H88: 1.301338836 | I88: 0.0009743352168 | J88: 0.00292300565
A89: 83 | B89: 273.2766667 | C89: 604.9336548 | D89: BB | E89: 0.08387161046 | F89: 1373.97937 | G89: 267.7355652 | H89: 1.228272708 | I89: 0.000919629325 | J89: 0.002758887975
A90: 84 | B90: 274.595 | C90: 607.9335327 | D90: BB | E90: 0.08632906526 | F90: 1431.317383 | G90: 267.9119873 | H90: 1.279530185 | I90: 0.0009580066974 | J90: 0.002874020092
A91: 85 | B91: 275.8541667 | C91: 610.9326172 | D91: BBA | E91: 0.08419338614 | F91: 1350.389404 | G91: 261.7321472 | H91: 1.207184392 | I91: 0.0009038401328 | J91: 0.002711520398
A92: 86 | B92: 277.0844444 | C92: 613.9343872 | D92: BB | E92: 0.08124553412 | F92: 1384.073608 | G92: 263.6522827 | H92: 1.23729648 | I92: 0.0009263855818 | J92: 0.002779156746
A93: 87 | B93: 278.3247222 | C93: 616.9342041 | D93: BB | E93: 0.08450450003 | F93: 1304.445557 | G93: 251.5272675 | H93: 1.16611276 | I93: 0.0008730890818 | J93: 0.002619267246
A94: 88 | B94: 279.5755556 | C94: 619.9349976 | D94: BB | E94: 0.08646130562 | F94: 1371.691772 | G94: 256.2077637 | H94: 1.226227703 | I94: 0.0009180981944 | J94: 0.002754294583
A95: 89 | B95: 280.8533333 | C95: 622.9360352 | D95: BB | E95: 0.0845925808 | F95: 1300.255371 | G95: 250.3548431 | H95: 1.162366932 | I95: 0.0008702845146 | J95: 0.002610853544
A96: 90 | B96: 282.0527778 | C96: 625.9341431 | D96: BB | E96: 0.08622102439 | F96: 1296.25415 | G96: 243.0523224 | H96: 1.15879003 | I96: 0.000867606425 | J96: 0.002602819275
A97: 91 | B97: 283.2366667 | C97: 628.9342041 | D97: BB | E97: 0.08599916101 | F97: 1245.142456 | G97: 234.3041687 | H97: 1.113098587 | I97: 0.0008333964405 | J97: 0.002500189321
A98: 92 | B98: 284.5538889 | C98: 631.9337158 | D98: BB | E98: 0.08630083501 | F98: 1262.368286 | G98: 236.395401 | H98: 1.128497666 | I98: 0.0008449260012 | J98: 0.002534778003
A99: 93 | B99: 285.7727778 | C99: 634.9342651 | D99: BB | E99: 0.08459701389 | F99: 1213.975464 | G99: 233.7251587 | H99: 1.085236767 | I99: 0.0008125358071 | J99: 0.002437607421
A100: 94 | B100: 286.9525 | C100: 637.9334106 | D100: BB | E100: 0.08828103542 | F100: 1205.873535 | G100: 218.8596649 | H100: 1.077994025 | I100: 0.0008071130392 | J100: 0.002421339117
A101: 95 | B101: 288.1247222 | C101: 640.9342041 | D101: BB | E101: 0.08479660004 | F101: 1178.985962 | G101: 226.2434845 | H101: 1.053957804 | I101: 0.0007891166985 | J101: 0.002367350095
A102: 96 | B102: 289.3747222 | C102: 643.9335938 | D102: BB | E102: 0.08514589071 | F102: 1112.45752 | G102: 212.257431 | H102: 0.9944845166 | I102: 0.0007445880047 | J102: 0.002233764014
A103: 97 | B103: 290.6125 | C103: 646.9358521 | D103: BB | E103: 0.08490472287 | F103: 1067.344238 | G103: 204.4562225 | H103: 0.9541553724 | I103: =$A$2*10^(-6)*F103/$B$2*7.45*10^(-6)*10^6/$C$2*2*60 -> 0.000714392867 | J103: 0.002143178601
A104: 98 | B104: 291.3908333 | C104: 649.9329224 | D104: BB | E104: 0.09672993422 | F104: 1280.66626 | G104: 205.4326935 | H104: 1.144855191 | I104: 0.0008571731669 | J104: 0.002571519501
A105: 99 | B105: 291.0591667 | C105: 652.9328003 | D105: BB | E105: 0.08420053124 | F105: 1020.38031 | G105: 197.7463837 | H105: 0.9121718372 | I105: 0.0006829590576 | J105: 0.002048877173
A106: 100 | B106: 290.6705556 | C106: 655.9356689 | D106: BB | E106: 0.08155181259 | F106: 1016.127014 | G106: 192.5989685 | H106: 0.9083695914 | I106: 0.0006801122495 | J106: 0.002040336748
A107: 101 | B107: 290.3333333 | C107: 658.9330444 | D107: BB | E107: 0.08608270437 | F107: 973.5598755 | G107: 182.9526978 | H107: 0.8703165785 | I107: 0.0006516212911 | J107: 0.001954863873
A108: 102 | B108: 290.0947222 | C108: 661.9344482 | D108: BB | E108: 0.08769951761 | F108: 953.9308472 | G108: 174.7139282 | H108: 0.8527691536 | I108: 0.0006384832263 | J108: 0.001915449679
A109: 103 | B109: 289.9058333 | C109: 664.934082 | D109: BB | E109: 0.07830544561 | F109: 832.4876099 | G109: 166.5771637 | H109: 0.7442046314 | I109: 0.0005571990638 | J109: 0.001671597191
A110: 104 | B110: 289.7572222 | C110: 667.9354858 | D110: BB | E110: 0.08863984048 | F110: 855.5183716 | G110: 154.410141 | H110: 0.7647930453 | I110: 0.0005726139705 | J110: 0.001717841912
A111: 105 | B111: 289.6591667 | C111: 670.9353027 | D111: BB | E111: 0.08868353814 | F111: 796.8479614 | G111: 143.7237244 | H111: 0.7123444678 | I111: 0.0005333448004 | J111: 0.001600034401
A112: 106 | B112: 289.6305556 | C112: 673.9346313 | D112: BB | E112: 0.0864335075 | F112: 748.295166 | G112: 139.8305359 | H112: 0.6689405603 | I112: 0.0005008475334 | J112: 0.0015025426
A113: 107 | B113: 289.6480556 | C113: 676.9326782 | D113: BB | E113: 0.08424857259 | F113: 774.9042358 | G113: 140.7120667 | H113: 0.6927278128 | I113: 0.0005186574667 | J113: 0.0015559724
A114: 108 | B114: 289.58 | C114: 679.9304199 | D114: BB | E114: 0.08950663358 | F114: 691.2236328 | G114: 131.1122894 | H114: 0.6179213033 | I114: 0.0004626485206 | J114: 0.001387945562
A115: 109 | B115: 289.5788889 | C115: 682.9331055 | D115: BB | E115: 0.08738526702 | F115: 738.1626587 | G115: 127.8008881 | H115: 0.659882577 | I115: 0.0004940656623 | J115: 0.001482196987
A116: 110 | B116: 289.5394444 | C116: 685.9325562 | D116: BB | E116: 0.0791702196 | F116: 570.4333496 | G116: 112.4730682 | H116: 0.5099404912 | I116: 0.0003818013921 | J116: 0.001145404176
A117: 111 | B117: 289.52 | C117: 688.9325562 | D117: BB | E117: 0.08995885402 | F117: 621.0457153 | G117: 109.8492889 | H117: 0.5551855573 | I117: 0.0004156771669 | J117: 0.001247031501
A118: 112 | B118: 289.5191667 | C118: 691.9326782 | D118: BB | E118: 0.08324690908 | F118: 577.0545654 | G118: 106.4447784 | H118: 0.5158595456 | I118: 0.000386233092 | J118: 0.001158699276
A119: 113 | B119: 289.4883333 | C119: 694.9317627 | D119: BB | E119: 0.08878599852 | F119: 553.0680542 | G119: 99.5965271 | H119: 0.4944167367 | I119: 0.0003701784848 | J119: 0.001110535454
A120: 114 | B120: 289.4313889 | C120: 697.93396 | D120: BB | E120: 0.08966053277 | F120: 541.3223877 | G120: 96.18300629 | H120: 0.4839166652 | I120: 0.0003623168971 | J120: 0.001086950691
A121: 115 | B121: 289.4786111 | C121: 700.9415894 | D121: BB | E121: 0.1087731421 | F121: 669.1057129 | G121: 96.64392853 | H121: 0.5981489268 | I121: 0.0004478445954 | J121: 0.001343533786
A122: 116 | B122: 289.4283333 | C122: 703.9359131 | D122: BB | E122: 0.08121259511 | F122: 543.1026611 | G122: 103.5113373 | H122: 0.4855081456 | I122: 0.0003635084664 | J122: 0.001090525399
A123: 117 | B123: 289.37 | C123: 706.9379272 | D123: BB | E123: 0.08722056448 | F123: 443.7301636 | G123: 81.88556671 | H123: 0.396673823 | I123: 0.0002969966505 | J123: 0.0008909899516
A124: 118 | B124: 289.3702778 | C124: 709.934082 | D124: BB | E124: 0.0863738209 | F124: 443.2399597 | G124: 82.90549469 | H124: 0.3962356039 | I124: 0.0002966685482 | J124: 0.0008900056445
A125: 119 | B125: 289.3819444 | C125: 712.9367065 | D125: BB | E125: 0.09531561285 | F125: 542.1218872 | G125: 88.68682098 | H125: 0.48463138 | I125: 0.0003628520166 | J125: 0.00108855605
A126: 120 | B126: 289.4480556 | C126: 715.9342651 | D126: BB | E126: 0.08858689666 | F126: 443.2463989 | G126: 80.06589508 | H126: 0.3962413602 | I126: 0.0002966728581 | J126: 0.0008900185742
A127: 121 | B127: 289.3791667 | C127: 718.9332275 | D127: BB | E127: 0.09045381099 | F127: 358.8239441 | G127: 67.03000641 | H127: 0.3207716702 | I127: 0.0002401673771 | J127: 0.0007205021313
A128: 122 | B128: 289.3519444 | C128: 721.9321289 | D128: BB | E128: 0.08982901275 | F128: 366.7313843 | G128: 69.19943237 | H128: 0.3278405485 | I128: 0.0002454599703 | J128: 0.0007363799109
A129: 123 | B129: 289.4211111 | C129: 724.9349365 | D129: BB | E129: 0.07761115581 | F129: 383.9410095 | G129: 72.70293427 | H129: 0.3432251412 | I129: 0.0002569786848 | J129: 0.0007709360543
A130: 124 | B130: 289.4594444 | C130: 727.9383545 | D130: BB | E130: 0.08957368135 | F130: 390.1123962 | G130: 69.40759277 | H130: 0.3487420697 | I130: 0.0002611093059 | J130: 0.0007833279176
A131: 125 | B131: 289.4375 | C131: 730.9327393 | D131: BB | E131: 0.0766030997 | F131: 346.6275024 | G131: 66.72904968 | H131: 0.309868627 | I131: 0.0002320040774 | J131: 0.0006960122321
A132: 126 | B132: 289.3486111 | C132: 733.9364624 | D132: BB | E132: 0.08726028353 | F132: 331.9330139 | G132: 61.21616364 | H132: 0.2967324478 | I132: 0.0002221687896 | J132: 0.0006665063687
A133: 127 | B133: 289.2997222 | C133: 736.9348145 | D133: BB | E133: 0.09568588436 | F133: 359.5218506 | G133: 61.96892548 | H133: 0.3213955657 | I133: 0.0002406344986 | J133: 0.0007219034957
A134: 128 | B134: 289.2905556 | C134: 739.9379272 | D134: BB | E134: 0.08699418604 | F134: 342.7759094 | G134: 63.48287964 | H134: 0.3064254847 | I134: 0.0002294261363 | J134: 0.0006882784088
A135: 129 | B135: 289.3111111 | C135: 742.9356689 | D135: BB | E135: 0.08627170324 | F135: 360.4535828 | G135: 63.45531464 | H135: 0.3222284903 | I135: =$A$2*10^(-6)*F135/$B$2*7.45*10^(-6)*10^6/$C$2*2*60 -> 0.0002412581238 | J135: =I135*3 -> 0.0007237743715
A136: 130 | B136: 289.3516667 | C136: 745.9395752 | D136: BB | E136: 0.07947671413 | F136: 344.7461243 | G136: 63.36241913 | H136: 0.3081867637 | I136: 0.0002307448368 | J136: 0.0006922345105
A137: 131 | B137: 289.4102778 | C137: 748.9310303 | D137: BB | E137: 0.08210322261 | F137: 294.9850769 | G137: 59.23066711 | H137: 0.263702736 | I137: 0.0001974388648 | J137: 0.0005923165945
A138: 132 | B138: 289.4191667 | C138: 751.9351807 | D138: BB | E138: 0.09147188812 | F138: 311.4831238 | G138: 50.84474182 | H138: 0.2784512112 | I138: 0.000208481307 | J138: 0.000625443921
A139: 133 | B139: 289.3880556 | C139: 754.9315796 | D139: BB | E139: 0.09677775204 | F139: 344.587738 | G139: 62.0612793 | H139: 0.3080451739 | I139: 0.000230638826 | J139: 0.0006919164781
A140: 134 | B140: 289.32 | C140: 757.9295044 | D140: BB | E140: 0.07305619866 | F140: 294.7348022 | G140: 56.3181572 | H140: 0.2634790023 | I140: 0.0001972713515 | J140: 0.0005918140544
A141: 135 | B141: 289.3230556 | C141: 760.9293823 | D141: BB | E141: 0.08202084154 | F141: 256.2377014 | G141: 51.52355194 | H141: 0.2290644111 | I141: 0.0001715045433 | J141: 0.0005145136299
A142: 136 | B142: 289.4272222 | C142: 763.9347534 | D142: BB | E142: 0.08046773076 | F142: 281.5889282 | G142: 50.95889282 | H142: 0.2517272114 | I142: 0.0001884725794 | J142: 0.0005654177383
A143: 137 | B143: 289.3283333 | C143: 766.934082 | D143: BB | E143: 0.1030354649 | F143: 275.6239624 | G143: 42.85457611 | H143: 0.2463948135 | I143: 0.0001844801196 | J143: 0.0005534403587
A144: 138 | B144: 289.2708333 | C144: 769.9350586 | D144: BB | E144: 0.08839336038 | F144: 295.2108765 | G144: 50.35762024 | H144: 0.2639045902 | I144: 0.0001975899966 | J144: 0.0005927699898
A145: 139 | B145: 289.3002778 | C145: 772.93573 | D145: BB | E145: 0.08802417666 | F145: 281.1628113 | G145: 51.23427963 | H145: 0.2513462829 | I145: 0.0001881873716 | J145: 0.0005645621149
A146: 140 | B146: 289.31 | C146: 775.9316406 | D146: BB | E146: 0.07941891253 | F146: 252.7313843 | G146: 49.62279892 | H146: 0.2259299291 | I146: 0.0001691577016 | J146: 0.0005074731049
A147: 141 | B147: 289.3097222 | C147: 778.9360962 | D147: BB | E147: 0.1060247719 | F147: 320.0305481 | G147: 45.51905441 | H147: 0.2860922052 | I147: 0.0002142022532 | J147: 0.0006426067596
A148: 142 | B148: 289.3008333 | C148: 781.9425049 | D148: BB | E148: 0.100489907 | F148: 308.4839172 | G148: 49.64800262 | H148: 0.2757700622 | I148: 0.0002064738836 | J148: 0.0006194216509
A149: 143 | B149: 289.3302778 | C149: 784.9324341 | D149: BB | E149: 0.08482473344 | F149: 253.4238281 | G149: 42.95855713 | H149: 0.2265489412 | I149: 0.0001696211669 | J149: 0.0005088635006
A150: 144 | B150: 289.3402778 | C150: 787.9359741 | D150: BB | E150: 0.08699910343 | F150: 262.5065918 | G150: 48.61302185 | H150: 0.2346685033 | I150: 0.0001757004254 | J150: 0.0005271012762
A151: 145 | B151: 289.3477778 | C151: 790.9246216 | D151: BB | E151: 0.09019939601 | F151: 241.3526001 | G151: 45.2702179 | H151: 0.2157578331 | I151: 0.0001615416749 | J151: 0.0004846250247
A152: 146 | B152: 289.2736111 | C152: 793.9243774 | D152: BB | E152: 0.08330349624 | F152: 209.2868805 | G152: 41.17262268 | H152: 0.1870925932 | I152: 0.0001400795069 | J152: 0.0004202385207
A153: 147 | B153: 289.4008333 | C153: 796.9299316 | D153: BB | E153: 0.07565397769 | F153: 243.6252594 | G153: 51.07082367 | H153: 0.2177894833 | I153: 0.000163062807 | J153: 0.000489188421
A154: 148 | B154: 289.4286111 | C154: 799.9315796 | D154: BB | E154: 0.08453023434 | F154: 287.0366821 | G154: 51.89445877 | H154: 0.2565972462 | I154: 0.00019211886 | J154: 0.00057635658
A155: 149 | B155: 289.3791667 | C155: 802.9436646 | D155: BBA | E155: 0.1073876172 | F155: 236.0512085 | G155: 34.68967819 | H155: 0.2110186392 | I155: 0.0001579933573 | J155: 0.0004739800719
A156: 150 | B156: 289.3483333 | C156: 805.9329834 | D156: BB | E156: 0.101294145 | F156: 290.5275574 | G156: 43.85181046 | H156: 0.2597179239 | I156: 0.0001944553661 | J156: 0.0005833660984
A157: 151 | B157: 289.2897222 | C157: 808.9356079 | D157: BB | E157: 0.08734542876 | F157: 240.0336609 | G157: 41.58251953 | H157: 0.2145787637 | I157: 0.0001606588849 | J157: 0.0004819766548
A158: 152 | B158: 289.2805556 | C158: 811.9362793 | D158: BB | E158: 0.09375885874 | F158: 169.7668304 | G158: 30.11933136 | H158: 0.1517635337 | I158: 0.0001136280202 | J158: 0.0003408840607
A159: 153 | B159: 289.2988889 | C159: 814.9282227 | D159: BB | E159: 0.08601151407 | F159: 181.2281647 | G159: 30.19972801 | H159: 0.1620094256 | I159: 0.0001212992992 | J159: 0.0003638978977
A160: 154 | B160: 289.2608333 | C160: 817.9282227 | D160: BB | E160: 0.07545179129 | F160: 194.7835693 | G160: 35.81419754 | H160: 0.1741273176 | I160: 0.0001303721775 | J160: 0.0003911165326
A161: 155 | B161: 289.2902778 | C161: 820.9352417 | D161: BB | E161: 0.08814295381 | F161: 235.3934326 | G161: 40.30140686 | H161: 0.2104306186 | I161: 0.000157553096 | J161: 0.0004726592879
A162: 156 | B162: 289.3033333 | C162: 823.9252319 | D162: BB | E162: 0.09197790176 | F162: 250.5267487 | G162: 40.60707474 | H162: 0.2239590889 | I162: 0.000167682099 | J162: 0.000503046297
A163: 1 | C163: 829.1915605 | D163: BB | E163: 0.110400036 | F163: 229.3392639 | G163: 34.12785339 | H163: 1.898447419 | I163: =$A$2*10^(-6)*F163/$B$2*7.45*10^(-6)*10^6/$C$2*2*60 -> 0.000153500931 | J163: =I163*3 -> 0.000460502793
A164: 2 | C164: 832.1793556 | D164: BB | E164: 0.0842847079 | F164: 199.7471313 | G164: 32.23895264 | H164: 1.653486715 | I164: 0.0001336943797 | J164: 0.000401083139
A165: 3 | C165: 835.166924 | D165: BB | E165: 0.09665320069 | F165: 190.8278961 | G165: 32.42857361 | H165: 1.57965418 | I165: 0.0001277245737 | J165: 0.000383173721
A166: 4 | C166: 838.1870575 | D166: BB | E166: 0.07152528316 | F166: 194.0037842 | G166: 38.0237999 | H166: 1.605943863 | I166: 0.0001298502532 | J166: 0.0003895507596
A167: 5 | C167: 841.1933756 | D167: BB | E167: 0.101500459 | F167: 240.450592 | G167: 36.19664764 | H167: 1.990425879 | I167: 0.0001609379445 | J167: 0.0004828138336
A168: 6 | C168: 844.1769295 | D168: BB | E168: 0.0903108865 | F168: 194.015625 | G168: 32.19295883 | H168: 1.60604188 | I168: 0.0001298581785 | J168: 0.0003895745354
A169: 7 | C169: 847.1722374 | D169: BB | E169: 0.09171995521 | F169: 188.0466919 | G169: 34.43000031 | H169: 1.556631651 | I169: 0.0001258630632 | J169: 0.0003775891897
A170: 8 | C170: 850.1782971 | D170: BB | E170: 0.07104451209 | F170: 180.5691833 | G170: 35.67885208 | H170: 1.494733585 | I170: 0.0001208582311 | J170: 0.0003625746932
A171: 9 | C171: 853.1735993 | D171: BB | E171: 0.09120314568 | F171: 200.9437103 | G171: 34.88442993 | H171: 1.663391875 | I171: 0.0001344952717 | J171: 0.0004034858151
A172: 10 | C172: 856.1839066 | D172: BB | E172: 0.1026912108 | F172: 279.5135193 | G172: 43.65963364 | H172: 2.313784872 | I172: 0.0001870834706 | J172: 0.0005612504117
A173: 11 | C173: 859.1838703 | D173: BB | E173: 0.07608085871 | F173: 187.83255 | G173: 34.19710159 | H173: 1.554859006 | I173: 0.0001257197342 | J173: 0.0003771592026
A174: 12 | C174: 862.189106 | D174: BB | E174: 0.09404177219 | F174: 252.184845 | G174: 35.86169052 | H174: 2.087560847 | I174: 0.0001687918929 | J174: 0.0005063756788
A175: 13 | C175: 865.1710205 | D175: BB | E175: 0.09800422937 | F175: 230.5266418 | G175: 31.27145767 | H175: 1.908276415 | I175: 0.0001542956646 | J175: 0.0004628869937
A176: 14 | C176: 868.18676 | D176: BB | E176: 0.08863026649 | F176: 187.5277557 | G176: 33.85138321 | H176: 1.552335949 | I176: 0.0001255157298 | J176: 0.0003765471895
A177: 15 | C177: 871.1829758 | D177: BB | E177: 0.09218173474 | F177: 211.8091583 | G177: 34.23451614 | H177: 1.753334964 | I177: 0.0001417677132 | J177: 0.0004253031396
A178: 16 | C178: 874.1841469 | D178: BB | E178: 0.08361310512 | F178: 158.6600189 | G178: 29.09830284 | H178: 1.31337172 | I178: 0.0001061940297 | J178: 0.0003185820892
A179: 17 | C179: 877.1817894 | D179: BB | E179: 0.0987270847 | F179: 189.3440094 | G179: 29.56108093 | H179: 1.567370715 | I179: 0.0001267313814 | J179: 0.0003801941441
A180: 18 | C180: 880.1887322 | D180: BB | E180: 0.08610761911 | F180: 215.513382 | G180: 35.8637619 | H180: 1.783998155 | I180: 0.0001442470173 | J180: 0.0004327410519
A181: 19 | C181: 883.1865692 | D181: BB | E181: 0.08035620302 | F181: 189.4941254 | G181: 34.352005 | H181: 1.56861336 | I181: 0.0001268318567 | J181: 0.0003804955701
A182: 20 | C182: 886.1824989 | D182: BB | E182: 0.08104498684 | F182: 158.7940826 | G182: 30.34807014 | H182: 1.314481486 | I182: 0.000106283761 | J182: 0.0003188512831
A183: 21 | C183: 889.1790238 | D183: BB | E183: 0.08268176764 | F183: 163.6509094 | G183: 30.45958328 | H183: 1.354685811 | I183: 0.0001095345233 | J183: 0.00032860357
A184: 22 | C184: 892.1767731 | D184: BB | E184: 0.06948125362 | F184: 157.5903168 | G184: 31.98527336 | H184: 1.304516833 | I184: 0.0001054780587 | J184: 0.0003164341761
A185: 23 | C185: 895.182518 | D185: BB | E185: 0.08476188034 | F185: 155.6775513 | G185: 28.04486275 | H185: 1.288683152 | I185: 0.00010419781 | J185: 0.0003125934301
A186: 24 | C186: 898.1833115 | D186: BB | E186: 0.1016052887 | F186: 189.3521118 | G186: 28.4659462 | H186: 1.567437786 | I186: 0.0001267368045 | J186: 0.0003802104134
A187: 25 | C187: 901.1818314 | D187: BB | E187: 0.07379333675 | F187: 173.4277649 | G187: 32.74340057 | H187: 1.435617639 | I187: 0.0001160783501 | J187: 0.0003482350503
A188: 26 | C188: 904.1860428 | D188: BB | E188: 0.06834767759 | F188: 139.5161438 | G188: 28.88652039 | H188: 1.154900642 | I188: 9.338068674e-05 | J188: 0.0002801420602
A189: 27 | C189: 907.1747818 | D189: BB | E189: 0.0924307555 | F189: 250.0728455 | G189: 38.17201996 | H189: 2.070077927 | I189: 0.0001673782933 | J189: 0.00050213488
A190: 28 | C190: 910.1920776 | D190: BB | E190: 0.08615556359 | F190: 177.572113 | G190: 29.52972603 | H190: 1.469924138 | I190: 0.0001188522375 | J190: 0.0003565567126
A191: 29 | C191: 913.1734543 | D191: BB | E191: 0.07494121045 | F191: 176.8595581 | G191: 35.0071106 | H191: 1.464025679 | I191: 0.0001183753116 | J191: 0.0003551259347
A192: 30 | C192: 916.1762161 | D192: BB | E192: 0.08105200529 | F192: 142.5361328 | G192: 29.14746857 | H192: 1.179899808 | I192: 9.540202019e-05 | J192: 0.0002862060606
A193: 31 | C193: 919.1758423 | D193: BB | E193: 0.08657902479 | F193: 141.3093414 | G193: 28.14333344 | H193: 1.169744552 | I193: 9.458090645e-05 | J193: 0.0002837427194
A194: 32 | C194: 922.1762314 | D194: BB | E194: 0.08140645921 | F194: 164.0091858 | G194: 29.25461006 | H194: 1.357651587 | I194: 0.0001097743242 | J194: 0.0003293229726
A195: 33 | C195: 925.1882706 | D195: BB | E195: 0.08316041529 | F195: 180.0629883 | G195: 38.08409882 | H195: 1.490543353 | I195: 0.0001205194255 | J195: 0.0003615582766
A196: 34 | C196: 928.1886902 | D196: BB | E196: 0.07495240122 | F196: 157.6031647 | G196: 31.18963242 | H196: 1.304623186 | I196: 0.000105486658 | J196: 0.0003164599741
A197: 35 | C197: 931.1763687 | D197: BB | E197: 0.08192319423 | F197: 171.0315247 | G197: 28.53656578 | H197: 1.415781803 | I197: 0.000114474503 | J197: 0.0003434235091
A198: 36 | C198: 934.1824417 | D198: BB | E198: 0.09672963619 | F198: 208.9025879 | G198: 31.76343536 | H198: 1.729274665 | I198: 0.0001398222929 | J198: 0.0004194668786
A199: 37 | C199: 937.186821 | D199: BB | E199: 0.07867801934 | F199: 223.9608917 | G199: 47.78660583 | H199: 1.853925794 | I199: 0.0001499010889 | J199: 0.0004497032666
A200: 38 | C200: 940.1946335 | D200: BB | E200: 0.0719326809 | F200: 124.2592468 | G200: 25.91850281 | H200: 1.028605579 | I200: 8.316896874e-05 | J200: 0.0002495069062
A201: 39 | C201: 943.1920548 | D201: BB | E201: 0.07756920904 | F201: 142.8917236 | G201: 25.42458534 | H201: 1.182843353 | I201: 9.564002358e-05 | J201: 0.0002869200707
... 37 more rows

Sheet Roller control
A1: STD H | B1: STD area | C1: sample weight | E1: Sum | F1: injection time
A2: 60.7 | B2: 6285 | C2: 8.052 | D2: =SUM(J7:J103) -> 0.1550 | E2: =SUM(J7:J268)+SUM('Raceway 2 blank (2)'!K7:K159) -> 0.397 | F2: 2016-09-13T12:14:08
D3: =SUM(J51:J124) -> 0.20 | F3: 2016-09-14T02:01:37
A4: row number of max temperature | D4: 209
A6: Actual Time/min | B6: Calibrated Temp °C | C6: Time/min | F6: Area | I6: ppm/min | J6: ppm
A7: 1 | C7: 4.954753876 | D7: BB | E7: 0.07993772626 | F7: 86.71416473 | G7: 16.8786068 | H7: 0.09247773076 | I7: =$A$2*10^(-6)*F7/$B$2*7.45*10^(-6)*10^6/$C$2*2*60 -> 9.298407793e-05 | J7: =I7*3 -> 0.0002789522338
A8: 2 | B8: 23.992 | C8: 22.96461487 | D8: BB | E8: 0.09490581602 | F8: 121.3377609 | G8: 17.07488441 | H8: 0.1294026278 | I8: 0.0001301111514 | J8: 0.0003903334543 | U8: =25/60 -> 0.4166666667 | V8: =U8*350 -> 145.8333333
A9: 3 | B9: 25.986 | C9: 25.92182159 | D9: BB | E9: 0.06562339514 | F9: 74.91265869 | G9: 15.16711998 | H9: 0.07989182278 | I9: 8.03292578e-05 | J9: 0.0002409877734
A10: 4 | B10: 33.99933334 | C10: 37.93421936 | D10: BB | E10: 0.06625779718 | F10: 70.85434723 | G10: 17.87015533 | H10: 0.07556377054 | I10: 7.5977508e-05 | J10: 0.000227932524
A11: 5 | B11: 66.084 | C11: 109.958725 | D11: BB | E11: 0.1078909114 | F11: 128.2674255 | G11: 15.60578728 | H11: 0.1367928813 | I11: 0.0001375418691 | J11: 0.0004126256072
A12: 6 | B12: 69.90533334 | C12: 118.9487762 | D12: BB | E12: 0.05841299891 | F12: 84.60351562 | G12: 23.27213669 | H12: 0.09022679471 | I12: 9.072081723e-05 | J12: 0.0002721624517
A13: 7 | B13: 109.7033333 | C13: 212.016571 | D13: BB | E13: 0.06332849711 | F13: 69.8839035 | G13: 15.88420391 | H13: 0.07452882505 | I13: 7.493689583e-05 | J13: 0.0002248106875
A14: 8 | B14: 110.9533333 | C14: 214.942337 | D14: BB | E14: 0.09420216084 | F14: 95.57950592 | G14: 16.84377289 | H14: 0.101932318 | I14: 0.0001024904323 | J14: 0.0003074712968
A15: 9 | B15: 117.3533333 | C15: 229.9608612 | D15: BB | E15: 0.09930889308 | F15: 129.58638 | G15: 21.20129967 | H15: 0.1381995017 | I15: 0.0001389561912 | J15: 0.0004168685737
A16: 10 | B16: 141.7486667 | C16: 286.8551636 | D16: BB | E16: 0.1100774929 | F16: 137.3264313 | G16: 15.69534779 | H16: 0.1464540053 | I16: 0.000147255891 | J16: 0.0004417676729
A17: 11 | B17: 144.364 | C17: 292.8903809 | D17: BB | E17: 0.06998691708 | F17: 109.4764099 | G17: 25.55117989 | H17: 0.1167528972 | I17: 0.0001173921592 | J17: 0.0003521764776
A18: 12 | B18: 145.6286667 | C18: 295.8900146 | D18: BB | E18: 0.08359094709 | F18: 104.5360947 | G18: 19.17863655 | H18: 0.1114842177 | I18: 0.0001120946319 | J18: 0.0003362838956
A19: 13 | B19: 148.258 | C19: 302.0198364 | D19: BB | E19: 0.07434910536 | F19: 76.77537537 | G19: 19.32535172 | H19: 0.08187834726 | I19: 8.232665918e-05 | J19: 0.0002469799775
A20: 14 | B20: 152.1973333 | C20: 310.9214172 | D20: BB | E20: 0.09019726515 | F20: 124.9220276 | G20: 19.64255142 | H20: 0.1332251273 | I20: 0.0001339545804 | J20: 0.0004018637411
A21: 15 | B21: 153.5086667 | C21: 313.9549866 | D21: BB | E21: 0.06424719095 | F21: 99.66143036 | G21: 26.27775002 | H21: 0.1062855527 | I21: 0.0001068675024 | J21: 0.0003206025072
A22: 16 | B22: 154.8366667 | C22: 316.9129333 | D22: BB | E22: 0.08087173104 | F22: 146.0949554 | G22: 29.9699173 | H22: 0.1558053404 | I22: 0.0001566584279 | J22: 0.0004699752837
A23: 17 | B23: 157.416 | C23: 322.933197 | D23: BB | E23: 0.08731609583 | F23: 96.05757904 | G23: 16.64790154 | H23: 0.1024421669 | I23: 0.0001030030727 | J23: 0.0003090092181
A24: 18 | B24: 159.948 | C24: 328.9399719 | D24: BB | E24: 0.1017602682 | F24: 106.8233337 | G24: 17.86507225 | H24: 0.113923481 | I24: 0.000114547251 | J24: 0.0003436417529
A25: 19 | B25: 162.5946667 | C25: 334.9198608 | D25: BB | E25: 0.1008283421 | F25: 141.2202301 | G25: 22.6226387 | H25: 0.1506066103 | I25: 0.000151431233 | J25: 0.0004542936989
A26: 20 | B26: 165.0946667 | C26: 340.9263306 | D26: BB | E26: 0.06379782408 | F26: 114.0100403 | G26: 25.67901611 | H26: 0.121587861 | I26: 0.0001222535961 | J26: 0.0003667607883
A27: 21 | B27: 166.3693333 | C27: 343.8634644 | D27: BV | E27: 0.06997452676 | F27: 111.221138 | G27: 25.96482468 | H27: 0.1186135908 | I27: 0.0001192630408 | J27: 0.0003577891223
A28: 22 | B28: 166.3693333 | C28: 343.975769 | D28: VB | E28: 0.0904936716 | F28: 192.7138519 | G28: 33.81266403 | H28: 0.2055228205 | I28: 0.0002066481281 | J28: 0.0006199443844
A29: 23 | B29: 167.7066667 | C29: 346.9350586 | D29: BB | E29: 0.1216262653 | F29: 217.7082977 | G29: 27.12839508 | H29: 0.2321785536 | I29: 0.0002334498105 | J29: 0.0007003494314
A30: 24 | B30: 169.0073333 | C30: 349.9319458 | D30: BB | E30: 0.09750399739 | F30: 171.1882782 | G30: 24.50427818 | H30: 0.1825665224 | I30: 0.0001835661365 | J30: 0.0005506984095
A31: 25 | B31: 170.3106667 | C31: 352.9321899 | D31: BB | E31: 0.09168631583 | F31: 174.6238556 | G31: 28.41934776 | H31: 0.1862304498 | I31: 0.0001872501251 | J31: 0.0005617503754
A32: 26 | B32: 171.5253333 | C32: 355.9220886 | D32: BB | E32: 0.08865842968 | F32: 174.2711029 | G32: 26.52236557 | H32: 0.185854251 | I32: 0.0001868718665 | J32: 0.0005606155994
A33: 27 | B33: 172.8006667 | C33: 358.9371643 | D33: BB | E33: 0.0848114416 | F33: 161.8764801 | G33: 27.44542122 | H33: 0.172635804 | I33: 0.000173581044 | J33: 0.0005207431319
A34: 28 | B34: 174.0213333 | C34: 361.9290771 | D34: BB | E34: 0.08587998152 | F34: 180.7906799 | G34: 32.01616669 | H34: 0.1928071599 | I34: 0.0001938628449 | J34: 0.0005815885348
A35: 29 | B35: 175.3893333 | C35: 364.9277039 | D35: BB | E35: 0.08626185358 | F35: 167.1891632 | G35: 29.43684959 | H35: 0.1783016012 | I35: 0.0001792778634 | J35: 0.0005378335902
A36: 30 | B36: 176.7253333 | C36: 367.9180298 | D36: BB | E36: 0.1193808168 | F36: 225.408783 | G36: 30.09549904 | H36: 0.2403908612 | I36: 0.0002417070833 | J36: 0.00072512125
A37: 31 | B37: 178.004 | C37: 370.9332275 | D37: BB | E37: 0.0733089 | F37: 193.8743286 | G37: 36.89296341 | H37: 0.2067604297 | I37: 0.0002078925137 | J37: 0.0006236775411
A38: 32 | B38: 179.266 | C38: 373.9275513 | D38: BB | E38: 0.09450098872 | F38: 245.2666779 | G38: 38.40813828 | H38: 0.2615686361 | I38: 0.0002630008137 | J38: 0.0007890024412
A39: 33 | B39: 180.554 | C39: 376.929657 | D39: BB | E39: 0.09238385409 | F39: 240.3361206 | G39: 41.00268173 | H39: 0.2563103632 | I39: =$A$2*10^(-6)*F39/$B$2*7.45*10^(-6)*10^6/$C$2*2*60 -> 0.00025771375 | J39: 0.0007731412499
A40: 34 | B40: 181.812 | C40: 379.9326477 | D40: BB | E40: 0.09410078824 | F40: 284.7374573 | G40: 47.38801193 | H40: 0.3036628905 | I40: 0.0003053255486 | J40: 0.0009159766458
A41: 35 | B41: 183.042 | C41: 382.9294434 | D41: BB | E41: 0.09618771821 | F41: 267.8927917 | G41: 43.29567337 | H41: 0.2856986231 | I41: 0.0002872629207 | J41: 0.000861788762
A42: 36 | B42: 184.2766667 | C42: 385.9370117 | D42: BB | E42: 0.09759795666 | F42: 260.978302 | G42: 39.2374649 | H42: 0.2783245531 | I42: 0.0002798484751 | J42: 0.0008395454254
A43: 37 | B43: 185.5746667 | C43: 388.9343262 | D43: BB | E43: 0.0928934291 | F43: 236.6666718 | G43: 42.54839325 | H43: 0.2523970198 | I43: 0.0002537789797 | J43: 0.000761336939
A44: 38 | B44: 186.842 | C44: 391.9388428 | D44: BB | E44: 0.08146256953 | F44: 220.2634888 | G44: 44.72025299 | H44: 0.2349035786 | I44: 0.0002361897559 | J44: 0.0007085692678
A45: 39 | B45: 188.076 | C45: 394.933136 | D45: BB | E45: 0.08993031085 | F45: 304.8727722 | G45: 53.94861221 | H45: 0.3251365245 | I45: 0.000326916758 | J45: 0.0009807502741
A46: 40 | B46: 189.3653333 | C46: 397.9313354 | D46: BB | E46: 0.1382776052 | F46: 518.5601807 | G46: 56.92515182 | H46: 0.5530269353 | I46: 0.0005560549467 | J46: 0.00166816484
A47: 41 | B47: 190.644 | C47: 400.9403992 | D47: BB | E47: 0.08989317715 | F47: 343.9650879 | G47: 57.41513443 | H47: 0.3668271601 | I47: 0.0003688356641 | J47: 0.001106506992
A48: 42 | B48: 191.9026667 | C48: 403.9370117 | D48: BB | E48: 0.1031579301 | F48: 382.6174927 | G48: 59.39321136 | H48: 0.4080486456 | I48: 0.0004102828513 | J48: 0.001230848554
A49: 43 | B49: 193.142 | C49: 406.9229126 | D49: BB | E49: 0.08271538466 | F49: 370.1986084 | G49: 73.55795288 | H49: 0.3948043245 | I49: 0.0003969660131 | J49: 0.001190898039
A50: 44 | B50: 194.3713333 | C50: 409.9315491 | D50: BB | E50: 0.08971738815 | F50: 399.9382324 | G50: 71.00017548 | H50: 0.4265206301 | I50: 0.0004288559762 | J50: 0.001286567929
A51: 45 | B51: 195.5853333 | C51: 412.9324036 | D51: BB | E51: 0.08946674317 | F51: 401.0368958 | G51: 71.46779633 | H51: 0.4276923175 | I51: 0.000430034079 | J51: 0.001290102237
A52: 46 | B52: 196.7253333 | C52: 415.9351501 | D52: BB | E52: 0.08285929263 | F52: 330.0732727 | G52: 61.26150894 | H52: 0.3520120079 | I52: 0.0003539393939 | J52: 0.001061818182
A53: 47 | B53: 198.0066667 | C53: 418.9326477 | D53: BB | E53: 0.08655288815 | F53: 387.4028625 | G53: 72.25405884 | H53: 0.4131520811 | I53: 0.0004154142299 | J53: 0.00124624269
A54: 48 | B54: 199.3053333 | C54: 421.933197 | D54: BB | E54: 0.08200316131 | F54: 409.6265564 | G54: 77.07633209 | H54: 0.4368529007 | I54: 0.0004392448196 | J54: 0.001317734459
A55: 49 | B55: 200.5853333 | C55: 424.9311523 | D55: BB | E55: 0.08506433666 | F55: 347.2816162 | G55: 66.3500061 | H55: 0.3703641256 | I55: 0.0003723919958 | J55: 0.001117175987
A56: 50 | B56: 201.8626667 | C56: 427.9326782 | D56: BB | E56: 0.09134250134 | F56: 485.7581482 | G56: 84.1545639 | H56: 0.5180446745 | I56: 0.0005208811461 | J56: 0.001562643438
A57: 51 | B57: 203.098 | C57: 430.9335327 | D57: BB | E57: 0.08353442699 | F57: 359.2306519 | G57: 70.39664459 | H57: 0.383107369 | I57: 0.0003852050127 | J57: 0.001155615038
A58: 52 | B58: 204.278 | C58: 433.9298706 | D58: BB | E58: 0.08528900892 | F58: 471.7509766 | G58: 89.80014038 | H58: 0.5031064986 | I58: 0.0005058611785 | J58: 0.001517583536
A59: 53 | B59: 205.5973333 | C59: 436.9277344 | D59: BB | E59: 0.08085794002 | F59: 389.9494629 | G59: 74.75458527 | H59: 0.4158679444 | I59: 0.0004181449635 | J59: 0.00125443489
A60: 54 | B60: 206.896 | C60: 439.9328308 | D60: BB | E60: 0.08758113533 | F60: 504.5603638 | G60: 92.58309174 | H60: 0.538096603 | I60: 0.0005410428657 | J60: 0.001623128597
A61: 55 | B61: 208.0426667 | C61: 442.9316406 | D61: BB | E61: 0.07699773461 | F61: 464.681427 | G61: 88.87679291 | H61: 0.4955670625 | I61: 0.0004982804615 | J61: 0.001494841384
A62: 56 | B62: 209.2813333 | C62: 445.9279785 | D62: BB | E62: 0.08330783993 | F62: 486.5636902 | G62: 95.71376038 | H62: 0.5189037579 | I62: 0.0005217449332 | J62: 0.0015652348
A63: 57 | B63: 210.5013333 | C63: 448.9295349 | D63: BB | E63: 0.08640847355 | F63: 552.2911377 | G63: 103.2455368 | H63: 0.5889998628 | I63: 0.0005922248383 | J63: 0.001776674515
A64: 58 | B64: 211.722 | C64: 451.933197 | D64: BB | E64: 0.08895715326 | F64: 535.9144897 | G64: 96.25322723 | H64: 0.5715347204 | I64: 0.0005746640682 | J64: 0.001723992205
A65: 59 | B65: 212.9553333 | C65: 454.9289551 | D65: BB | E65: 0.09329338372 | F65: 548.7591553 | G65: 98.05266571 | H65: 0.5852331228 | I65: 0.000588437474 | J65: 0.001765312422
A66: 60 | B66: 214.2393333 | C66: 457.9324646 | D66: BB | E66: 0.08754369617 | F66: 544.1605225 | G66: 99.90824127 | H66: 0.580328836 | I66: 0.0005835063347 | J66: 0.001750519004
A67: 61 | B67: 215.576 | C67: 460.9326477 | D67: BB | E67: 0.0914227888 | F67: 631.5478516 | G67: 109.2814178 | H67: 0.6735244739 | I67: 0.0006772122505 | J67: 0.002031636751
A68: 62 | B68: 216.8613333 | C68: 463.9301453 | D68: BB | E68: 0.08640082926 | F68: 581.9453125 | G68: 108.8024292 | H68: 0.6206250397 | I68: 0.0006240231738 | J68: 0.001872069521
A69: 63 | B69: 218.082 | C69: 466.9328003 | D69: BB | E69: 0.08719762415 | F69: 611.8372192 | G69: 112.9488907 | H69: 0.6525037496 | I69: 0.0006560764305 | J69: 0.001968229292
A70: 64 | B70: 219.3113333 | C70: 469.9263306 | D70: BB | E70: 0.09142564237 | F70: 750.2316895 | G70: 122.5428696 | H70: 0.8000967823 | I70: 0.0008044775856 | J70: 0.002413432757
A71: 65 | B71: 220.5386667 | C71: 472.931366 | D71: BB | E71: 0.08615050465 | F71: 631.3189087 | G71: 118.5088806 | H71: 0.673280314 | I71: =$A$2*10^(-6)*F71/$B$2*7.45*10^(-6)*10^6/$C$2*2*60 -> 0.0006769667538 | J71: =I71*3 -> 0.002030900261
A72: 66 | B72: 221.8626667 | C72: 475.9318237 | D72: BB | E72: 0.08589045703 | F72: 636.4522705 | G72: 119.9744949 | H72: 0.6787548712 | I72: 0.000682471286 | J72: 0.002047413858
A73: 67 | B73: 223.104 | C73: 478.9287109 | D73: BB | E73: 0.08148851246 | F73: 633.131897 | G73: 128.4872131 | H73: 0.6752138049 | I73: 0.0006789108311 | J73: 0.002036732493
A74: 68 | B74: 224.3593333 | C74: 481.9310913 | D74: BB | E74: 0.087046884 | F74: 698.8074951 | G74: 129.312561 | H74: 0.7452546142 | I74: 0.0007493351379 | J74: 0.002248005414
A75: 69 | B75: 225.5553333 | C75: 484.9330444 | D75: BB | E75: 0.08605192602 | F75: 733.5679321 | G75: 137.921463 | H75: 0.7823254474 | I75: 0.0007866089465 | J75: 0.00235982684
A76: 70 | B76: 226.8333333 | C76: 487.9281921 | D76: BB | E76: 0.08404682577 | F76: 737.4877319 | G76: 143.2885742 | H76: 0.7865057816 | I76: 0.0007908121695 | J76: 0.002372436509
A77: 71 | B77: 228.084 | C77: 490.9296875 | D77: BB | E77: 0.08386534452 | F77: 727.9472046 | G77: 141.863678 | H77: 0.7763311312 | I77: 0.0007805818093 | J77: 0.002341745428
A78: 72 | B78: 229.342 | C78: 493.932373 | D78: BB | E78: 0.08949884772 | F78: 801.1871338 | G78: 142.7075958 | H78: 0.8544390444 | I78: 0.00085911739 | J78: 0.00257735217
A79: 73 | B79: 230.5706667 | C79: 496.9302368 | D79: BB | E79: 0.08535098284 | F79: 758.2373047 | G79: 144.1884308 | H79: 0.8086345009 | I79: 0.000813062051 | J79: 0.002439186153
A80: 74 | B80: 231.7873333 | C80: 499.929657 | D80: BB | E80: 0.08424246311 | F80: 767.2639771 | G80: 148.5897522 | H80: 0.8182611423 | I80: 0.0008227414017 | J80: 0.002468224205
A81: 75 | B81: 233.098 | C81: 502.9318237 | D81: BB | E81: 0.08462128788 | F81: 824.2215576 | G81: 158.6228027 | H81: 0.8790044801 | I81: 0.00088381733 | J81: 0.00265145199
A82: 76 | B82: 234.4146667 | C82: 505.9307251 | D82: BB | E82: 0.08450699598 | F82: 813.3585815 | G82: 156.8278656 | H82: 0.8674194827 | I82: 0.0008721689007 | J82: 0.002616506702
A83: 77 | B83: 235.6753333 | C83: 508.9308472 | D83: BB | E83: 0.08582273126 | F83: 830.1915894 | G83: 156.6667938 | H83: 0.8853713176 | I83: 0.000890219028 | J83: 0.002670657084
A84: 78 | B84: 236.8146667 | C84: 511.9292297 | D84: BB | E84: 0.0795616433 | F84: 904.649292 | G84: 177.1986389 | H84: 0.9647779451 | I84: 0.0009700604339 | J84: 0.002910181302
A85: 79 | B85: 238.0846667 | C85: 514.9317017 | D85: BB | E85: 0.08603260666 | F85: 911.0302734 | G85: 171.3403168 | H85: 0.9715830465 | I85: 0.0009769027956 | J85: 0.002930708387
A86: 80 | B86: 239.354 | C86: 517.9304199 | D86: BB | E86: 0.08612775803 | F86: 935.3585815 | G86: 175.6463928 | H86: 0.9975283662 | I86: 0.001002990175 | J86: 0.003008970524
A87: 81 | B87: 240.6153333 | C87: 520.930542 | D87: BB | E87: 0.08511933684 | F87: 924.7645264 | G87: 176.5221863 | H87: 0.9862301638 | I87: 0.0009916301109 | J87: 0.002974890333
A88: 82 | B88: 241.888 | C88: 523.9335938 | D88: BB | E88: 0.08457314223 | F88: 962.5335693 | G88: 185.3883972 | H88: 1.026509574 | I88: 0.001032130064 | J88: 0.003096390193
A89: 83 | B89: 243.0586667 | C89: 526.9321899 | D89: BB | E89: 0.08655659109 | F89: 1015.219788 | G89: 189.3362579 | H89: 1.082697648 | I89: 0.001088625787 | J89: 0.003265877362
A90: 84 | B90: 244.2353333 | C90: 529.9335938 | D90: BB | E90: 0.08436585963 | F90: 1004.561768 | G90: 194.1475983 | H90: 1.071331229 | I90: 0.001077197133 | J90: 0.0032315914
A91: 85 | B91: 245.3813333 | C91: 532.9328003 | D91: BB | E91: 0.0859080404 | F91: 980.1075439 | G91: 184.7028046 | H91: 1.045251625 | I91: 0.001050974734 | J91: 0.003152924203
A92: 86 | B92: 246.7386667 | C92: 535.9329834 | D92: BB | E92: 0.08531180024 | F92: 1036.860229 | G92: 197.2980957 | H92: 1.105776449 | I92: 0.001111830953 | J92: 0.003335492858
A93: 87 | B93: 247.914 | C93: 538.9315796 | D93: BB | E93: 0.08500936627 | F93: 1015.359924 | G93: 194.1647034 | H93: 1.082847099 | I93: 0.001088776057 | J93: 0.00326632817
A94: 88 | B94: 249.0306667 | C94: 541.9316406 | D94: BB | E94: 0.08298563957 | F94: 1036.432617 | G94: 204.9941711 | H94: 1.105320415 | I94: 0.001111372422 | J94: 0.003334117265
A95: 89 | B95: 250.246 | C95: 544.9307861 | D95: BB | E95: 0.08705214411 | F95: 1094.523804 | G95: 202.5219574 | H95: 1.167272705 | I95: 0.001173663922 | J95: 0.003520991766
A96: 90 | B96: 251.5393333 | C96: 547.9321289 | D96: BB | E96: 0.08363259584 | F96: 1032.054932 | G96: 201.9137573 | H96: 1.100651761 | I96: 0.001106678205 | J96: 0.003320034616
A97: 91 | B97: 252.876 | C97: 550.9310303 | D97: BB | E97: 0.08772971481 | F97: 1119.773438 | G97: 204.9911041 | H97: 1.194200587 | I97: 0.001200739244 | J97: 0.003602217731
A98: 92 | B98: 254.1526667 | C98: 553.9319458 | D98: BB | E98: 0.08758688718 | F98: 1145.691284 | G98: 210.2068329 | H98: 1.221841096 | I98: 0.001228531094 | J98: 0.003685593282
A99: 93 | B99: 255.2486667 | C99: 556.9302368 | D99: BB | E99: 0.08320919424 | F99: 1041.696045 | G99: 205.2573242 | H99: 1.110933683 | I99: 0.001117016424 | J99: 0.003351049273
A100: 94 | B100: 256.43 | C100: 559.9306641 | D100: BB | E100: 0.0837694034 | F100: 1181.908325 | G100: 216.2311249 | H100: 1.260465349 | I100: 0.001267366827 | J100: 0.003802100481
A101: 95 | B101: 257.6333333 | C101: 562.9312134 | D101: BB | E101: 0.0854100734 | F101: 1114.293457 | G101: 211.6931305 | H101: 1.188356373 | I101: 0.00119486303 | J101: 0.003584589091
A102: 96 | B102: 258.8813333 | C102: 565.9317627 | D102: BB | E102: 0.08266465366 | F102: 1071.195557 | G102: 213.0291748 | H102: 1.142393917 | I102: 0.001148648914 | J102: 0.003445946741
A103: 97 | B103: 260.0993333 | C103: 568.9329224 | D103: BB | E103: 0.08526241034 | F103: 1111.666382 | G103: 211.703064 | H103: 1.185554686 | I103: =$A$2*10^(-6)*F103/$B$2*7.45*10^(-6)*10^6/$C$2*2*60 -> 0.001192046003 | J103: 0.003576138009
A104: 98 | B104: 261.2966667 | C104: 571.9286499 | D104: BBA | E104: 0.08535475284 | F104: 1218.042236 | G104: 217.436264 | H104: 1.299000946 | I104: 0.00130611342 | J104: 0.003918340259
A105: 99 | B105: 262.5913333 | C105: 574.9334106 | D105: BB | E105: 0.09282613546 | F105: 1212.91626 | G105: 205.6005249 | H105: 1.293534265 | I105: 0.001300616807 | J105: 0.00390185042
A106: 100 | B106: 263.8133333 | C106: 577.9316406 | D106: BB | E106: 0.08566613495 | F106: 1150.416992 | G106: 217.6483154 | H106: 1.226880905 | I106: 0.001233598497 | J106: 0.00370079549
A107: 101 | B107: 265.0653333 | C107: 580.9336548 | D107: BB | E107: 0.08546701819 | F107: 1126.324219 | G107: 213.7805023 | H107: 1.201186775 | I107: 0.001207763683 | J107: 0.003623291048
A108: 102 | B108: 266.3353333 | C108: 583.9306641 | D108: BB | E108: 0.08505096287 | F108: 1119.009521 | G108: 213.8395691 | H108: 1.193385897 | I108: 0.001199920092 | J108: 0.003599760277
A109: 103 | B109: 267.466 | C109: 586.9303589 | D109: BB | E109: 0.08639106154 | F109: 1139.537476 | G109: 213.0850677 | H109: 1.215278267 | I109: 0.001221932331 | J109: 0.003665796993
A110: 104 | B110: 268.614 | C110: 589.932312 | D110: BB | E110: 0.08034545183 | F110: 1098.677856 | G110: 212.408844 | H110: 1.171702862 | I110: 0.001178118336 | J110: 0.003534355007
A111: 105 | B111: 269.8753333 | C111: 592.9332886 | D111: BB | E111: 0.0845547244 | F111: 1060.331421 | G111: 204.28685 | H111: 1.130807682 | I111: 0.001136999241 | J111: 0.003410997723
A112: 106 | B112: 271.154 | C112: 595.9312744 | D112: BB | E112: 0.0846394226 | F112: 1074.791504 | G112: 206.7835236 | H112: 1.146228873 | I112: 0.001152504868 | J112: 0.003457514603
A113: 107 | B113: 272.4093333 | C113: 598.9320068 | D113: BB | E113: 0.0834704116 | F113: 1059.17627 | G113: 207.7849426 | H113: 1.129575753 | I113: 0.001135760566 | J113: 0.003407281697
A114: 108 | B114: 273.6026667 | C114: 601.9335938 | D114: BB | E114: 0.08231390268 | F114: 1088.109863 | G114: 217.6944885 | H114: 1.160432454 | I114: 0.001166786218 | J114: 0.003500358654
A115: 109 | B115: 274.8346667 | C115: 604.9317627 | D115: BB | E115: 0.08417445421 | F115: 1035.440796 | G115: 200.7520142 | H115: 1.104262671 | I115: 0.001110308886 | J115: 0.003330926658
A116: 110 | B116: 275.958 | C116: 607.9338989 | D116: BB | E116: 0.08493750542 | F116: 1057.415161 | G116: 202.4452667 | H116: 1.12769759 | I116: 0.001133872119 | J116: 0.003401616358
A117: 111 | B117: 277.1373333 | C117: 610.9333496 | D117: BB | E117: 0.08601212502 | F117: 1024.577271 | G117: 192.7590942 | H117: 1.092677088 | I117: 0.001098659868 | J117: 0.003295979604
A118: 112 | B118: 278.4433333 | C118: 613.9317017 | D118: BB | E118: 0.08175768703 | F118: 1047.96582 | G118: 197.9716034 | H118: 1.117620187 | I118: 0.001123739539 | J118: 0.003371218617
A119: 113 | B119: 279.69 | C119: 616.9325562 | D119: BB | E119: 0.08395597339 | F119: 944.031189 | G119: 183.6963959 | H119: 1.006777409 | I119: 0.00101228986 | J119: 0.003036869579
A120: 114 | B120: 280.89 | C120: 619.9329834 | D120: BB | E120: 0.08597359061 | F120: 1017.024719 | G120: 191.4571686 | H120: 1.084622546 | I120: 0.001090561225 | J120: 0.003271683676
A121: 115 | B121: 282.09 | C121: 622.9331055 | D121: BB | E121: 0.07860945165 | F121: 940.7005005 | G121: 187.2537231 | H121: 1.003225342 | I121: 0.001008718344 | J121: 0.003026155032
A122: 116 | B122: 283.2973333 | C122: 625.9319458 | D122: BB | E122: 0.07936313003 | F122: 972.6273193 | G122: 191.1509705 | H122: 1.037274217 | I122: 0.001042953648 | J122: 0.003128860945
A123: 117 | B123: 284.6053333 | C123: 628.9331055 | D123: BB | E123: 0.08768834174 | F123: 928.046814 | G123: 170.003067 | H123: 0.9897306128 | I123: 0.000995149726 | J123: 0.002985449178
A124: 118 | B124: 285.888 | C124: 631.9315186 | D124: BB | E124: 0.07898787409 | F124: 907.9876709 | G124: 179.582489 | H124: 0.9683382135 | I124: 0.0009736401961 | J124: 0.002920920588
A125: 119 | B125: 287.196 | C125: 634.9320679 | D125: BB | E125: 0.08475147188 | F125: 900.4271851 | G125: 172.9173584 | H125: 0.9602752105 | I125: 0.0009655330453 | J125: 0.002896599136
A126: 120 | B126: 288.346 | C126: 637.9328613 | D126: BB | E126: 0.08938458562 | F126: 968.5647583 | G126: 172.8224182 | H126: 1.032941633 | I126: 0.001038597342 | J126: 0.003115792025
A127: 121 | B127: 289.6333333 | C127: 640.9317017 | D127: BB | E127: 0.0802461803 | F127: 838.1908569 | G127: 162.3155823 | H127: 0.8939022665 | I127: 0.0008987966868 | J127: 0.00269639006
A128: 122 | B128: 290.8373333 | C128: 643.9351196 | D128: BB | E128: 0.08422191441 | F128: 887.5817261 | G128: 171.9493866 | H128: 0.9465759619 | I128: 0.0009517587887 | J128: 0.002855276366
A129: 123 | B129: 291.33 | C129: 646.9320068 | D129: BB | E129: 0.08114970475 | F129: 860.2788086 | G129: 164.1313782 | H129: 0.9174583217 | I129: 0.0009224817194 | J129: 0.002767445158
A130: 124 | B130: 290.8766667 | C130: 649.9325562 | D130: BB | E130: 0.08420393616 | F130: 773.6578369 | G130: 149.9238892 | H130: 0.8250799782 | I130: 0.0008295975729 | J130: 0.002488792719
A131: 125 | B131: 290.388 | C131: 652.9329834 | D131: BB | E131: 0.0793331787 | F131: 745.9954834 | G131: 146.6848755 | H131: 0.7955790115 | I131: 0.0007999350784 | J131: 0.002399805235
A132: 126 | B132: 290.0626667 | C132: 655.9354858 | D132: BB | E132: 0.08896263689 | F132: 796.4842529 | G132: 143.0409241 | H132: 0.8494235806 | I132: 0.0008540744649 | J132: 0.002562223395
A133: 127 | B133: 289.8133333 | C133: 658.9315186 | D133: BB | E133: 0.09029848874 | F133: 719.4671631 | G133: 126.6059494 | H133: 0.767287453 | I133: 0.000771488614 | J133: 0.002314465842
A134: 128 | B134: 289.7053333 | C134: 661.9373169 | D134: BB | E134: 0.09317304194 | F134: 700.7196045 | G134: 118.182785 | H134: 0.7472938144 | I134: 0.0007513855033 | J134: 0.00225415651
A135: 129 | B135: 289.4946667 | C135: 664.9326172 | D135: BB | E135: 0.08414414525 | F135: 595.4303589 | G135: 115.5006485 | H135: 0.6350063866 | I135: =$A$2*10^(-6)*F135/$B$2*7.45*10^(-6)*10^6/$C$2*2*60 -> 0.0006384832635 | J135: =I135*3 -> 0.001915449791
A136: 130 | B136: 289.42 | C136: 667.9304199 | D136: BB | E136: 0.09050389379 | F136: 605.8467407 | G136: 113.084343 | H136: 0.6461151064 | I136: 0.0006496528073 | J136: 0.001948958422
A137: 131 | B137: 289.4233333 | C137: 670.9313354 | D137: BB | E137: 0.08595865965 | F137: 573.0803223 | G137: 107.9096451 | H137: 0.6111708267 | I137: 0.0006145171958 | J137: 0.001843551587
A138: 132 | B138: 289.4673333 | C138: 673.9330444 | D138: BB | E138: 0.08825606108 | F138: 574.5452881 | G138: 104.3174515 | H138: 0.6127331633 | I138: 0.0006160880867 | J138: 0.00184826426
A139: 133 | B139: 289.424 | C139: 676.9331665 | D139: BB | E139: 0.08814760298 | F139: 537.6474609 | G139: 97.78313446 | H139: 0.5733828757 | I139: 0.0005765223428 | J139: 0.001729567028
A140: 134 | B140: 289.3386667 | C140: 679.9312134 | D140: BB | E140: 0.08930633217 | F140: 494.6312561 | G140: 88.36352539 | H140: 0.5275075447 | I140: 0.0005303958287 | J140: 0.001591187486
A141: 135 | B141: 289.3173333 | C141: 682.9325562 | D141: BB | E141: 0.09517044574 | F141: 495.5348816 | G141: 86.06821442 | H141: 0.5284712308 | I141: 0.0005313647913 | J141: 0.001594094374
A142: 136 | B142: 289.2806667 | C142: 685.9304199 | D142: BB | E142: 0.102381967 | F142: 595.4337158 | G142: 80.41871643 | H142: 0.6350099667 | I142: 0.0006384868632 | J142: 0.00191546059
A143: 137 | B143: 289.2966667 | C143: 688.932373 | D143: BB | E143: 0.08321136236 | F143: 474.9159546 | G143: 82.43674469 | H143: 0.5064818409 | I143: 0.000509255002 | J143: 0.001527765006
A144: 138 | B144: 289.3973333 | C144: 691.9348145 | D144: BB | E144: 0.1170044094 | F144: 570.0229492 | G144: 71.50486755 | H144: 0.6079102415 | I144: 0.0006112387578 | J144: 0.001833716273
A145: 139 | B145: 289.4946667 | C145: 694.930603 | D145: BB | E145: 0.09150182456 | F145: 476.1466675 | G145: 77.69094849 | H145: 0.5077943546 | I145: 0.0005105747022 | J145: 0.001531724107
A146: 140 | B146: 289.4126667 | C146: 697.9384766 | D146: BB | E146: 0.09158200026 | F146: 335.2045288 | G146: 61.50670624 | H146: 0.3574843194 | I146: 0.0003594416682 | J146: 0.001078325005
A147: 141 | B147: 289.3093333 | C147: 700.9368286 | D147: BB | E147: 0.09286377579 | F147: 360.2257996 | G147: 64.79170227 | H147: 0.3841686604 | I147: 0.0003862721151 | J147: 0.001158816345
A148: 142 | B148: 289.3013333 | C148: 703.9381714 | D148: BB | E148: 0.08522434533 | F148: 370.1695862 | G148: 70.53804016 | H148: 0.3947733733 | I148: 0.0003969348924 | J148: 0.001190804677
A149: 143 | B149: 289.3173333 | C149: 706.9086304 | D149: BB | E149: 0.1145216748 | F149: 453.7807312 | G149: 53.735466 | H149: 0.4839418383 | I149: 0.0004865915852 | J149: 0.001459774755
A150: 144 | B150: 289.2726667 | C150: 709.9331055 | D150: BB | E150: 0.07921665907 | F150: 306.622467 | G150: 56.58733368 | H150: 0.327002515 | I150: 0.0003287929655 | J150: 0.0009863788964
A151: 145 | B151: 289.174 | C151: 712.9311523 | D151: BB | E151: 0.08404901624 | F151: 279.1503906 | G151: 50.84784317 | H151: 0.2977044725 | I151: 0.0002993345061 | J151: 0.0008980035184
A152: 146 | B152: 289.234 | C152: 715.9347534 | D152: BB | E152: 0.09924705327 | F152: 351.317749 | G152: 51.72062302 | H152: 0.3746685251 | I152: 0.0003767199633 | J152: 0.00113015989
A153: 147 | B153: 289.2873333 | C153: 718.928772 | D153: BB | E153: 0.07075804472 | F153: 258.7584229 | G153: 51.37761688 | H153: 0.2759571269 | I153: 0.0002774680864 | J153: 0.0008324042593
A154: 148 | B154: 289.2513333 | C154: 721.9346313 | D154: BB | E154: 0.06806572527 | F154: 258.2209167 | G154: 53.73295593 | H154: 0.2753838948 | I154: 0.0002768917157 | J154: 0.000830675147
A155: 149 | B155: 289.2666667 | C155: 724.9257812 | D155: BB | E155: 0.0850033313 | F155: 303.3935242 | G155: 48.4853363 | H155: 0.3235589564 | I155: 0.0003253305522 | J155: 0.0009759916566
A156: 150 | B156: 289.222 | C156: 727.928894 | D156: BB | E156: 0.08966566622 | F156: 210.605072 | G156: 39.84484863 | H156: 0.224603203 | I156: 0.0002258329823 | J156: 0.0006774989469
A157: 151 | B157: 289.2493333 | C157: 730.9348145 | D157: BB | E157: 0.08433000743 | F157: 207.3210602 | G157: 40.09191513 | H157: 0.2211009152 | I157: 0.0002223115183 | J157: 0.0006669345548
A158: 152 | B158: 289.238 | C158: 733.9244995 | D158: BB | E158: 0.08263425529 | F158: 247.7589874 | G158: 40.92237473 | H158: 0.2642266002 | I158: 0.0002656733311 | J158: 0.0007970199932
A159: 153 | B159: 289.212 | C159: 736.9349365 | D159: BB | E159: 0.07731314749 | F159: 224.3762817 | G159: 42.69432449 | H159: 0.2392897335 | I159: 0.0002405999266 | J159: 0.0007217997797
A160: 154 | B160: 289.2373333 | C160: 739.9362793 | D160: BB | E160: 0.08016130328 | F160: 170.436615 | G160: 33.0515976 | H160: 0.181764899 | I160: 0.0001827601239 | J160: 0.0005482803717
A161: 155 | B161: 289.198 | C161: 742.9348755 | D161: BB | E161: 0.0962575376 | F161: 288.1073303 | G161: 44.07764053 | H161: 0.3072567464 | I161: 0.0003089390821 | J161: 0.0009268172462
A162: 156 | B162: 289.1713333 | C162: 745.9342041 | D162: BB | E162: 0.09845244139 | F162: 196.5791931 | G162: 30.80387878 | H162: 0.2096450764 | I162: 0.0002107929549 | J162: 0.0006323788646
A163: 157 | B163: 289.1946667 | C163: 748.9476929 | D163: BB | E163: 0.08845236152 | F163: 182.7850342 | G163: 31.15293884 | H163: 0.1949340714 | I163: 0.000196001402 | J163: 0.0005880042061
A164: 158 | B164: 289.2586667 | C164: 751.942749 | D164: BB | E164: 0.1039402932 | F164: 199.5860291 | G164: 27.73999786 | H164: 0.2128517655 | I164: 0.0002140172016 | J164: 0.0006420516049
A165: 159 | B165: 289.2373333 | C165: 754.9125977 | D165: BB | E165: 0.09562576562 | F165: 252.3712769 | G165: 36.97712326 | H165: 0.2691454512 | I165: 0.0002706191145 | J165: 0.0008118573435
A166: 160 | B166: 289.204 | C166: 757.9309082 | D166: BB | E166: 0.06875583529 | F166: 196.6031647 | G166: 47.04470062 | H166: 0.2096706413 | I166: 0.0002108186597 | J166: 0.0006324559791
A167: 161 | B167: 289.2593333 | C167: 760.9182739 | D167: BB | E167: 0.08432164043 | F167: 232.6852722 | G167: 39.73355484 | H167: 0.2481509915 | I167: =$A$2*10^(-6)*F167/$B$2*7.45*10^(-6)*10^6/$C$2*2*60 -> 0.000249509703 | J167: 0.0007485291089
A168: 162 | B168: 289.24 | C168: 763.9298706 | D168: BB | E168: 0.08781337738 | F168: 182.9637299 | G168: 31.47722435 | H168: 0.1951246443 | I168: 0.0001961930184 | J168: 0.0005885790552
A169: 163 | B169: 289.0886667 | C169: 766.9326172 | D169: BB | E169: 0.07248297334 | F169: 151.2073212 | G169: 29.16664314 | H169: 0.161257506 | I169: 0.0001621404459 | J169: 0.0004864213377
A170: 164 | B170: 288.9373333 | C170: 769.9331055 | D170: BB | E170: 0.08781488985 | F170: 157.6824799 | G170: 28.82758141 | H170: 0.1681630442 | I170: 0.0001690837943 | J170: 0.000507251383
A171: 165 | B171: 289.0433333 | C171: 772.9265747 | D171: BB | E171: 0.09590465575 | F171: 163.0563812 | G171: 26.45620537 | H171: 0.1738941287 | I171: 0.0001748462585 | J171: 0.0005245387754
A172: 166 | B172: 289.0906667 | C172: 775.9298706 | D172: BB | E172: 0.1023354456 | F172: 168.0228729 | G172: 26.37055206 | H172: 0.1791907245 | I172: 0.0001801718549 | J172: 0.0005405155648
A173: 167 | B173: 289.1026667 | C173: 778.9360352 | D173: BB | E173: 0.09912845492 | F173: 195.9394379 | G173: 32.13847351 | H173: 0.2089627991 | I173: 0.0002101069418 | J173: 0.0006303208253
A174: 168 | B174: 289.136 | C174: 781.9326172 | D174: BB | E174: 0.09775488079 | F174: 185.0441437 | G174: 26.406353 | H174: 0.1973433354 | I174: 0.0001984238576 | J174: 0.0005952715728
A175: 169 | B175: 289.084 | C175: 784.9140625 | D175: BB | E175: 0.09463027865 | F175: 140.0505524 | G175: 18.86087608 | H175: 0.1493591885 | I175: 0.0001501769811 | J175: 0.0004505309432
A176: 170 | B176: 289.1413333 | C176: 787.90271 | D176: BB | E176: 0.1223516092 | F176: 264.9618835 | G176: 30.20198822 | H176: 0.2825729084 | I176: 0.0002841200916 | J176: 0.0008523602748
A177: 171 | B177: 289.1613333 | C177: 790.9209595 | D177: BB | E177: 0.08375326544 | F177: 168.3124542 | G177: 32.86256027 | H177: 0.1794995532 | I177: 0.0001804823746 | J177: 0.0005414471237
A178: 172 | B178: 289.1786667 | C178: 793.9282837 | D178: BB | E178: 0.09142314643 | F178: 122.3723145 | G178: 21.17488098 | H178: 0.1305059443 | I178: 0.0001312205089 | J178: 0.0003936615267
A179: 173 | B179: 289.1606667 | C179: 796.9337158 | D179: BB | E179: 0.09931531549 | F179: 113.7716675 | G179: 17.62372208 | H179: 0.1213336445 | I179: 0.0001219979876 | J179: 0.0003659939629
A180: 174 | B180: 289.1713333 | C180: 799.9227295 | D180: BB | E180: 0.06923271716 | F180: 115.4785385 | G180: 23.53985023 | H180: 0.1231539648 | I180: 0.0001238282749 | J180: 0.0003714848246
A181: 175 | B181: 289.192 | C181: 802.9301147 | D181: BB | E181: 0.08221814036 | F181: 141.3695526 | G181: 24.90724564 | H181: 0.1507658577 | I181: 0.0001515913523 | J181: 0.000454774057
A182: 176 | B182: 289.2166667 | C182: 805.9429321 | D182: BB | E182: 0.09933037311 | F182: 112.2398071 | G182: 20.67672157 | H182: 0.1196999671 | I182: 0.0001203553653 | J182: 0.0003610660959
A183: 177 | B183: 289.1713333 | C183: 808.9407959 | D183: BB | E183: 0.1019040644 | F183: 191.4529419 | G183: 27.27114677 | H183: 0.2041781025 | I183: 0.0002052960474 | J183: 0.0006158881421
A184: 178 | B184: 289.1933333 | C184: 811.9160156 | D184: BB | E184: 0.1074906886 | F184: 168.2582092 | G184: 21.45587349 | H184: 0.1794417027 | I184: 0.0001804242074 | J184: 0.0005412726221
A185: 179 | B185: 289.238 | C185: 814.9237671 | D185: BB | E185: 0.07792834193 | F185: 149.147583 | G185: 26.39312744 | H185: 0.1590608647 | I185: 0.0001599317773 | J185: 0.0004797953319
A186: 180 | B186: 289.2106667 | C186: 817.9422607 | D186: BB | E186: 0.09770207852 | F186: 130.6523895 | G186: 20.68161201 | H186: 0.1393363649 | I186: 0.0001400992791 | J186: 0.0004202978374
A187: 181 | B187: 289.2186667 | C187: 820.9456177 | D187: BB | E187: 0.09379066527 | F187: 140.4157715 | G187: 23.4728241 | H187: 0.1497486824 | I187: 0.0001505686075 | J187: 0.0004517058226
A188: 182 | B188: 289.1973333 | C188: 823.9375 | D188: BB | E188: 0.0792157501 | F188: 118.1421204 | G188: 21.80350113 | H188: 0.125994585 | I188: 0.0001266844484 | J188: 0.0003800533452
A189: 1 | C189: 829.404413 | D189: BB | E189: 0.1087081209 | F189: 254.1851807 | G189: 33.42978668 | H189: 4.041875847 | I189: =$A$2*10^(-6)*F189/$B$2*7.45*10^(-6)*10^6/$C$2*2*60 -> 0.0002725641736 | J189: =I189*3 -> 0.0008176925207
A190: 2 | C190: 832.4077818 | D190: BB | E190: 0.0651448518 | F190: 103.6212845 | G190: 22.74754715 | H190: 1.647713553 | I190: 0.0001111136759 | J190: 0.0003333410276
A191: 3 | C191: 835.4135101 | D191: BB | E191: 0.08636369556 | F191: 112.7990341 | G191: 19.82995033 | H191: 1.79365174 | I191: 0.0001209550275 | J191: 0.0003628650825
A192: 4 | C192: 838.4167344 | D192: BB | E192: 0.08772388846 | F192: 133.8219757 | G192: 20.61775208 | H192: 2.127943927 | I192: 0.0001434980439 | J192: 0.0004304941317
A193: 5 | C193: 841.4162176 | D193: BB | E193: 0.08470157534 | F193: 117.0246582 | G193: 19.87272835 | H193: 1.860844674 | I193: 0.0001254861875 | J193: 0.0003764585626
A194: 6 | C194: 844.41629 | D194: BB | E194: 0.09184065461 | F194: 109.6715622 | G194: 20.04211235 | H194: 1.743920858 | I194: 0.0001176014221 | J194: 0.0003528042662
A195: 7 | C195: 847.4305837 | D195: BB | E195: 0.09966564178 | F195: 130.9632111 | G195: 21.31989861 | H195: 2.082485841 | I195: 0.0001404325748 | J195: 0.0004212977243
A196: 8 | C196: 850.4090612 | D196: BB | E196: 0.09195158631 | F196: 134.4103546 | G196: 21.79411125 | H196: 2.137299919 | I196: 0.0001441289659 | J196: 0.0004323868976
A197: 9 | C197: 853.4135396 | D197: BB | E197: 0.09271772206 | F197: 116.2581863 | G197: 18.65219879 | H197: 1.848656771 | I197: 0.0001246642955 | J197: 0.0003739928866
A198: 10 | C198: 859.4196603 | D198: BB | E198: 0.1012672633 | F198: 201.5761871 | G198: 26.34473419 | H198: 3.205324245 | I198: 0.0002161512592 | J198: 0.0006484537775
A199: 11 | C199: 868.4281614 | D199: BB | E199: 0.06936662644 | F199: 79.4056778 | G199: 16.14875412 | H199: 1.262653827 | I199: 8.514714701e-05 | J199: 0.000255441441
A200: 12 | C200: 871.4018209 | D200: BB | E200: 0.08588775992 | F200: 85.2097168 | G200: 15.08798218 | H200: 1.354945616 | I200: 9.13708501e-05 | J200: 0.0002741125503
A201: 13 | C201: 874.3938253 | D201: BV | E201: 0.06473655999 | F201: 124.5475693 | G201: 29.81447411 | H201: 1.98046877 | I201: 0.0001335530466 | J201: 0.0004006591399
... 39 more rows

Sheet Roller control thermal
C1: Time | D1: Channel 1 | E1: Channel 2 | G1: Ratio | H1: Injection time | I1: Thermal start time
C2: Minutes | D2: ( °C ) | E2: ( °C ) | G2: =G11/J2 -> 0.07 | H2: 2016-09-13T12:14:08 | I2: 2016-09-13T12:13:56 | J2: 00:03:00
A3: =$I$2+(C3/1440) -> 2016-09-13T12:13:56 | B3: =C3+11 -> 11 | C3: 0 | D3: 23.02 | E3: 22.97 | G3: =H11/J2 -> 0.89 | H3: 2nd Injection time | I3: 2nd Thermal time
A4: 2016-09-13T12:16:56 | B4: =C4+11 -> 14 | C4: 3 | D4: 23.04 | E4: 22.99 | H4: 2016-09-14T02:01:37 | I4: 2016-09-14T01:58:56
A5: 2016-09-13T12:19:56 | B5: 17 | C5: 6 | D5: 23.07 | E5: 23.02
A6: 2016-09-13T12:22:56 | B6: 20 | C6: 9 | D6: 23.14 | E6: 23.1
A7: 2016-09-13T12:25:56 | B7: 23 | C7: 12 | D7: 23.98 | E7: 23.86
A8: 2016-09-13T12:28:56 | B8: 26 | C8: 15 | D8: 26.15 | E8: 25.84
A9: 2016-09-13T12:31:56 | B9: 29 | C9: 18 | D9: 28.49 | E9: 28.03
A10: 2016-09-13T12:34:56 | B10: 32 | C10: 21 | D10: 30.61 | E10: 30.14
A11: 2016-09-13T12:37:56 | B11: 35 | C11: 24 | D11: 32.57 | E11: 32.1 | G11: =H2-I2 -> 00:00:12 | H11: =H4-I4 -> 00:02:41
A12: 2016-09-13T12:40:56 | B12: 38 | C12: 27 | D12: 34.36 | E12: 33.89 | G12: min | H12: Temperature /°C
A13: 2016-09-13T12:43:56 | B13: 41 | C13: 30 | D13: 35.98 | E13: 35.53 | G13: =((A3-$A$3)*1440)+11 -> 11 | H13: =E3+($G$2*(E4-E3)) -> 23.0 | I13: =((A3-$A$3)*1440)+11 -> 11 | J13: =D3+($G$2*(D4-D3)) -> 23.0 | K13: =H13-J13 -> -0.1
A14: 2016-09-13T12:46:56 | B14: 44 | C14: 33 | D14: 37.51 | E14: 37.06 | G14: =((A4-$A$3)*1440)+11 -> 14 | H14: 23.0 | I14: =((A4-$A$3)*1440)+11 -> 14 | J14: 23.0 | K14: -0.1
A15: 2016-09-13T12:49:56 | B15: 47 | C15: 36 | D15: 38.94 | E15: 38.5 | G15: 17 | H15: 23.0 | I15: 17 | J15: 23.1 | K15: -0.0
A16: 2016-09-13T12:52:56 | B16: 50 | C16: 39 | D16: 40.33 | E16: 39.9 | G16: 20 | H16: 23.2 | I16: 20 | J16: 23.2 | K16: -0.0
A17: 2016-09-13T12:55:56 | B17: 53 | C17: 42 | D17: 41.78 | E17: 41.33 | G17: 23 | H17: 24.0 | I17: 23 | J17: 24.1 | K17: -0.1
A18: 2016-09-13T12:58:56 | B18: 56 | C18: 45 | D18: 43.14 | E18: 42.69 | G18: 26 | H18: 26.0 | I18: 26 | J18: 26.3 | K18: -0.3
A19: 2016-09-13T13:01:56 | B19: 59 | C19: 48 | D19: 44.41 | E19: 43.96 | G19: 29 | H19: 28.2 | I19: 29 | J19: 28.6 | K19: -0.5
A20: 2016-09-13T13:04:56 | B20: 62 | C20: 51 | D20: 45.73 | E20: 45.28 | G20: 32 | H20: 30.3 | I20: 32 | J20: 30.7 | K20: -0.5
A21: 2016-09-13T13:07:56 | B21: 65 | C21: 54 | D21: 47.05 | E21: 46.59 | G21: 35 | H21: 32.2 | I21: 35 | J21: 32.7 | K21: -0.5
A22: 2016-09-13T13:10:56 | B22: 68 | C22: 57 | D22: 48.34 | E22: 47.88 | G22: 38 | H22: 34.0 | I22: 38 | J22: 34.5 | K22: -0.5
A23: 2016-09-13T13:13:56 | B23: 71 | C23: 60 | D23: 49.68 | E23: 49.2 | G23: 41 | H23: 35.6 | I23: 41 | J23: 36.1 | K23: -0.4
A24: 2016-09-13T13:16:56 | B24: 74 | C24: 63 | D24: 51.02 | E24: 50.54 | G24: 44 | H24: 37.2 | I24: 44 | J24: 37.6 | K24: -0.4
A25: 2016-09-13T13:19:56 | B25: 77 | C25: 66 | D25: 52.31 | E25: 51.82 | G25: 47 | H25: 38.6 | I25: 47 | J25: 39.0 | K25: -0.4
A26: 2016-09-13T13:22:56 | B26: 80 | C26: 69 | D26: 53.69 | E26: 53.19 | G26: 50 | H26: 40.0 | I26: 50 | J26: 40.4 | K26: -0.4
A27: 2016-09-13T13:25:56 | B27: 83 | C27: 72 | D27: 54.97 | E27: 54.45 | G27: 53 | H27: 41.4 | I27: 53 | J27: 41.9 | K27: -0.5
A28: 2016-09-13T13:28:56 | B28: 86 | C28: 75 | D28: 56.19 | E28: 55.68 | G28: 56 | H28: 42.8 | I28: 56 | J28: 43.2 | K28: -0.5
A29: 2016-09-13T13:31:56 | B29: 89 | C29: 78 | D29: 57.49 | E29: 56.97 | G29: 59 | H29: 44.0 | I29: 59 | J29: 44.5 | K29: -0.4
A30: 2016-09-13T13:34:56 | B30: 92 | C30: 81 | D30: 58.73 | E30: 58.21 | G30: 62 | H30: 45.4 | I30: 62 | J30: 45.8 | K30: -0.5
A31: 2016-09-13T13:37:56 | B31: 95 | C31: 84 | D31: 60.03 | E31: 59.5 | G31: 65 | H31: 46.7 | I31: 65 | J31: 47.1 | K31: -0.5
A32: 2016-09-13T13:40:56 | B32: 98 | C32: 87 | D32: 61.33 | E32: 60.8 | G32: 68 | H32: 48.0 | I32: 68 | J32: 48.4 | K32: -0.5
A33: 2016-09-13T13:43:56 | B33: 101 | C33: 90 | D33: 62.66 | E33: 62.11 | G33: 71 | H33: 49.3 | I33: 71 | J33: 49.8 | K33: -0.5
A34: 2016-09-13T13:46:56 | B34: 104 | C34: 93 | D34: 63.96 | E34: 63.41 | G34: 74 | H34: 50.6 | I34: 74 | J34: 51.1 | K34: -0.5
A35: 2016-09-13T13:49:56 | B35: 107 | C35: 96 | D35: 65.32 | E35: 64.75 | G35: 77 | H35: 51.9 | I35: 77 | J35: 52.4 | K35: -0.5
A36: 2016-09-13T13:52:56 | B36: 110 | C36: 99 | D36: 66.57 | E36: 66 | G36: 80 | H36: 53.3 | I36: 80 | J36: 53.8 | K36: -0.5
A37: 2016-09-13T13:55:56 | B37: 113 | C37: 102 | D37: 67.82 | E37: 67.26 | G37: 83 | H37: 54.5 | I37: 83 | J37: 55.1 | K37: -0.5
A38: 2016-09-13T13:58:56 | B38: 116 | C38: 105 | D38: 69.13 | E38: 68.56 | G38: 86 | H38: 55.8 | I38: 86 | J38: 56.3 | K38: -0.5
A39: 2016-09-13T14:01:56 | B39: 119 | C39: 108 | D39: 70.4 | E39: 69.82 | G39: 89 | H39: 57.1 | I39: 89 | J39: 57.6 | K39: -0.5
A40: 2016-09-13T14:04:56 | B40: 122 | C40: 111 | D40: 71.69 | E40: 71.1 | G40: 92 | H40: 58.3 | I40: 92 | J40: 58.8 | K40: -0.5
A41: 2016-09-13T14:07:56 | B41: 125 | C41: 114 | D41: 72.97 | E41: 72.38 | G41: 95 | H41: 59.6 | I41: 95 | J41: 60.1 | K41: -0.5
A42: 2016-09-13T14:10:56 | B42: 128 | C42: 117 | D42: 74.23 | E42: 73.64 | G42: 98 | H42: 60.9 | I42: 98 | J42: 61.4 | K42: -0.5
A43: 2016-09-13T14:13:56 | B43: 131 | C43: 120 | D43: 75.56 | E43: 74.96 | G43: 101 | H43: 62.2 | I43: 101 | J43: 62.7 | K43: -0.5
A44: 2016-09-13T14:16:56 | B44: 134 | C44: 123 | D44: 76.89 | E44: 76.28 | G44: 104 | H44: 63.5 | I44: 104 | J44: 64.1 | K44: -0.6
A45: 2016-09-13T14:19:56 | B45: 137 | C45: 126 | D45: 78.19 | E45: 77.59 | G45: 107 | H45: 64.8 | I45: 107 | J45: 65.4 | K45: -0.6
A46: 2016-09-13T14:22:56 | B46: 140 | C46: 129 | D46: 79.44 | E46: 78.83 | G46: 110 | H46: 66.1 | I46: 110 | J46: 66.7 | K46: -0.6
A47: 2016-09-13T14:25:56 | B47: 143 | C47: 132 | D47: 80.68 | E47: 80.07 | G47: 113 | H47: 67.3 | I47: 113 | J47: 67.9 | K47: -0.6
A48: 2016-09-13T14:28:56 | B48: 146 | C48: 135 | D48: 81.95 | E48: 81.33 | G48: 116 | H48: 68.6 | I48: 116 | J48: 69.2 | K48: -0.6
A49: 2016-09-13T14:31:56 | B49: 149 | C49: 138 | D49: 83.18 | E49: 82.56 | G49: 119 | H49: 69.9 | I49: 119 | J49: 70.5 | K49: -0.6
A50: 2016-09-13T14:34:56 | B50: 152 | C50: 141 | D50: 84.47 | E50: 83.85 | G50: 122 | H50: 71.2 | I50: 122 | J50: 71.8 | K50: -0.6
A51: 2016-09-13T14:37:56 | B51: 155 | C51: 144 | D51: 85.79 | E51: 85.16 | G51: 125 | H51: 72.5 | I51: 125 | J51: 73.1 | K51: -0.6
A52: 2016-09-13T14:40:56 | B52: 158 | C52: 147 | D52: 87.06 | E52: 86.42 | G52: 128 | H52: 73.7 | I52: 128 | J52: 74.3 | K52: -0.6
A53: 2016-09-13T14:43:56 | B53: 161 | C53: 150 | D53: 88.36 | E53: 87.72 | G53: 131 | H53: 75.0 | I53: 131 | J53: 75.6 | K53: -0.6
A54: 2016-09-13T14:46:56 | B54: 164 | C54: 153 | D54: 89.65 | E54: 89.01 | G54: 134 | H54: 76.4 | I54: 134 | J54: 77.0 | K54: -0.6
A55: 2016-09-13T14:49:56 | B55: 167 | C55: 156 | D55: 90.92 | E55: 90.27 | G55: 137 | H55: 77.7 | I55: 137 | J55: 78.3 | K55: -0.6
A56: 2016-09-13T14:52:56 | B56: 170 | C56: 159 | D56: 92.21 | E56: 91.56 | G56: 140 | H56: 78.9 | I56: 140 | J56: 79.5 | K56: -0.6
A57: 2016-09-13T14:55:56 | B57: 173 | C57: 162 | D57: 93.55 | E57: 92.9 | G57: 143 | H57: 80.2 | I57: 143 | J57: 80.8 | K57: -0.6
A58: 2016-09-13T14:58:56 | B58: 176 | C58: 165 | D58: 94.84 | E58: 94.19 | G58: 146 | H58: 81.4 | I58: 146 | J58: 82.0 | K58: -0.6
A59: 2016-09-13T15:01:56 | B59: 179 | C59: 168 | D59: 96.14 | E59: 95.48 | G59: 149 | H59: 82.6 | I59: 149 | J59: 83.3 | K59: -0.6
A60: 2016-09-13T15:04:56 | B60: 182 | C60: 171 | D60: 97.37 | E60: 96.71 | G60: 152 | H60: 83.9 | I60: 152 | J60: 84.6 | K60: -0.6
A61: 2016-09-13T15:07:56 | B61: 185 | C61: 174 | D61: 98.62 | E61: 97.97 | G61: 155 | H61: 85.2 | I61: 155 | J61: 85.9 | K61: -0.6
A62: 2016-09-13T15:10:56 | B62: 188 | C62: 177 | D62: 99.97 | E62: 99.31 | G62: 158 | H62: 86.5 | I62: 158 | J62: 87.1 | K62: -0.6
A63: 2016-09-13T15:13:56 | B63: 191 | C63: 180 | D63: 101.29 | E63: 100.63 | G63: 161 | H63: 87.8 | I63: 161 | J63: 88.4 | K63: -0.6
A64: 2016-09-13T15:16:56 | B64: 194 | C64: 183 | D64: 102.56 | E64: 101.9 | G64: 164 | H64: 89.1 | I64: 164 | J64: 89.7 | K64: -0.6
A65: 2016-09-13T15:19:56 | B65: 197 | C65: 186 | D65: 103.85 | E65: 103.19 | G65: 167 | H65: 90.4 | I65: 167 | J65: 91.0 | K65: -0.7
A66: 2016-09-13T15:22:56 | B66: 200 | C66: 189 | D66: 105.12 | E66: 104.46 | G66: 170 | H66: 91.6 | I66: 170 | J66: 92.3 | K66: -0.6
A67: =$I$2+(C67/1440) -> 2016-09-13T15:25:56 | B67: 203 | C67: 192 | D67: 106.41 | E67: 105.76 | G67: 173 | H67: 93.0 | I67: 173 | J67: 93.6 | K67: -0.6
A68: 2016-09-13T15:28:56 | B68: =C68+11 -> 206 | C68: 195 | D68: 107.75 | E68: 107.09 | G68: 176 | H68: 94.3 | I68: 176 | J68: 94.9 | K68: -0.7
A69: 2016-09-13T15:31:56 | B69: 209 | C69: 198 | D69: 109.03 | E69: 108.37 | G69: 179 | H69: 95.6 | I69: 179 | J69: 96.2 | K69: -0.7
A70: 2016-09-13T15:34:56 | B70: 212 | C70: 201 | D70: 110.29 | E70: 109.62 | G70: 182 | H70: 96.8 | I70: 182 | J70: 97.5 | K70: -0.7
A71: 2016-09-13T15:37:56 | B71: 215 | C71: 204 | D71: 111.54 | E71: 110.87 | G71: 185 | H71: 98.1 | I71: 185 | J71: 98.7 | K71: -0.7
A72: 2016-09-13T15:40:56 | B72: 218 | C72: 207 | D72: 112.79 | E72: 112.12 | G72: 188 | H72: 99.4 | I72: 188 | J72: 100.1 | K72: -0.7
A73: 2016-09-13T15:43:56 | B73: 221 | C73: 210 | D73: 114.02 | E73: 113.36 | G73: 191 | H73: 100.7 | I73: 191 | J73: 101.4 | K73: -0.7
A74: 2016-09-13T15:46:56 | B74: 224 | C74: 213 | D74: 115.35 | E74: 114.68 | G74: 194 | H74: 102.0 | I74: 194 | J74: 102.6 | K74: -0.7
A75: 2016-09-13T15:49:56 | B75: 227 | C75: 216 | D75: 116.65 | E75: 115.98 | G75: 197 | H75: 103.3 | I75: 197 | J75: 103.9 | K75: -0.7
A76: 2016-09-13T15:52:56 | B76: 230 | C76: 219 | D76: 117.95 | E76: 117.27 | G76: 200 | H76: 104.5 | I76: 200 | J76: 105.2 | K76: -0.7
A77: 2016-09-13T15:55:56 | B77: 233 | C77: 222 | D77: 119.19 | E77: 118.52 | G77: 203 | H77: =E67+($G$2*(E68-E67)) -> 105.8 | I77: 203 | J77: =D67+($G$2*(D68-D67)) -> 106.5 | K77: =H77-J77 -> -0.7
A78: 2016-09-13T15:58:56 | B78: 236 | C78: 225 | D78: 120.46 | E78: 119.79 | G78: =((A68-$A$3)*1440)+11 -> 206 | H78: 107.2 | I78: =((A68-$A$3)*1440)+11 -> 206 | J78: 107.8 | K78: -0.7
A79: 2016-09-13T16:01:56 | B79: 239 | C79: 228 | D79: 121.73 | E79: 121.06 | G79: 209 | H79: 108.5 | I79: 209 | J79: 109.1 | K79: -0.7
A80: 2016-09-13T16:04:56 | B80: 242 | C80: 231 | D80: 123.02 | E80: 122.36 | G80: 212 | H80: 109.7 | I80: 212 | J80: 110.4 | K80: -0.7
A81: 2016-09-13T16:07:56 | B81: 245 | C81: 234 | D81: 124.35 | E81: 123.68 | G81: 215 | H81: 111.0 | I81: 215 | J81: 111.6 | K81: -0.7
A82: 2016-09-13T16:10:56 | B82: 248 | C82: 237 | D82: 125.57 | E82: 124.9 | G82: 218 | H82: 112.2 | I82: 218 | J82: 112.9 | K82: -0.7
A83: 2016-09-13T16:13:56 | B83: 251 | C83: 240 | D83: 126.83 | E83: 126.17 | G83: 221 | H83: 113.4 | I83: 221 | J83: 114.1 | K83: -0.7
A84: 2016-09-13T16:16:56 | B84: 254 | C84: 243 | D84: 128.18 | E84: 127.52 | G84: 224 | H84: 114.8 | I84: 224 | J84: 115.4 | K84: -0.7
A85: 2016-09-13T16:19:56 | B85: 257 | C85: 246 | D85: 129.5 | E85: 128.84 | G85: 227 | H85: 116.1 | I85: 227 | J85: 116.7 | K85: -0.7
A86: 2016-09-13T16:22:56 | B86: 260 | C86: 249 | D86: 130.79 | E86: 130.13 | G86: 230 | H86: 117.4 | I86: 230 | J86: 118.0 | K86: -0.7
A87: 2016-09-13T16:25:56 | B87: 263 | C87: 252 | D87: 132.08 | E87: 131.43 | G87: 233 | H87: 118.6 | I87: 233 | J87: 119.3 | K87: -0.7
A88: 2016-09-13T16:28:56 | B88: 266 | C88: 255 | D88: 133.34 | E88: 132.69 | G88: 236 | H88: 119.9 | I88: 236 | J88: 120.5 | K88: -0.7
A89: 2016-09-13T16:31:56 | B89: 269 | C89: 258 | D89: 134.65 | E89: 134.01 | G89: 239 | H89: 121.1 | I89: 239 | J89: 121.8 | K89: -0.7
A90: 2016-09-13T16:34:56 | B90: 272 | C90: 261 | D90: 135.95 | E90: 135.3 | G90: 242 | H90: 122.4 | I90: 242 | J90: 123.1 | K90: -0.7
A91: 2016-09-13T16:37:56 | B91: 275 | C91: 264 | D91: 137.21 | E91: 136.58 | G91: 245 | H91: 123.8 | I91: 245 | J91: 124.4 | K91: -0.7
A92: 2016-09-13T16:40:56 | B92: 278 | C92: 267 | D92: 138.45 | E92: 137.82 | G92: 248 | H92: 125.0 | I92: 248 | J92: 125.7 | K92: -0.7
A93: 2016-09-13T16:43:56 | B93: 281 | C93: 270 | D93: 139.68 | E93: 139.06 | G93: 251 | H93: 126.3 | I93: 251 | J93: 126.9 | K93: -0.7
A94: 2016-09-13T16:46:56 | B94: 284 | C94: 273 | D94: 140.92 | E94: 140.3 | G94: 254 | H94: 127.6 | I94: 254 | J94: 128.3 | K94: -0.7
A95: 2016-09-13T16:49:56 | B95: 287 | C95: 276 | D95: 142.28 | E95: 141.66 | G95: 257 | H95: 128.9 | I95: 257 | J95: 129.6 | K95: -0.7
A96: 2016-09-13T16:52:56 | B96: 290 | C96: 279 | D96: 143.6 | E96: 142.99 | G96: 260 | H96: 130.2 | I96: 260 | J96: 130.9 | K96: -0.7
A97: 2016-09-13T16:55:56 | B97: 293 | C97: 282 | D97: 144.88 | E97: 144.28 | G97: 263 | H97: 131.5 | I97: 263 | J97: 132.2 | K97: -0.7
A98: 2016-09-13T16:58:56 | B98: 296 | C98: 285 | D98: 146.14 | E98: 145.54 | G98: 266 | H98: 132.8 | I98: 266 | J98: 133.4 | K98: -0.6
A99: 2016-09-13T17:01:56 | B99: 299 | C99: 288 | D99: 147.45 | E99: 146.87 | G99: 269 | H99: 134.1 | I99: 269 | J99: 134.7 | K99: -0.6
A100: 2016-09-13T17:04:56 | B100: 302 | C100: 291 | D100: 148.75 | E100: 148.17 | G100: 272 | H100: 135.4 | I100: 272 | J100: 136.0 | K100: -0.6
A101: 2016-09-13T17:07:56 | B101: 305 | C101: 294 | D101: 150.07 | E101: 149.49 | G101: 275 | H101: 136.7 | I101: 275 | J101: 137.3 | K101: -0.6
A102: 2016-09-13T17:10:56 | B102: 308 | C102: 297 | D102: 151.37 | E102: 150.81 | G102: 278 | H102: 137.9 | I102: 278 | J102: 138.5 | K102: -0.6
A103: 2016-09-13T17:13:56 | B103: 311 | C103: 300 | D103: 152.66 | E103: 152.11 | G103: 281 | H103: 139.1 | I103: 281 | J103: 139.8 | K103: -0.6
A104: 2016-09-13T17:16:56 | B104: 314 | C104: 303 | D104: 153.97 | E104: 153.42 | G104: 284 | H104: 140.4 | I104: 284 | J104: 141.0 | K104: -0.6
A105: 2016-09-13T17:19:56 | B105: 317 | C105: 306 | D105: 155.28 | E105: 154.75 | G105: 287 | H105: 141.7 | I105: 287 | J105: 142.4 | K105: -0.6
A106: 2016-09-13T17:22:56 | B106: 320 | C106: 309 | D106: 156.58 | E106: 156.05 | G106: 290 | H106: 143.1 | I106: 290 | J106: 143.7 | K106: -0.6
A107: 2016-09-13T17:25:56 | B107: 323 | C107: 312 | D107: 157.84 | E107: 157.33 | G107: 293 | H107: 144.4 | I107: 293 | J107: 145.0 | K107: -0.6
A108: 2016-09-13T17:28:56 | B108: 326 | C108: 315 | D108: 159.12 | E108: 158.62 | G108: 296 | H108: 145.6 | I108: 296 | J108: 146.2 | K108: -0.6
A109: 2016-09-13T17:31:56 | B109: 329 | C109: 318 | D109: 160.35 | E109: 159.86 | G109: 299 | H109: 147.0 | I109: 299 | J109: 147.5 | K109: -0.6
A110: 2016-09-13T17:34:56 | B110: 332 | C110: 321 | D110: 161.66 | E110: 161.18 | G110: 302 | H110: 148.3 | I110: 302 | J110: 148.8 | K110: -0.6
A111: 2016-09-13T17:37:56 | B111: 335 | C111: 324 | D111: 162.98 | E111: 162.51 | G111: 305 | H111: 149.6 | I111: 305 | J111: 150.2 | K111: -0.6
A112: 2016-09-13T17:40:56 | B112: 338 | C112: 327 | D112: 164.24 | E112: 163.78 | G112: 308 | H112: 150.9 | I112: 308 | J112: 151.5 | K112: -0.6
A113: 2016-09-13T17:43:56 | B113: 341 | C113: 330 | D113: 165.45 | E113: 165.01 | G113: 311 | H113: 152.2 | I113: 311 | J113: 152.7 | K113: -0.5
A114: 2016-09-13T17:46:56 | B114: 344 | C114: 333 | D114: 166.71 | E114: 166.28 | G114: 314 | H114: 153.5 | I114: 314 | J114: 154.1 | K114: -0.5
A115: 2016-09-13T17:49:56 | B115: 347 | C115: 336 | D115: 168.04 | E115: 167.62 | G115: 317 | H115: 154.8 | I115: 317 | J115: 155.4 | K115: -0.5
A116: 2016-09-13T17:52:56 | B116: 350 | C116: 339 | D116: 169.33 | E116: 168.92 | G116: 320 | H116: 156.1 | I116: 320 | J116: 156.7 | K116: -0.5
A117: 2016-09-13T17:55:56 | B117: 353 | C117: 342 | D117: 170.63 | E117: 170.23 | G117: 323 | H117: 157.4 | I117: 323 | J117: 157.9 | K117: -0.5
A118: 2016-09-13T17:58:56 | B118: 356 | C118: 345 | D118: 171.82 | E118: 171.44 | G118: 326 | H118: 158.7 | I118: 326 | J118: 159.2 | K118: -0.5
A119: 2016-09-13T18:01:56 | B119: 359 | C119: 348 | D119: 173.09 | E119: 172.72 | G119: 329 | H119: 159.9 | I119: 329 | J119: 160.4 | K119: -0.5
A120: 2016-09-13T18:04:56 | B120: 362 | C120: 351 | D120: 174.28 | E120: 173.93 | G120: 332 | H120: 161.3 | I120: 332 | J120: 161.7 | K120: -0.5
A121: 2016-09-13T18:07:56 | B121: 365 | C121: 354 | D121: 175.64 | E121: 175.3 | G121: 335 | H121: 162.6 | I121: 335 | J121: 163.1 | K121: -0.5
A122: 2016-09-13T18:10:56 | B122: 368 | C122: 357 | D122: 176.96 | E122: 176.64 | G122: 338 | H122: 163.9 | I122: 338 | J122: 164.3 | K122: -0.5
A123: 2016-09-13T18:13:56 | B123: 371 | C123: 360 | D123: 178.23 | E123: 177.92 | G123: 341 | H123: 165.1 | I123: 341 | J123: 165.5 | K123: -0.4
A124: 2016-09-13T18:16:56 | B124: 374 | C124: 363 | D124: 179.46 | E124: 179.18 | G124: 344 | H124: 166.4 | I124: 344 | J124: 166.8 | K124: -0.4
A125: 2016-09-13T18:19:56 | B125: 377 | C125: 366 | D125: 180.73 | E125: 180.47 | G125: 347 | H125: 167.7 | I125: 347 | J125: 168.1 | K125: -0.4
A126: 2016-09-13T18:22:56 | B126: 380 | C126: 369 | D126: 181.97 | E126: 181.73 | G126: 350 | H126: 169.0 | I126: 350 | J126: 169.4 | K126: -0.4
A127: 2016-09-13T18:25:56 | B127: 383 | C127: 372 | D127: 183.19 | E127: 182.96 | G127: 353 | H127: 170.3 | I127: 353 | J127: 170.7 | K127: -0.4
A128: 2016-09-13T18:28:56 | B128: 386 | C128: 375 | D128: 184.41 | E128: 184.19 | G128: 356 | H128: 171.5 | I128: 356 | J128: 171.9 | K128: -0.4
A129: 2016-09-13T18:31:56 | B129: 389 | C129: 378 | D129: 185.7 | E129: 185.49 | G129: 359 | H129: 172.8 | I129: 359 | J129: 173.2 | K129: -0.4
A130: 2016-09-13T18:34:56 | B130: 392 | C130: 381 | D130: 186.96 | E130: 186.76 | G130: 362 | H130: 174.0 | I130: 362 | J130: 174.4 | K130: -0.3
A131: =$I$2+(C131/1440) -> 2016-09-13T18:37:56 | B131: 395 | C131: 384 | D131: 188.17 | E131: 187.99 | G131: 365 | H131: 175.4 | I131: 365 | J131: 175.7 | K131: -0.3
A132: 2016-09-13T18:40:56 | B132: =C132+11 -> 398 | C132: 387 | D132: 189.46 | E132: 189.28 | G132: 368 | H132: 176.7 | I132: 368 | J132: 177.0 | K132: -0.3
A133: 2016-09-13T18:43:56 | B133: 401 | C133: 390 | D133: 190.72 | E133: 190.56 | G133: 371 | H133: 178.0 | I133: 371 | J133: 178.3 | K133: -0.3
A134: 2016-09-13T18:46:56 | B134: 404 | C134: 393 | D134: 191.97 | E134: 191.82 | G134: 374 | H134: 179.3 | I134: 374 | J134: 179.5 | K134: -0.3
A135: 2016-09-13T18:49:56 | B135: 407 | C135: 396 | D135: 193.2 | E135: 193.06 | G135: 377 | H135: 180.6 | I135: 377 | J135: 180.8 | K135: -0.3
A136: 2016-09-13T18:52:56 | B136: 410 | C136: 399 | D136: 194.42 | E136: 194.29 | G136: 380 | H136: 181.8 | I136: 380 | J136: 182.1 | K136: -0.2
A137: 2016-09-13T18:55:56 | B137: 413 | C137: 402 | D137: 195.63 | E137: 195.51 | G137: 383 | H137: 183.0 | I137: 383 | J137: 183.3 | K137: -0.2
A138: 2016-09-13T18:58:56 | B138: 416 | C138: 405 | D138: 196.74 | E138: 196.64 | G138: 386 | H138: 184.3 | I138: 386 | J138: 184.5 | K138: -0.2
A139: 2016-09-13T19:01:56 | B139: 419 | C139: 408 | D139: 198.02 | E139: 197.92 | G139: 389 | H139: 185.6 | I139: 389 | J139: 185.8 | K139: -0.2
A140: 2016-09-13T19:04:56 | B140: 422 | C140: 411 | D140: 199.31 | E140: 199.22 | G140: 392 | H140: 186.8 | I140: 392 | J140: 187.0 | K140: -0.2
A141: 2016-09-13T19:07:56 | B141: 425 | C141: 414 | D141: 200.59 | E141: 200.5 | G141: 395 | H141: =E131+($G$2*(E132-E131)) -> 188.1 | I141: 395 | J141: =D131+($G$2*(D132-D131)) -> 188.3 | K141: =H141-J141 -> -0.2
A142: 2016-09-13T19:10:56 | B142: 428 | C142: 417 | D142: 201.87 | E142: 201.78 | G142: =((A132-$A$3)*1440)+11 -> 398 | H142: 189.4 | I142: =((A132-$A$3)*1440)+11 -> 398 | J142: 189.5 | K142: -0.2
A143: 2016-09-13T19:13:56 | B143: 431 | C143: 420 | D143: 203.11 | E143: 203.02 | G143: 401 | H143: 190.6 | I143: 401 | J143: 190.8 | K143: -0.2
A144: 2016-09-13T19:16:56 | B144: 434 | C144: 423 | D144: 204.26 | E144: 204.19 | G144: 404 | H144: 191.9 | I144: 404 | J144: 192.1 | K144: -0.1
A145: 2016-09-13T19:19:56 | B145: 437 | C145: 426 | D145: 205.57 | E145: 205.51 | G145: 407 | H145: 193.1 | I145: 407 | J145: 193.3 | K145: -0.1
A146: 2016-09-13T19:22:56 | B146: 440 | C146: 429 | D146: 206.88 | E146: 206.82 | G146: 410 | H146: 194.4 | I146: 410 | J146: 194.5 | K146: -0.1
A147: 2016-09-13T19:25:56 | B147: 443 | C147: 432 | D147: 208.02 | E147: 207.96 | G147: 413 | H147: 195.6 | I147: 413 | J147: 195.7 | K147: -0.1
A148: 2016-09-13T19:28:56 | B148: 446 | C148: 435 | D148: 209.24 | E148: 209.2 | G148: 416 | H148: 196.7 | I148: 416 | J148: 196.8 | K148: -0.1
A149: 2016-09-13T19:31:56 | B149: 449 | C149: 438 | D149: 210.45 | E149: 210.42 | G149: 419 | H149: 198.0 | I149: 419 | J149: 198.1 | K149: -0.1
A150: 2016-09-13T19:34:56 | B150: 452 | C150: 441 | D150: 211.67 | E150: 211.64 | G150: 422 | H150: 199.3 | I150: 422 | J150: 199.4 | K150: -0.1
A151: 2016-09-13T19:37:56 | B151: 455 | C151: 444 | D151: 212.89 | E151: 212.87 | G151: 425 | H151: 200.6 | I151: 425 | J151: 200.7 | K151: -0.1
A152: 2016-09-13T19:40:56 | B152: 458 | C152: 447 | D152: 214.17 | E152: 214.15 | G152: 428 | H152: 201.9 | I152: 428 | J152: 202.0 | K152: -0.1
A153: 2016-09-13T19:43:56 | B153: 461 | C153: 450 | D153: 215.5 | E153: 215.49 | G153: 431 | H153: 203.1 | I153: 431 | J153: 203.2 | K153: -0.1
A154: 2016-09-13T19:46:56 | B154: 464 | C154: 453 | D154: 216.78 | E154: 216.78 | G154: 434 | H154: 204.3 | I154: 434 | J154: 204.3 | K154: -0.1
A155: 2016-09-13T19:49:56 | B155: 467 | C155: 456 | D155: 217.99 | E155: 218 | G155: 437 | H155: 205.6 | I155: 437 | J155: 205.7 | K155: -0.1
A156: 2016-09-13T19:52:56 | B156: 470 | C156: 459 | D156: 219.21 | E156: 219.23 | G156: 440 | H156: 206.9 | I156: 440 | J156: 207.0 | K156: -0.1
A157: 2016-09-13T19:55:56 | B157: 473 | C157: 462 | D157: 220.43 | E157: 220.45 | G157: 443 | H157: 208.0 | I157: 443 | J157: 208.1 | K157: -0.1
A158: 2016-09-13T19:58:56 | B158: 476 | C158: 465 | D158: 221.75 | E158: 221.78 | G158: 446 | H158: 209.3 | I158: 446 | J158: 209.3 | K158: -0.0
A159: 2016-09-13T20:01:56 | B159: 479 | C159: 468 | D159: 222.97 | E159: 223.02 | G159: 449 | H159: 210.5 | I159: 449 | J159: 210.5 | K159: -0.0
A160: 2016-09-13T20:04:56 | B160: 482 | C160: 471 | D160: 224.23 | E160: 224.28 | G160: 452 | H160: 211.7 | I160: 452 | J160: 211.8 | K160: -0.0
A161: 2016-09-13T20:07:56 | B161: 485 | C161: 474 | D161: 225.41 | E161: 225.47 | G161: 455 | H161: 213.0 | I161: 455 | J161: 213.0 | K161: -0.0
A162: 2016-09-13T20:10:56 | B162: 488 | C162: 477 | D162: 226.68 | E162: 226.75 | G162: 458 | H162: 214.2 | I162: 458 | J162: 214.3 | K162: -0.0
A163: 2016-09-13T20:13:56 | B163: 491 | C163: 480 | D163: 227.93 | E163: 228 | G163: 461 | H163: 215.6 | I163: 461 | J163: 215.6 | K163: -0.0
A164: 2016-09-13T20:16:56 | B164: 494 | C164: 483 | D164: 229.17 | E164: 229.26 | G164: 464 | H164: 216.9 | I164: 464 | J164: 216.9 | K164: 0.0
A165: 2016-09-13T20:19:56 | B165: 497 | C165: 486 | D165: 230.4 | E165: 230.49 | G165: 467 | H165: 218.1 | I165: 467 | J165: 218.1 | K165: 0.0
A166: 2016-09-13T20:22:56 | B166: 500 | C166: 489 | D166: 231.59 | E166: 231.7 | G166: 470 | H166: 219.3 | I166: 470 | J166: 219.3 | K166: 0.0
A167: 2016-09-13T20:25:56 | B167: 503 | C167: 492 | D167: 232.88 | E167: 233.01 | G167: 473 | H167: 220.5 | I167: 473 | J167: 220.5 | K167: 0.0
A168: 2016-09-13T20:28:56 | B168: 506 | C168: 495 | D168: 234.2 | E168: 234.33 | G168: 476 | H168: 221.9 | I168: 476 | J168: 221.8 | K168: 0.0
A169: 2016-09-13T20:31:56 | B169: 509 | C169: 498 | D169: 235.46 | E169: 235.6 | G169: 479 | H169: 223.1 | I169: 479 | J169: 223.1 | K169: 0.1
A170: 2016-09-13T20:34:56 | B170: 512 | C170: 501 | D170: 236.57 | E170: 236.73 | G170: 482 | H170: 224.4 | I170: 482 | J170: 224.3 | K170: 0.1
A171: 2016-09-13T20:37:56 | B171: 515 | C171: 504 | D171: 237.83 | E171: 238 | G171: 485 | H171: 225.6 | I171: 485 | J171: 225.5 | K171: 0.1
A172: 2016-09-13T20:40:56 | B172: 518 | C172: 507 | D172: 239.1 | E172: 239.27 | G172: 488 | H172: 226.8 | I172: 488 | J172: 226.8 | K172: 0.1
A173: 2016-09-13T20:43:56 | B173: 521 | C173: 510 | D173: 240.35 | E173: 240.53 | G173: 491 | H173: 228.1 | I173: 491 | J173: 228.0 | K173: 0.1
A174: 2016-09-13T20:46:56 | B174: 524 | C174: 513 | D174: 241.64 | E174: 241.81 | G174: 494 | H174: 229.3 | I174: 494 | J174: 229.3 | K174: 0.1
A175: 2016-09-13T20:49:56 | B175: 527 | C175: 516 | D175: 242.81 | E175: 242.98 | G175: 497 | H175: 230.6 | I175: 497 | J175: 230.5 | K175: 0.1
A176: 2016-09-13T20:52:56 | B176: 530 | C176: 519 | D176: 243.98 | E176: 244.16 | G176: 500 | H176: 231.8 | I176: 500 | J176: 231.7 | K176: 0.1
A177: 2016-09-13T20:55:56 | B177: 533 | C177: 522 | D177: 245.09 | E177: 245.29 | G177: 503 | H177: 233.1 | I177: 503 | J177: 233.0 | K177: 0.1
A178: 2016-09-13T20:58:56 | B178: 536 | C178: 525 | D178: 246.46 | E178: 246.66 | G178: 506 | H178: 234.4 | I178: 506 | J178: 234.3 | K178: 0.1
A179: 2016-09-13T21:01:56 | B179: 539 | C179: 528 | D179: 247.64 | E179: 247.84 | G179: 509 | H179: 235.7 | I179: 509 | J179: 235.5 | K179: 0.1
A180: 2016-09-13T21:04:56 | B180: 542 | C180: 531 | D180: 248.73 | E180: 248.95 | G180: 512 | H180: 236.8 | I180: 512 | J180: 236.7 | K180: 0.2
A181: 2016-09-13T21:07:56 | B181: 545 | C181: 534 | D181: 249.94 | E181: 250.16 | G181: 515 | H181: 238.1 | I181: 515 | J181: 237.9 | K181: 0.2
A182: 2016-09-13T21:10:56 | B182: 548 | C182: 537 | D182: 251.22 | E182: 251.45 | G182: 518 | H182: 239.4 | I182: 518 | J182: 239.2 | K182: 0.2
A183: 2016-09-13T21:13:56 | B183: 551 | C183: 540 | D183: 252.57 | E183: 252.79 | G183: 521 | H183: 240.6 | I183: 521 | J183: 240.4 | K183: 0.2 | N183: =0.427*60 -> 25.62
A184: 2016-09-13T21:16:56 | B184: 554 | C184: 543 | D184: 253.86 | E184: 254.08 | G184: 524 | H184: 241.9 | I184: 524 | J184: 241.7 | K184: 0.2
A185: 2016-09-13T21:19:56 | B185: 557 | C185: 546 | D185: 254.95 | E185: 255.17 | G185: 527 | H185: 243.1 | I185: 527 | J185: 242.9 | K185: 0.2
A186: 2016-09-13T21:22:56 | B186: 560 | C186: 549 | D186: 256.12 | E186: 256.35 | G186: 530 | H186: 244.2 | I186: 530 | J186: 244.1 | K186: 0.2
A187: 2016-09-13T21:25:56 | B187: 563 | C187: 552 | D187: 257.32 | E187: 257.55 | G187: 533 | H187: 245.4 | I187: 533 | J187: 245.2 | K187: 0.2
A188: 2016-09-13T21:28:56 | B188: 566 | C188: 555 | D188: 258.56 | E188: 258.8 | G188: 536 | H188: 246.7 | I188: 536 | J188: 246.5 | K188: 0.2
A189: 2016-09-13T21:31:56 | B189: 569 | C189: 558 | D189: 259.79 | E189: 260.02 | G189: 539 | H189: 247.9 | I189: 539 | J189: 247.7 | K189: 0.2
A190: 2016-09-13T21:34:56 | B190: 572 | C190: 561 | D190: 260.96 | E190: 261.21 | G190: 542 | H190: 249.0 | I190: 542 | J190: 248.8 | K190: 0.2
A191: 2016-09-13T21:37:56 | B191: 575 | C191: 564 | D191: 262.27 | E191: 262.51 | G191: 545 | H191: 250.2 | I191: 545 | J191: 250.0 | K191: 0.2
A192: 2016-09-13T21:40:56 | B192: 578 | C192: 567 | D192: 263.48 | E192: 263.73 | G192: 548 | H192: 251.5 | I192: 548 | J192: 251.3 | K192: 0.2
A193: 2016-09-13T21:43:56 | B193: 581 | C193: 570 | D193: 264.73 | E193: 264.98 | G193: 551 | H193: 252.9 | I193: 551 | J193: 252.7 | K193: 0.2
A194: 2016-09-13T21:46:56 | B194: 584 | C194: 573 | D194: 266 | E194: 266.26 | G194: 554 | H194: 254.2 | I194: 554 | J194: 253.9 | K194: 0.2
A195: =$I$2+(C195/1440) -> 2016-09-13T21:49:56 | B195: 587 | C195: 576 | D195: 267.13 | E195: 267.39 | G195: 557 | H195: 255.2 | I195: 557 | J195: 255.0 | K195: 0.2
A196: 2016-09-13T21:52:56 | B196: =C196+11 -> 590 | C196: 579 | D196: 268.26 | E196: 268.53 | G196: 560 | H196: 256.4 | I196: 560 | J196: 256.2 | K196: 0.2
A197: 2016-09-13T21:55:56 | B197: 593 | C197: 582 | D197: 269.51 | E197: 269.79 | G197: 563 | H197: 257.6 | I197: 563 | J197: 257.4 | K197: 0.2
A198: 2016-09-13T21:58:56 | B198: 596 | C198: 585 | D198: 270.79 | E198: 271.07 | G198: 566 | H198: 258.9 | I198: 566 | J198: 258.6 | K198: 0.2
A199: 2016-09-13T22:01:56 | B199: 599 | C199: 588 | D199: 272.04 | E199: 272.33 | G199: 569 | H199: 260.1 | I199: 569 | J199: 259.9 | K199: 0.2
A200: 2016-09-13T22:04:56 | B200: 602 | C200: 591 | D200: 273.23 | E200: 273.52 | G200: 572 | H200: 261.3 | I200: 572 | J200: 261.0 | K200: 0.2
... 409 more rows

Sheet Sheet2
A1: 1 | C1: 1.941560507 | D1: BB | E1: 0.110400036 | F1: 229.3392639 | G1: 34.12785339 | H1: 1.898447419
A2: 2 | C2: 4.929355621 | D2: BB | E2: 0.0842847079 | F2: 199.7471313 | G2: 32.23895264 | H2: 1.653486715
A3: 3 | C3: 7.916924 | D3: BB | E3: 0.09665320069 | F3: 190.8278961 | G3: 32.42857361 | H3: 1.57965418
A4: 4 | C4: 10.9370575 | D4: BB | E4: 0.07152528316 | F4: 194.0037842 | G4: 38.0237999 | H4: 1.605943863
A5: 5 | C5: 13.94337559 | D5: BB | E5: 0.101500459 | F5: 240.450592 | G5: 36.19664764 | H5: 1.990425879
A6: 6 | C6: 16.92692947 | D6: BB | E6: 0.0903108865 | F6: 194.015625 | G6: 32.19295883 | H6: 1.60604188
A7: 7 | C7: 19.9222374 | D7: BB | E7: 0.09171995521 | F7: 188.0466919 | G7: 34.43000031 | H7: 1.556631651
A8: 8 | C8: 22.92829704 | D8: BB | E8: 0.07104451209 | F8: 180.5691833 | G8: 35.67885208 | H8: 1.494733585
A9: 9 | C9: 25.92359924 | D9: BB | E9: 0.09120314568 | F9: 200.9437103 | G9: 34.88442993 | H9: 1.663391875
A10: 10 | C10: 28.93390656 | D10: BB | E10: 0.1026912108 | F10: 279.5135193 | G10: 43.65963364 | H10: 2.313784872
A11: 11 | C11: 31.93387032 | D11: BB | E11: 0.07608085871 | F11: 187.83255 | G11: 34.19710159 | H11: 1.554859006
A12: 12 | C12: 34.93910599 | D12: BB | E12: 0.09404177219 | F12: 252.184845 | G12: 35.86169052 | H12: 2.087560847
A13: 13 | C13: 37.92102051 | D13: BB | E13: 0.09800422937 | F13: 230.5266418 | G13: 31.27145767 | H13: 1.908276415
A14: 14 | C14: 40.93675995 | D14: BB | E14: 0.08863026649 | F14: 187.5277557 | G14: 33.85138321 | H14: 1.552335949
A15: 15 | C15: 43.93297577 | D15: BB | E15: 0.09218173474 | F15: 211.8091583 | G15: 34.23451614 | H15: 1.753334964
A16: 16 | C16: 46.93414688 | D16: BB | E16: 0.08361310512 | F16: 158.6600189 | G16: 29.09830284 | H16: 1.31337172
A17: 17 | C17: 49.9317894 | D17: BB | E17: 0.0987270847 | F17: 189.3440094 | G17: 29.56108093 | H17: 1.567370715
A18: 18 | C18: 52.93873215 | D18: BB | E18: 0.08610761911 | F18: 215.513382 | G18: 35.8637619 | H18: 1.783998155
A19: 19 | C19: 55.93656921 | D19: BB | E19: 0.08035620302 | F19: 189.4941254 | G19: 34.352005 | H19: 1.56861336
A20: 20 | C20: 58.93249893 | D20: BB | E20: 0.08104498684 | F20: 158.7940826 | G20: 30.34807014 | H20: 1.314481486
A21: 21 | C21: 61.92902374 | D21: BB | E21: 0.08268176764 | F21: 163.6509094 | G21: 30.45958328 | H21: 1.354685811
A22: 22 | C22: 64.92677307 | D22: BB | E22: 0.06948125362 | F22: 157.5903168 | G22: 31.98527336 | H22: 1.304516833
A23: 23 | C23: 67.93251801 | D23: BB | E23: 0.08476188034 | F23: 155.6775513 | G23: 28.04486275 | H23: 1.288683152
A24: 24 | C24: 70.93331146 | D24: BB | E24: 0.1016052887 | F24: 189.3521118 | G24: 28.4659462 | H24: 1.567437786
A25: 25 | C25: 73.93183136 | D25: BB | E25: 0.07379333675 | F25: 173.4277649 | G25: 32.74340057 | H25: 1.435617639
A26: 26 | C26: 76.93604279 | D26: BB | E26: 0.06834767759 | F26: 139.5161438 | G26: 28.88652039 | H26: 1.154900642
A27: 27 | C27: 79.9247818 | D27: BB | E27: 0.0924307555 | F27: 250.0728455 | G27: 38.17201996 | H27: 2.070077927
A28: 28 | C28: 82.94207764 | D28: BB | E28: 0.08615556359 | F28: 177.572113 | G28: 29.52972603 | H28: 1.469924138
A29: 29 | C29: 85.92345428 | D29: BB | E29: 0.07494121045 | F29: 176.8595581 | G29: 35.0071106 | H29: 1.464025679
A30: 30 | C30: 88.92621613 | D30: BB | E30: 0.08105200529 | F30: 142.5361328 | G30: 29.14746857 | H30: 1.179899808
A31: 31 | C31: 91.92584229 | D31: BB | E31: 0.08657902479 | F31: 141.3093414 | G31: 28.14333344 | H31: 1.169744552
A32: 32 | C32: 94.92623138 | D32: BB | E32: 0.08140645921 | F32: 164.0091858 | G32: 29.25461006 | H32: 1.357651587
A33: 33 | C33: 97.93827057 | D33: BB | E33: 0.08316041529 | F33: 180.0629883 | G33: 38.08409882 | H33: 1.490543353
A34: 34 | C34: 100.9386902 | D34: BB | E34: 0.07495240122 | F34: 157.6031647 | G34: 31.18963242 | H34: 1.304623186
A35: 35 | C35: 103.9263687 | D35: BB | E35: 0.08192319423 | F35: 171.0315247 | G35: 28.53656578 | H35: 1.415781803
A36: 36 | C36: 106.9324417 | D36: BB | E36: 0.09672963619 | F36: 208.9025879 | G36: 31.76343536 | H36: 1.729274665
A37: 37 | C37: 109.936821 | D37: BB | E37: 0.07867801934 | F37: 223.9608917 | G37: 47.78660583 | H37: 1.853925794
A38: 38 | C38: 112.9446335 | D38: BB | E38: 0.0719326809 | F38: 124.2592468 | G38: 25.91850281 | H38: 1.028605579
A39: 39 | C39: 115.9420547 | D39: BB | E39: 0.07756920904 | F39: 142.8917236 | G39: 25.42458534 | H39: 1.182843353
A40: 40 | C40: 118.9381409 | D40: BB | E40: 0.09184464067 | F40: 146.3887482 | G40: 25.17323112 | H40: 1.211791372
A41: 41 | C41: 121.9398804 | D41: BB | E41: 0.07113458216 | F41: 108.3360672 | G41: 21.37363243 | H41: 0.896795096
A42: 42 | C42: 124.9447861 | D42: BB | E42: 0.08388766646 | F42: 174.5383759 | G42: 29.9948616 | H42: 1.444811166
A43: 43 | C43: 127.9359818 | D43: BB | E43: 0.09294950962 | F43: 134.3010864 | G43: 22.72454262 | H43: 1.11173092
A44: 44 | C44: 130.9315948 | D44: BB | E44: 0.08412063867 | F44: 137.1875916 | G44: 23.49540329 | H44: 1.13562512
A45: 45 | C45: 133.9304199 | D45: BB | E45: 0.06214253604 | F45: 80.37572479 | G45: 20.32217598 | H45: 0.6653421865
A46: 46 | C46: 136.9119568 | D46: BB | E46: 0.0738274157 | F46: 113.3586197 | G46: 21.39046478 | H46: 0.9383712816
A47: 47 | C47: 139.938736 | D47: BB | E47: 0.06288687885 | F47: 131.5875854 | G47: 30.16865349 | H47: 1.089268831
A48: 48 | C48: 142.9294281 | D48: BB | E48: 0.09095945954 | F48: 190.5834503 | G48: 29.6623497 | H48: 1.577630682
A49: 49 | C49: 145.9307709 | D49: BB | E49: 0.07918158919 | F49: 165.9756775 | G49: 28.82312012 | H49: 1.373930008
A50: 50 | C50: 148.9326019 | D50: BB | E50: 0.08164002001 | F50: 122.2918243 | G50: 23.14629173 | H50: 1.012319454
A51: 51 | C51: 151.9432983 | D51: BB | E51: 0.106994383 | F51: 166.3813477 | G51: 24.57283211 | H51: 1.377288104
A52: 52 | C52: 154.9472809 | D52: BB | E52: 0.1092229187 | F52: 168.2306519 | G52: 23.03008461 | H52: 1.392596459
A53: 53 | C53: 157.9399261 | D53: BB | E53: 0.08390212059 | F53: 151.0557556 | G53: 27.5783844 | H53: 1.250424391
A54: 54 | C54: 160.9160767 | D54: BB | E54: 0.09041272104 | F54: 135.1293945 | G54: 22.38955688 | H54: 1.118587572
A55: 55 | C55: 163.9475708 | D55: BB | E55: 0.1217577457 | F55: 224.8597565 | G55: 26.83535385 | H55: 1.861366506
A56: 56 | C56: 166.9365387 | D56: BB | E56: 0.07778379321 | F56: 149.6752777 | G56: 30.21974564 | H56: 1.238996933
A57: 57 | C57: 169.9315491 | D57: BB | E57: 0.1027520001 | F57: 174.9552612 | G57: 24.66580582 | H57: 1.448262101
A58: 58 | C58: 172.909729 | D58: BB | E58: 0.08903290331 | F58: 136.3917389 | G58: 26.0717907 | H58: 1.129037132
A59: 59 | C59: 175.9331665 | D59: BB | E59: 0.08813687414 | F59: 127.8188934 | G59: 23.25059509 | H59: 1.058071977
A60: 60 | C60: 178.9471436 | D60: BB | E60: 0.09536349028 | F60: 166.4528351 | G60: 24.46905708 | H60: 1.37787987
A61: 61 | C61: 181.9281769 | D61: BB | E61: 0.06960250437 | F61: 114.4033585 | G61: 23.17096901 | H61: 0.9470195243
A62: 62 | C62: 184.9337158 | D62: BB | E62: 0.05610033497 | F62: 65.7970047 | G62: 19.14277458 | H62: 0.5446610041
A63: 63 | C63: 187.9589081 | D63: BB | E63: 0.08218925446 | F63: 179.0163574 | G63: 35.89191818 | H63: 1.481879448
A64: 64 | C64: 190.9393005 | D64: BB | E64: 0.07918608934 | F64: 95.03738403 | G64: 18.73361588 | H64: 0.7867099308
A65: 65 | C65: 202.9272766 | D65: BB | E65: 0.1025293246 | F65: 134.3145599 | G65: 18.9872303 | H65: 1.111842453
A66: 66 | C66: 211.9221497 | D66: BB | E66: 0.091291219 | F66: 111.7405624 | G66: 15.65158939 | H66: 0.924977166
A67: 67 | C67: 233.0221405 | D67: VB | E67: 0.05690783262 | F67: 74.70371246 | G67: 21.30504799 | H67: 0.6183898375
A68: 68 | C68: 328.9421692 | D68: BB | E68: 0.08886357397 | F68: 145.7205963 | G68: 22.11806679 | H68: 1.206260478
A69: 69 | C69: 370.9454956 | D69: BB | E69: 0.07186143845 | F69: 83.10490417 | G69: 17.35646629 | H69: 0.6879340596
A70: 70 | C70: 391.8959045 | D70: BB | E70: 0.08482374251 | F70: 106.8458176 | G70: 21.93686104 | H70: 0.884458959
A71: 71 | C71: 412.9111328 | D71: BB | E71: 0.1174874753 | F71: 118.793335 | G71: 16.21199226 | H71: 0.9833593094
A72: 72 | C72: 415.907196 | D72: BB | E72: 0.07689762115 | F72: 99.23968506 | G72: 16.80459213 | H72: 0.8214961572
A73: 73 | C73: 445.9294434 | D73: BB | E73: 0.06775695086 | F73: 79.22067261 | G73: 17.85733414 | H73: 0.6557807804
A74: 74 | C74: 514.8583984 | D74: BB | E74: 0.07002177835 | F74: 99.59700775 | G74: 20.02636147 | H74: 0.8244540386
A75: 75 | C75: 515.0233765 | D75: BB | E75: 0.06864287704 | F75: 63.15941238 | G75: 15.1483593 | H75: 0.5228272795
A76: 76 | C76: 532.9394531 | D76: BB | E76: 0.07454589754 | F76: 84.35890961 | G76: 15.7354393 | H76: 0.6983145908

Sheet Sheet1
A1: 1 | C1: 46.98706055 | D1: BB | E1: 0.09440566599 | F1: 140.5523224 | G1: 24.69332886 | H1: 0.1256471424
A2: 2 | C2: 73.90891266 | D2: BV | E2: 0.08255117387 | F2: 79.73130798 | G2: 15.88693237 | H2: 0.07127602617
A3: 3 | C3: 148.9849091 | D3: BB | E3: 0.07869347185 | F3: 114.4562378 | G3: 24.41466331 | H3: 0.1023184745
A4: 4 | C4: 238.9099884 | D4: BB | E4: 0.072378546 | F4: 73.67788696 | G4: 16.965868 | H4: 0.06586455349
A5: 5 | C5: 286.933075 | D5: BB | E5: 0.08337023854 | F5: 106.0559692 | G5: 18.3659668 | H5: 0.09480903086
A6: 6 | C6: 319.8777466 | D6: BV | E6: 0.06086381897 | F6: 87.84312439 | G6: 20.9733181 | H6: 0.07852760718
A7: 7 | C7: 319.9998474 | D7: VB | E7: 0.06065541133 | F7: 82.52523041 | G7: 18.28481293 | H7: 0.07377366095
A8: 8 | C8: 364.9473877 | D8: BB | E8: 0.09476067871 | F8: 124.6226807 | G8: 18.46011734 | H8: 0.1114067946
A9: 9 | C9: 370.9212341 | D9: BB | E9: 0.1056972668 | F9: 121.5138702 | G9: 16.54267311 | H9: 0.1086276648
A10: 10 | C10: 373.9332275 | D10: BB | E10: 0.06752184033 | F10: 80.40506744 | G10: 16.89531708 | H10: 0.07187833533
A11: 11 | C11: 388.9231873 | D11: BB | E11: 0.07213171571 | F11: 136.7820435 | G11: 24.88301659 | H11: 0.122276691
A12: 12 | C12: 391.9344788 | D12: BB | E12: 0.06538059562 | F12: 81.49578094 | G12: 17.81141853 | H12: 0.07285338172
A13: 13 | C13: 394.9416809 | D13: BB | E13: 0.09351614863 | F13: 107.5253143 | G13: 15.38912201 | H13: 0.09612255602
A14: 14 | C14: 397.9128723 | D14: BB | E14: 0.08454009891 | F14: 134.5846558 | G14: 20.51414108 | H14: 0.1203123301
A15: 15 | C15: 400.9380493 | D15: BB | E15: 0.08904651552 | F15: 187.7965393 | G15: 33.68296814 | H15: 0.1678812425
A16: 16 | C16: 403.9031067 | D16: BB | E16: 0.07795608044 | F16: 129.2785797 | G16: 22.86749077 | H16: 0.1155689486
A17: 17 | C17: 406.9440002 | D17: BB | E17: 0.08303437382 | F17: 135.8349304 | G17: 23.64072037 | H17: 0.1214300166
A18: 18 | C18: 409.9370728 | D18: BB | E18: 0.08194049448 | F18: 181.3977051 | G18: 34.16676712 | H18: 0.1621609867
A19: 19 | C19: 412.9299316 | D19: BB | E19: 0.08103146404 | F19: 193.3128662 | G19: 34.68039322 | H19: 0.1728125784
A20: 20 | C20: 415.9241333 | D20: BB | E20: 0.07798559964 | F20: 217.7225037 | G20: 36.29454803 | H20: 0.1946336422
A21: 21 | C21: 418.935791 | D21: BB | E21: 0.08887533098 | F21: 282.798584 | G21: 47.90273666 | H21: 0.2528085865
A22: 22 | C22: 421.9274292 | D22: BB | E22: 0.08181255311 | F22: 224.6373444 | G22: 42.39865494 | H22: 0.2008151834
A23: 23 | C23: 424.9341736 | D23: BB | E23: 0.07706876844 | F23: 239.9120026 | G23: 45.83313751 | H23: 0.2144700069
A24: 24 | C24: 427.9356079 | D24: BB | E24: 0.08769888431 | F24: 307.0579834 | G24: 56.23871231 | H24: 0.2744953446
A25: 25 | C25: 430.9301147 | D25: BB | E25: 0.08623874187 | F25: 345.5254822 | G25: 60.85759354 | H25: 0.3088834729
A26: 26 | C26: 433.9306946 | D26: BB | E26: 0.08513718098 | F26: 326.3741455 | G26: 62.2812233 | H26: 0.2917630818
A27: 27 | C27: 436.9339905 | D27: BB | E27: 0.0921529755 | F27: 367.8916016 | G27: 62.97698212 | H27: 0.328877728
A28: 28 | C28: 439.9344177 | D28: BB | E28: 0.08576019108 | F28: 459.1671448 | G28: 81.4618988 | H28: 0.4104737556
A29: 29 | C29: 442.9297791 | D29: BB | E29: 0.09005289525 | F29: 411.8118286 | G29: 77.42542267 | H29: 0.368140338
A30: 30 | C30: 445.9356384 | D30: BB | E30: 0.07684185356 | F30: 460.9268188 | G30: 88.38454437 | H30: 0.4120468212
A31: 31 | C31: 448.93573 | D31: BB | E31: 0.08808436245 | F31: 533.0114136 | G31: 91.33473206 | H31: 0.4764870466
A32: 32 | C32: 451.9350281 | D32: BB | E32: 0.08090346307 | F32: 496.505127 | G32: 95.11051178 | H32: 0.4438521494
A33: 33 | C33: 454.9343872 | D33: BB | E33: 0.08998331428 | F33: 576.882019 | G33: 101.9998779 | H33: 0.5157052973
A34: 34 | C34: 457.9331055 | D34: BB | E34: 0.0811452046 | F34: 622.9464111 | G34: 111.561676 | H34: 0.5568846897
A35: 35 | C35: 460.9353333 | D35: BB | E35: 0.08461724222 | F35: 639.6798706 | G35: 115.4944305 | H35: 0.5718436126
A36: 36 | C36: 463.9344482 | D36: BB | E36: 0.09178699553 | F36: 741.0534668 | G36: 127.5410385 | H36: 0.662466823
A37: 37 | C37: 466.9346619 | D37: BB | E37: 0.08708141744 | F37: 681.2138062 | G37: 125.9878845 | H37: 0.6089729907
A38: 38 | C38: 469.935791 | D38: BB | E38: 0.07867978513 | F38: 660.8604126 | G38: 131.3917236 | H38: 0.5907780175
A39: 39 | C39: 472.9333801 | D39: BB | E39: 0.07959124446 | F39: 716.5324097 | G39: 140.2814331 | H39: 0.6405461553
A40: 40 | C40: 475.9333496 | D40: BB | E40: 0.08413515985 | F40: 761.7736206 | G40: 147.7897339 | H40: 0.6809896625
A41: 41 | C41: 478.9313049 | D41: BB | E41: 0.08078192919 | F41: 802.277832 | G41: 153.9916229 | H41: 0.7171985158
A42: 42 | C42: 481.9320679 | D42: BB | E42: 0.091957286 | F42: 898.8221436 | G42: 154.3066101 | H42: 0.8035045736
A43: 43 | C43: 484.9322205 | D43: BB | E43: 0.09062173218 | F43: 943.1090088 | G43: 165.1554108 | H43: 0.8430949409
A44: 44 | C44: 487.9317017 | D44: BB | E44: 0.08914284408 | F44: 969.6768799 | G44: 173.6629333 | H44: 0.8668453637
A45: 45 | C45: 490.9341431 | D45: BB | E45: 0.08728437871 | F45: 994.1705322 | G45: 183.2783508 | H45: 0.8887415328
A46: 46 | C46: 493.934021 | D46: BB | E46: 0.08888286352 | F46: 1014.070923 | G46: 182.3413239 | H46: 0.9065315428
A47: 47 | C47: 496.9328003 | D47: BB | E47: 0.08488694578 | F47: 981.4680176 | G47: 188.0610046 | H47: 0.8773860843
A48: 48 | C48: 499.9326172 | D48: BB | E48: 0.08537097275 | F48: 1010.450928 | G48: 192.0874634 | H48: 0.903295438
A49: 49 | C49: 502.9332581 | D49: BB | E49: 0.08542270958 | F49: 1043.699097 | G49: 198.2408447 | H49: 0.9330177318
A50: 50 | C50: 505.9336243 | D50: BB | E50: 0.08550880849 | F50: 1073.080566 | G50: 203.5362854 | H50: 0.959283379
A51: 51 | C51: 508.9346008 | D51: BB | E51: 0.08376972377 | F51: 1080.457397 | G51: 210.8983459 | H51: 0.9658779178
A52: 52 | C52: 511.9324341 | D52: BB | E52: 0.08763191104 | F52: 1127.03772 | G52: 206.6380463 | H52: 1.007518527
A53: 53 | C53: 514.9338989 | D53: BB | E53: 0.08754044771 | F53: 1193.941895 | G53: 219.2197723 | H53: 1.067327702
A54: 54 | C54: 517.9343262 | D54: BB | E54: 0.08394079655 | F54: 1169.074463 | G54: 227.5445709 | H54: 1.045097392
A55: 55 | C55: 520.9329834 | D55: BB | E55: 0.08762891591 | F55: 1259.654297 | G55: 230.9636536 | H55: 1.126071488
A56: 56 | C56: 523.9342651 | D56: BB | E56: 0.08284435421 | F56: 1144.001953 | G56: 226.8134308 | H56: 1.022683751
A57: 57 | C57: 526.9335938 | D57: BB | E57: 0.08659841865 | F57: 1277.755005 | G57: 238.1392822 | H57: 1.142252667
A58: 58 | C58: 529.9328613 | D58: BB | E58: 0.08514342457 | F58: 1268.496826 | G58: 242.0396118 | H58: 1.133976292
A59: 59 | C59: 532.9329224 | D59: BB | E59: 0.08429963887 | F59: 1251.4021 | G59: 242.1190491 | H59: 1.118694413
A60: 60 | C60: 535.9349976 | D60: BB | E60: 0.08578044176 | F60: 1311.270142 | G60: 247.6212769 | H60: 1.172213617
A61: 61 | C61: 538.9337769 | D61: BB | E61: 0.0825573504 | F61: 1375.855347 | G61: 256.5908813 | H61: 1.229949742
A62: 62 | C62: 541.934082 | D62: BB | E62: 0.08628238738 | F62: 1372.147827 | G62: 257.0291748 | H62: 1.226635395
A63: 63 | C63: 544.9334106 | D63: BB | E63: 0.08665867895 | F63: 1402.669434 | G63: 261.1685486 | H63: 1.25392027
A64: 64 | C64: 547.9335938 | D64: BB | E64: 0.08432988822 | F64: 1334.117432 | G64: 257.9932251 | H64: 1.192638016
A65: 65 | C65: 550.9329224 | D65: BB | E65: 0.08703191578 | F65: 1433.35437 | G65: 265.3016052 | H65: 1.281351155
A66: 66 | C66: 553.9327393 | D66: BB | E66: 0.08674217761 | F66: 1463.258423 | G66: 272.0872803 | H66: 1.308083967
A67: 67 | C67: 556.93396 | D67: BB | E67: 0.08677501976 | F67: 1421.227417 | G67: 264.1335144 | H67: 1.270510232
A68: 68 | C68: 559.9329834 | D68: BB | E68: 0.08372908086 | F68: 1378.894165 | G68: 269.3344421 | H68: 1.232666302
A69: 69 | C69: 562.9334717 | D69: BB | E69: 0.08483545482 | F69: 1390.015747 | G69: 266.5690613 | H69: 1.242608472
A70: 70 | C70: 565.9347534 | D70: BB | E70: 0.08702781051 | F70: 1480.132568 | G70: 273.9776917 | H70: 1.323168657
A71: 71 | C71: 568.9328613 | D71: BB | E71: 0.08607730269 | F71: 1449.467285 | G71: 272.4095764 | H71: 1.295755341
A72: 72 | C72: 571.9345703 | D72: BB | E72: 0.08642227948 | F72: 1503.142578 | G72: 280.9359741 | H72: 1.343738519
A73: 73 | C73: 574.9338989 | D73: BB | E73: 0.08561512083 | F73: 1493.32251 | G73: 282.7568359 | H73: 1.334959842
A74: 74 | C74: 577.9342651 | D74: BB | E74: 0.08514170349 | F74: 1465.004761 | G74: 279.5427856 | H74: 1.309645111
A75: 75 | C75: 580.9338989 | D75: BB | E75: 0.08074954152 | F75: 1486.822754 | G75: 285.537384 | H75: 1.329149367
A76: 76 | C76: 583.9330444 | D76: BB | E76: 0.08393847197 | F76: 1443.808105 | G76: 281.028656 | H76: 1.290696301
A77: 77 | C77: 586.9331055 | D77: BB | E77: 0.08439095318 | F77: 1433.57312 | G77: 276.9457703 | H77: 1.281546707
A78: 78 | C78: 589.9333496 | D78: BB | E78: 0.08360721171 | F78: 1367.860107 | G78: 267.7254639 | H78: 1.222802376
A79: 79 | C79: 592.9337769 | D79: BB | E79: 0.0853266418 | F79: 1416.950073 | G79: 269.5579834 | H79: 1.266686488
A80: 80 | C80: 595.9336548 | D80: BB | E80: 0.08606100827 | F80: 1521.738159 | G80: 286.0670776 | H80: 1.360362091
A81: 81 | C81: 598.9332886 | D81: BB | E81: 0.08541999012 | F81: 1459.860352 | G81: 277.2990417 | H81: 1.305046252
A82: 82 | C82: 601.9347534 | D82: BB | E82: 0.08627656102 | F82: 1455.713135 | G82: 272.7080383 | H82: 1.301338836
A83: 83 | C83: 604.9336548 | D83: BB | E83: 0.08387161046 | F83: 1373.97937 | G83: 267.7355652 | H83: 1.228272708
A84: 84 | C84: 607.9335327 | D84: BB | E84: 0.08632906526 | F84: 1431.317383 | G84: 267.9119873 | H84: 1.279530185
A85: 85 | C85: 610.9326172 | D85: BBA | E85: 0.08419338614 | F85: 1350.389404 | G85: 261.7321472 | H85: 1.207184392
A86: 86 | C86: 613.9343872 | D86: BB | E86: 0.08124553412 | F86: 1384.073608 | G86: 263.6522827 | H86: 1.23729648
A87: 87 | C87: 616.9342041 | D87: BB | E87: 0.08450450003 | F87: 1304.445557 | G87: 251.5272675 | H87: 1.16611276
A88: 88 | C88: 619.9349976 | D88: BB | E88: 0.08646130562 | F88: 1371.691772 | G88: 256.2077637 | H88: 1.226227703
A89: 89 | C89: 622.9360352 | D89: BB | E89: 0.0845925808 | F89: 1300.255371 | G89: 250.3548431 | H89: 1.162366932
A90: 90 | C90: 625.9341431 | D90: BB | E90: 0.08622102439 | F90: 1296.25415 | G90: 243.0523224 | H90: 1.15879003
A91: 91 | C91: 628.9342041 | D91: BB | E91: 0.08599916101 | F91: 1245.142456 | G91: 234.3041687 | H91: 1.113098587
A92: 92 | C92: 631.9337158 | D92: BB | E92: 0.08630083501 | F92: 1262.368286 | G92: 236.395401 | H92: 1.128497666
A93: 93 | C93: 634.9342651 | D93: BB | E93: 0.08459701389 | F93: 1213.975464 | G93: 233.7251587 | H93: 1.085236767
A94: 94 | C94: 637.9334106 | D94: BB | E94: 0.08828103542 | F94: 1205.873535 | G94: 218.8596649 | H94: 1.077994025
A95: 95 | C95: 640.9342041 | D95: BB | E95: 0.08479660004 | F95: 1178.985962 | G95: 226.2434845 | H95: 1.053957804
A96: 96 | C96: 643.9335938 | D96: BB | E96: 0.08514589071 | F96: 1112.45752 | G96: 212.257431 | H96: 0.9944845166
A97: 97 | C97: 646.9358521 | D97: BB | E97: 0.08490472287 | F97: 1067.344238 | G97: 204.4562225 | H97: 0.9541553724
A98: 98 | C98: 649.9329224 | D98: BB | E98: 0.09672993422 | F98: 1280.66626 | G98: 205.4326935 | H98: 1.144855191
A99: 99 | C99: 652.9328003 | D99: BB | E99: 0.08420053124 | F99: 1020.38031 | G99: 197.7463837 | H99: 0.9121718372
A100: 100 | C100: 655.9356689 | D100: BB | E100: 0.08155181259 | F100: 1016.127014 | G100: 192.5989685 | H100: 0.9083695914
A101: 101 | C101: 658.9330444 | D101: BB | E101: 0.08608270437 | F101: 973.5598755 | G101: 182.9526978 | H101: 0.8703165785
A102: 102 | C102: 661.9344482 | D102: BB | E102: 0.08769951761 | F102: 953.9308472 | G102: 174.7139282 | H102: 0.8527691536
A103: 103 | C103: 664.934082 | D103: BB | E103: 0.07830544561 | F103: 832.4876099 | G103: 166.5771637 | H103: 0.7442046314
A104: 104 | C104: 667.9354858 | D104: BB | E104: 0.08863984048 | F104: 855.5183716 | G104: 154.410141 | H104: 0.7647930453
A105: 105 | C105: 670.9353027 | D105: BB | E105: 0.08868353814 | F105: 796.8479614 | G105: 143.7237244 | H105: 0.7123444678
A106: 106 | C106: 673.9346313 | D106: BB | E106: 0.0864335075 | F106: 748.295166 | G106: 139.8305359 | H106: 0.6689405603
A107: 107 | C107: 676.9326782 | D107: BB | E107: 0.08424857259 | F107: 774.9042358 | G107: 140.7120667 | H107: 0.6927278128
A108: 108 | C108: 679.9304199 | D108: BB | E108: 0.08950663358 | F108: 691.2236328 | G108: 131.1122894 | H108: 0.6179213033
A109: 109 | C109: 682.9331055 | D109: BB | E109: 0.08738526702 | F109: 738.1626587 | G109: 127.8008881 | H109: 0.659882577
A110: 110 | C110: 685.9325562 | D110: BB | E110: 0.0791702196 | F110: 570.4333496 | G110: 112.4730682 | H110: 0.5099404912
A111: 111 | C111: 688.9325562 | D111: BB | E111: 0.08995885402 | F111: 621.0457153 | G111: 109.8492889 | H111: 0.5551855573
A112: 112 | C112: 691.9326782 | D112: BB | E112: 0.08324690908 | F112: 577.0545654 | G112: 106.4447784 | H112: 0.5158595456
A113: 113 | C113: 694.9317627 | D113: BB | E113: 0.08878599852 | F113: 553.0680542 | G113: 99.5965271 | H113: 0.4944167367
A114: 114 | C114: 697.93396 | D114: BB | E114: 0.08966053277 | F114: 541.3223877 | G114: 96.18300629 | H114: 0.4839166652
A115: 115 | C115: 700.9415894 | D115: BB | E115: 0.1087731421 | F115: 669.1057129 | G115: 96.64392853 | H115: 0.5981489268
A116: 116 | C116: 703.9359131 | D116: BB | E116: 0.08121259511 | F116: 543.1026611 | G116: 103.5113373 | H116: 0.4855081456
A117: 117 | C117: 706.9379272 | D117: BB | E117: 0.08722056448 | F117: 443.7301636 | G117: 81.88556671 | H117: 0.396673823
A118: 118 | C118: 709.934082 | D118: BB | E118: 0.0863738209 | F118: 443.2399597 | G118: 82.90549469 | H118: 0.3962356039
A119: 119 | C119: 712.9367065 | D119: BB | E119: 0.09531561285 | F119: 542.1218872 | G119: 88.68682098 | H119: 0.48463138
A120: 120 | C120: 715.9342651 | D120: BB | E120: 0.08858689666 | F120: 443.2463989 | G120: 80.06589508 | H120: 0.3962413602
A121: 121 | C121: 718.9332275 | D121: BB | E121: 0.09045381099 | F121: 358.8239441 | G121: 67.03000641 | H121: 0.3207716702
A122: 122 | C122: 721.9321289 | D122: BB | E122: 0.08982901275 | F122: 366.7313843 | G122: 69.19943237 | H122: 0.3278405485
A123: 123 | C123: 724.9349365 | D123: BB | E123: 0.07761115581 | F123: 383.9410095 | G123: 72.70293427 | H123: 0.3432251412
A124: 124 | C124: 727.9383545 | D124: BB | E124: 0.08957368135 | F124: 390.1123962 | G124: 69.40759277 | H124: 0.3487420697
A125: 125 | C125: 730.9327393 | D125: BB | E125: 0.0766030997 | F125: 346.6275024 | G125: 66.72904968 | H125: 0.309868627
A126: 126 | C126: 733.9364624 | D126: BB | E126: 0.08726028353 | F126: 331.9330139 | G126: 61.21616364 | H126: 0.2967324478
A127: 127 | C127: 736.9348145 | D127: BB | E127: 0.09568588436 | F127: 359.5218506 | G127: 61.96892548 | H127: 0.3213955657
A128: 128 | C128: 739.9379272 | D128: BB | E128: 0.08699418604 | F128: 342.7759094 | G128: 63.48287964 | H128: 0.3064254847
A129: 129 | C129: 742.9356689 | D129: BB | E129: 0.08627170324 | F129: 360.4535828 | G129: 63.45531464 | H129: 0.3222284903
A130: 130 | C130: 745.9395752 | D130: BB | E130: 0.07947671413 | F130: 344.7461243 | G130: 63.36241913 | H130: 0.3081867637
A131: 131 | C131: 748.9310303 | D131: BB | E131: 0.08210322261 | F131: 294.9850769 | G131: 59.23066711 | H131: 0.263702736
A132: 132 | C132: 751.9351807 | D132: BB | E132: 0.09147188812 | F132: 311.4831238 | G132: 50.84474182 | H132: 0.2784512112
A133: 133 | C133: 754.9315796 | D133: BB | E133: 0.09677775204 | F133: 344.587738 | G133: 62.0612793 | H133: 0.3080451739
A134: 134 | C134: 757.9295044 | D134: BB | E134: 0.07305619866 | F134: 294.7348022 | G134: 56.3181572 | H134: 0.2634790023
A135: 135 | C135: 760.9293823 | D135: BB | E135: 0.08202084154 | F135: 256.2377014 | G135: 51.52355194 | H135: 0.2290644111
A136: 136 | C136: 763.9347534 | D136: BB | E136: 0.08046773076 | F136: 281.5889282 | G136: 50.95889282 | H136: 0.2517272114
A137: 137 | C137: 766.934082 | D137: BB | E137: 0.1030354649 | F137: 275.6239624 | G137: 42.85457611 | H137: 0.2463948135
A138: 138 | C138: 769.9350586 | D138: BB | E138: 0.08839336038 | F138: 295.2108765 | G138: 50.35762024 | H138: 0.2639045902
A139: 139 | C139: 772.93573 | D139: BB | E139: 0.08802417666 | F139: 281.1628113 | G139: 51.23427963 | H139: 0.2513462829
A140: 140 | C140: 775.9316406 | D140: BB | E140: 0.07941891253 | F140: 252.7313843 | G140: 49.62279892 | H140: 0.2259299291
A141: 141 | C141: 778.9360962 | D141: BB | E141: 0.1060247719 | F141: 320.0305481 | G141: 45.51905441 | H141: 0.2860922052
A142: 142 | C142: 781.9425049 | D142: BB | E142: 0.100489907 | F142: 308.4839172 | G142: 49.64800262 | H142: 0.2757700622
A143: 143 | C143: 784.9324341 | D143: BB | E143: 0.08482473344 | F143: 253.4238281 | G143: 42.95855713 | H143: 0.2265489412
A144: 144 | C144: 787.9359741 | D144: BB | E144: 0.08699910343 | F144: 262.5065918 | G144: 48.61302185 | H144: 0.2346685033
A145: 145 | C145: 790.9246216 | D145: BB | E145: 0.09019939601 | F145: 241.3526001 | G145: 45.2702179 | H145: 0.2157578331
A146: 146 | C146: 793.9243774 | D146: BB | E146: 0.08330349624 | F146: 209.2868805 | G146: 41.17262268 | H146: 0.1870925932
A147: 147 | C147: 796.9299316 | D147: BB | E147: 0.07565397769 | F147: 243.6252594 | G147: 51.07082367 | H147: 0.2177894833
A148: 148 | C148: 799.9315796 | D148: BB | E148: 0.08453023434 | F148: 287.0366821 | G148: 51.89445877 | H148: 0.2565972462
A149: 149 | C149: 802.9436646 | D149: BBA | E149: 0.1073876172 | F149: 236.0512085 | G149: 34.68967819 | H149: 0.2110186392
A150: 150 | C150: 805.9329834 | D150: BB | E150: 0.101294145 | F150: 290.5275574 | G150: 43.85181046 | H150: 0.2597179239
A151: 151 | C151: 808.9356079 | D151: BB | E151: 0.08734542876 | F151: 240.0336609 | G151: 41.58251953 | H151: 0.2145787637
A152: 152 | C152: 811.9362793 | D152: BB | E152: 0.09375885874 | F152: 169.7668304 | G152: 30.11933136 | H152: 0.1517635337
A153: 153 | C153: 814.9282227 | D153: BB | E153: 0.08601151407 | F153: 181.2281647 | G153: 30.19972801 | H153: 0.1620094256
A154: 154 | C154: 817.9282227 | D154: BB | E154: 0.07545179129 | F154: 194.7835693 | G154: 35.81419754 | H154: 0.1741273176
A155: 155 | C155: 820.9352417 | D155: BB | E155: 0.08814295381 | F155: 235.3934326 | G155: 40.30140686 | H155: 0.2104306186
A156: 156 | C156: 823.9252319 | D156: BB | E156: 0.09197790176 | F156: 250.5267487 | G156: 40.60707474 | H156: 0.2239590889

Sheet Data
B1: Total diffusible hydrogen
A2: Roller 1 | B2: ='Roller 1 +'!E2 -> 0.78
A3: Roller 2 | B3: ='Roller 2 blank'!E2 -> 0.63
A4: Raceway 1 | B4: ='Raceway 1 +'!E2 -> 0.29
A5: Raceway 2 | B5: ='Raceway 2 blank'!E2 -> 0.50

Sheet Raceway 2 blank
A1: STD H | B1: STD area | C1: sample weight | E1: Sum | F1: injection time
A2: 60.7 | B2: 6285 | C2: 22.618 | D2: =SUM(J7:J103) -> 0.0171 | E2: =SUM(J7:J268)+SUM('Raceway 2 blank (2)'!K7:K159) -> 0.498 | F2: 2016-07-08T08:18:36
D3: =SUM(J51:J124) -> 0.03
A4: row number of max temperature | D4: 209
A6: Actual Time/min | B6: Calibrated Temp °C | C6: Time/min | F6: Area | I6: ppm/min | J6: ppm
A7: 2 | C7: 4.941606045 | D7: BB | E7: 0.09277553856 | F7: 159.2996521 | G7: 28.69132423 | H7: 0.04315670953 | I7: =$A$2*10^(-6)*F7/$B$2*7.45*10^(-6)*10^6/$C$2*2*60 -> 6.081111094e-05 | J7: =I7*3 -> 0.0001824333328
A8: 3 | C8: 7.947990417 | D8: BB | E8: 0.0802744031 | F8: 157.3299561 | G8: 26.88439751 | H8: 0.04262308878 | I8: =$A$2*10^(-6)*F8/$B$2*7.45*10^(-6)*10^6/$C$2*2*60 -> 6.00591984e-05 | J8: 0.0001801775952 | U8: =25/60 -> 0.4166666667 | V8: =U8*350 -> 145.8333333
A9: 4 | B9: 48.72222222 | C9: 10.94235897 | D9: BB | E9: 0.09948246926 | F9: 169.5532074 | G9: 26.20635796 | H9: 0.04593455431 | I9: 6.472530711e-05 | J9: 0.0001941759213
A10: 5 | B10: 50.07777778 | C10: 13.93453789 | D10: BB | E10: 0.1042027697 | F10: 216.6100769 | G10: 30.01228523 | H10: 0.05868297919 | I10: 8.268881471e-05 | J10: 0.0002480664441
A11: 6 | B11: 51.42222222 | C11: 16.92826462 | D11: BB | E11: 0.08367378265 | F11: 163.1701813 | G11: 29.89695168 | H11: 0.04420529502 | I11: 6.228864824e-05 | J11: 0.0001868659447
A12: 7 | B12: 52.88888889 | C12: 19.93820381 | D12: BB | E12: 0.09445440024 | F12: 140.4176788 | G12: 23.25200844 | H12: 0.03804129449 | I12: 5.360309914e-05 | J12: 0.0001608092974
A13: 8 | B13: 54.26666667 | C13: 22.92577744 | D13: BB | E13: 0.06887584925 | F13: 121.1870041 | G13: 24.85850334 | H13: 0.0328314109 | I13: 4.626197391e-05 | J13: 0.0001387859217
A14: 9 | B14: 55.57777778 | C14: 25.93940926 | D14: BB | E14: 0.09028546512 | F14: 127.7371216 | G14: 22.48255157 | H14: 0.0346059378 | I14: 4.87624183e-05 | J14: 0.0001462872549
A15: 10 | B15: 56.97777778 | C15: 28.91646385 | D15: BB | E15: 0.1193868741 | F15: 249.1218262 | G15: 27.06496048 | H15: 0.06749090878 | I15: 9.509986248e-05 | J15: 0.0002852995874
A16: 11 | B16: 58.26666667 | C16: 31.93207932 | D16: BB | E16: 0.07288345695 | F16: 176.1868134 | G16: 38.86872864 | H16: 0.04773169951 | I16: 6.725762242e-05 | J16: 0.0002017728673
A17: 12 | B17: 59.57777778 | C17: 34.92295456 | D17: BB | E17: 0.08474634588 | F17: 144.013443 | G17: 25.94983292 | H17: 0.03901544194 | I17: 5.497574755e-05 | J17: 0.0001649272426
A18: 13 | B18: 60.86666667 | C18: 37.94918823 | D18: BB | E18: 0.08714375645 | F18: 179.6883087 | G18: 35.44522095 | H18: 0.0486803081 | I18: 6.859428462e-05 | J18: 0.0002057828538
A19: 14 | B19: 62.12222222 | C19: 40.93278503 | D19: BB | E19: 0.09893182665 | F19: 144.1381683 | G19: 25.12425041 | H19: 0.03904923194 | I19: 5.502336025e-05 | J19: 0.0001650700807
A20: 15 | B20: 63.42222222 | C20: 43.93218231 | D20: BB | E20: 0.08861070871 | F20: 171.7592163 | G20: 27.59727097 | H20: 0.04653219583 | I20: 6.556742981e-05 | J20: 0.0001967022894
A21: 16 | B21: 64.61111111 | C21: 46.93065262 | D21: BB | E21: 0.09126605093 | F21: 159.7797546 | G21: 26.1568737 | H21: 0.04328677664 | I21: 6.099438547e-05 | J21: 0.0001829831564
A22: 17 | B22: 65.87777778 | C22: 49.92391205 | D22: BB | E22: 0.1200424284 | F22: 151.815918 | G22: 21.07489967 | H22: 0.04112925162 | I22: 5.795426737e-05 | J22: 0.0001738628021
A23: 18 | B23: 67.22222222 | C23: 52.93559265 | D23: BB | E23: 0.07755726576 | F23: 151.7701263 | G23: 27.00923538 | H23: 0.04111684596 | I23: 5.793678686e-05 | J23: 0.0001738103606
A24: 19 | B24: 68.46666667 | C24: 55.9281044 | D24: BB | E24: 0.1012258232 | F24: 134.4037018 | G24: 20.30464745 | H24: 0.03641201623 | I24: 5.130732121e-05 | J24: 0.0001539219636
A25: 20 | B25: 69.72222222 | C25: 58.94783401 | D25: BB | E25: 0.1107760966 | F25: 163.4339294 | G25: 23.0347805 | H25: 0.04427674842 | I25: 6.238933157e-05 | J25: 0.0001871679947
A26: 21 | B26: 70.96666667 | C26: 61.93209839 | D26: BB | E26: 0.08112314343 | F26: 154.0255737 | G26: 25.9965744 | H26: 0.04172788112 | I26: 5.879778222e-05 | J26: 0.0001763933466
A27: 22 | B27: 72.22222222 | C27: 64.92891693 | D27: BB | E27: 0.09171741456 | F27: 174.6604919 | G27: 24.34028435 | H27: 0.04731819572 | I27: 6.667496389e-05 | J27: 0.0002000248917
A28: 23 | B28: 73.52222222 | C28: 67.92620087 | D28: BB | E28: 0.09409780055 | F28: 162.4706268 | G28: 23.08820343 | H28: 0.04401577503 | I28: 6.202160006e-05 | J28: 0.0001860648002
A29: 24 | B29: 74.82222222 | C29: 70.93521881 | D29: BB | E29: 0.08612490445 | F29: 127.2385025 | G29: 21.16864395 | H29: 0.03447085427 | I29: 4.857207526e-05 | J29: 0.0001457162258
A30: 25 | B30: 76.06666667 | C30: 73.94017029 | D30: BB | E30: 0.09401785582 | F30: 125.2505569 | G30: 20.86977005 | H30: 0.03393228945 | I30: 4.781319615e-05 | J30: 0.0001434395885
A31: 26 | B31: 77.32222222 | C31: 76.93825531 | D31: BB | E31: 0.09020613879 | F31: 98.67922211 | G31: 17.38898468 | H31: 0.02673370889 | I31: 3.766984449e-05 | J31: 0.0001130095335
A32: 27 | B32: 78.62222222 | C32: 79.93219757 | D32: BB | E32: 0.07421474159 | F32: 122.7338867 | G32: 24.59678459 | H32: 0.03325048504 | I32: 4.685248149e-05 | J32: 0.0001405574445
A33: 28 | B33: 79.86666667 | C33: 82.91416931 | D33: BB | E33: 0.08258533478 | F33: 151.1826477 | G33: 24.98815918 | H33: 0.04095768903 | I33: 5.771252253e-05 | J33: 0.0001731375676
A34: 29 | B34: 81.06666667 | C34: 85.92703247 | D34: BB | E34: 0.1162745878 | F34: 176.4972229 | G34: 22.31529045 | H34: 0.0478157942 | I34: 6.737611828e-05 | J34: 0.0002021283548
A35: 30 | B35: 82.37777778 | C35: 88.92688751 | D35: BB | E35: 0.102587156 | F35: 143.6206665 | G35: 21.32122612 | H35: 0.03890903279 | I35: 5.48258089e-05 | J35: 0.0001644774267
A36: 31 | B36: 83.72222222 | C36: 91.9376297 | D36: BB | E36: 0.09363161027 | F36: 149.052597 | G36: 21.30237389 | H36: 0.04038062576 | I36: 5.689939617e-05 | J36: 0.0001706981885
A37: 32 | B37: 84.96666667 | C37: 94.92114258 | D37: BB | E37: 0.08217434585 | F37: 114.7604141 | G37: 21.53414726 | H37: 0.03109034949 | I37: 4.380868497e-05 | J37: 0.0001314260549
A38: 33 | B38: 86.22222222 | C38: 97.94741058 | D38: BB | E38: 0.08034443855 | F38: 164.7084351 | G38: 34.10449219 | H38: 0.04462203147 | I38: 6.287586184e-05 | J38: 0.0001886275855
A39: 34 | B39: 87.52222222 | C39: 100.9332123 | D39: BB | E39: 0.08759924024 | F39: 157.1855621 | G39: 24.25727272 | H39: 0.04258397026 | I39: 6.000407741e-05 | J39: 0.0001800122322
A40: 35 | B40: 88.76666667 | C40: 103.9490509 | D40: BB | E40: 0.09686917812 | F40: 133.2253265 | G40: 20.22000885 | H40: 0.03609277637 | I40: 5.085748779e-05 | J40: 0.0001525724634
A41: 36 | B41: 89.96666667 | C41: 106.9253845 | D41: BB | E41: 0.100985691 | F41: 183.9352112 | G41: 24.11523438 | H41: 0.04983085886 | I41: 7.021549881e-05 | J41: 0.0002106464964
A42: 37 | B42: 91.16666667 | C42: 109.942276 | D42: BB | E42: 0.09623869509 | F42: 123.5813599 | G42: 19.95858955 | H42: 0.03348007846 | I42: 4.717599621e-05 | J42: 0.0001415279886
A43: 38 | B43: 92.47777778 | C43: 112.9428253 | D43: BB | E43: 0.1129940152 | F43: 150.2139587 | G43: 20.61905479 | H43: 0.04069525639 | I43: 5.734273483e-05 | J43: 0.0001720282045
A44: 39 | B44: 93.76666667 | C44: 115.9419861 | D44: BB | E44: 0.1120673418 | F44: 136.3237762 | G44: 18.91868973 | H44: 0.03693219373 | I44: 5.204029118e-05 | J44: 0.0001561208735
A45: 40 | B45: 94.96666667 | C45: 118.9211044 | D45: BB | E45: 0.09280896187 | F45: 130.7974548 | G45: 17.99303246 | H45: 0.03543502883 | I45: 4.99306711e-05 | J45: 0.0001497920133
A46: 41 | B46: 96.22222222 | C46: 121.9187012 | D46: BB | E46: 0.08188810199 | F46: 148.2474823 | G46: 27.94647026 | H46: 0.04016250787 | I46: 5.659205135e-05 | J46: 0.0001697761541
A47: 42 | B47: 97.46666667 | C47: 124.9443512 | D47: BB | E47: 0.07552712411 | F47: 81.39904022 | G47: 17.10255051 | H47: 0.02205224361 | I47: 3.107330116e-05 | J47: 9.321990349e-05
A48: 43 | B48: 98.72222222 | C48: 127.9541702 | D48: BB | E48: 0.07991880924 | F48: 128.2208405 | G48: 24.96561241 | H48: 0.03473698463 | I48: 4.894707333e-05 | J48: 0.00014684122
A49: 44 | B49: 100.0777778 | C49: 130.9363861 | D49: BB | E49: 0.124786444 | F49: 159.4846039 | G49: 16.49714088 | H49: 0.04320681579 | I49: 6.08817145e-05 | J49: 0.0001826451435
A50: 45 | B50: 101.3666667 | C50: 133.9281616 | D50: BB | E50: 0.1034053713 | F50: 175.1895447 | G50: 22.36058998 | H50: 0.04746152419 | I50: 6.687692469e-05 | J50: 0.0002006307741
A51: 46 | B51: 102.5111111 | C51: 136.9468842 | D51: BB | E51: 0.08145844936 | F51: 119.1736908 | G51: 20.01714325 | H51: 0.03228597357 | I51: 4.549341092e-05 | J51: 0.0001364802327
A52: 47 | B52: 103.6666667 | C52: 139.9179688 | D52: BB | E52: 0.1190829277 | F52: 145.1293488 | G52: 19.44325638 | H52: 0.03931775786 | I52: 5.540173384e-05 | J52: 0.0001662052015
A53: 48 | B53: 106.3222222 | C53: 145.9128113 | D53: BB | E53: 0.0802199468 | F53: 97.2062912 | G53: 17.65920639 | H53: 0.0263346694 | I53: 3.710756728e-05 | J53: 0.0001113227018
A54: 49 | B54: 107.5666667 | C54: 148.9396973 | D54: BB | E54: 0.07607118785 | F54: 98.4965744 | G54: 19.12941551 | H54: 0.02668422683 | I54: 3.760012049e-05 | J54: 0.0001128003615
A55: 50 | B55: 108.8777778 | C55: 151.9403687 | D55: BB | E55: 0.09040502459 | F55: 117.3885498 | G55: 17.46741486 | H55: 0.0318023516 | I55: 4.48119505e-05 | J55: 0.0001344358515
A56: 51 | B56: 110.1666667 | C56: 154.9221802 | D56: BB | E56: 0.08358641714 | F56: 101.9808884 | G56: 16.62014961 | H56: 0.02762818072 | I56: 3.893022385e-05 | J56: 0.0001167906716
A57: 52 | B57: 111.3666667 | C57: 157.9221802 | D57: BB | E57: 0.06964790821 | F57: 125.6285934 | G57: 23.77480316 | H57: 0.03403470531 | I57: 4.795750795e-05 | J57: 0.0001438725239
A58: 53 | B58: 112.6222222 | C58: 160.9280396 | D58: BB | E58: 0.09916412085 | F58: 113.7300797 | G58: 17.65271568 | H58: 0.03081121614 | I58: 4.341536469e-05 | J58: 0.0001302460941
A59: 54 | B59: 113.8666667 | C59: 163.9520111 | D59: BB | E59: 0.08374782652 | F59: 94.83437347 | G59: 15.42069054 | H59: 0.02569208065 | I59: 3.620211049e-05 | J59: 0.0001086063315
A60: 55 | B60: 116.3333333 | C60: 169.944458 | D60: BB | E60: 0.09292196482 | F60: 104.1805496 | G60: 16.66767693 | H60: 0.02822410256 | I60: 3.976992339e-05 | J60: 0.0001193097702
A61: 56 | B61: 117.6666667 | C61: 172.9190369 | D61: BB | E61: 0.08220277727 | F61: 92.52059937 | G61: 17.35303497 | H61: 0.02506524389 | I61: 3.531884946e-05 | J61: 0.0001059565484
A62: 57 | B62: 120.2666667 | C62: 178.9268188 | D62: BB | E62: 0.07814326137 | F62: 154.8219604 | G62: 33.36068726 | H62: 0.04194363445 | I62: 5.910179519e-05 | J62: 0.0001773053856
A63: 58 | B63: 121.4666667 | C63: 181.9386139 | D63: BB | E63: 0.08631598949 | F63: 99.77958679 | G63: 18.68052101 | H63: 0.02703181449 | I63: 3.808989814e-05 | J63: 0.0001142696944
A64: 59 | B64: 123.8555556 | C64: 187.9517212 | D64: BB | E64: 0.0902723968 | F64: 97.33036804 | G64: 16.15884781 | H64: 0.02636828371 | I64: 3.715493242e-05 | J64: 0.0001114647973
A65: 60 | B65: 125.1333333 | C65: 190.9246063 | D65: BB | E65: 0.1063205674 | F65: 143.7903595 | G65: 18.57333755 | H65: 0.03895500521 | I65: 5.489058757e-05 | J65: 0.0001646717627
A66: 61 | B66: 126.5777778 | C66: 193.9450684 | D66: BB | E66: 0.05870465562 | F66: 62.53501129 | G66: 17.08420563 | H66: 0.01694168997 | I66: 2.387213945e-05 | J66: 7.161641835e-05
A67: 62 | B67: 129.1222222 | C67: 199.943161 | D67: BB | E67: 0.09068328887 | F67: 87.07289886 | G67: 16.20608139 | H67: 0.0235893786 | I67: 3.323924216e-05 | J67: 9.971772648e-05
A68: 63 | B68: 130.3666667 | C68: 202.9507599 | D68: BB | E68: 0.08281297982 | F68: 89.83787537 | G68: 17.82104111 | H68: 0.02433845298 | I68: 3.429474536e-05 | J68: 0.0001028842361
A69: 64 | B69: 131.7333333 | C69: 205.9169312 | D69: BB | E69: 0.06662943214 | F69: 82.15088654 | G69: 17.5441494 | H69: 0.02225593026 | I69: 3.136031127e-05 | J69: 9.40809338e-05
A70: 65 | B70: 133.0111111 | C70: 208.9233093 | D70: BB | E70: 0.1040564254 | F70: 154.1330566 | G70: 19.53387642 | H70: 0.04175699988 | I70: 5.883881278e-05 | J70: 0.0001765164383
A71: 66 | B71: 135.3666667 | C71: 214.9361725 | D71: BB | E71: 0.09752184153 | F71: 102.4414902 | G71: 16.25572395 | H71: 0.02775296479 | I71: 3.910605416e-05 | J71: =I71*3 -> 0.0001173181625
A72: 67 | B72: 137.9111111 | C72: 220.9415588 | D72: BB | E72: 0.08859626204 | F72: 125.008606 | G72: 19.04053497 | H72: 0.03386674123 | I72: =$A$2*10^(-6)*F72/$B$2*7.45*10^(-6)*10^6/$C$2*2*60 -> 4.772083369e-05 | J72: 0.0001431625011
A73: 68 | B73: 140.5222222 | C73: 226.9246979 | D73: BB | E73: 0.07155808806 | F73: 93.72340393 | G73: 17.20378494 | H73: 0.02539110203 | I73: 3.577800854e-05 | J73: 0.0001073340256
A74: 69 | B74: 143.1666667 | C74: 232.9324341 | D74: BB | E74: 0.07358330488 | F74: 99.8097229 | G74: 20.22195244 | H74: 0.02703997882 | I74: 3.810140231e-05 | J74: 0.0001143042069
A75: 70 | B75: 146.9666667 | C75: 241.9392395 | D75: BB | E75: 0.07721412182 | F75: 93.40092468 | G75: 16.7092247 | H75: 0.02530373747 | I75: 3.565490519e-05 | J75: 0.0001069647156
A76: 71 | B76: 148.1666667 | C76: 244.9434509 | D76: BB | E76: 0.09002051502 | F76: 127.3844681 | G76: 21.22452545 | H76: 0.03451039858 | I76: 4.862779622e-05 | J76: 0.0001458833887
A77: 72 | B77: 149.4777778 | C77: 247.9438782 | D77: BB | E77: 0.0721322 | F77: 77.41692352 | G77: 16.09054184 | H77: 0.02097342736 | I77: 2.955316639e-05 | J77: 8.865949918e-05
A78: 73 | B78: 150.7111111 | C78: 250.9264832 | D78: BB | E78: 0.0887742117 | F78: 117.5559464 | G78: 17.86388969 | H78: 0.03184770188 | I78: 4.487585252e-05 | J78: 0.0001346275576
A79: 74 | B79: 153.2777778 | C79: 256.9358215 | D79: BB | E79: 0.1015527397 | F79: 122.1312714 | G79: 17.47169685 | H79: 0.03308722733 | I79: 4.662243887e-05 | J79: 0.0001398673166
A80: 75 | B80: 154.6222222 | C80: 259.9328003 | D80: BB | E80: 0.09690708667 | F80: 133.1928711 | G80: 20.20511818 | H80: 0.0360839837 | I80: 5.084509824e-05 | J80: 0.0001525352947
A81: 76 | B81: 155.8666667 | C81: 262.9236145 | D81: BB | E81: 0.08716950566 | F81: 175.8398132 | G81: 27.29117966 | H81: 0.04763769188 | I81: 6.712515846e-05 | J81: 0.0002013754754
A82: 77 | B82: 157.1222222 | C82: 265.9404907 | D82: BB | E82: 0.07697729021 | F82: 137.8374481 | G82: 30.35458374 | H82: 0.03734227057 | I82: 5.261812087e-05 | J82: 0.0001578543626
A83: 78 | B83: 158.3111111 | C83: 268.9292603 | D83: BB | E83: 0.09825883806 | F83: 140.8645935 | G83: 22.13097 | H83: 0.0381623705 | I83: 5.377370452e-05 | J83: 0.0001613211136
A84: 79 | B84: 159.5222222 | C84: 271.9215088 | D84: BB | E84: 0.1081545427 | F84: 136.7936859 | G84: 20.95641708 | H84: 0.03705949944 | I84: 5.221967468e-05 | J84: 0.000156659024
A85: 80 | B85: 160.8222222 | C85: 274.9336243 | D85: BB | E85: 0.07217598706 | F85: 153.2944183 | G85: 29.72007561 | H85: 0.04152979995 | I85: 5.851867067e-05 | J85: 0.000175556012
A86: 81 | B86: 162.1777778 | C86: 277.9347229 | D86: BB | E86: 0.1034752354 | F86: 128.2688293 | G86: 18.82938385 | H86: 0.03474998556 | I86: 4.896539263e-05 | J86: 0.0001468961779
A87: 82 | B87: 163.4666667 | C87: 280.9518738 | D87: BB | E87: 0.08149876446 | F87: 188.5296021 | G87: 38.25320816 | H87: 0.05107554954 | I87: 7.196936336e-05 | J87: 0.0002159080901
A88: 83 | B88: 164.7222222 | C88: 283.9420776 | D88: BB | E88: 0.1044746488 | F88: 252.4948883 | G88: 36.60499191 | H88: 0.06840472285 | I88: 9.638749653e-05 | J88: 0.0002891624896
A89: 84 | B89: 165.9666667 | C89: 286.935791 | D89: BB | E89: 0.06726263463 | F89: 110.5797424 | G89: 23.34483147 | H89: 0.02995774166 | I89: 4.221275374e-05 | J89: 0.0001266382612
A90: 85 | B90: 167.1111111 | C90: 289.9330139 | D90: BB | E90: 0.07961814851 | F90: 191.5080719 | G90: 40.1714325 | H90: 0.05188246253 | I90: 7.310636559e-05 | J90: 0.0002193190968
A91: 86 | B91: 168.3777778 | C91: 292.9232178 | D91: BB | E91: 0.06897588819 | F91: 166.2440491 | G91: 31.80788231 | H91: 0.04503805276 | I91: 6.346206773e-05 | J91: 0.0001903862032
A92: 87 | B92: 169.7777778 | C92: 295.9413452 | D92: BB | E92: 0.08716750145 | F92: 206.7086639 | G92: 33.88626862 | H92: 0.05600053515 | I92: 7.890904549e-05 | J92: 0.0002367271365
A93: 88 | B93: 171.0111111 | C93: 298.9354858 | D93: BB | E93: 0.08153500408 | F93: 207.6161041 | G93: 36.96021652 | H93: 0.05624637456 | I93: 7.925545206e-05 | J93: 0.0002377663562
A94: 89 | B94: 172.2777778 | C94: 301.9437256 | D94: BB | E94: 0.0893458873 | F94: 220.47789 | G94: 35.0700264 | H94: 0.05973082886 | I94: 8.416531519e-05 | J94: 0.0002524959456
A95: 90 | B95: 173.5111111 | C95: 304.9369507 | D95: BB | E95: 0.09532725811 | F95: 239.9458008 | G95: 39.24681473 | H95: 0.06500498331 | I95: 9.159700299e-05 | J95: 0.000274791009
A96: 91 | B96: 174.7222222 | C96: 307.9363403 | D96: BB | E96: 0.08193973452 | F96: 219.8034973 | G96: 44.25933456 | H96: 0.05954812557 | I96: 8.390787226e-05 | J96: 0.0002517236168
A97: 92 | B97: 176.0222222 | C97: 310.9304504 | D97: BB | E97: 0.08138924837 | F97: 195.9099884 | G97: 37.23154449 | H97: 0.05307500896 | I97: 7.478675491e-05 | J97: 0.0002243602647
A98: 93 | B98: 177.2666667 | C98: 313.9407959 | D98: BB | E98: 0.0786350444 | F98: 291.7845764 | G98: 54.34902573 | H98: 0.07904889963 | I98: 0.0001113859573 | J98: 0.0003341578719
A99: 94 | B99: 178.4666667 | C99: 316.9347534 | D99: BB | E99: 0.07594437897 | F99: 282.4147339 | G99: 54.96492767 | H99: 0.07651046613 | I99: 0.00010780911 | J99: 0.0003234273299
A100: 95 | B100: 179.7222222 | C100: 319.9292603 | D100: BB | E100: 0.09484150261 | F100: 344.4885559 | G100: 56.73274612 | H100: 0.09332721288 | I100: 0.0001315051949 | J100: 0.0003945155846
A101: 96 | B101: 181.0222222 | C101: 322.9391479 | D101: BB | E101: 0.09923212975 | F101: 341.455658 | G101: 55.92489243 | H101: 0.09250555449 | I101: 0.0001303474152 | J101: 0.0003910422456
A102: 97 | B102: 182.3222222 | C102: 325.9328918 | D102: BB | E102: 0.09777240455 | F102: 373.7685547 | G102: 59.10926819 | H102: 0.1012596119 | I102: 0.0001426825529 | J102: 0.0004280476588
A103: 98 | B103: 183.6222222 | C103: 328.933136 | D103: BB | E103: 0.08169732243 | F103: 338.5674133 | G103: 64.02146912 | H103: 0.09172308489 | I103: 0.0001292448556 | J103: 0.0003877345668
A104: 99 | B104: 184.8666667 | C104: 331.9335938 | D104: BB | E104: 0.09340332448 | F104: 371.7836609 | G104: 62.49666214 | H104: 0.1007218738 | I104: 0.0001419248388 | J104: 0.0004257745164
A105: 100 | B105: 186.0666667 | C105: 334.9342041 | D105: BB | E105: 0.0849616155 | F105: 412.3703003 | G105: 74.05892181 | H105: 0.1117174145 | I105: 0.0001574183983 | J105: 0.0004722551948
A106: 101 | B106: 187.3222222 | C106: 337.9396057 | D106: BB | E106: 0.08345969766 | F106: 471.839447 | G106: 81.60121918 | H106: 0.1278285149 | I106: 0.0001801201734 | J106: 0.0005403605202
A107: 102 | B107: 188.5111111 | C107: 340.9351196 | D107: BBA | E107: 0.08900969476 | F107: 422.4072571 | G107: 75.80538177 | H107: 0.1144365795 | I107: 0.00016124991 | J107: 0.0004837497301
A108: 103 | B108: 189.7777778 | C108: 343.933197 | D108: BB | E108: 0.08911950141 | F108: 499.6737976 | G108: 84.33984375 | H108: 0.1353692658 | I108: 0.0001907456692 | J108: 0.0005722370075
A109: 104 | B109: 191.0111111 | C109: 346.9308472 | D109: BB | E109: 0.07545270771 | F109: 473.2268677 | G109: 92.86338806 | H109: 0.1282043884 | I109: 0.0001806498079 | J109: 0.0005419494237
A110: 105 | B110: 192.2222222 | C110: 349.9326782 | D110: BB | E110: 0.08859013021 | F110: 579.4484863 | G110: 104.6635513 | H110: 0.1569814477 | I110: 0.0002211988898 | J110: 0.0006635966693
A111: 106 | B111: 193.4666667 | C111: 352.9382935 | D111: BB | E111: 0.08637533337 | F111: 613.5900879 | G111: 114.7657394 | H111: 0.1662309292 | I111: 0.000234232118 | J111: 0.0007026963539
A112: 107 | B112: 194.7222222 | C112: 355.9336853 | D112: BB | E112: 0.08575997502 | F112: 645.1429443 | G112: 121.8696747 | H112: 0.1747790801 | I112: 0.0002462771176 | J112: 0.0007388313529
A113: 108 | B113: 196.0222222 | C113: 358.9338684 | D113: BB | E113: 0.09137924761 | F113: 774.1012573 | G113: 134.0350494 | H113: 0.2097158573 | I113: 0.000295505714 | J113: 0.000886517142
A114: 109 | B114: 197.3222222 | C114: 361.9361877 | D114: BB | E114: 0.08281128109 | F114: 671.0089722 | G114: 133.1111755 | H114: 0.1817865822 | I114: 0.0002561512251 | J114: 0.0007684536753
A115: 110 | B115: 198.5111111 | C115: 364.9341736 | D115: BB | E115: 0.09659603983 | F115: 823.0426636 | G115: 132.2684326 | H115: 0.222974832 | I115: 0.0003141886254 | J115: 0.0009425658762
A116: 111 | B116: 199.6666667 | C116: 367.9335022 | D116: BB | E116: 0.08749758452 | F116: 850.3262939 | G116: 156.2338867 | H116: 0.2303663843 | I116: 0.000324603889 | J116: 0.0009738116671
A117: 112 | B117: 200.8666667 | C117: 370.9338989 | D117: BBA | E117: 0.08588804305 | F117: 834.574646 | G117: 157.327713 | H117: 0.2260990222 | I117: 0.0003185908488 | J117: 0.0009557725465
A118: 113 | B118: 202.1222222 | C118: 373.9358826 | D118: BB | E118: 0.08501166105 | F118: 898.6403809 | G118: 171.8382721 | H118: 0.2434554086 | I118: 0.0003430473273 | J118: 0.001029141982
A119: 114 | B119: 203.4222222 | C119: 376.9320679 | D119: BB | E119: 0.0809404552 | F119: 867.3241577 | G119: 166.0437469 | H119: 0.2349713653 | I119: 0.0003310926601 | J119: 0.0009932779804
A120: 115 | B120: 204.7777778 | C120: 379.9358521 | D120: BB | E120: 0.08616427332 | F120: 990.7750244 | G120: 185.9434814 | H120: 0.2684160911 | I120: 0.0003782188418 | J120: 0.001134656526
